Workbook

Sheet Change Log
A2: Method M Version No. | C2: [Extended Disaggregation Model PB LZ v1.0]
A3: Release Date: | C3: [01 April 2013]
A8: This version of Method M incorporates the following change proposals:
A10: Ref | B10: Approval Date | C10: Implementation Date | D10: Title
A11: DCP 071A | B11: 2011-06-20 | C11: 2011-10-01 | D11: Allocation of Costs to HV Connected IDNOs with LV End Users
A12: DCP 095 | B12: 2011-12-09 | C12: 2012-04-01 | D12: Not included in this model
A13: DCP 096 | B13: 2011-12-09 | C13: 2012-04-01 | D13: Treatment of Transmission Exit Charges in CDCM Price Control Disaggregation Model (Method M)

Sheet Inputs
A1: ="Extended Method M for "&B5&" in "&B6&" Status: "&B7&"" -> Extended Method M for WPD South Wales in 2014/15 Status: Indicative
A4: 1000. Company, charging year, data version
A5: DNO | B5: WPD South Wales
A6: Charging Year | B6: 2014/15
A7: Version | B7: Indicative
A10: 1001. LV/HV Split
A11: Sources: HV main usage value provided each year by the Nominated Calculation Agent
A12: DNO LV Main usage | B12: 0.1844
A13: DNO HV Main usage | B13: 0.4
A14: DNO 33kV split | B14: 1
A15: DNO 132kV split | B15: 1
A18: 1002. Method M input data
A19: Each DNO selects one of the options below to calculate the LDNO discounts:
A20: 'LR1 opt 3' is an extended version of LR1, which contains all information from LR1, but breaks down certain lines into more detail.
A21: Version LR1
A22: Version LR1, Option 3
B25: This spreadsheet is currently using version: | C25: LR1
A27: 1003. Depreciation Factor
A28: Depreciation Factor | B28: 0.05545
A31: 1004. CDCM Discounts
A32: Sources: CDCM Table 1037. (Embedded network (LDNO) discounts)
B33: No discount | C33: LDNO LV: LV user | D33: LDNO HV: LV user | E33: LDNO HV: LV sub user | F33: LDNO HV: HV user
A34: LDNO discount using data in this model | C34: 0.3191748255 | D34: 0.6722493164 | E34: 0.5049131135 | F34: 0.4064159514
A36: Additional Input Links
A37: Calc-Net capex'!K5 | B37: Suggest these values are set to 0 for those using LR1
A38: Calc-Net capex'!O6 to O10 | B38: Suggest these values are set to 0 for those using LR1
A40: Notes
A41: - Where DNOs do not hold asset data required by the Method M model within the RRP data tables, the DNO can substitute equivalent data within the Method M input tables.

Sheet Outputs
A1: ="Extended Method M for "&Inputs!B5&" in "&Inputs!B6&" Status: "&Inputs!B7&"" -> Extended Method M for WPD South Wales in 2014/15 Status: Indicative | G1: Index
A3: The data table below is used to populate EDCM table 1181 (LDNO discounts)
A6: Boundary category | B6: LV demand end user | C6: LV Sub demand or LV generation end user | D6: HV demand or LV Sub generation end user | E6: HV generation end user
A7: Boundary 0000 | B7: =IF((SUM('Allocation Summary'!B$13:H$13)-SUMPRODUCT('Allocation Summary'!B22:E22,'Allocation Summary'!E$13:H$13))/(1-SUMPRODUCT('Allocation Summary'!F22:I22,'Allocation Summary'!E$13:H$13))>1,1,(SUM('Allocation Summary'!B$13:H$13)-SUMPRODUCT('Allocation Summary'!B22:E22,'Allocation Summary'!E$13:H$13))/(1-SUMPRODUCT('Allocation Summary'!F22:I22,'Allocation Summary'!E$13:H$13))) -> 0.9712095843 | C7: =IF((SUM('Allocation Summary'!C$13:H$13)-SUMPRODUCT('Allocation Summary'!B22:E22,'Allocation Summary'!E$13:H$13))/(1-'Allocation Summary'!B$13-SUMPRODUCT('Allocation Summary'!F22:I22,'Allocation Summary'!E$13:H$13))>1,1,(SUM('Allocation Summary'!C$13:H$13)-SUMPRODUCT('Allocation Summary'!B22:E22,'Allocation Summary'!E$13:H$13))/(1-'Allocation Summary'!B$13-SUMPRODUCT('Allocation Summary'!F22:I22,'Allocation Summary'!E$13:H$13))) -> 0.9571115124 | D7: =IF((SUM('Allocation Summary'!D$13:H$13)-SUMPRODUCT('Allocation Summary'!B22:E22,'Allocation Summary'!E$13:H$13))/(1-SUM('Allocation Summary'!B$13:C$13)-SUMPRODUCT('Allocation Summary'!F22:I22,'Allocation Summary'!E$13:H$13))>1,1,(SUM('Allocation Summary'!D$13:H$13)-SUMPRODUCT('Allocation Summary'!B22:E22,'Allocation Summary'!E$13:H$13))/(1-SUM('Allocation Summary'!B$13:C$13)-SUMPRODUCT('Allocation Summary'!F22:I22,'Allocation Summary'!E$13:H$13))) -> 0.9490563491 | E7: =IF((SUM('Allocation Summary'!E$13:H$13)-SUMPRODUCT('Allocation Summary'!B22:E22,'Allocation Summary'!E$13:H$13))/(1-SUM('Allocation Summary'!B$13:D$13)-SUMPRODUCT('Allocation Summary'!F22:I22,'Allocation Summary'!E$13:H$13))>1,1,(SUM('Allocation Summary'!E$13:H$13)-SUMPRODUCT('Allocation Summary'!B22:E22,'Allocation Summary'!E$13:H$13))/(1-SUM('Allocation Summary'!B$13:D$13)-SUMPRODUCT('Allocation Summary'!F22:I22,'Allocation Summary'!E$13:H$13))) -> 0.8889301687
A8: Boundary 132kV | B8: =IF((SUM('Allocation Summary'!B$13:H$13)-SUMPRODUCT('Allocation Summary'!B23:E23,'Allocation Summary'!E$13:H$13))/(1-SUMPRODUCT('Allocation Summary'!F23:I23,'Allocation Summary'!E$13:H$13))>1,1,(SUM('Allocation Summary'!B$13:H$13)-SUMPRODUCT('Allocation Summary'!B23:E23,'Allocation Summary'!E$13:H$13))/(1-SUMPRODUCT('Allocation Summary'!F23:I23,'Allocation Summary'!E$13:H$13))) -> 0.8992447781 | C8: =IF((SUM('Allocation Summary'!C$13:H$13)-SUMPRODUCT('Allocation Summary'!B23:E23,'Allocation Summary'!E$13:H$13))/(1-'Allocation Summary'!B$13-SUMPRODUCT('Allocation Summary'!F23:I23,'Allocation Summary'!E$13:H$13))>1,1,(SUM('Allocation Summary'!C$13:H$13)-SUMPRODUCT('Allocation Summary'!B23:E23,'Allocation Summary'!E$13:H$13))/(1-'Allocation Summary'!B$13-SUMPRODUCT('Allocation Summary'!F23:I23,'Allocation Summary'!E$13:H$13))) -> 0.8499070273 | D8: =IF((SUM('Allocation Summary'!D$13:H$13)-SUMPRODUCT('Allocation Summary'!B23:E23,'Allocation Summary'!E$13:H$13))/(1-SUM('Allocation Summary'!B$13:C$13)-SUMPRODUCT('Allocation Summary'!F23:I23,'Allocation Summary'!E$13:H$13))>1,1,(SUM('Allocation Summary'!D$13:H$13)-SUMPRODUCT('Allocation Summary'!B23:E23,'Allocation Summary'!E$13:H$13))/(1-SUM('Allocation Summary'!B$13:C$13)-SUMPRODUCT('Allocation Summary'!F23:I23,'Allocation Summary'!E$13:H$13))) -> 0.8217170985 | E8: =IF((SUM('Allocation Summary'!E$13:H$13)-SUMPRODUCT('Allocation Summary'!B23:E23,'Allocation Summary'!E$13:H$13))/(1-SUM('Allocation Summary'!B$13:D$13)-SUMPRODUCT('Allocation Summary'!F23:I23,'Allocation Summary'!E$13:H$13))>1,1,(SUM('Allocation Summary'!E$13:H$13)-SUMPRODUCT('Allocation Summary'!B23:E23,'Allocation Summary'!E$13:H$13))/(1-SUM('Allocation Summary'!B$13:D$13)-SUMPRODUCT('Allocation Summary'!F23:I23,'Allocation Summary'!E$13:H$13))) -> 0.611298927
A9: Boundary 132kV/EHV | B9: =IF((SUM('Allocation Summary'!B$13:H$13)-SUMPRODUCT('Allocation Summary'!B24:E24,'Allocation Summary'!E$13:H$13))/(1-SUMPRODUCT('Allocation Summary'!F24:I24,'Allocation Summary'!E$13:H$13))>1,1,(SUM('Allocation Summary'!B$13:H$13)-SUMPRODUCT('Allocation Summary'!B24:E24,'Allocation Summary'!E$13:H$13))/(1-SUMPRODUCT('Allocation Summary'!F24:I24,'Allocation Summary'!E$13:H$13))) -> 0.8266633484 | C9: =IF((SUM('Allocation Summary'!C$13:H$13)-SUMPRODUCT('Allocation Summary'!B24:E24,'Allocation Summary'!E$13:H$13))/(1-'Allocation Summary'!B$13-SUMPRODUCT('Allocation Summary'!F24:I24,'Allocation Summary'!E$13:H$13))>1,1,(SUM('Allocation Summary'!C$13:H$13)-SUMPRODUCT('Allocation Summary'!B24:E24,'Allocation Summary'!E$13:H$13))/(1-'Allocation Summary'!B$13-SUMPRODUCT('Allocation Summary'!F24:I24,'Allocation Summary'!E$13:H$13))) -> 0.7417839708 | D9: =IF((SUM('Allocation Summary'!D$13:H$13)-SUMPRODUCT('Allocation Summary'!B24:E24,'Allocation Summary'!E$13:H$13))/(1-SUM('Allocation Summary'!B$13:C$13)-SUMPRODUCT('Allocation Summary'!F24:I24,'Allocation Summary'!E$13:H$13))>1,1,(SUM('Allocation Summary'!D$13:H$13)-SUMPRODUCT('Allocation Summary'!B24:E24,'Allocation Summary'!E$13:H$13))/(1-SUM('Allocation Summary'!B$13:C$13)-SUMPRODUCT('Allocation Summary'!F24:I24,'Allocation Summary'!E$13:H$13))) -> 0.6932867538 | E9: =IF((SUM('Allocation Summary'!E$13:H$13)-SUMPRODUCT('Allocation Summary'!B24:E24,'Allocation Summary'!E$13:H$13))/(1-SUM('Allocation Summary'!B$13:D$13)-SUMPRODUCT('Allocation Summary'!F24:I24,'Allocation Summary'!E$13:H$13))>1,1,(SUM('Allocation Summary'!E$13:H$13)-SUMPRODUCT('Allocation Summary'!B24:E24,'Allocation Summary'!E$13:H$13))/(1-SUM('Allocation Summary'!B$13:D$13)-SUMPRODUCT('Allocation Summary'!F24:I24,'Allocation Summary'!E$13:H$13))) -> 0.3312888284
A10: Boundary EHV | B10: =IF((SUM('Allocation Summary'!B$13:H$13)-SUMPRODUCT('Allocation Summary'!B25:E25,'Allocation Summary'!E$13:H$13))/(1-SUMPRODUCT('Allocation Summary'!F25:I25,'Allocation Summary'!E$13:H$13))>1,1,(SUM('Allocation Summary'!B$13:H$13)-SUMPRODUCT('Allocation Summary'!B25:E25,'Allocation Summary'!E$13:H$13))/(1-SUMPRODUCT('Allocation Summary'!F25:I25,'Allocation Summary'!E$13:H$13))) -> 0.7919719077 | C10: =IF((SUM('Allocation Summary'!C$13:H$13)-SUMPRODUCT('Allocation Summary'!B25:E25,'Allocation Summary'!E$13:H$13))/(1-'Allocation Summary'!B$13-SUMPRODUCT('Allocation Summary'!F25:I25,'Allocation Summary'!E$13:H$13))>1,1,(SUM('Allocation Summary'!C$13:H$13)-SUMPRODUCT('Allocation Summary'!B25:E25,'Allocation Summary'!E$13:H$13))/(1-'Allocation Summary'!B$13-SUMPRODUCT('Allocation Summary'!F25:I25,'Allocation Summary'!E$13:H$13))) -> 0.6901048482 | D10: =IF((SUM('Allocation Summary'!D$13:H$13)-SUMPRODUCT('Allocation Summary'!B25:E25,'Allocation Summary'!E$13:H$13))/(1-SUM('Allocation Summary'!B$13:C$13)-SUMPRODUCT('Allocation Summary'!F25:I25,'Allocation Summary'!E$13:H$13))>1,1,(SUM('Allocation Summary'!D$13:H$13)-SUMPRODUCT('Allocation Summary'!B25:E25,'Allocation Summary'!E$13:H$13))/(1-SUM('Allocation Summary'!B$13:C$13)-SUMPRODUCT('Allocation Summary'!F25:I25,'Allocation Summary'!E$13:H$13))) -> 0.631901442 | E10: =IF((SUM('Allocation Summary'!E$13:H$13)-SUMPRODUCT('Allocation Summary'!B25:E25,'Allocation Summary'!E$13:H$13))/(1-SUM('Allocation Summary'!B$13:D$13)-SUMPRODUCT('Allocation Summary'!F25:I25,'Allocation Summary'!E$13:H$13))>1,1,(SUM('Allocation Summary'!E$13:H$13)-SUMPRODUCT('Allocation Summary'!B25:E25,'Allocation Summary'!E$13:H$13))/(1-SUM('Allocation Summary'!B$13:D$13)-SUMPRODUCT('Allocation Summary'!F25:I25,'Allocation Summary'!E$13:H$13))) -> 0.1974535792
A11: Boundary HVplus | B11: =IF((SUM('Allocation Summary'!B$13:H$13)-SUMPRODUCT('Allocation Summary'!B26:E26,'Allocation Summary'!E$13:H$13))/(1-SUMPRODUCT('Allocation Summary'!F26:I26,'Allocation Summary'!E$13:H$13))>1,1,(SUM('Allocation Summary'!B$13:H$13)-SUMPRODUCT('Allocation Summary'!B26:E26,'Allocation Summary'!E$13:H$13))/(1-SUMPRODUCT('Allocation Summary'!F26:I26,'Allocation Summary'!E$13:H$13))) -> 0.740789957 | C11: =IF((SUM('Allocation Summary'!C$13:H$13)-SUMPRODUCT('Allocation Summary'!B26:E26,'Allocation Summary'!E$13:H$13))/(1-'Allocation Summary'!B$13-SUMPRODUCT('Allocation Summary'!F26:I26,'Allocation Summary'!E$13:H$13))>1,1,(SUM('Allocation Summary'!C$13:H$13)-SUMPRODUCT('Allocation Summary'!B26:E26,'Allocation Summary'!E$13:H$13))/(1-'Allocation Summary'!B$13-SUMPRODUCT('Allocation Summary'!F26:I26,'Allocation Summary'!E$13:H$13))) -> 0.6138601534 | D11: =IF((SUM('Allocation Summary'!D$13:H$13)-SUMPRODUCT('Allocation Summary'!B26:E26,'Allocation Summary'!E$13:H$13))/(1-SUM('Allocation Summary'!B$13:C$13)-SUMPRODUCT('Allocation Summary'!F26:I26,'Allocation Summary'!E$13:H$13))>1,1,(SUM('Allocation Summary'!D$13:H$13)-SUMPRODUCT('Allocation Summary'!B26:E26,'Allocation Summary'!E$13:H$13))/(1-SUM('Allocation Summary'!B$13:C$13)-SUMPRODUCT('Allocation Summary'!F26:I26,'Allocation Summary'!E$13:H$13))) -> 0.5413367396 | E11: =IF((SUM('Allocation Summary'!E$13:H$13)-SUMPRODUCT('Allocation Summary'!B26:E26,'Allocation Summary'!E$13:H$13))/(1-SUM('Allocation Summary'!B$13:D$13)-SUMPRODUCT('Allocation Summary'!F26:I26,'Allocation Summary'!E$13:H$13))>1,1,(SUM('Allocation Summary'!E$13:H$13)-SUMPRODUCT('Allocation Summary'!B26:E26,'Allocation Summary'!E$13:H$13))/(1-SUM('Allocation Summary'!B$13:D$13)-SUMPRODUCT('Allocation Summary'!F26:I26,'Allocation Summary'!E$13:H$13))) -> 0
A16: Input data reconciliation check
A17: Compares results to current CDCM Method M*
B18: LDNO LV: LV user | C18: LDNO HV: LV user | D18: LDNO HV: LV sub user | E18: LDNO HV: HV user
A19: LDNO discount using data in this model | B19: ='Allocation Summary'!B9*(1-'Allocation Summary'!B10*Inputs!B12) -> 0.2982730284 | C19: ='Allocation Summary'!B9+'Allocation Summary'!C9+'Allocation Summary'!D9*(1-'Allocation Summary'!D10*Inputs!B13) -> 0.6504025601 | D19: =('Allocation Summary'!C9+'Allocation Summary'!D9*(1-'Allocation Summary'!D10*Inputs!B13))/(1-'Allocation Summary'!B9) -> 0.4792119153 | E19: ='Allocation Summary'!D9*(1-'Allocation Summary'!D10*Inputs!B13)/(1-'Allocation Summary'!B9-'Allocation Summary'!C9) -> 0.381399348
A20: LDNO discount using Method M | B20: =+Inputs!C34 -> 0.3191748255 | C20: =+Inputs!D34 -> 0.6722493164 | D20: =+Inputs!E34 -> 0.5049131135 | E20: =+Inputs!F34 -> 0.4064159514
A21: *Note variances at LV:LV are expected as this version of extended Method M does not implement DCP095
B24: =B7-'[9]Allocation Summary'!B25 -> 0 | C24: =C7-'[9]Allocation Summary'!C25 -> 0 | D24: =D7-'[9]Allocation Summary'!D25 -> 0 | E24: =E7-'[9]Allocation Summary'!E25 -> 0
B25: =B8-'[9]Allocation Summary'!B26 -> 0 | C25: =C8-'[9]Allocation Summary'!C26 -> 0 | D25: =D8-'[9]Allocation Summary'!D26 -> 0 | E25: =E8-'[9]Allocation Summary'!E26 -> 0
B26: =B9-'[9]Allocation Summary'!B27 -> 0 | C26: =C9-'[9]Allocation Summary'!C27 -> 0 | D26: =D9-'[9]Allocation Summary'!D27 -> 0 | E26: =E9-'[9]Allocation Summary'!E27 -> 0
B27: =B10-'[9]Allocation Summary'!B28 -> 0 | C27: =C10-'[9]Allocation Summary'!C28 -> 0 | D27: =D10-'[9]Allocation Summary'!D28 -> 0 | E27: =E10-'[9]Allocation Summary'!E28 -> 0
B28: =B11-'[9]Allocation Summary'!B29 -> 0 | C28: =C11-'[9]Allocation Summary'!C29 -> 0 | D28: =D11-'[9]Allocation Summary'!D29 -> 0 | E28: =E11-'[9]Allocation Summary'!E29 -> 0

Sheet Allocation Summary
G1: Index
A3: Category | B3: % by network tier
B4: LV | C4: LV/HV | D4: HV | E4: EHV | F4: Unallocated
A5: Opex and transmission exit charges | B5: ='DNO - Final Allocation'!I47 -> 0.4142908269 | C5: ='DNO - Final Allocation'!H47 -> 0.08350263341 | D5: ='DNO - Final Allocation'!G47 -> 0.2890519091 | E5: ='DNO - Final Allocation'!E47 -> 0.2131546306
A6: Depreciation | B6: ='DNO - Final Allocation'!I46 -> 0.1855893446 | C6: ='DNO - Final Allocation'!H46 -> 0.08683873352 | D6: ='DNO - Final Allocation'!G46 -> 0.3503423713 | E6: ='DNO - Final Allocation'!E46 -> 0.3772295506
A7: Return | B7: ='DNO - Final Allocation'!I45 -> 0.1855893446 | C7: ='DNO - Final Allocation'!H45 -> 0.08683873352 | D7: ='DNO - Final Allocation'!G45 -> 0.3503423713 | E7: ='DNO - Final Allocation'!E45 -> 0.3772295506
A8: Weighted Average | B8: ='DNO - Final Allocation'!N50 -> 0.265328843 | C8: ='DNO - Final Allocation'!M50 -> 0.08567556244 | D8: ='DNO - Final Allocation'!L50 -> 0.3289727209 | E8: ='DNO - Final Allocation'!K50 -> 0.3200228737
A9: Weighted Average (after incentive and pension deficit costs removed and weighted by units flowing) | B9: ='DNO - Final Allocation'!O79 -> 0.3287145958 | C9: ='DNO - Final Allocation'!N79 -> 0.106143032 | D9: ='DNO - Final Allocation'!M79 -> 0.3059323292 | E9: ='DNO - Final Allocation'!L79 -> 0.2304196273 | F9: ='DNO - Final Allocation'!P79 -> 0.02879041574
A10: Direct cost % | B10: ='Calc - DNO Opex Allocation'!AA48 -> 0.5022120217 | C10: ='Calc - DNO Opex Allocation'!Z48 -> 0.7475619667 | D10: ='Calc - DNO Opex Allocation'!Y48 -> 0.7386224688 | E10: ='Calc - DNO Opex Allocation'!X48 -> 0.7193747826 | F10: N/A
B12: LV | C12: HV/LV | D12: HV | E12: EHV/HV | F12: EHV | G12: 132kV/EHV | H12: 132kV
A13: Weighted by units flowing | B13: =B9 -> 0.3287145958 | C13: 0.106143032 | D13: 0.3059323292 | E13: =E9*'Calc-MEAV'!$N28 -> 0.03764895888 | F13: =E9*'Calc-MEAV'!$N29 -> 0.04822443257 | G13: =E9*'Calc-MEAV'!$N30 -> 0.04450824749 | H13: =E9*'Calc-MEAV'!$N31 -> 0.1000379883
A14: Direct cost % | B14: 0.5022120217 | C14: 0.7475619667 | D14: 0.7386224688 | E14: =E10 -> 0.7193747826 | F14: =E10 -> 0.7193747826 | G14: =E10 -> 0.7193747826 | H14: =E10 -> 0.7193747826
A16: Options | B16: DCP071
B17: TRUE
A18: Discount matrix
B20: Network levels provided or bypassed by the DNO | F20: Network levels bypassed by the DNO
A21: Boundary category | B21: EHV/HV | C21: EHV | D21: 132kV/EHV | E21: 132kV | F21: EHV/HV | G21: EHV | H21: 132kV/EHV | I21: 132kV
A22: Boundary 0000 | B22: 0 | C22: 0 | D22: 0 | E22: 0 | F22: 0 | G22: 0 | H22: 0 | I22: 0
A23: Boundary 132kV | B23: 0 | C23: 0 | D23: 0 | E23: =IF($B$17,Inputs!$B$15*$H$14,1) -> 0.7193747826 | F23: 0 | G23: 0 | H23: 0 | I23: 0
A24: Boundary 132kV/EHV | B24: 0 | C24: 0 | D24: 1 | E24: 1 | F24: 0 | G24: 0 | H24: 0 | I24: 0
A25: Boundary EHV | B25: 0 | C25: =IF($B$17,Inputs!$B$14*$F$14,1) -> 0.7193747826 | D25: 1 | E25: 1 | F25: 0 | G25: 0 | H25: 0 | I25: 0
A26: Boundary HVplus | B26: 1 | C26: 1 | D26: 1 | E26: 1 | F26: 0 | G26: 0 | H26: 0 | I26: 0

Sheet DNO - Final Allocation
A1: Step 1. Format price control allowed revenue data
A2: Index
B4: I) DPCR3 type presentation | L4: ii) DPCR4 type presentation
D6: 2005/06 | E6: 2006/07 | G6: 2007/08 | H6: 2008/09 | I6: 2009/10 | O6: 2005/06 | P6: 2006/07 | Q6: 2007/08 | R6: 2008/09 | S6: 2009/10
L7: Opening asset value | O7: ='Allowed revenue -DPCR4'!D3 -> 573.6 | P7: ='Allowed revenue -DPCR4'!E3 -> 577.8 | Q7: ='Allowed revenue -DPCR4'!F3 -> 579.3 | R7: ='Allowed revenue -DPCR4'!G3 -> 578.4 | S7: ='Allowed revenue -DPCR4'!H3 -> 575
B8: Allowed revenue | D8: =O33 -> 140.7045823 | E8: =P33 -> 142.5337418 | G8: =Q33 -> 144.3629014 | H8: =R33 -> 145.9106518 | I8: =S33 -> 147.7398114 | L8: Total capex | O8: ='Allowed revenue -DPCR4'!D4 -> 49.9 | P8: ='Allowed revenue -DPCR4'!E4 -> 49.7 | Q8: ='Allowed revenue -DPCR4'!F4 -> 49.7 | R8: ='Allowed revenue -DPCR4'!G4 -> 49.7 | S8: ='Allowed revenue -DPCR4'!H4 -> 49.7
L9: Depreciation | O9: ='Allowed revenue -DPCR4'!D5 -> -45.7 | P9: ='Allowed revenue -DPCR4'!E5 -> -48.2 | Q9: ='Allowed revenue -DPCR4'!F5 -> -50.6 | R9: ='Allowed revenue -DPCR4'!G5 -> -53.1 | S9: ='Allowed revenue -DPCR4'!H5 -> -55.6
B10: Opex (incl pensions after 57.7% capitalized) | D10: =O14+(1-0.577)*O16 -> 47.23 | E10: =P14+(1-0.577)*P16 -> 48.6877 | G10: =Q14+(1-0.577)*Q16 -> 49.4146 | H10: =R14+(1-0.577)*R16 -> 49.0992 | I10: =S14+(1-0.577)*S16 -> 48.7415 | L10: Closing asset value | O10: ='Allowed revenue -DPCR4'!D6 -> 577.8 | P10: ='Allowed revenue -DPCR4'!E6 -> 579.3 | Q10: ='Allowed revenue -DPCR4'!F6 -> 578.4 | R10: ='Allowed revenue -DPCR4'!G6 -> 575 | S10: ='Allowed revenue -DPCR4'!H6 -> 569.1
B11: Quality Reward | D11: =O20 -> 1.6 | E11: =P20 -> 1.6 | F11: =Q20 -> 1.6 | G11: =Q20 -> 1.6 | H11: =R20 -> 1.3 | I11: =S20 -> 1.3 | L11: Present value of opening/closing RAV | O11: ='Allowed revenue -DPCR4'!D7 -> 0 | Q11: ='Allowed revenue -DPCR4'!F7 ->  | S11: ='Allowed revenue -DPCR4'!H7 -> 434.5104888
B12: DPCR3 costs | D12: =O21 -> 0.9 | L12: 5 year movement in closing RAV | P12: ='Allowed revenue -DPCR4'!E8 ->  | S12: ='Allowed revenue -DPCR4'!H8 -> 139.0895112
B13: Total Opex | D13: =SUM(D10:D12) -> 49.73 | E13: =SUM(E10:E12) -> 50.2877 | G13: =SUM(G10:G12) -> 51.0146 | H13: =SUM(H10:H12) -> 50.3992 | I13: =SUM(I10:I12) -> 50.0415
L14: Operating costs (excl pensions) | O14: ='Allowed revenue -DPCR4'!D10 -> 43 | P14: ='Allowed revenue -DPCR4'!E10 -> 44.5 | Q14: ='Allowed revenue -DPCR4'!F10 -> 45.1 | R14: ='Allowed revenue -DPCR4'!G10 -> 44.7 | S14: ='Allowed revenue -DPCR4'!H10 -> 44.3
B15: Capital elements | L15: Capex (excl pensions) | O15: ='Allowed revenue -DPCR4'!D11 -> 44.1 | P15: ='Allowed revenue -DPCR4'!E11 -> 44 | Q15: ='Allowed revenue -DPCR4'!F11 -> 43.8 | R15: ='Allowed revenue -DPCR4'!G11 -> 43.7 | S15: ='Allowed revenue -DPCR4'!H11 -> 43.6
B16: Depreciation | D16: =-O9 -> 45.7 | E16: =-P9 -> 48.2 | G16: =-Q9 -> 50.6 | H16: =-R9 -> 53.1 | I16: =-S9 -> 55.6 | L16: Pensions | O16: ='Allowed revenue -DPCR4'!D12 -> 10 | P16: ='Allowed revenue -DPCR4'!E12 -> 9.9 | Q16: ='Allowed revenue -DPCR4'!F12 -> 10.2 | R16: ='Allowed revenue -DPCR4'!G12 -> 10.4 | S16: ='Allowed revenue -DPCR4'!H12 -> 10.5
B17: Tax allowance | D17: =O17 -> 13.1 | E17: 14.2 | G17: =Q17 -> 15 | H17: 15.9 | I17: 16.7 | L17: Tax allowance | O17: ='Allowed revenue -DPCR4'!D13 -> 13.1 | P17: ='Allowed revenue -DPCR4'!E13 -> 14.2 | Q17: ='Allowed revenue -DPCR4'!F13 -> 15 | R17: ='Allowed revenue -DPCR4'!G13 -> 15.9 | S17: ='Allowed revenue -DPCR4'!H13 -> 16.7
B18: Capital incentive | D18: -1.7 | E18: -1.1 | G18: -0.9 | H18: -0.3 | I18: -0.1 | L18: Capex incentive | O18: ='Allowed revenue -DPCR4'!D14 -> -1.7 | P18: ='Allowed revenue -DPCR4'!E14 -> -1.1 | Q18: ='Allowed revenue -DPCR4'!F14 -> -0.9 | R18: ='Allowed revenue -DPCR4'!G14 -> -0.3 | S18: ='Allowed revenue -DPCR4'!H14 -> -0.1
B19: Sliding scale | D19: 1.2 | E19: 1.2 | G19: 1.2 | H19: 1.2 | I19: 1.1 | L19: Sliding scale addn income | O19: ='Allowed revenue -DPCR4'!D15 -> 1.2 | P19: ='Allowed revenue -DPCR4'!E15 -> 1.2 | Q19: ='Allowed revenue -DPCR4'!F15 -> 1.2 | R19: ='Allowed revenue -DPCR4'!G15 -> 1.2 | S19: ='Allowed revenue -DPCR4'!H15 -> 1.1
B20: Return | D20: =D8-D13-D16-D17-D18-D19 -> 32.67458228 | E20: =E8-E13-E16-E17-E18-E19 -> 29.74604185 | G20: =G8-G13-G16-G17-G18-G19 -> 27.44830142 | H20: =H8-H13-H16-H17-H18-H19 -> 25.61145182 | I20: =I8-I13-I16-I17-I18-I19 -> 24.39831139 | L20: Quality reward/Opex incentive & Other Adjustments | O20: =IF(ISNUMBER('Allowed revenue -DPCR4'!D16+'Allowed revenue -DPCR4'!D17),'Allowed revenue -DPCR4'!D16+'Allowed revenue -DPCR4'!D17,"") -> 1.6 | P20: =IF(ISNUMBER('Allowed revenue -DPCR4'!E16+'Allowed revenue -DPCR4'!E17),'Allowed revenue -DPCR4'!E16+'Allowed revenue -DPCR4'!E17,"") -> 1.6 | Q20: =IF(ISNUMBER('Allowed revenue -DPCR4'!F16+'Allowed revenue -DPCR4'!F17),'Allowed revenue -DPCR4'!F16+'Allowed revenue -DPCR4'!F17,"") -> 1.6 | R20: =IF(ISNUMBER('Allowed revenue -DPCR4'!G16+'Allowed revenue -DPCR4'!G17),'Allowed revenue -DPCR4'!G16+'Allowed revenue -DPCR4'!G17,"") -> 1.3 | S20: =IF(ISNUMBER('Allowed revenue -DPCR4'!H16+'Allowed revenue -DPCR4'!H17),'Allowed revenue -DPCR4'!H16+'Allowed revenue -DPCR4'!H17,"") -> 1.3
B21: Total capital | D21: =SUM(D16:D20) -> 90.97458228 | E21: =SUM(E16:E20) -> 92.24604185 | G21: =SUM(G16:G20) -> 93.34830142 | H21: =SUM(H16:H20) -> 95.51145182 | I21: =SUM(I16:I20) -> 97.69831139 | L21: DPCR3 costs | O21: ='Allowed revenue -DPCR4'!D18 -> 0.9 | P21: ='Allowed revenue -DPCR4'!E18 -> 0 | Q21: ='Allowed revenue -DPCR4'!F18 -> 0 | R21: ='Allowed revenue -DPCR4'!G18 -> 0 | S21: ='Allowed revenue -DPCR4'!H18 -> 0
B22: Total capital ex depreciation | D22: =D21-D16 -> 45.27458228 | E22: =E21-E16 -> 44.04604185 | G22: =G21-G16 -> 42.74830142 | H22: =H21-H16 -> 42.41145182 | I22: =I21-I16 -> 42.09831139 | L22: Total allowed items | O22: ='Allowed revenue -DPCR4'!D19 -> 112.2 | P22: ='Allowed revenue -DPCR4'!E19 -> 114.3 | Q22: ='Allowed revenue -DPCR4'!F19 -> 116 | R22: ='Allowed revenue -DPCR4'!G19 -> 116.9 | S22: ='Allowed revenue -DPCR4'!H19 -> 117.4
L23: PV of allowed items | O23: ='Allowed revenue -DPCR4'!D20 -> 109.2129215 | P23: ='Allowed revenue -DPCR4'!E20 -> 105.4119225 | Q23: ='Allowed revenue -DPCR4'!F20 -> 101.3593528 | R23: ='Allowed revenue -DPCR4'!G20 -> 96.77934675 | S23: ='Allowed revenue -DPCR4'!H20 -> 92.08706002
B24: Allocation of allowed revenue to:- | L24: 5 year movement in closing RAV | S24: ='Allowed revenue -DPCR4'!H21 -> 139.0895112
L25: TOTAL PV OVER 5 YEARS | S25: ='Allowed revenue -DPCR4'!H22 -> 643.9401148
B26: Opex | D26: =D13 -> 49.73 | E26: =E13 -> 50.2877 | G26: =G13 -> 51.0146 | H26: =H13 -> 50.3992 | I26: =I13 -> 50.0415
B27: Depreciation | D27: =D16 -> 45.7 | E27: =E16 -> 48.2 | G27: =G16 -> 50.6 | H27: =H16 -> 53.1 | I27: =I16 -> 55.6 | O27: =1/(1+Inputs!B28) -> 0.9474631674 | P27: =O27/(1+Inputs!B28) -> 0.8976864535 | Q27: =P27/(1+Inputs!B28) -> 0.8505248506 | R27: =Q27/(1+Inputs!B28) -> 0.8058409688 | S27: =R27/(1+Inputs!B28) -> 0.7635046367
B28: Return | D28: =D20 -> 32.67458228 | E28: =E20 -> 29.74604185 | G28: =G20 -> 27.44830142 | H28: =H20 -> 25.61145182 | I28: =I20 -> 24.39831139 | O28: 1 | P28: =O27 -> 0.9474631674 | Q28: =P27 -> 0.8976864535 | R28: =Q27 -> 0.8505248506 | S28: =R27 -> 0.8058409688
O29: =1/(1+Inputs!B28)^0.5 -> 0.9733771969 | P29: =1/(1+Inputs!B28)^1.5 -> 0.922239042 | Q29: =1/(1+Inputs!B28)^2.5 -> 0.8737875238 | R29: =1/(1+Inputs!B28)^3.5 -> 0.8278814949 | S29: =1/(1+Inputs!B28)^4.5 -> 0.7843872234
L31: Revenue index | O31: ='Allowed revenue -DPCR4'!D24 -> 1 | P31: ='Allowed revenue -DPCR4'!E24 -> 1.013 | Q31: ='Allowed revenue -DPCR4'!F24 -> 1.026 | R31: ='Allowed revenue -DPCR4'!G24 -> 1.037 | S31: ='Allowed revenue -DPCR4'!H24 -> 1.05
L32: Discounted revenue index | O32: =O31*O29 -> 0.9733771969 | P32: =P31*P29 -> 0.9342281495 | Q32: =Q31*Q29 -> 0.8965059994 | R32: =R31*R29 -> 0.8585131102 | S32: =S31*S29 -> 0.8236065845
L33: Price control revenue | O33: =($S$25-$N$39)/SUM($O$32:$U$32)*O31 -> 140.7045823 | P33: =($S$25-$N$39)/SUM($O$32:$U$32)*P31 -> 142.5337418 | Q33: =($S$25-$N$39)/SUM($O$32:$U$32)*Q31 -> 144.3629014 | R33: =($S$25-$N$39)/SUM($O$32:$U$32)*R31 -> 145.9106518 | S33: =($S$25-$N$39)/SUM($O$32:$U$32)*S31 -> 147.7398114
L34: Excluded services revenue | O34: ='Allowed revenue -DPCR4'!D27 -> 2.9 | P34: ='Allowed revenue -DPCR4'!E27 -> 2.9 | Q34: ='Allowed revenue -DPCR4'!F27 -> 2.9 | R34: ='Allowed revenue -DPCR4'!G27 -> 2.9 | S34: ='Allowed revenue -DPCR4'!H27 -> 2.9
L35: Total revenue | O35: =O34+O33 -> 143.6045823 | P35: =P34+P33 -> 145.4337418 | Q35: =Q34+Q33 -> 147.2629014 | R35: =R34+R33 -> 148.8106518 | S35: =S34+S33 -> 150.6398114
L36: PV of total revenue | O36: =O35*O29 -> 139.7814258 | P36: =P35*P29 -> 134.1246748 | Q36: =Q35*Q29 -> 128.676486 | R36: =R35*R29 -> 123.1975849 | S36: =S35*S29 -> 118.1599434
L37: TOTAL PV OVER 5 YEARS | S37: =SUM(O36:S36) -> 643.9401148
L39: PV of excluded service revenue | N39: =SUM(O39:S39) -> 12.70685019 | O39: =O34*O29 -> 2.822793871 | P39: =P34*P29 -> 2.674493222 | Q39: =Q34*Q29 -> 2.533983819 | R39: =R34*R29 -> 2.400856335 | S39: =S34*S29 -> 2.274722948
A41: Step 2. Allocate price control revenues to network tiers
B43: Hence DPCR4 revenue made up of | C43: Total DPCR4 | D43: Basis of allocation | E43: % used | K43: £m
E44: EHV | G44: HV | H44: HV/LV | I44: LV | K44: EHV | L44: HV | M44: HV/LV | N44: LV
B45: Return | C45: =SUM(D22:I22) -> 216.5786888 | D45: Net Capex | E45: =VLOOKUP($D45,'Calc-Drivers'!$B$17:$F$27,E$51,FALSE) -> 0.3772295506 | G45: =VLOOKUP($D45,'Calc-Drivers'!$B$17:$F$27,G$51,FALSE) -> 0.3503423713 | H45: =VLOOKUP($D45,'Calc-Drivers'!$B$17:$F$27,H$51,FALSE) -> 0.08683873352 | I45: =VLOOKUP($D45,'Calc-Drivers'!$B$17:$F$27,I$51,FALSE) -> 0.1855893446 | K45: =$C45*E45 -> 81.69988144 | L45: =$C45*G45 -> 75.87669138 | M45: 18.80741904 | N45: 40.1946969
B46: Depreciation | C46: =SUM(D16:I16) -> 253.2 | D46: Net Capex | E46: =VLOOKUP($D46,'Calc-Drivers'!$B$17:$F$27,E$51,FALSE) -> 0.3772295506 | G46: =VLOOKUP($D46,'Calc-Drivers'!$B$17:$F$27,G$51,FALSE) -> 0.3503423713 | H46: =VLOOKUP($D46,'Calc-Drivers'!$B$17:$F$27,H$51,FALSE) -> 0.08683873352 | I46: =VLOOKUP($D46,'Calc-Drivers'!$B$17:$F$27,I$51,FALSE) -> 0.1855893446 | K46: =$C46*E46 -> 95.51452222 | L46: 88.7066884 | M46: 21.98756733 | N46: 46.99122205
B47: Operating costs | C47: =SUM(D13:I13) -> 251.473 | D47: Overall Opex split | E47: ='Calc - DNO Opex Allocation'!AN41 -> 0.2131546306 | G47: ='Calc - DNO Opex Allocation'!AO41 -> 0.2890519091 | H47: ='Calc - DNO Opex Allocation'!AP41 -> 0.08350263341 | I47: ='Calc - DNO Opex Allocation'!AQ41 -> 0.4142908269 | K47: =$C47*E47 -> 53.60263442 | L47: 72.68875073 | M47: 20.99865773 | N47: =$C47*I47 -> 104.1829571
B49: Total | C49: =SUM(C45:C47) -> 721.2516888 | K49: =SUM(K45:K48) -> 230.8170381 | L49: =SUM(L45:L48) -> 237.2721305 | M49: =SUM(M45:M48) -> 61.79364409 | N49: =SUM(N45:N48) -> 191.3688761
K50: =K49/SUM($K$49:$N$49) -> 0.3200228737 | L50: =L49/SUM($K$49:$N$49) -> 0.3289727209 | M50: =M49/SUM($K$49:$N$49) -> 0.08567556244 | N50: =N49/SUM($K$49:$N$49) -> 0.265328843
E51: 5 | G51: 4 | H51: 3 | I51: 2
D53: NET CAPEX SPLIT FROM "CALC -NET CAPEX" SHEET
D54: OVERALL OPEX SPLIT FROM "CALC DNO OPEX ALLOCATION" SHEET
A56: Step 3. Remove incentive revenue and pension deficit payment from allocations
B58: 2007/08 allowed revenue source from page "summary allowed revenue"
B59: Base revenue | F59: ='Summary of revenue'!J11 -> 164.619008 | G59: =F59/$F$64 -> 0.9442780364 | P59: £m
B60: Allowed pass through items | F60: ='Summary of revenue'!J12 -> -0.911997 | G60: =F60/$F$64 -> -0.005231344465
B61: Incentive revenue | F61: ='Summary of revenue'!J13 -> 2.502889 | G61: =F61/$F$64 -> 0.01435692718 | M61: Total allowed income | P61: =F64 -> 174.333196 | Q61: From 2007/08 revenue summary
B62: Under/over revoery | F62: ='Summary of revenue'!J21 -> 2.533296 | G62: =F62/$F$64 -> 0.01453134606
B63: Excluded | F63: ='Summary of revenue'!J46+'Summary of revenue'!J47 -> 5.59 | G63: =F63/$F$64 -> 0.03206503482 | M63: Less incentive revenue ? | O63: Y | P63: =IF(O63="Y",-F61,0) -> -2.502889 | Q63: From 2007/08 revenue summary
B64: Total | F64: =SUM(F59:F63) -> 174.333196 | G64: =SUM(G59:G63) -> 1 | M64: Less Pension deficit payment? | O64: N | P64: =IF(O64="Y",-F66,0) -> 0
M65: Less transmission exit charges? | O65: Y | P65: =IF(O65="Y",-'RRP 1.3'!AH12,0) -> -4.2
B66: Input pension deficit payment | F66: 0
M67: Total revenue to share | P67: =P61+P63+P64+P65 -> 167.630307
D69: Step 3.a. Split out pension deficit and incentive payments | L69: Step 2.b. Divide cost by units flowing - effectively adjust the cost because of electricity lost as it flows thorugh the network meaning that there is more cost in the lower tiers
B70: SPLIT OF TARIFFS | D70: £m | L70: p/kWh
D71: Total | F71: EHV | G71: HV | H71: HV/LV | I71: LV | J71: Not to be split | L71: EHV | M71: HV | N71: HV/LV | O71: LV | P71: Not to be split | R71: Total
B73: Income | D73: =SUM(F73:J73) -> 174.333196 | F73: =$P$67*K50 -> 53.64553256 | G73: =$P$67*L50 -> 55.1457982 | H73: =$P$67*M50 -> 14.36182083 | I73: =$P$67*N50 -> 44.4771554 | J73: =P61-P67 -> 6.702889 | L73: =F73*100000000/'Calc-Units'!E21 -> 0.4320446894 | M73: =G73*100000000/'Calc-Units'!D21 -> 0.5736335906 | N73: =H73*100000000/'Calc-Units'!C21 -> 0.1990218188 | O73: =I73*100000000/'Calc-Units'!C21 -> 0.6163511204 | P73: =J73*100000000/'Calc-Units'!E21 -> 0.05398301513
B75: All LV Tariffs | L75: =L73 -> 0.4320446894 | M75: =M73 -> 0.5736335906 | N75: =N73 -> 0.1990218188 | O75: =O73 -> 0.6163511204 | P75: =P73 -> 0.05398301513 | R75: =SUM(L75:P75) -> 1.875034234
B76: HV Tariffs
B77: EHV Tariffs
B79: All LV Tariffs | L79: =L75/$R75 -> 0.2304196273 | M79: =M75/$R75 -> 0.3059323292 | N79: =N75/$R75 -> 0.106143032 | O79: =O75/$R75 -> 0.3287145958 | P79: =P75/$R75 -> 0.02879041574 | R79: =SUM(L79:P79) -> 1
B80: HV Tariffs
B81: EHV Tariffs

Sheet Calc - DNO Opex Allocation
A1: Index
D2: Step 1 - extract total activity costs from cost report | K2: Step 2. Identify costs included in price control revenues to be allocated by MEAV | R2: Step 3. Allocate costs not directly attributable to network teirs to network tiers using MEAV | X2: Step 4. Sum directly attributed and allocated costs | AD2: Step 5. Divide cost by units flowing - effectively adjust the cost because of electricity lost as it flows through the network meaning that there is more cost in the lower tiers | AI2: Step 6. Adjust costs so that they are aligned with the definition of opex in the allowed price control revenues
E3: Costs extracted from RRP Tables | K3: Cost drivers - lookup from "Calc-Drivers" | R3: Allocation of "Unallocated" costs by cost driver to network tiers | X3: Sum of allocated and "unallocated" costs | AD3: Sum of allocated and "unallocated" costs expressed per unit throughput (p/kWh) | AI3: Proportion of costs allocated to Opex and Capex | AN3: Operating costs = sum of allocated and unallocated multiplied by 1 minus capitalised proportion | AT3: Opex only on p/kWh throughput
D4: Total activity cost - from RRP 1.3 | E4: Costs allocated to network tiers in RRP - from 2.2 amd 2.3 | I4: Unallocated costs = Total - costs allocated to network tiers | K4: Insert name of cost driver | L4: Proportion of cost allocated to each network tier | AI4: % Cost capitalised (from DCPR settlement - same for all DNOs) | AJ4: Capex | AK4: Opex | AN4: EHV | AO4: HV | AP4: HV/LV | AQ4: LV | AT4: EHV | AU4: HV | AV4: HV/LV | AW4: LV
E5: EHV | F5: HV | G5: HV/LV | H5: LV | L5: EHV | M5: HV | N5: HV/LV | O5: LV | R5: EHV | S5: HV | T5: HV/LV | U5: LV | X5: EHV | Y5: HV | Z5: HV/LV | AA5: LV | AD5: EHV | AE5: HV | AF5: HV/LV | AG5: LV
A6: Cash typical costs (excluding disallowed related party margins) | B6: Direct activities - From RRP 2.2 Detailed Cost Matrix | C6: Load related new connections & reinforcement (net of contributions) | D6: ='RRP 1.3'!D$12 -> -0.5 | E6: ='RRP 2.4'!L13+'RRP 2.4'!L14+'RRP 2.4'!L18+'RRP 2.4'!L19 -> 4.7 | F6: ='RRP 2.4'!L12+'RRP 2.4'!L17-'Calc - DNO Opex Allocation'!G6 -> 3.8 | G6: 0 | H6: ='RRP 2.4'!L11+'RRP 2.4'!L16+'RRP 2.4'!L24 -> -9 | I6: =D6-E6-F6-G6-H6 -> 0 | K6: MEAV | L6: =IF(ISERROR(VLOOKUP($K6,'Calc-Drivers'!$B$17:$F$27,L$42,FALSE))," ",VLOOKUP($K6,'Calc-Drivers'!$B$17:$F$27,L$42,FALSE)) -> 0.2206338248 | M6: =IF(ISERROR(VLOOKUP($K6,'Calc-Drivers'!$B$17:$F$27,M$42,FALSE))," ",VLOOKUP($K6,'Calc-Drivers'!$B$17:$F$27,M$42,FALSE)) -> 0.2782617825 | N6: =IF(ISERROR(VLOOKUP($K6,'Calc-Drivers'!$B$17:$F$27,N$42,FALSE))," ",VLOOKUP($K6,'Calc-Drivers'!$B$17:$F$27,N$42,FALSE)) -> 0.06810256034 | O6: =IF(ISERROR(VLOOKUP($K6,'Calc-Drivers'!$B$17:$F$27,O$42,FALSE))," ",VLOOKUP($K6,'Calc-Drivers'!$B$17:$F$27,O$42,FALSE)) -> 0.4330018323 | R6: =IF(ISERROR($I6*L6)," ",$I6*L6) -> 0 | S6: 0 | T6: 0 | U6: 0 | X6: =IF($K6="Do not allocate"," ",R6+E6) -> 4.7 | Y6: =IF($K6="Do not allocate"," ",S6+F6) -> 3.8 | Z6: =IF($K6="Do not allocate"," ",T6+G6) -> 0 | AA6: =IF($K6="Do not allocate"," ",U6+H6) -> -9 | AD6: =IF(ISERROR(X6*100000000/'Calc-Units'!$E$21)," ",X6*100000000/'Calc-Units'!$E$21) -> 0.03785236054 | AE6: =IF(ISERROR(Y6*100000000/'Calc-Units'!$D$21)," ",Y6*100000000/'Calc-Units'!$D$21) -> 0.0395280822 | AF6: =IF(ISERROR(Z6*100000000/'Calc-Units'!$C$21)," ",Z6*100000000/'Calc-Units'!$C$21) -> 0 | AG6: =IF(ISERROR(AA6*100000000/'Calc-Units'!$C$21)," ",AA6*100000000/'Calc-Units'!$C$21) -> -0.1247193089 | AI6: 1 | AJ6: =AI6*D6 -> -0.5 | AK6: =D6*(1-AI6) -> 0 | AN6: =IF(ISERROR(X6*(1-$AI6))," ",X6*(1-$AI6)) -> 0 | AO6: =IF(ISERROR(Y6*(1-$AI6))," ",Y6*(1-$AI6)) -> 0 | AP6: =IF(ISERROR(Z6*(1-$AI6))," ",Z6*(1-$AI6)) -> 0 | AQ6: =IF(ISERROR(AA6*(1-$AI6))," ",AA6*(1-$AI6)) -> 0 | AT6: =IF(ISERROR(AN6*100000000/'Calc-Units'!$E$21)," ",AN6*100000000/'Calc-Units'!$E$21) -> 0 | AU6: =IF(ISERROR(AO6*100000000/'Calc-Units'!$D$21)," ",AO6*100000000/'Calc-Units'!$D$21) -> 0 | AV6: =IF(ISERROR(AP6*100000000/'Calc-Units'!$C$21)," ",AP6*100000000/'Calc-Units'!$C$21) -> 0 | AW6: =IF(ISERROR(AQ6*100000000/'Calc-Units'!$C$21)," ",AQ6*100000000/'Calc-Units'!$C$21) -> 0
C7: Non-load new & replacement assets (net of contributions) | D7: ='RRP 1.3'!E$12 -> 32.3 | E7: =SUM('RRP 2.4'!G44:G55)+'RRP 2.4'!G71+'RRP 2.4'!H71 -> 8.5 | F7: =SUM('RRP 2.4'!G38:G40)+'RRP 2.4'!F71 -> 14.3 | G7: ='RRP 2.4'!G41+'RRP 2.4'!G42+'RRP 2.4'!G43 -> 4.2 | H7: =SUM('RRP 2.4'!G31:G37)+'RRP 2.4'!E71 -> 5.2 | I7: 0.1 | K7: MEAV | L7: =IF(ISERROR(VLOOKUP($K7,'Calc-Drivers'!$B$17:$F$27,L$42,FALSE))," ",VLOOKUP($K7,'Calc-Drivers'!$B$17:$F$27,L$42,FALSE)) -> 0.2206338248 | M7: =IF(ISERROR(VLOOKUP($K7,'Calc-Drivers'!$B$17:$F$27,M$42,FALSE))," ",VLOOKUP($K7,'Calc-Drivers'!$B$17:$F$27,M$42,FALSE)) -> 0.2782617825 | N7: =IF(ISERROR(VLOOKUP($K7,'Calc-Drivers'!$B$17:$F$27,N$42,FALSE))," ",VLOOKUP($K7,'Calc-Drivers'!$B$17:$F$27,N$42,FALSE)) -> 0.06810256034 | O7: =IF(ISERROR(VLOOKUP($K7,'Calc-Drivers'!$B$17:$F$27,O$42,FALSE))," ",VLOOKUP($K7,'Calc-Drivers'!$B$17:$F$27,O$42,FALSE)) -> 0.4330018323 | R7: 0.02206338248 | S7: 0.02782617825 | T7: 0.006810256034 | U7: 0.04330018323 | X7: 8.522063382 | Y7: 14.32782618 | Z7: 4.206810256 | AA7: 5.243300183 | AD7: =IF(ISERROR(X7*100000000/'Calc-Units'!$E$21)," ",X7*100000000/'Calc-Units'!$E$21) -> 0.06863408846 | AE7: =IF(ISERROR(Y7*100000000/'Calc-Units'!$D$21)," ",Y7*100000000/'Calc-Units'!$D$21) -> 0.149039866 | AF7: =IF(ISERROR(Z7*100000000/'Calc-Units'!$C$21)," ",Z7*100000000/'Calc-Units'!$C$21) -> 0.05829671864 | AG7: =IF(ISERROR(AA7*100000000/'Calc-Units'!$C$21)," ",AA7*100000000/'Calc-Units'!$C$21) -> 0.07266008613 | AI7: 1 | AJ7: 32.3 | AK7: 0 | AN7: =IF(ISERROR(X7*(1-$AI7))," ",X7*(1-$AI7)) -> 0 | AO7: 0 | AP7: 0 | AQ7: 0 | AT7: =IF(ISERROR(AN7*100000000/'Calc-Units'!$E$21)," ",AN7*100000000/'Calc-Units'!$E$21) -> 0 | AU7: =IF(ISERROR(AO7*100000000/'Calc-Units'!$D$21)," ",AO7*100000000/'Calc-Units'!$D$21) -> 0 | AV7: =IF(ISERROR(AP7*100000000/'Calc-Units'!$C$21)," ",AP7*100000000/'Calc-Units'!$C$21) -> 0 | AW7: =IF(ISERROR(AQ7*100000000/'Calc-Units'!$C$21)," ",AQ7*100000000/'Calc-Units'!$C$21) -> 0
C8: Non-operational capex | D8: ='RRP 1.3'!F$12 -> 3 | E8: 0 | F8: 0 | G8: 0 | H8: 0 | I8: 3 | K8: MEAV | L8: =IF(ISERROR(VLOOKUP($K8,'Calc-Drivers'!$B$17:$F$27,L$42,FALSE))," ",VLOOKUP($K8,'Calc-Drivers'!$B$17:$F$27,L$42,FALSE)) -> 0.2206338248 | M8: =IF(ISERROR(VLOOKUP($K8,'Calc-Drivers'!$B$17:$F$27,M$42,FALSE))," ",VLOOKUP($K8,'Calc-Drivers'!$B$17:$F$27,M$42,FALSE)) -> 0.2782617825 | N8: =IF(ISERROR(VLOOKUP($K8,'Calc-Drivers'!$B$17:$F$27,N$42,FALSE))," ",VLOOKUP($K8,'Calc-Drivers'!$B$17:$F$27,N$42,FALSE)) -> 0.06810256034 | O8: =IF(ISERROR(VLOOKUP($K8,'Calc-Drivers'!$B$17:$F$27,O$42,FALSE))," ",VLOOKUP($K8,'Calc-Drivers'!$B$17:$F$27,O$42,FALSE)) -> 0.4330018323 | R8: 0.6619014744 | S8: 0.8347853476 | T8: 0.204307681 | U8: 1.299005497 | X8: 0.6619014744 | Y8: 0.8347853476 | Z8: 0.204307681 | AA8: 1.299005497 | AD8: =IF(ISERROR(X8*100000000/'Calc-Units'!$E$21)," ",X8*100000000/'Calc-Units'!$E$21) -> 0.005330751756 | AE8: =IF(ISERROR(Y8*100000000/'Calc-Units'!$D$21)," ",Y8*100000000/'Calc-Units'!$D$21) -> 0.008683543115 | AF8: =IF(ISERROR(Z8*100000000/'Calc-Units'!$C$21)," ",Z8*100000000/'Calc-Units'!$C$21) -> 0.002831234753 | AG8: =IF(ISERROR(AA8*100000000/'Calc-Units'!$C$21)," ",AA8*100000000/'Calc-Units'!$C$21) -> 0.01800122976 | AI8: 0.235 | AJ8: 0.705 | AK8: 2.295 | AN8: 0.5063546279 | AO8: 0.6386107909 | AP8: 0.156295376 | AQ8: 0.9937392052 | AT8: =IF(ISERROR(AN8*100000000/'Calc-Units'!$E$21)," ",AN8*100000000/'Calc-Units'!$E$21) -> 0.004078025094 | AU8: =IF(ISERROR(AO8*100000000/'Calc-Units'!$D$21)," ",AO8*100000000/'Calc-Units'!$D$21) -> 0.006642910483 | AV8: =IF(ISERROR(AP8*100000000/'Calc-Units'!$C$21)," ",AP8*100000000/'Calc-Units'!$C$21) -> 0.002165894586 | AW8: =IF(ISERROR(AQ8*100000000/'Calc-Units'!$C$21)," ",AQ8*100000000/'Calc-Units'!$C$21) -> 0.01377094077
C9: Faults | D9: ='RRP 1.3'!G$12 -> 8.3 | E9: =SUM('RRP 2.3'!I20:I27) -> 0.6 | F9: =SUM('RRP 2.3'!I17:I18) -> 2.3 | G9: =SUM('RRP 2.3'!I19) -> 0.2 | H9: =SUM('RRP 2.3'!I11:I16) -> 4.9 | I9: 0.3 | K9: MEAV | L9: =IF(ISERROR(VLOOKUP($K9,'Calc-Drivers'!$B$17:$F$27,L$42,FALSE))," ",VLOOKUP($K9,'Calc-Drivers'!$B$17:$F$27,L$42,FALSE)) -> 0.2206338248 | M9: =IF(ISERROR(VLOOKUP($K9,'Calc-Drivers'!$B$17:$F$27,M$42,FALSE))," ",VLOOKUP($K9,'Calc-Drivers'!$B$17:$F$27,M$42,FALSE)) -> 0.2782617825 | N9: =IF(ISERROR(VLOOKUP($K9,'Calc-Drivers'!$B$17:$F$27,N$42,FALSE))," ",VLOOKUP($K9,'Calc-Drivers'!$B$17:$F$27,N$42,FALSE)) -> 0.06810256034 | O9: =IF(ISERROR(VLOOKUP($K9,'Calc-Drivers'!$B$17:$F$27,O$42,FALSE))," ",VLOOKUP($K9,'Calc-Drivers'!$B$17:$F$27,O$42,FALSE)) -> 0.4330018323 | R9: 0.06619014744 | S9: 0.08347853476 | T9: 0.0204307681 | U9: 0.1299005497 | X9: 0.6661901474 | Y9: 2.383478535 | Z9: 0.2204307681 | AA9: 5.02990055 | AD9: =IF(ISERROR(X9*100000000/'Calc-Units'!$E$21)," ",X9*100000000/'Calc-Units'!$E$21) -> 0.005365291415 | AE9: =IF(ISERROR(Y9*100000000/'Calc-Units'!$D$21)," ",Y9*100000000/'Calc-Units'!$D$21) -> 0.02479324617 | AF9: =IF(ISERROR(Z9*100000000/'Calc-Units'!$C$21)," ",Z9*100000000/'Calc-Units'!$C$21) -> 0.003054663673 | AG9: =IF(ISERROR(AA9*100000000/'Calc-Units'!$C$21)," ",AA9*100000000/'Calc-Units'!$C$21) -> 0.06970285782 | AI9: 0.235 | AJ9: 1.9505 | AK9: 6.3495 | AN9: 0.5096354628 | AO9: 1.823361079 | AP9: 0.1686295376 | AQ9: 3.847873921 | AT9: =IF(ISERROR(AN9*100000000/'Calc-Units'!$E$21)," ",AN9*100000000/'Calc-Units'!$E$21) -> 0.004104447933 | AU9: =IF(ISERROR(AO9*100000000/'Calc-Units'!$D$21)," ",AO9*100000000/'Calc-Units'!$D$21) -> 0.01896683332 | AV9: =IF(ISERROR(AP9*100000000/'Calc-Units'!$C$21)," ",AP9*100000000/'Calc-Units'!$C$21) -> 0.00233681771 | AW9: =IF(ISERROR(AQ9*100000000/'Calc-Units'!$C$21)," ",AQ9*100000000/'Calc-Units'!$C$21) -> 0.05332268623
C10: Inspections, & Maintenance | D10: ='RRP 1.3'!H$12 -> 5.5 | E10: =SUM('RRP 2.3'!G20:G27) -> 2.3 | F10: =SUM('RRP 2.3'!G17:G18) -> 0.6 | G10: =SUM('RRP 2.3'!G19) -> 1.6 | H10: =SUM('RRP 2.3'!G11:G16) -> 0.7 | I10: 0.3 | K10: MEAV | L10: =IF(ISERROR(VLOOKUP($K10,'Calc-Drivers'!$B$17:$F$27,L$42,FALSE))," ",VLOOKUP($K10,'Calc-Drivers'!$B$17:$F$27,L$42,FALSE)) -> 0.2206338248 | M10: =IF(ISERROR(VLOOKUP($K10,'Calc-Drivers'!$B$17:$F$27,M$42,FALSE))," ",VLOOKUP($K10,'Calc-Drivers'!$B$17:$F$27,M$42,FALSE)) -> 0.2782617825 | N10: =IF(ISERROR(VLOOKUP($K10,'Calc-Drivers'!$B$17:$F$27,N$42,FALSE))," ",VLOOKUP($K10,'Calc-Drivers'!$B$17:$F$27,N$42,FALSE)) -> 0.06810256034 | O10: =IF(ISERROR(VLOOKUP($K10,'Calc-Drivers'!$B$17:$F$27,O$42,FALSE))," ",VLOOKUP($K10,'Calc-Drivers'!$B$17:$F$27,O$42,FALSE)) -> 0.4330018323 | R10: 0.06619014744 | S10: 0.08347853476 | T10: 0.0204307681 | U10: 0.1299005497 | X10: 2.366190147 | Y10: 0.6834785348 | Z10: 1.620430768 | AA10: 0.8299005497 | AD10: =IF(ISERROR(X10*100000000/'Calc-Units'!$E$21)," ",X10*100000000/'Calc-Units'!$E$21) -> 0.01905657076 | AE10: =IF(ISERROR(Y10*100000000/'Calc-Units'!$D$21)," ",Y10*100000000/'Calc-Units'!$D$21) -> 0.007109630448 | AF10: =IF(ISERROR(Z10*100000000/'Calc-Units'!$C$21)," ",Z10*100000000/'Calc-Units'!$C$21) -> 0.02245544506 | AG10: =IF(ISERROR(AA10*100000000/'Calc-Units'!$C$21)," ",AA10*100000000/'Calc-Units'!$C$21) -> 0.01150051367 | AI10: 0.235 | AJ10: 1.2925 | AK10: 4.2075 | AN10: 1.810135463 | AO10: 0.5228610791 | AP10: 1.239629538 | AQ10: 0.6348739205 | AT10: =IF(ISERROR(AN10*100000000/'Calc-Units'!$E$21)," ",AN10*100000000/'Calc-Units'!$E$21) -> 0.01457827663 | AU10: =IF(ISERROR(AO10*100000000/'Calc-Units'!$D$21)," ",AO10*100000000/'Calc-Units'!$D$21) -> 0.005438867293 | AV10: =IF(ISERROR(AP10*100000000/'Calc-Units'!$C$21)," ",AP10*100000000/'Calc-Units'!$C$21) -> 0.01717841547 | AW10: =IF(ISERROR(AQ10*100000000/'Calc-Units'!$C$21)," ",AQ10*100000000/'Calc-Units'!$C$21) -> 0.008797892956
C11: Tree Cutting | D11: ='RRP 1.3'!I$12 -> 4.1 | E11: ='RRP 2.3'!G46+'RRP 2.3'!G47 -> 0.6297770892 | F11: ='RRP 2.3'!G45 -> 2.363069336 | G11: 0 | H11: ='RRP 2.3'!G44 -> 1.165518117 | I11: -0.05836454259 | K11: MEAV | L11: =IF(ISERROR(VLOOKUP($K11,'Calc-Drivers'!$B$17:$F$27,L$42,FALSE))," ",VLOOKUP($K11,'Calc-Drivers'!$B$17:$F$27,L$42,FALSE)) -> 0.2206338248 | M11: =IF(ISERROR(VLOOKUP($K11,'Calc-Drivers'!$B$17:$F$27,M$42,FALSE))," ",VLOOKUP($K11,'Calc-Drivers'!$B$17:$F$27,M$42,FALSE)) -> 0.2782617825 | N11: =IF(ISERROR(VLOOKUP($K11,'Calc-Drivers'!$B$17:$F$27,N$42,FALSE))," ",VLOOKUP($K11,'Calc-Drivers'!$B$17:$F$27,N$42,FALSE)) -> 0.06810256034 | O11: =IF(ISERROR(VLOOKUP($K11,'Calc-Drivers'!$B$17:$F$27,O$42,FALSE))," ",VLOOKUP($K11,'Calc-Drivers'!$B$17:$F$27,O$42,FALSE)) -> 0.4330018323 | R11: -0.01287719227 | S11: -0.01624062166 | T11: -0.003974774784 | U11: -0.02527195389 | X11: 0.6168998969 | Y11: 2.346828715 | Z11: -0.003974774784 | AA11: 1.140246163 | AD11: =IF(ISERROR(X11*100000000/'Calc-Units'!$E$21)," ",X11*100000000/'Calc-Units'!$E$21) -> 0.004968322833 | AE11: =IF(ISERROR(Y11*100000000/'Calc-Units'!$D$21)," ",Y11*100000000/'Calc-Units'!$D$21) -> 0.02441201009 | AF11: =IF(ISERROR(Z11*100000000/'Calc-Units'!$C$21)," ",Z11*100000000/'Calc-Units'!$C$21) -> -5.508124045e-05 | AG11: =IF(ISERROR(AA11*100000000/'Calc-Units'!$C$21)," ",AA11*100000000/'Calc-Units'!$C$21) -> 0.01580119038 | AI11: 0.235 | AJ11: 0.9635 | AK11: 3.1365 | AN11: 0.4719284211 | AO11: 1.795323967 | AP11: -0.00304070271 | AQ11: 0.8722883148 | AT11: =IF(ISERROR(AN11*100000000/'Calc-Units'!$E$21)," ",AN11*100000000/'Calc-Units'!$E$21) -> 0.003800766968 | AU11: =IF(ISERROR(AO11*100000000/'Calc-Units'!$D$21)," ",AO11*100000000/'Calc-Units'!$D$21) -> 0.01867518772 | AV11: =IF(ISERROR(AP11*100000000/'Calc-Units'!$C$21)," ",AP11*100000000/'Calc-Units'!$C$21) -> -4.213714894e-05 | AW11: =IF(ISERROR(AQ11*100000000/'Calc-Units'!$C$21)," ",AQ11*100000000/'Calc-Units'!$C$21) -> 0.01208791064
B12: Indirect activities - From RRP 2.2 Detailed Cost Matrix | C12: Network Policy | D12: ='RRP 1.3'!J$12 -> 0.6 | E12: 0 | F12: 0 | G12: 0 | H12: 0 | I12: 0.6 | K12: MEAV | L12: =IF(ISERROR(VLOOKUP($K12,'Calc-Drivers'!$B$17:$F$27,L$42,FALSE))," ",VLOOKUP($K12,'Calc-Drivers'!$B$17:$F$27,L$42,FALSE)) -> 0.2206338248 | M12: =IF(ISERROR(VLOOKUP($K12,'Calc-Drivers'!$B$17:$F$27,M$42,FALSE))," ",VLOOKUP($K12,'Calc-Drivers'!$B$17:$F$27,M$42,FALSE)) -> 0.2782617825 | N12: =IF(ISERROR(VLOOKUP($K12,'Calc-Drivers'!$B$17:$F$27,N$42,FALSE))," ",VLOOKUP($K12,'Calc-Drivers'!$B$17:$F$27,N$42,FALSE)) -> 0.06810256034 | O12: =IF(ISERROR(VLOOKUP($K12,'Calc-Drivers'!$B$17:$F$27,O$42,FALSE))," ",VLOOKUP($K12,'Calc-Drivers'!$B$17:$F$27,O$42,FALSE)) -> 0.4330018323 | R12: 0.1323802949 | S12: 0.1669570695 | T12: 0.04086153621 | U12: 0.2598010994 | X12: 0.1323802949 | Y12: 0.1669570695 | Z12: 0.04086153621 | AA12: 0.2598010994 | AD12: =IF(ISERROR(X12*100000000/'Calc-Units'!$E$21)," ",X12*100000000/'Calc-Units'!$E$21) -> 0.001066150351 | AE12: =IF(ISERROR(Y12*100000000/'Calc-Units'!$D$21)," ",Y12*100000000/'Calc-Units'!$D$21) -> 0.001736708623 | AF12: =IF(ISERROR(Z12*100000000/'Calc-Units'!$C$21)," ",Z12*100000000/'Calc-Units'!$C$21) -> 0.0005662469507 | AG12: =IF(ISERROR(AA12*100000000/'Calc-Units'!$C$21)," ",AA12*100000000/'Calc-Units'!$C$21) -> 0.003600245952 | AI12: 0.5257 | AJ12: 0.31542 | AK12: 0.28458 | AN12: 0.06278797386 | AO12: 0.07918773807 | AP12: 0.01938062662 | AQ12: 0.1232236614 | AT12: =IF(ISERROR(AN12*100000000/'Calc-Units'!$E$21)," ",AN12*100000000/'Calc-Units'!$E$21) -> 0.0005056751116 | AU12: =IF(ISERROR(AO12*100000000/'Calc-Units'!$D$21)," ",AO12*100000000/'Calc-Units'!$D$21) -> 0.0008237208998 | AV12: =IF(ISERROR(AP12*100000000/'Calc-Units'!$C$21)," ",AP12*100000000/'Calc-Units'!$C$21) -> 0.0002685709287 | AW12: =IF(ISERROR(AQ12*100000000/'Calc-Units'!$C$21)," ",AQ12*100000000/'Calc-Units'!$C$21) -> 0.001707596655
C13: Network Design & Engineering | D13: ='RRP 1.3'!K$12 -> 3.5 | E13: 0 | F13: 0 | G13: 0 | H13: 0 | I13: 3.5 | K13: MEAV | L13: =IF(ISERROR(VLOOKUP($K13,'Calc-Drivers'!$B$17:$F$27,L$42,FALSE))," ",VLOOKUP($K13,'Calc-Drivers'!$B$17:$F$27,L$42,FALSE)) -> 0.2206338248 | M13: =IF(ISERROR(VLOOKUP($K13,'Calc-Drivers'!$B$17:$F$27,M$42,FALSE))," ",VLOOKUP($K13,'Calc-Drivers'!$B$17:$F$27,M$42,FALSE)) -> 0.2782617825 | N13: =IF(ISERROR(VLOOKUP($K13,'Calc-Drivers'!$B$17:$F$27,N$42,FALSE))," ",VLOOKUP($K13,'Calc-Drivers'!$B$17:$F$27,N$42,FALSE)) -> 0.06810256034 | O13: =IF(ISERROR(VLOOKUP($K13,'Calc-Drivers'!$B$17:$F$27,O$42,FALSE))," ",VLOOKUP($K13,'Calc-Drivers'!$B$17:$F$27,O$42,FALSE)) -> 0.4330018323 | R13: 0.7722183868 | S13: 0.9739162388 | T13: 0.2383589612 | U13: 1.515506413 | X13: 0.7722183868 | Y13: 0.9739162388 | Z13: 0.2383589612 | AA13: 1.515506413 | AD13: =IF(ISERROR(X13*100000000/'Calc-Units'!$E$21)," ",X13*100000000/'Calc-Units'!$E$21) -> 0.006219210383 | AE13: =IF(ISERROR(Y13*100000000/'Calc-Units'!$D$21)," ",Y13*100000000/'Calc-Units'!$D$21) -> 0.0101308003 | AF13: =IF(ISERROR(Z13*100000000/'Calc-Units'!$C$21)," ",Z13*100000000/'Calc-Units'!$C$21) -> 0.003303107212 | AG13: =IF(ISERROR(AA13*100000000/'Calc-Units'!$C$21)," ",AA13*100000000/'Calc-Units'!$C$21) -> 0.02100143472 | AI13: 0.5257 | AJ13: 1.83995 | AK13: 1.66005 | AN13: 0.3662631809 | AO13: 0.4619284721 | AP13: 0.1130536553 | AQ13: 0.7188046917 | AT13: =IF(ISERROR(AN13*100000000/'Calc-Units'!$E$21)," ",AN13*100000000/'Calc-Units'!$E$21) -> 0.002949771484 | AU13: =IF(ISERROR(AO13*100000000/'Calc-Units'!$D$21)," ",AO13*100000000/'Calc-Units'!$D$21) -> 0.004805038582 | AV13: =IF(ISERROR(AP13*100000000/'Calc-Units'!$C$21)," ",AP13*100000000/'Calc-Units'!$C$21) -> 0.001566663751 | AW13: =IF(ISERROR(AQ13*100000000/'Calc-Units'!$C$21)," ",AQ13*100000000/'Calc-Units'!$C$21) -> 0.009960980487
C14: Project Management | D14: ='RRP 1.3'!L$12 -> 2.9 | E14: 0 | F14: 0 | G14: 0 | H14: 0 | I14: 2.9 | K14: MEAV | L14: =IF(ISERROR(VLOOKUP($K14,'Calc-Drivers'!$B$17:$F$27,L$42,FALSE))," ",VLOOKUP($K14,'Calc-Drivers'!$B$17:$F$27,L$42,FALSE)) -> 0.2206338248 | M14: =IF(ISERROR(VLOOKUP($K14,'Calc-Drivers'!$B$17:$F$27,M$42,FALSE))," ",VLOOKUP($K14,'Calc-Drivers'!$B$17:$F$27,M$42,FALSE)) -> 0.2782617825 | N14: =IF(ISERROR(VLOOKUP($K14,'Calc-Drivers'!$B$17:$F$27,N$42,FALSE))," ",VLOOKUP($K14,'Calc-Drivers'!$B$17:$F$27,N$42,FALSE)) -> 0.06810256034 | O14: =IF(ISERROR(VLOOKUP($K14,'Calc-Drivers'!$B$17:$F$27,O$42,FALSE))," ",VLOOKUP($K14,'Calc-Drivers'!$B$17:$F$27,O$42,FALSE)) -> 0.4330018323 | R14: 0.639838092 | S14: 0.8069591693 | T14: 0.197497425 | U14: 1.255705314 | X14: 0.639838092 | Y14: 0.8069591693 | Z14: 0.197497425 | AA14: 1.255705314 | AD14: =IF(ISERROR(X14*100000000/'Calc-Units'!$E$21)," ",X14*100000000/'Calc-Units'!$E$21) -> 0.005153060031 | AE14: =IF(ISERROR(Y14*100000000/'Calc-Units'!$D$21)," ",Y14*100000000/'Calc-Units'!$D$21) -> 0.008394091677 | AF14: =IF(ISERROR(Z14*100000000/'Calc-Units'!$C$21)," ",Z14*100000000/'Calc-Units'!$C$21) -> 0.002736860262 | AG14: =IF(ISERROR(AA14*100000000/'Calc-Units'!$C$21)," ",AA14*100000000/'Calc-Units'!$C$21) -> 0.01740118877 | AI14: 0.5257 | AJ14: 1.52453 | AK14: 1.37547 | AN14: 0.303475207 | AO14: 0.382740734 | AP14: 0.09367302867 | AQ14: 0.5955810303 | AT14: =IF(ISERROR(AN14*100000000/'Calc-Units'!$E$21)," ",AN14*100000000/'Calc-Units'!$E$21) -> 0.002444096373 | AU14: =IF(ISERROR(AO14*100000000/'Calc-Units'!$D$21)," ",AO14*100000000/'Calc-Units'!$D$21) -> 0.003981317683 | AV14: =IF(ISERROR(AP14*100000000/'Calc-Units'!$C$21)," ",AP14*100000000/'Calc-Units'!$C$21) -> 0.001298092822 | AW14: =IF(ISERROR(AQ14*100000000/'Calc-Units'!$C$21)," ",AQ14*100000000/'Calc-Units'!$C$21) -> 0.008253383832
C15: Engineering Mgt & Clerical Support | D15: ='RRP 1.3'!M$12 -> 7.2 | E15: 0 | F15: 0 | G15: 0 | H15: 0 | I15: 7.2 | K15: MEAV | L15: =IF(ISERROR(VLOOKUP($K15,'Calc-Drivers'!$B$17:$F$27,L$42,FALSE))," ",VLOOKUP($K15,'Calc-Drivers'!$B$17:$F$27,L$42,FALSE)) -> 0.2206338248 | M15: =IF(ISERROR(VLOOKUP($K15,'Calc-Drivers'!$B$17:$F$27,M$42,FALSE))," ",VLOOKUP($K15,'Calc-Drivers'!$B$17:$F$27,M$42,FALSE)) -> 0.2782617825 | N15: =IF(ISERROR(VLOOKUP($K15,'Calc-Drivers'!$B$17:$F$27,N$42,FALSE))," ",VLOOKUP($K15,'Calc-Drivers'!$B$17:$F$27,N$42,FALSE)) -> 0.06810256034 | O15: =IF(ISERROR(VLOOKUP($K15,'Calc-Drivers'!$B$17:$F$27,O$42,FALSE))," ",VLOOKUP($K15,'Calc-Drivers'!$B$17:$F$27,O$42,FALSE)) -> 0.4330018323 | R15: 1.588563539 | S15: 2.003484834 | T15: 0.4903384345 | U15: 3.117613193 | X15: 1.588563539 | Y15: 2.003484834 | Z15: 0.4903384345 | AA15: 3.117613193 | AD15: =IF(ISERROR(X15*100000000/'Calc-Units'!$E$21)," ",X15*100000000/'Calc-Units'!$E$21) -> 0.01279380422 | AE15: =IF(ISERROR(Y15*100000000/'Calc-Units'!$D$21)," ",Y15*100000000/'Calc-Units'!$D$21) -> 0.02084050348 | AF15: =IF(ISERROR(Z15*100000000/'Calc-Units'!$C$21)," ",Z15*100000000/'Calc-Units'!$C$21) -> 0.006794963408 | AG15: =IF(ISERROR(AA15*100000000/'Calc-Units'!$C$21)," ",AA15*100000000/'Calc-Units'!$C$21) -> 0.04320295142 | AI15: 0.5257 | AJ15: 3.78504 | AK15: 3.41496 | AN15: 0.7534556864 | AO15: 0.9502528569 | AP15: 0.2325675195 | AQ15: 1.478683937 | AT15: =IF(ISERROR(AN15*100000000/'Calc-Units'!$E$21)," ",AN15*100000000/'Calc-Units'!$E$21) -> 0.006068101339 | AU15: =IF(ISERROR(AO15*100000000/'Calc-Units'!$D$21)," ",AO15*100000000/'Calc-Units'!$D$21) -> 0.009884650798 | AV15: =IF(ISERROR(AP15*100000000/'Calc-Units'!$C$21)," ",AP15*100000000/'Calc-Units'!$C$21) -> 0.003222851144 | AW15: =IF(ISERROR(AQ15*100000000/'Calc-Units'!$C$21)," ",AQ15*100000000/'Calc-Units'!$C$21) -> 0.02049115986
C16: Control Centre | D16: ='RRP 1.3'!N$12 -> 1.9 | E16: 0 | F16: 0 | G16: 0 | H16: 0 | I16: 1.9 | K16: MEAV | L16: =IF(ISERROR(VLOOKUP($K16,'Calc-Drivers'!$B$17:$F$27,L$42,FALSE))," ",VLOOKUP($K16,'Calc-Drivers'!$B$17:$F$27,L$42,FALSE)) -> 0.2206338248 | M16: =IF(ISERROR(VLOOKUP($K16,'Calc-Drivers'!$B$17:$F$27,M$42,FALSE))," ",VLOOKUP($K16,'Calc-Drivers'!$B$17:$F$27,M$42,FALSE)) -> 0.2782617825 | N16: =IF(ISERROR(VLOOKUP($K16,'Calc-Drivers'!$B$17:$F$27,N$42,FALSE))," ",VLOOKUP($K16,'Calc-Drivers'!$B$17:$F$27,N$42,FALSE)) -> 0.06810256034 | O16: =IF(ISERROR(VLOOKUP($K16,'Calc-Drivers'!$B$17:$F$27,O$42,FALSE))," ",VLOOKUP($K16,'Calc-Drivers'!$B$17:$F$27,O$42,FALSE)) -> 0.4330018323 | R16: 0.4192042671 | S16: 0.5286973868 | T16: 0.1293948647 | U16: 0.8227034814 | X16: 0.4192042671 | Y16: 0.5286973868 | Z16: 0.1293948647 | AA16: 0.8227034814 | AD16: =IF(ISERROR(X16*100000000/'Calc-Units'!$E$21)," ",X16*100000000/'Calc-Units'!$E$21) -> 0.003376142779 | AE16: =IF(ISERROR(Y16*100000000/'Calc-Units'!$D$21)," ",Y16*100000000/'Calc-Units'!$D$21) -> 0.005499577306 | AF16: =IF(ISERROR(Z16*100000000/'Calc-Units'!$C$21)," ",Z16*100000000/'Calc-Units'!$C$21) -> 0.001793115344 | AG16: =IF(ISERROR(AA16*100000000/'Calc-Units'!$C$21)," ",AA16*100000000/'Calc-Units'!$C$21) -> 0.01140077885 | AI16: 0.5257 | AJ16: 0.99883 | AK16: 0.90117 | AN16: 0.1988285839 | AO16: 0.2507611706 | AP16: 0.0613719843 | AQ16: 0.3902082612 | AT16: =IF(ISERROR(AN16*100000000/'Calc-Units'!$E$21)," ",AN16*100000000/'Calc-Units'!$E$21) -> 0.00160130452 | AU16: =IF(ISERROR(AO16*100000000/'Calc-Units'!$D$21)," ",AO16*100000000/'Calc-Units'!$D$21) -> 0.002608449516 | AV16: =IF(ISERROR(AP16*100000000/'Calc-Units'!$C$21)," ",AP16*100000000/'Calc-Units'!$C$21) -> 0.0008504746076 | AW16: =IF(ISERROR(AQ16*100000000/'Calc-Units'!$C$21)," ",AQ16*100000000/'Calc-Units'!$C$21) -> 0.005407389407
C17: System Mapping - Cartographical | D17: ='RRP 1.3'!O$12 -> 1 | E17: 0 | F17: 0 | G17: 0 | H17: 0 | I17: 1 | K17: MEAV | L17: =IF(ISERROR(VLOOKUP($K17,'Calc-Drivers'!$B$17:$F$27,L$42,FALSE))," ",VLOOKUP($K17,'Calc-Drivers'!$B$17:$F$27,L$42,FALSE)) -> 0.2206338248 | M17: =IF(ISERROR(VLOOKUP($K17,'Calc-Drivers'!$B$17:$F$27,M$42,FALSE))," ",VLOOKUP($K17,'Calc-Drivers'!$B$17:$F$27,M$42,FALSE)) -> 0.2782617825 | N17: =IF(ISERROR(VLOOKUP($K17,'Calc-Drivers'!$B$17:$F$27,N$42,FALSE))," ",VLOOKUP($K17,'Calc-Drivers'!$B$17:$F$27,N$42,FALSE)) -> 0.06810256034 | O17: =IF(ISERROR(VLOOKUP($K17,'Calc-Drivers'!$B$17:$F$27,O$42,FALSE))," ",VLOOKUP($K17,'Calc-Drivers'!$B$17:$F$27,O$42,FALSE)) -> 0.4330018323 | R17: 0.2206338248 | S17: 0.2782617825 | T17: 0.06810256034 | U17: 0.4330018323 | X17: 0.2206338248 | Y17: 0.2782617825 | Z17: 0.06810256034 | AA17: 0.4330018323 | AD17: =IF(ISERROR(X17*100000000/'Calc-Units'!$E$21)," ",X17*100000000/'Calc-Units'!$E$21) -> 0.001776917252 | AE17: =IF(ISERROR(Y17*100000000/'Calc-Units'!$D$21)," ",Y17*100000000/'Calc-Units'!$D$21) -> 0.002894514372 | AF17: =IF(ISERROR(Z17*100000000/'Calc-Units'!$C$21)," ",Z17*100000000/'Calc-Units'!$C$21) -> 0.0009437449178 | AG17: =IF(ISERROR(AA17*100000000/'Calc-Units'!$C$21)," ",AA17*100000000/'Calc-Units'!$C$21) -> 0.00600040992 | AI17: 0.5257 | AJ17: 0.5257 | AK17: 0.4743 | AN17: 0.1046466231 | AO17: 0.1319795635 | AP17: 0.03230104437 | AQ17: 0.2053727691 | AT17: =IF(ISERROR(AN17*100000000/'Calc-Units'!$E$21)," ",AN17*100000000/'Calc-Units'!$E$21) -> 0.0008427918527 | AU17: =IF(ISERROR(AO17*100000000/'Calc-Units'!$D$21)," ",AO17*100000000/'Calc-Units'!$D$21) -> 0.001372868166 | AV17: =IF(ISERROR(AP17*100000000/'Calc-Units'!$C$21)," ",AP17*100000000/'Calc-Units'!$C$21) -> 0.0004476182145 | AW17: =IF(ISERROR(AQ17*100000000/'Calc-Units'!$C$21)," ",AQ17*100000000/'Calc-Units'!$C$21) -> 0.002845994425
C18: Customer Call Centre | D18: ='RRP 1.3'!P$12 -> 0.7 | E18: 0 | F18: 0 | G18: 0 | H18: 0 | I18: 0.7 | K18: MEAV | L18: =IF(ISERROR(VLOOKUP($K18,'Calc-Drivers'!$B$17:$F$27,L$42,FALSE))," ",VLOOKUP($K18,'Calc-Drivers'!$B$17:$F$27,L$42,FALSE)) -> 0.2206338248 | M18: =IF(ISERROR(VLOOKUP($K18,'Calc-Drivers'!$B$17:$F$27,M$42,FALSE))," ",VLOOKUP($K18,'Calc-Drivers'!$B$17:$F$27,M$42,FALSE)) -> 0.2782617825 | N18: =IF(ISERROR(VLOOKUP($K18,'Calc-Drivers'!$B$17:$F$27,N$42,FALSE))," ",VLOOKUP($K18,'Calc-Drivers'!$B$17:$F$27,N$42,FALSE)) -> 0.06810256034 | O18: =IF(ISERROR(VLOOKUP($K18,'Calc-Drivers'!$B$17:$F$27,O$42,FALSE))," ",VLOOKUP($K18,'Calc-Drivers'!$B$17:$F$27,O$42,FALSE)) -> 0.4330018323 | R18: 0.1544436774 | S18: 0.1947832478 | T18: 0.04767179224 | U18: 0.3031012826 | X18: 0.1544436774 | Y18: 0.1947832478 | Z18: 0.04767179224 | AA18: 0.3031012826 | AD18: =IF(ISERROR(X18*100000000/'Calc-Units'!$E$21)," ",X18*100000000/'Calc-Units'!$E$21) -> 0.001243842077 | AE18: =IF(ISERROR(Y18*100000000/'Calc-Units'!$D$21)," ",Y18*100000000/'Calc-Units'!$D$21) -> 0.00202616006 | AF18: =IF(ISERROR(Z18*100000000/'Calc-Units'!$C$21)," ",Z18*100000000/'Calc-Units'!$C$21) -> 0.0006606214424 | AG18: =IF(ISERROR(AA18*100000000/'Calc-Units'!$C$21)," ",AA18*100000000/'Calc-Units'!$C$21) -> 0.004200286944 | AI18: 0.5257 | AJ18: 0.36799 | AK18: 0.33201 | AN18: 0.07325263618 | AO18: 0.09238569442 | AP18: 0.02261073106 | AQ18: 0.1437609383 | AT18: =IF(ISERROR(AN18*100000000/'Calc-Units'!$E$21)," ",AN18*100000000/'Calc-Units'!$E$21) -> 0.0005899542969 | AU18: =IF(ISERROR(AO18*100000000/'Calc-Units'!$D$21)," ",AO18*100000000/'Calc-Units'!$D$21) -> 0.0009610077165 | AV18: =IF(ISERROR(AP18*100000000/'Calc-Units'!$C$21)," ",AP18*100000000/'Calc-Units'!$C$21) -> 0.0003133327502 | AW18: =IF(ISERROR(AQ18*100000000/'Calc-Units'!$C$21)," ",AQ18*100000000/'Calc-Units'!$C$21) -> 0.001992196097
C19: Stores | D19: ='RRP 1.3'!Q$12 -> 0.9 | E19: 0 | F19: 0 | G19: 0 | H19: 0 | I19: 0.9 | K19: MEAV | L19: =IF(ISERROR(VLOOKUP($K19,'Calc-Drivers'!$B$17:$F$27,L$42,FALSE))," ",VLOOKUP($K19,'Calc-Drivers'!$B$17:$F$27,L$42,FALSE)) -> 0.2206338248 | M19: =IF(ISERROR(VLOOKUP($K19,'Calc-Drivers'!$B$17:$F$27,M$42,FALSE))," ",VLOOKUP($K19,'Calc-Drivers'!$B$17:$F$27,M$42,FALSE)) -> 0.2782617825 | N19: =IF(ISERROR(VLOOKUP($K19,'Calc-Drivers'!$B$17:$F$27,N$42,FALSE))," ",VLOOKUP($K19,'Calc-Drivers'!$B$17:$F$27,N$42,FALSE)) -> 0.06810256034 | O19: =IF(ISERROR(VLOOKUP($K19,'Calc-Drivers'!$B$17:$F$27,O$42,FALSE))," ",VLOOKUP($K19,'Calc-Drivers'!$B$17:$F$27,O$42,FALSE)) -> 0.4330018323 | R19: 0.1985704423 | S19: 0.2504356043 | T19: 0.06129230431 | U19: 0.3897016491 | X19: 0.1985704423 | Y19: 0.2504356043 | Z19: 0.06129230431 | AA19: 0.3897016491 | AD19: =IF(ISERROR(X19*100000000/'Calc-Units'!$E$21)," ",X19*100000000/'Calc-Units'!$E$21) -> 0.001599225527 | AE19: =IF(ISERROR(Y19*100000000/'Calc-Units'!$D$21)," ",Y19*100000000/'Calc-Units'!$D$21) -> 0.002605062934 | AF19: =IF(ISERROR(Z19*100000000/'Calc-Units'!$C$21)," ",Z19*100000000/'Calc-Units'!$C$21) -> 0.000849370426 | AG19: =IF(ISERROR(AA19*100000000/'Calc-Units'!$C$21)," ",AA19*100000000/'Calc-Units'!$C$21) -> 0.005400368928 | AI19: 0.5257 | AJ19: 0.47313 | AK19: 0.42687 | AN19: 0.0941819608 | AO19: 0.1187816071 | AP19: 0.02907093993 | AQ19: 0.1848354922 | AT19: =IF(ISERROR(AN19*100000000/'Calc-Units'!$E$21)," ",AN19*100000000/'Calc-Units'!$E$21) -> 0.0007585126674 | AU19: =IF(ISERROR(AO19*100000000/'Calc-Units'!$D$21)," ",AO19*100000000/'Calc-Units'!$D$21) -> 0.00123558135 | AV19: =IF(ISERROR(AP19*100000000/'Calc-Units'!$C$21)," ",AP19*100000000/'Calc-Units'!$C$21) -> 0.0004028563931 | AW19: =IF(ISERROR(AQ19*100000000/'Calc-Units'!$C$21)," ",AQ19*100000000/'Calc-Units'!$C$21) -> 0.002561394982
C20: Vehicles & Transport | D20: ='RRP 1.3'!R$12 -> 2.7 | E20: 0 | F20: 0 | G20: 0 | H20: 0 | I20: 2.7 | K20: MEAV | L20: =IF(ISERROR(VLOOKUP($K20,'Calc-Drivers'!$B$17:$F$27,L$42,FALSE))," ",VLOOKUP($K20,'Calc-Drivers'!$B$17:$F$27,L$42,FALSE)) -> 0.2206338248 | M20: =IF(ISERROR(VLOOKUP($K20,'Calc-Drivers'!$B$17:$F$27,M$42,FALSE))," ",VLOOKUP($K20,'Calc-Drivers'!$B$17:$F$27,M$42,FALSE)) -> 0.2782617825 | N20: =IF(ISERROR(VLOOKUP($K20,'Calc-Drivers'!$B$17:$F$27,N$42,FALSE))," ",VLOOKUP($K20,'Calc-Drivers'!$B$17:$F$27,N$42,FALSE)) -> 0.06810256034 | O20: =IF(ISERROR(VLOOKUP($K20,'Calc-Drivers'!$B$17:$F$27,O$42,FALSE))," ",VLOOKUP($K20,'Calc-Drivers'!$B$17:$F$27,O$42,FALSE)) -> 0.4330018323 | R20: 0.595711327 | S20: 0.7513068128 | T20: 0.1838769129 | U20: 1.169104947 | X20: 0.595711327 | Y20: 0.7513068128 | Z20: 0.1838769129 | AA20: 1.169104947 | AD20: =IF(ISERROR(X20*100000000/'Calc-Units'!$E$21)," ",X20*100000000/'Calc-Units'!$E$21) -> 0.004797676581 | AE20: =IF(ISERROR(Y20*100000000/'Calc-Units'!$D$21)," ",Y20*100000000/'Calc-Units'!$D$21) -> 0.007815188803 | AF20: =IF(ISERROR(Z20*100000000/'Calc-Units'!$C$21)," ",Z20*100000000/'Calc-Units'!$C$21) -> 0.002548111278 | AG20: =IF(ISERROR(AA20*100000000/'Calc-Units'!$C$21)," ",AA20*100000000/'Calc-Units'!$C$21) -> 0.01620110678 | AI20: 0.5257 | AJ20: 1.41939 | AK20: 1.28061 | AN20: 0.2825458824 | AO20: 0.3563448213 | AP20: 0.0872128198 | AQ20: 0.5545064765 | AT20: =IF(ISERROR(AN20*100000000/'Calc-Units'!$E$21)," ",AN20*100000000/'Calc-Units'!$E$21) -> 0.002275538002 | AU20: =IF(ISERROR(AO20*100000000/'Calc-Units'!$D$21)," ",AO20*100000000/'Calc-Units'!$D$21) -> 0.003706744049 | AV20: =IF(ISERROR(AP20*100000000/'Calc-Units'!$C$21)," ",AP20*100000000/'Calc-Units'!$C$21) -> 0.001208569179 | AW20: =IF(ISERROR(AQ20*100000000/'Calc-Units'!$C$21)," ",AQ20*100000000/'Calc-Units'!$C$21) -> 0.007684184947
C21: IT & Telecoms | D21: ='RRP 1.3'!S$12 -> 6.8 | E21: 0 | F21: 0 | G21: 0 | H21: 0 | I21: 6.8 | K21: Do not allocate | L21: =IF(ISERROR(VLOOKUP($K21,'Calc-Drivers'!$B$17:$F$27,L$42,FALSE))," ",VLOOKUP($K21,'Calc-Drivers'!$B$17:$F$27,L$42,FALSE)) ->  | M21: =IF(ISERROR(VLOOKUP($K21,'Calc-Drivers'!$B$17:$F$27,M$42,FALSE))," ",VLOOKUP($K21,'Calc-Drivers'!$B$17:$F$27,M$42,FALSE)) ->  | N21: =IF(ISERROR(VLOOKUP($K21,'Calc-Drivers'!$B$17:$F$27,N$42,FALSE))," ",VLOOKUP($K21,'Calc-Drivers'!$B$17:$F$27,N$42,FALSE)) ->  | O21: =IF(ISERROR(VLOOKUP($K21,'Calc-Drivers'!$B$17:$F$27,O$42,FALSE))," ",VLOOKUP($K21,'Calc-Drivers'!$B$17:$F$27,O$42,FALSE)) ->  | AD21: =IF(ISERROR(X21*100000000/'Calc-Units'!$E$21)," ",X21*100000000/'Calc-Units'!$E$21) ->  | AE21: =IF(ISERROR(Y21*100000000/'Calc-Units'!$D$21)," ",Y21*100000000/'Calc-Units'!$D$21) ->  | AF21: =IF(ISERROR(Z21*100000000/'Calc-Units'!$C$21)," ",Z21*100000000/'Calc-Units'!$C$21) ->  | AG21: =IF(ISERROR(AA21*100000000/'Calc-Units'!$C$21)," ",AA21*100000000/'Calc-Units'!$C$21) ->  | AI21: 0.5257 | AJ21: 3.57476 | AK21: 3.22524 | AT21: =IF(ISERROR(AN21*100000000/'Calc-Units'!$E$21)," ",AN21*100000000/'Calc-Units'!$E$21) ->  | AU21: =IF(ISERROR(AO21*100000000/'Calc-Units'!$D$21)," ",AO21*100000000/'Calc-Units'!$D$21) ->  | AV21: =IF(ISERROR(AP21*100000000/'Calc-Units'!$C$21)," ",AP21*100000000/'Calc-Units'!$C$21) ->  | AW21: =IF(ISERROR(AQ21*100000000/'Calc-Units'!$C$21)," ",AQ21*100000000/'Calc-Units'!$C$21) -> 
C22: Property Mgt | D22: ='RRP 1.3'!T$12 -> 2.1 | E22: 0 | F22: 0 | G22: 0 | H22: 0 | I22: 2.1 | K22: Do not allocate | L22: =IF(ISERROR(VLOOKUP($K22,'Calc-Drivers'!$B$17:$F$27,L$42,FALSE))," ",VLOOKUP($K22,'Calc-Drivers'!$B$17:$F$27,L$42,FALSE)) ->  | M22: =IF(ISERROR(VLOOKUP($K22,'Calc-Drivers'!$B$17:$F$27,M$42,FALSE))," ",VLOOKUP($K22,'Calc-Drivers'!$B$17:$F$27,M$42,FALSE)) ->  | N22: =IF(ISERROR(VLOOKUP($K22,'Calc-Drivers'!$B$17:$F$27,N$42,FALSE))," ",VLOOKUP($K22,'Calc-Drivers'!$B$17:$F$27,N$42,FALSE)) ->  | O22: =IF(ISERROR(VLOOKUP($K22,'Calc-Drivers'!$B$17:$F$27,O$42,FALSE))," ",VLOOKUP($K22,'Calc-Drivers'!$B$17:$F$27,O$42,FALSE)) ->  | AD22: =IF(ISERROR(X22*100000000/'Calc-Units'!$E$21)," ",X22*100000000/'Calc-Units'!$E$21) ->  | AE22: =IF(ISERROR(Y22*100000000/'Calc-Units'!$D$21)," ",Y22*100000000/'Calc-Units'!$D$21) ->  | AF22: =IF(ISERROR(Z22*100000000/'Calc-Units'!$C$21)," ",Z22*100000000/'Calc-Units'!$C$21) ->  | AG22: =IF(ISERROR(AA22*100000000/'Calc-Units'!$C$21)," ",AA22*100000000/'Calc-Units'!$C$21) ->  | AI22: 0.5257 | AJ22: 1.10397 | AK22: 0.99603 | AT22: =IF(ISERROR(AN22*100000000/'Calc-Units'!$E$21)," ",AN22*100000000/'Calc-Units'!$E$21) ->  | AU22: =IF(ISERROR(AO22*100000000/'Calc-Units'!$D$21)," ",AO22*100000000/'Calc-Units'!$D$21) ->  | AV22: =IF(ISERROR(AP22*100000000/'Calc-Units'!$C$21)," ",AP22*100000000/'Calc-Units'!$C$21) ->  | AW22: =IF(ISERROR(AQ22*100000000/'Calc-Units'!$C$21)," ",AQ22*100000000/'Calc-Units'!$C$21) -> 
C23: HR & Non-operational Training | D23: ='RRP 1.3'!U$12 -> 0.9 | E23: 0 | F23: 0 | G23: 0 | H23: 0 | I23: 0.9 | K23: MEAV | L23: =IF(ISERROR(VLOOKUP($K23,'Calc-Drivers'!$B$17:$F$27,L$42,FALSE))," ",VLOOKUP($K23,'Calc-Drivers'!$B$17:$F$27,L$42,FALSE)) -> 0.2206338248 | M23: =IF(ISERROR(VLOOKUP($K23,'Calc-Drivers'!$B$17:$F$27,M$42,FALSE))," ",VLOOKUP($K23,'Calc-Drivers'!$B$17:$F$27,M$42,FALSE)) -> 0.2782617825 | N23: =IF(ISERROR(VLOOKUP($K23,'Calc-Drivers'!$B$17:$F$27,N$42,FALSE))," ",VLOOKUP($K23,'Calc-Drivers'!$B$17:$F$27,N$42,FALSE)) -> 0.06810256034 | O23: =IF(ISERROR(VLOOKUP($K23,'Calc-Drivers'!$B$17:$F$27,O$42,FALSE))," ",VLOOKUP($K23,'Calc-Drivers'!$B$17:$F$27,O$42,FALSE)) -> 0.4330018323 | R23: 0.1985704423 | S23: 0.2504356043 | T23: 0.06129230431 | U23: 0.3897016491 | X23: 0.1985704423 | Y23: 0.2504356043 | Z23: 0.06129230431 | AA23: 0.3897016491 | AD23: =IF(ISERROR(X23*100000000/'Calc-Units'!$E$21)," ",X23*100000000/'Calc-Units'!$E$21) -> 0.001599225527 | AE23: =IF(ISERROR(Y23*100000000/'Calc-Units'!$D$21)," ",Y23*100000000/'Calc-Units'!$D$21) -> 0.002605062934 | AF23: =IF(ISERROR(Z23*100000000/'Calc-Units'!$C$21)," ",Z23*100000000/'Calc-Units'!$C$21) -> 0.000849370426 | AG23: =IF(ISERROR(AA23*100000000/'Calc-Units'!$C$21)," ",AA23*100000000/'Calc-Units'!$C$21) -> 0.005400368928 | AI23: 0.5257 | AJ23: 0.47313 | AK23: 0.42687 | AN23: 0.0941819608 | AO23: 0.1187816071 | AP23: 0.02907093993 | AQ23: 0.1848354922 | AT23: =IF(ISERROR(AN23*100000000/'Calc-Units'!$E$21)," ",AN23*100000000/'Calc-Units'!$E$21) -> 0.0007585126674 | AU23: =IF(ISERROR(AO23*100000000/'Calc-Units'!$D$21)," ",AO23*100000000/'Calc-Units'!$D$21) -> 0.00123558135 | AV23: =IF(ISERROR(AP23*100000000/'Calc-Units'!$C$21)," ",AP23*100000000/'Calc-Units'!$C$21) -> 0.0004028563931 | AW23: =IF(ISERROR(AQ23*100000000/'Calc-Units'!$C$21)," ",AQ23*100000000/'Calc-Units'!$C$21) -> 0.002561394982
C24: Health & Safety & Operational Training | D24: ='RRP 1.3'!V$12 -> 1.1 | E24: 0 | F24: 0 | G24: 0 | H24: 0 | I24: 1.1 | K24: MEAV | L24: =IF(ISERROR(VLOOKUP($K24,'Calc-Drivers'!$B$17:$F$27,L$42,FALSE))," ",VLOOKUP($K24,'Calc-Drivers'!$B$17:$F$27,L$42,FALSE)) -> 0.2206338248 | M24: =IF(ISERROR(VLOOKUP($K24,'Calc-Drivers'!$B$17:$F$27,M$42,FALSE))," ",VLOOKUP($K24,'Calc-Drivers'!$B$17:$F$27,M$42,FALSE)) -> 0.2782617825 | N24: =IF(ISERROR(VLOOKUP($K24,'Calc-Drivers'!$B$17:$F$27,N$42,FALSE))," ",VLOOKUP($K24,'Calc-Drivers'!$B$17:$F$27,N$42,FALSE)) -> 0.06810256034 | O24: =IF(ISERROR(VLOOKUP($K24,'Calc-Drivers'!$B$17:$F$27,O$42,FALSE))," ",VLOOKUP($K24,'Calc-Drivers'!$B$17:$F$27,O$42,FALSE)) -> 0.4330018323 | R24: 0.2426972073 | S24: 0.3060879608 | T24: 0.07491281638 | U24: 0.4763020156 | X24: 0.2426972073 | Y24: 0.3060879608 | Z24: 0.07491281638 | AA24: 0.4763020156 | AD24: =IF(ISERROR(X24*100000000/'Calc-Units'!$E$21)," ",X24*100000000/'Calc-Units'!$E$21) -> 0.001954608977 | AE24: =IF(ISERROR(Y24*100000000/'Calc-Units'!$D$21)," ",Y24*100000000/'Calc-Units'!$D$21) -> 0.003183965809 | AF24: =IF(ISERROR(Z24*100000000/'Calc-Units'!$C$21)," ",Z24*100000000/'Calc-Units'!$C$21) -> 0.00103811941 | AG24: =IF(ISERROR(AA24*100000000/'Calc-Units'!$C$21)," ",AA24*100000000/'Calc-Units'!$C$21) -> 0.006600450912 | AI24: 0.5257 | AJ24: 0.57827 | AK24: 0.52173 | AN24: 0.1151112854 | AO24: 0.1451775198 | AP24: 0.03553114881 | AQ24: 0.225910046 | AT24: =IF(ISERROR(AN24*100000000/'Calc-Units'!$E$21)," ",AN24*100000000/'Calc-Units'!$E$21) -> 0.000927071038 | AU24: =IF(ISERROR(AO24*100000000/'Calc-Units'!$D$21)," ",AO24*100000000/'Calc-Units'!$D$21) -> 0.001510154983 | AV24: =IF(ISERROR(AP24*100000000/'Calc-Units'!$C$21)," ",AP24*100000000/'Calc-Units'!$C$21) -> 0.000492380036 | AW24: =IF(ISERROR(AQ24*100000000/'Calc-Units'!$C$21)," ",AQ24*100000000/'Calc-Units'!$C$21) -> 0.003130593867
C25: Finance & Regulation | D25: ='RRP 1.3'!W$12 -> 5.8 | E25: 0 | F25: 0 | G25: 0 | H25: 0 | I25: 5.8 | K25: MEAV | L25: =IF(ISERROR(VLOOKUP($K25,'Calc-Drivers'!$B$17:$F$27,L$42,FALSE))," ",VLOOKUP($K25,'Calc-Drivers'!$B$17:$F$27,L$42,FALSE)) -> 0.2206338248 | M25: =IF(ISERROR(VLOOKUP($K25,'Calc-Drivers'!$B$17:$F$27,M$42,FALSE))," ",VLOOKUP($K25,'Calc-Drivers'!$B$17:$F$27,M$42,FALSE)) -> 0.2782617825 | N25: =IF(ISERROR(VLOOKUP($K25,'Calc-Drivers'!$B$17:$F$27,N$42,FALSE))," ",VLOOKUP($K25,'Calc-Drivers'!$B$17:$F$27,N$42,FALSE)) -> 0.06810256034 | O25: =IF(ISERROR(VLOOKUP($K25,'Calc-Drivers'!$B$17:$F$27,O$42,FALSE))," ",VLOOKUP($K25,'Calc-Drivers'!$B$17:$F$27,O$42,FALSE)) -> 0.4330018323 | R25: 1.279676184 | S25: 1.613918339 | T25: 0.39499485 | U25: 2.511410627 | X25: 1.279676184 | Y25: 1.613918339 | Z25: 0.39499485 | AA25: 2.511410627 | AD25: =IF(ISERROR(X25*100000000/'Calc-Units'!$E$21)," ",X25*100000000/'Calc-Units'!$E$21) -> 0.01030612006 | AE25: =IF(ISERROR(Y25*100000000/'Calc-Units'!$D$21)," ",Y25*100000000/'Calc-Units'!$D$21) -> 0.01678818335 | AF25: =IF(ISERROR(Z25*100000000/'Calc-Units'!$C$21)," ",Z25*100000000/'Calc-Units'!$C$21) -> 0.005473720523 | AG25: =IF(ISERROR(AA25*100000000/'Calc-Units'!$C$21)," ",AA25*100000000/'Calc-Units'!$C$21) -> 0.03480237753 | AI25: 0.5257 | AJ25: 3.04906 | AK25: 2.75094 | AN25: 0.606950414 | AO25: 0.765481468 | AP25: 0.1873460573 | AQ25: 1.191162061 | AT25: =IF(ISERROR(AN25*100000000/'Calc-Units'!$E$21)," ",AN25*100000000/'Calc-Units'!$E$21) -> 0.004888192746 | AU25: =IF(ISERROR(AO25*100000000/'Calc-Units'!$D$21)," ",AO25*100000000/'Calc-Units'!$D$21) -> 0.007962635365 | AV25: =IF(ISERROR(AP25*100000000/'Calc-Units'!$C$21)," ",AP25*100000000/'Calc-Units'!$C$21) -> 0.002596185644 | AW25: =IF(ISERROR(AQ25*100000000/'Calc-Units'!$C$21)," ",AQ25*100000000/'Calc-Units'!$C$21) -> 0.01650676766
C26: CEO etc | D26: ='RRP 1.3'!X$12 -> 1.8 | E26: 0 | F26: 0 | G26: 0 | H26: 0 | I26: 1.8 | K26: MEAV | L26: =IF(ISERROR(VLOOKUP($K26,'Calc-Drivers'!$B$17:$F$27,L$42,FALSE))," ",VLOOKUP($K26,'Calc-Drivers'!$B$17:$F$27,L$42,FALSE)) -> 0.2206338248 | M26: =IF(ISERROR(VLOOKUP($K26,'Calc-Drivers'!$B$17:$F$27,M$42,FALSE))," ",VLOOKUP($K26,'Calc-Drivers'!$B$17:$F$27,M$42,FALSE)) -> 0.2782617825 | N26: =IF(ISERROR(VLOOKUP($K26,'Calc-Drivers'!$B$17:$F$27,N$42,FALSE))," ",VLOOKUP($K26,'Calc-Drivers'!$B$17:$F$27,N$42,FALSE)) -> 0.06810256034 | O26: =IF(ISERROR(VLOOKUP($K26,'Calc-Drivers'!$B$17:$F$27,O$42,FALSE))," ",VLOOKUP($K26,'Calc-Drivers'!$B$17:$F$27,O$42,FALSE)) -> 0.4330018323 | R26: 0.3971408847 | S26: 0.5008712085 | T26: 0.1225846086 | U26: 0.7794032982 | X26: 0.3971408847 | Y26: 0.5008712085 | Z26: 0.1225846086 | AA26: 0.7794032982 | AD26: =IF(ISERROR(X26*100000000/'Calc-Units'!$E$21)," ",X26*100000000/'Calc-Units'!$E$21) -> 0.003198451054 | AE26: =IF(ISERROR(Y26*100000000/'Calc-Units'!$D$21)," ",Y26*100000000/'Calc-Units'!$D$21) -> 0.005210125869 | AF26: =IF(ISERROR(Z26*100000000/'Calc-Units'!$C$21)," ",Z26*100000000/'Calc-Units'!$C$21) -> 0.001698740852 | AG26: =IF(ISERROR(AA26*100000000/'Calc-Units'!$C$21)," ",AA26*100000000/'Calc-Units'!$C$21) -> 0.01080073786 | AI26: 0.5257 | AJ26: 0.94626 | AK26: 0.85374 | AN26: 0.1883639216 | AO26: 0.2375632142 | AP26: 0.05814187987 | AQ26: 0.3696709843 | AT26: =IF(ISERROR(AN26*100000000/'Calc-Units'!$E$21)," ",AN26*100000000/'Calc-Units'!$E$21) -> 0.001517025335 | AU26: =IF(ISERROR(AO26*100000000/'Calc-Units'!$D$21)," ",AO26*100000000/'Calc-Units'!$D$21) -> 0.0024711627 | AV26: =IF(ISERROR(AP26*100000000/'Calc-Units'!$C$21)," ",AP26*100000000/'Calc-Units'!$C$21) -> 0.0008057127861 | AW26: =IF(ISERROR(AQ26*100000000/'Calc-Units'!$C$21)," ",AQ26*100000000/'Calc-Units'!$C$21) -> 0.005122789965
A27: Other Costs from full activitty cost allocation | C27: Atypical cash costs | D27: ='RRP 1.3'!Y$12 -> 4.3 | E27: 0 | F27: 0 | G27: 0 | H27: 0 | I27: 4.3 | K27: Do not allocate | L27: =IF(ISERROR(VLOOKUP($K27,'Calc-Drivers'!$B$17:$F$27,L$42,FALSE))," ",VLOOKUP($K27,'Calc-Drivers'!$B$17:$F$27,L$42,FALSE)) ->  | M27: =IF(ISERROR(VLOOKUP($K27,'Calc-Drivers'!$B$17:$F$27,M$42,FALSE))," ",VLOOKUP($K27,'Calc-Drivers'!$B$17:$F$27,M$42,FALSE)) ->  | N27: =IF(ISERROR(VLOOKUP($K27,'Calc-Drivers'!$B$17:$F$27,N$42,FALSE))," ",VLOOKUP($K27,'Calc-Drivers'!$B$17:$F$27,N$42,FALSE)) ->  | O27: =IF(ISERROR(VLOOKUP($K27,'Calc-Drivers'!$B$17:$F$27,O$42,FALSE))," ",VLOOKUP($K27,'Calc-Drivers'!$B$17:$F$27,O$42,FALSE)) ->  | AD27: =IF(ISERROR(X27*100000000/'Calc-Units'!$E$21)," ",X27*100000000/'Calc-Units'!$E$21) ->  | AE27: =IF(ISERROR(Y27*100000000/'Calc-Units'!$D$21)," ",Y27*100000000/'Calc-Units'!$D$21) ->  | AF27: =IF(ISERROR(Z27*100000000/'Calc-Units'!$C$21)," ",Z27*100000000/'Calc-Units'!$C$21) ->  | AG27: =IF(ISERROR(AA27*100000000/'Calc-Units'!$C$21)," ",AA27*100000000/'Calc-Units'!$C$21) ->  | AI27: 0 | AJ27: 0 | AK27: 4.3 | AT27: =IF(ISERROR(AN27*100000000/'Calc-Units'!$E$21)," ",AN27*100000000/'Calc-Units'!$E$21) ->  | AU27: =IF(ISERROR(AO27*100000000/'Calc-Units'!$D$21)," ",AO27*100000000/'Calc-Units'!$D$21) ->  | AV27: =IF(ISERROR(AP27*100000000/'Calc-Units'!$C$21)," ",AP27*100000000/'Calc-Units'!$C$21) ->  | AW27: =IF(ISERROR(AQ27*100000000/'Calc-Units'!$C$21)," ",AQ27*100000000/'Calc-Units'!$C$21) -> 
C28: Pension deficit payments | D28: ='RRP 1.3'!Z$12 -> 13.4 | E28: 0 | F28: 0 | G28: 0 | H28: 0 | I28: 13.4 | K28: Do not allocate | L28: =IF(ISERROR(VLOOKUP($K28,'Calc-Drivers'!$B$17:$F$27,L$42,FALSE))," ",VLOOKUP($K28,'Calc-Drivers'!$B$17:$F$27,L$42,FALSE)) ->  | M28: =IF(ISERROR(VLOOKUP($K28,'Calc-Drivers'!$B$17:$F$27,M$42,FALSE))," ",VLOOKUP($K28,'Calc-Drivers'!$B$17:$F$27,M$42,FALSE)) ->  | N28: =IF(ISERROR(VLOOKUP($K28,'Calc-Drivers'!$B$17:$F$27,N$42,FALSE))," ",VLOOKUP($K28,'Calc-Drivers'!$B$17:$F$27,N$42,FALSE)) ->  | O28: =IF(ISERROR(VLOOKUP($K28,'Calc-Drivers'!$B$17:$F$27,O$42,FALSE))," ",VLOOKUP($K28,'Calc-Drivers'!$B$17:$F$27,O$42,FALSE)) ->  | AD28: =IF(ISERROR(X28*100000000/'Calc-Units'!$E$21)," ",X28*100000000/'Calc-Units'!$E$21) ->  | AE28: =IF(ISERROR(Y28*100000000/'Calc-Units'!$D$21)," ",Y28*100000000/'Calc-Units'!$D$21) ->  | AF28: =IF(ISERROR(Z28*100000000/'Calc-Units'!$C$21)," ",Z28*100000000/'Calc-Units'!$C$21) ->  | AG28: =IF(ISERROR(AA28*100000000/'Calc-Units'!$C$21)," ",AA28*100000000/'Calc-Units'!$C$21) ->  | AI28: 0.577 | AJ28: 7.7318 | AK28: 5.6682 | AT28: =IF(ISERROR(AN28*100000000/'Calc-Units'!$E$21)," ",AN28*100000000/'Calc-Units'!$E$21) ->  | AU28: =IF(ISERROR(AO28*100000000/'Calc-Units'!$D$21)," ",AO28*100000000/'Calc-Units'!$D$21) ->  | AV28: =IF(ISERROR(AP28*100000000/'Calc-Units'!$C$21)," ",AP28*100000000/'Calc-Units'!$C$21) ->  | AW28: =IF(ISERROR(AQ28*100000000/'Calc-Units'!$C$21)," ",AQ28*100000000/'Calc-Units'!$C$21) -> 
C29: Metering | D29: ='RRP 1.3'!AA$12 -> 1.8 | E29: 0 | F29: 0 | G29: 0 | H29: 0 | I29: 1.8 | K29: Do not allocate | L29: =IF(ISERROR(VLOOKUP($K29,'Calc-Drivers'!$B$17:$F$27,L$42,FALSE))," ",VLOOKUP($K29,'Calc-Drivers'!$B$17:$F$27,L$42,FALSE)) ->  | M29: =IF(ISERROR(VLOOKUP($K29,'Calc-Drivers'!$B$17:$F$27,M$42,FALSE))," ",VLOOKUP($K29,'Calc-Drivers'!$B$17:$F$27,M$42,FALSE)) ->  | N29: =IF(ISERROR(VLOOKUP($K29,'Calc-Drivers'!$B$17:$F$27,N$42,FALSE))," ",VLOOKUP($K29,'Calc-Drivers'!$B$17:$F$27,N$42,FALSE)) ->  | O29: =IF(ISERROR(VLOOKUP($K29,'Calc-Drivers'!$B$17:$F$27,O$42,FALSE))," ",VLOOKUP($K29,'Calc-Drivers'!$B$17:$F$27,O$42,FALSE)) ->  | AD29: =IF(ISERROR(X29*100000000/'Calc-Units'!$E$21)," ",X29*100000000/'Calc-Units'!$E$21) ->  | AE29: =IF(ISERROR(Y29*100000000/'Calc-Units'!$D$21)," ",Y29*100000000/'Calc-Units'!$D$21) ->  | AF29: =IF(ISERROR(Z29*100000000/'Calc-Units'!$C$21)," ",Z29*100000000/'Calc-Units'!$C$21) ->  | AG29: =IF(ISERROR(AA29*100000000/'Calc-Units'!$C$21)," ",AA29*100000000/'Calc-Units'!$C$21) ->  | AI29: 0 | AJ29: 0 | AK29: 1.8 | AT29: =IF(ISERROR(AN29*100000000/'Calc-Units'!$E$21)," ",AN29*100000000/'Calc-Units'!$E$21) ->  | AU29: =IF(ISERROR(AO29*100000000/'Calc-Units'!$D$21)," ",AO29*100000000/'Calc-Units'!$D$21) ->  | AV29: =IF(ISERROR(AP29*100000000/'Calc-Units'!$C$21)," ",AP29*100000000/'Calc-Units'!$C$21) ->  | AW29: =IF(ISERROR(AQ29*100000000/'Calc-Units'!$C$21)," ",AQ29*100000000/'Calc-Units'!$C$21) -> 
C30: Excluded services & de minimis | D30: ='RRP 1.3'!AB$12 -> 8.9 | E30: 0 | F30: 0 | G30: 0 | H30: 0 | I30: 8.9 | K30: Do not allocate | L30: =IF(ISERROR(VLOOKUP($K30,'Calc-Drivers'!$B$17:$F$27,L$42,FALSE))," ",VLOOKUP($K30,'Calc-Drivers'!$B$17:$F$27,L$42,FALSE)) ->  | M30: =IF(ISERROR(VLOOKUP($K30,'Calc-Drivers'!$B$17:$F$27,M$42,FALSE))," ",VLOOKUP($K30,'Calc-Drivers'!$B$17:$F$27,M$42,FALSE)) ->  | N30: =IF(ISERROR(VLOOKUP($K30,'Calc-Drivers'!$B$17:$F$27,N$42,FALSE))," ",VLOOKUP($K30,'Calc-Drivers'!$B$17:$F$27,N$42,FALSE)) ->  | O30: =IF(ISERROR(VLOOKUP($K30,'Calc-Drivers'!$B$17:$F$27,O$42,FALSE))," ",VLOOKUP($K30,'Calc-Drivers'!$B$17:$F$27,O$42,FALSE)) ->  | AD30: =IF(ISERROR(X30*100000000/'Calc-Units'!$E$21)," ",X30*100000000/'Calc-Units'!$E$21) ->  | AE30: =IF(ISERROR(Y30*100000000/'Calc-Units'!$D$21)," ",Y30*100000000/'Calc-Units'!$D$21) ->  | AF30: =IF(ISERROR(Z30*100000000/'Calc-Units'!$C$21)," ",Z30*100000000/'Calc-Units'!$C$21) ->  | AG30: =IF(ISERROR(AA30*100000000/'Calc-Units'!$C$21)," ",AA30*100000000/'Calc-Units'!$C$21) ->  | AI30: 0 | AJ30: 0 | AK30: 8.9 | AT30: =IF(ISERROR(AN30*100000000/'Calc-Units'!$E$21)," ",AN30*100000000/'Calc-Units'!$E$21) ->  | AU30: =IF(ISERROR(AO30*100000000/'Calc-Units'!$D$21)," ",AO30*100000000/'Calc-Units'!$D$21) ->  | AV30: =IF(ISERROR(AP30*100000000/'Calc-Units'!$C$21)," ",AP30*100000000/'Calc-Units'!$C$21) ->  | AW30: =IF(ISERROR(AQ30*100000000/'Calc-Units'!$C$21)," ",AQ30*100000000/'Calc-Units'!$C$21) -> 
C31: Relevant distributed generation (less contributions) | D31: ='RRP 1.3'!AC$12 -> -0.1 | E31: 0 | F31: 0 | G31: 0 | H31: 0 | I31: -0.1 | K31: Do not allocate | L31: =IF(ISERROR(VLOOKUP($K31,'Calc-Drivers'!$B$17:$F$27,L$42,FALSE))," ",VLOOKUP($K31,'Calc-Drivers'!$B$17:$F$27,L$42,FALSE)) ->  | M31: =IF(ISERROR(VLOOKUP($K31,'Calc-Drivers'!$B$17:$F$27,M$42,FALSE))," ",VLOOKUP($K31,'Calc-Drivers'!$B$17:$F$27,M$42,FALSE)) ->  | N31: =IF(ISERROR(VLOOKUP($K31,'Calc-Drivers'!$B$17:$F$27,N$42,FALSE))," ",VLOOKUP($K31,'Calc-Drivers'!$B$17:$F$27,N$42,FALSE)) ->  | O31: =IF(ISERROR(VLOOKUP($K31,'Calc-Drivers'!$B$17:$F$27,O$42,FALSE))," ",VLOOKUP($K31,'Calc-Drivers'!$B$17:$F$27,O$42,FALSE)) ->  | AD31: =IF(ISERROR(X31*100000000/'Calc-Units'!$E$21)," ",X31*100000000/'Calc-Units'!$E$21) ->  | AE31: =IF(ISERROR(Y31*100000000/'Calc-Units'!$D$21)," ",Y31*100000000/'Calc-Units'!$D$21) ->  | AF31: =IF(ISERROR(Z31*100000000/'Calc-Units'!$C$21)," ",Z31*100000000/'Calc-Units'!$C$21) ->  | AG31: =IF(ISERROR(AA31*100000000/'Calc-Units'!$C$21)," ",AA31*100000000/'Calc-Units'!$C$21) ->  | AI31: 0 | AJ31: 0 | AK31: -0.1 | AT31: =IF(ISERROR(AN31*100000000/'Calc-Units'!$E$21)," ",AN31*100000000/'Calc-Units'!$E$21) ->  | AU31: =IF(ISERROR(AO31*100000000/'Calc-Units'!$D$21)," ",AO31*100000000/'Calc-Units'!$D$21) ->  | AV31: =IF(ISERROR(AP31*100000000/'Calc-Units'!$C$21)," ",AP31*100000000/'Calc-Units'!$C$21) ->  | AW31: =IF(ISERROR(AQ31*100000000/'Calc-Units'!$C$21)," ",AQ31*100000000/'Calc-Units'!$C$21) -> 
C32: IFI | D32: ='RRP 1.3'!AD$12 -> 0.1 | E32: 0 | F32: 0 | G32: 0 | H32: 0 | I32: 0.1 | K32: Do not allocate | L32: =IF(ISERROR(VLOOKUP($K32,'Calc-Drivers'!$B$17:$F$27,L$42,FALSE))," ",VLOOKUP($K32,'Calc-Drivers'!$B$17:$F$27,L$42,FALSE)) ->  | M32: =IF(ISERROR(VLOOKUP($K32,'Calc-Drivers'!$B$17:$F$27,M$42,FALSE))," ",VLOOKUP($K32,'Calc-Drivers'!$B$17:$F$27,M$42,FALSE)) ->  | N32: =IF(ISERROR(VLOOKUP($K32,'Calc-Drivers'!$B$17:$F$27,N$42,FALSE))," ",VLOOKUP($K32,'Calc-Drivers'!$B$17:$F$27,N$42,FALSE)) ->  | O32: =IF(ISERROR(VLOOKUP($K32,'Calc-Drivers'!$B$17:$F$27,O$42,FALSE))," ",VLOOKUP($K32,'Calc-Drivers'!$B$17:$F$27,O$42,FALSE)) ->  | AD32: =IF(ISERROR(X32*100000000/'Calc-Units'!$E$21)," ",X32*100000000/'Calc-Units'!$E$21) ->  | AE32: =IF(ISERROR(Y32*100000000/'Calc-Units'!$D$21)," ",Y32*100000000/'Calc-Units'!$D$21) ->  | AF32: =IF(ISERROR(Z32*100000000/'Calc-Units'!$C$21)," ",Z32*100000000/'Calc-Units'!$C$21) ->  | AG32: =IF(ISERROR(AA32*100000000/'Calc-Units'!$C$21)," ",AA32*100000000/'Calc-Units'!$C$21) ->  | AI32: 0 | AJ32: 0 | AK32: 0.1 | AT32: =IF(ISERROR(AN32*100000000/'Calc-Units'!$E$21)," ",AN32*100000000/'Calc-Units'!$E$21) ->  | AU32: =IF(ISERROR(AO32*100000000/'Calc-Units'!$D$21)," ",AO32*100000000/'Calc-Units'!$D$21) ->  | AV32: =IF(ISERROR(AP32*100000000/'Calc-Units'!$C$21)," ",AP32*100000000/'Calc-Units'!$C$21) ->  | AW32: =IF(ISERROR(AQ32*100000000/'Calc-Units'!$C$21)," ",AQ32*100000000/'Calc-Units'!$C$21) -> 
C33: Disallowed Related Party Margins | D33: ='RRP 1.3'!AE$12 -> -2.775557562e-17 | E33: 0 | F33: 0 | G33: 0 | H33: 0 | I33: -2.775557562e-17 | K33: Do not allocate | L33: =IF(ISERROR(VLOOKUP($K33,'Calc-Drivers'!$B$17:$F$27,L$42,FALSE))," ",VLOOKUP($K33,'Calc-Drivers'!$B$17:$F$27,L$42,FALSE)) ->  | M33: =IF(ISERROR(VLOOKUP($K33,'Calc-Drivers'!$B$17:$F$27,M$42,FALSE))," ",VLOOKUP($K33,'Calc-Drivers'!$B$17:$F$27,M$42,FALSE)) ->  | N33: =IF(ISERROR(VLOOKUP($K33,'Calc-Drivers'!$B$17:$F$27,N$42,FALSE))," ",VLOOKUP($K33,'Calc-Drivers'!$B$17:$F$27,N$42,FALSE)) ->  | O33: =IF(ISERROR(VLOOKUP($K33,'Calc-Drivers'!$B$17:$F$27,O$42,FALSE))," ",VLOOKUP($K33,'Calc-Drivers'!$B$17:$F$27,O$42,FALSE)) ->  | AD33: =IF(ISERROR(X33*100000000/'Calc-Units'!$E$21)," ",X33*100000000/'Calc-Units'!$E$21) ->  | AE33: =IF(ISERROR(Y33*100000000/'Calc-Units'!$D$21)," ",Y33*100000000/'Calc-Units'!$D$21) ->  | AF33: =IF(ISERROR(Z33*100000000/'Calc-Units'!$C$21)," ",Z33*100000000/'Calc-Units'!$C$21) ->  | AG33: =IF(ISERROR(AA33*100000000/'Calc-Units'!$C$21)," ",AA33*100000000/'Calc-Units'!$C$21) ->  | AI33: 0 | AJ33: 0 | AK33: -2.775557562e-17 | AT33: =IF(ISERROR(AN33*100000000/'Calc-Units'!$E$21)," ",AN33*100000000/'Calc-Units'!$E$21) ->  | AU33: =IF(ISERROR(AO33*100000000/'Calc-Units'!$D$21)," ",AO33*100000000/'Calc-Units'!$D$21) ->  | AV33: =IF(ISERROR(AP33*100000000/'Calc-Units'!$C$21)," ",AP33*100000000/'Calc-Units'!$C$21) ->  | AW33: =IF(ISERROR(AQ33*100000000/'Calc-Units'!$C$21)," ",AQ33*100000000/'Calc-Units'!$C$21) -> 
C34: Statutory Depreciation | D34: ='RRP 1.3'!AF$12 -> 25.3 | E34: 0 | F34: 0 | G34: 0 | H34: 0 | I34: 25.3 | K34: Do not allocate | L34: =IF(ISERROR(VLOOKUP($K34,'Calc-Drivers'!$B$17:$F$27,L$42,FALSE))," ",VLOOKUP($K34,'Calc-Drivers'!$B$17:$F$27,L$42,FALSE)) ->  | M34: =IF(ISERROR(VLOOKUP($K34,'Calc-Drivers'!$B$17:$F$27,M$42,FALSE))," ",VLOOKUP($K34,'Calc-Drivers'!$B$17:$F$27,M$42,FALSE)) ->  | N34: =IF(ISERROR(VLOOKUP($K34,'Calc-Drivers'!$B$17:$F$27,N$42,FALSE))," ",VLOOKUP($K34,'Calc-Drivers'!$B$17:$F$27,N$42,FALSE)) ->  | O34: =IF(ISERROR(VLOOKUP($K34,'Calc-Drivers'!$B$17:$F$27,O$42,FALSE))," ",VLOOKUP($K34,'Calc-Drivers'!$B$17:$F$27,O$42,FALSE)) ->  | AD34: =IF(ISERROR(X34*100000000/'Calc-Units'!$E$21)," ",X34*100000000/'Calc-Units'!$E$21) ->  | AE34: =IF(ISERROR(Y34*100000000/'Calc-Units'!$D$21)," ",Y34*100000000/'Calc-Units'!$D$21) ->  | AF34: =IF(ISERROR(Z34*100000000/'Calc-Units'!$C$21)," ",Z34*100000000/'Calc-Units'!$C$21) ->  | AG34: =IF(ISERROR(AA34*100000000/'Calc-Units'!$C$21)," ",AA34*100000000/'Calc-Units'!$C$21) ->  | AI34: 0 | AJ34: 0 | AK34: 25.3 | AT34: =IF(ISERROR(AN34*100000000/'Calc-Units'!$E$21)," ",AN34*100000000/'Calc-Units'!$E$21) ->  | AU34: =IF(ISERROR(AO34*100000000/'Calc-Units'!$D$21)," ",AO34*100000000/'Calc-Units'!$D$21) ->  | AV34: =IF(ISERROR(AP34*100000000/'Calc-Units'!$C$21)," ",AP34*100000000/'Calc-Units'!$C$21) ->  | AW34: =IF(ISERROR(AQ34*100000000/'Calc-Units'!$C$21)," ",AQ34*100000000/'Calc-Units'!$C$21) -> 
C35: Network Rates | D35: ='RRP 1.3'!AG$12 -> 15.1 | E35: 0 | F35: 0 | G35: 0 | H35: 0 | I35: 15.1 | K35: Do not allocate | L35: =IF(ISERROR(VLOOKUP($K35,'Calc-Drivers'!$B$17:$F$27,L$42,FALSE))," ",VLOOKUP($K35,'Calc-Drivers'!$B$17:$F$27,L$42,FALSE)) ->  | M35: =IF(ISERROR(VLOOKUP($K35,'Calc-Drivers'!$B$17:$F$27,M$42,FALSE))," ",VLOOKUP($K35,'Calc-Drivers'!$B$17:$F$27,M$42,FALSE)) ->  | N35: =IF(ISERROR(VLOOKUP($K35,'Calc-Drivers'!$B$17:$F$27,N$42,FALSE))," ",VLOOKUP($K35,'Calc-Drivers'!$B$17:$F$27,N$42,FALSE)) ->  | O35: =IF(ISERROR(VLOOKUP($K35,'Calc-Drivers'!$B$17:$F$27,O$42,FALSE))," ",VLOOKUP($K35,'Calc-Drivers'!$B$17:$F$27,O$42,FALSE)) ->  | AD35: =IF(ISERROR(X35*100000000/'Calc-Units'!$E$21)," ",X35*100000000/'Calc-Units'!$E$21) ->  | AE35: =IF(ISERROR(Y35*100000000/'Calc-Units'!$D$21)," ",Y35*100000000/'Calc-Units'!$D$21) ->  | AF35: =IF(ISERROR(Z35*100000000/'Calc-Units'!$C$21)," ",Z35*100000000/'Calc-Units'!$C$21) ->  | AG35: =IF(ISERROR(AA35*100000000/'Calc-Units'!$C$21)," ",AA35*100000000/'Calc-Units'!$C$21) ->  | AI35: 0 | AJ35: 0 | AK35: 15.1 | AT35: =IF(ISERROR(AN35*100000000/'Calc-Units'!$E$21)," ",AN35*100000000/'Calc-Units'!$E$21) ->  | AU35: =IF(ISERROR(AO35*100000000/'Calc-Units'!$D$21)," ",AO35*100000000/'Calc-Units'!$D$21) ->  | AV35: =IF(ISERROR(AP35*100000000/'Calc-Units'!$C$21)," ",AP35*100000000/'Calc-Units'!$C$21) ->  | AW35: =IF(ISERROR(AQ35*100000000/'Calc-Units'!$C$21)," ",AQ35*100000000/'Calc-Units'!$C$21) -> 
C36: Transmission Exit Charges | D36: ='RRP 1.3'!AH$12 -> 4.2 | E36: 0 | F36: 0 | G36: 0 | H36: 0 | I36: 4.2 | K36: Do not allocate | L36: =IF(ISERROR(VLOOKUP($K36,'Calc-Drivers'!$B$17:$F$27,L$42,FALSE))," ",VLOOKUP($K36,'Calc-Drivers'!$B$17:$F$27,L$42,FALSE)) ->  | M36: =IF(ISERROR(VLOOKUP($K36,'Calc-Drivers'!$B$17:$F$27,M$42,FALSE))," ",VLOOKUP($K36,'Calc-Drivers'!$B$17:$F$27,M$42,FALSE)) ->  | N36: =IF(ISERROR(VLOOKUP($K36,'Calc-Drivers'!$B$17:$F$27,N$42,FALSE))," ",VLOOKUP($K36,'Calc-Drivers'!$B$17:$F$27,N$42,FALSE)) ->  | O36: =IF(ISERROR(VLOOKUP($K36,'Calc-Drivers'!$B$17:$F$27,O$42,FALSE))," ",VLOOKUP($K36,'Calc-Drivers'!$B$17:$F$27,O$42,FALSE)) ->  | AD36: =IF(ISERROR(X36*100000000/'Calc-Units'!$E$21)," ",X36*100000000/'Calc-Units'!$E$21) ->  | AE36: =IF(ISERROR(Y36*100000000/'Calc-Units'!$D$21)," ",Y36*100000000/'Calc-Units'!$D$21) ->  | AF36: =IF(ISERROR(Z36*100000000/'Calc-Units'!$C$21)," ",Z36*100000000/'Calc-Units'!$C$21) ->  | AG36: =IF(ISERROR(AA36*100000000/'Calc-Units'!$C$21)," ",AA36*100000000/'Calc-Units'!$C$21) ->  | AI36: 0 | AJ36: 0 | AK36: 4.2 | AT36: =IF(ISERROR(AN36*100000000/'Calc-Units'!$E$21)," ",AN36*100000000/'Calc-Units'!$E$21) ->  | AU36: =IF(ISERROR(AO36*100000000/'Calc-Units'!$D$21)," ",AO36*100000000/'Calc-Units'!$D$21) ->  | AV36: =IF(ISERROR(AP36*100000000/'Calc-Units'!$C$21)," ",AP36*100000000/'Calc-Units'!$C$21) ->  | AW36: =IF(ISERROR(AQ36*100000000/'Calc-Units'!$C$21)," ",AQ36*100000000/'Calc-Units'!$C$21) -> 
C37: Pension deficit repair payments by related parties (note 2) | D37: ='RRP 1.3'!AI$12 -> 0 | E37: 0 | F37: 0 | G37: 0 | H37: 0 | I37: 0 | K37: Do not allocate | L37: =IF(ISERROR(VLOOKUP($K37,'Calc-Drivers'!$B$17:$F$27,L$42,FALSE))," ",VLOOKUP($K37,'Calc-Drivers'!$B$17:$F$27,L$42,FALSE)) ->  | M37: =IF(ISERROR(VLOOKUP($K37,'Calc-Drivers'!$B$17:$F$27,M$42,FALSE))," ",VLOOKUP($K37,'Calc-Drivers'!$B$17:$F$27,M$42,FALSE)) ->  | N37: =IF(ISERROR(VLOOKUP($K37,'Calc-Drivers'!$B$17:$F$27,N$42,FALSE))," ",VLOOKUP($K37,'Calc-Drivers'!$B$17:$F$27,N$42,FALSE)) ->  | O37: =IF(ISERROR(VLOOKUP($K37,'Calc-Drivers'!$B$17:$F$27,O$42,FALSE))," ",VLOOKUP($K37,'Calc-Drivers'!$B$17:$F$27,O$42,FALSE)) ->  | AD37: =IF(ISERROR(X37*100000000/'Calc-Units'!$E$21)," ",X37*100000000/'Calc-Units'!$E$21) ->  | AE37: =IF(ISERROR(Y37*100000000/'Calc-Units'!$D$21)," ",Y37*100000000/'Calc-Units'!$D$21) ->  | AF37: =IF(ISERROR(Z37*100000000/'Calc-Units'!$C$21)," ",Z37*100000000/'Calc-Units'!$C$21) ->  | AG37: =IF(ISERROR(AA37*100000000/'Calc-Units'!$C$21)," ",AA37*100000000/'Calc-Units'!$C$21) ->  | AI37: 0 | AJ37: 0 | AK37: 0 | AT37: =IF(ISERROR(AN37*100000000/'Calc-Units'!$E$21)," ",AN37*100000000/'Calc-Units'!$E$21) ->  | AU37: =IF(ISERROR(AO37*100000000/'Calc-Units'!$D$21)," ",AO37*100000000/'Calc-Units'!$D$21) ->  | AV37: =IF(ISERROR(AP37*100000000/'Calc-Units'!$C$21)," ",AP37*100000000/'Calc-Units'!$C$21) ->  | AW37: =IF(ISERROR(AQ37*100000000/'Calc-Units'!$C$21)," ",AQ37*100000000/'Calc-Units'!$C$21) -> 
C38: Non activity costs and reconciling amounts (note 3) | D38: ='RRP 1.3'!AJ$12 -> -2.9 | E38: 0 | F38: 0 | G38: 0 | H38: 0 | I38: -2.9 | K38: Do not allocate | L38: =IF(ISERROR(VLOOKUP($K38,'Calc-Drivers'!$B$17:$F$27,L$42,FALSE))," ",VLOOKUP($K38,'Calc-Drivers'!$B$17:$F$27,L$42,FALSE)) ->  | M38: =IF(ISERROR(VLOOKUP($K38,'Calc-Drivers'!$B$17:$F$27,M$42,FALSE))," ",VLOOKUP($K38,'Calc-Drivers'!$B$17:$F$27,M$42,FALSE)) ->  | N38: =IF(ISERROR(VLOOKUP($K38,'Calc-Drivers'!$B$17:$F$27,N$42,FALSE))," ",VLOOKUP($K38,'Calc-Drivers'!$B$17:$F$27,N$42,FALSE)) ->  | O38: =IF(ISERROR(VLOOKUP($K38,'Calc-Drivers'!$B$17:$F$27,O$42,FALSE))," ",VLOOKUP($K38,'Calc-Drivers'!$B$17:$F$27,O$42,FALSE)) ->  | AD38: =IF(ISERROR(X38*100000000/'Calc-Units'!$E$21)," ",X38*100000000/'Calc-Units'!$E$21) ->  | AE38: =IF(ISERROR(Y38*100000000/'Calc-Units'!$D$21)," ",Y38*100000000/'Calc-Units'!$D$21) ->  | AF38: =IF(ISERROR(Z38*100000000/'Calc-Units'!$C$21)," ",Z38*100000000/'Calc-Units'!$C$21) ->  | AG38: =IF(ISERROR(AA38*100000000/'Calc-Units'!$C$21)," ",AA38*100000000/'Calc-Units'!$C$21) ->  | AI38: 0 | AJ38: 0 | AK38: -2.9 | AT38: =IF(ISERROR(AN38*100000000/'Calc-Units'!$E$21)," ",AN38*100000000/'Calc-Units'!$E$21) ->  | AU38: =IF(ISERROR(AO38*100000000/'Calc-Units'!$D$21)," ",AO38*100000000/'Calc-Units'!$D$21) ->  | AV38: =IF(ISERROR(AP38*100000000/'Calc-Units'!$C$21)," ",AP38*100000000/'Calc-Units'!$C$21) ->  | AW38: =IF(ISERROR(AQ38*100000000/'Calc-Units'!$C$21)," ",AQ38*100000000/'Calc-Units'!$C$21) -> 
C39: Total Annual Operating & Capital Expenditure per Regulatory Accounts | D39: =SUM(D6:D38) -> 162.7 | E39: =SUM(E6:E38) -> 16.72977709 | F39: =SUM(F6:F38) -> 23.36306934 | G39: =SUM(G6:G38) -> 6 | H39: =SUM(H6:H38) -> 2.965518117 | I39: 113.6416355 | Q39: Total | R39: =SUM(R6:R38) -> 7.643116529 | S39: =SUM(S6:S38) -> 9.639443232 | T39: =SUM(T6:T38) -> 2.359184069 | U39: =SUM(U6:U38) -> 14.99989163 | W39: Total all network tiers | X39: =SUM(X40:AA40) -> 83.7 | AC39: Total all network tiers | AD39: =SUM(AD40:AG40) -> 0.9043864939 | AI39: Total | AJ39: =SUM(AJ6:AJ38) -> 65.41873 | AK39: =SUM(AK6:AK38) -> 97.28127 | AM39: Total all network tiers | AN39: =SUM(AN40:AQ40) -> 30.6918 | AS39: Total all network tiers | AT39: =SUM(AT40:AW40) -> 0.3566911891
W40: Total by network tiers | X40: =SUM(X6:X38) -> 24.37289362 | Y40: =SUM(Y6:Y38) -> 33.00251257 | Z40: =SUM(Z6:Z38) -> 8.359184069 | AA40: =SUM(AA6:AA38) -> 17.96540974 | AC40: Total by network tiers | AD40: =SUM(AD6:AD38) -> 0.1962918206 | AE40: =SUM(AE6:AE38) -> 0.3432963236 | AF40: =SUM(AF6:AF38) -> 0.1158390733 | AG40: =SUM(AG6:AG38) -> 0.2489592764 | AM40: Total by network tiers | AN40: =SUM(AN6:AN38) -> 6.542099291 | AO40: =SUM(AO6:AO38) -> 8.871523383 | AP40: =SUM(AP6:AP38) -> 2.562846124 | AQ40: =SUM(AQ6:AQ38) -> 12.7153312 | AS40: Total by network tiers | AT40: =SUM(AT6:AT38) -> 0.05268806406 | AU40: =SUM(AU6:AU38) -> 0.09228271197 | AV40: =SUM(AV6:AV38) -> 0.03551515527 | AW40: =SUM(AW6:AW38) -> 0.1762052578
W41: % | X41: =X40/$X$39 -> 0.2911934721 | Y41: =Y40/$X$39 -> 0.3942952517 | Z41: =Z40/$X$39 -> 0.09987077741 | AA41: =AA40/$X$39 -> 0.2146404987 | AC41: % | AD41: =AD40/$AD$39 -> 0.2170441752 | AE41: =AE40/$AD$39 -> 0.3795902812 | AF41: =AF40/$AD$39 -> 0.1280858064 | AG41: =AG40/$AD$39 -> 0.2752797372 | AM41: % | AN41: =AN40/$AN$39 -> 0.2131546306 | AO41: =AO40/$AN$39 -> 0.2890519091 | AP41: =AP40/$AN$39 -> 0.08350263341 | AQ41: =AQ40/$AN$39 -> 0.4142908269 | AS41: % | AT41: =AT40/$AT$39 -> 0.1477133881 | AU41: =AU40/$AT$39 -> 0.2587187876 | AV41: =AV40/$AT$39 -> 0.09956835592 | AW41: =AW40/$AT$39 -> 0.4939994684
K42: Vlookup Values: | L42: 5 | M42: 4 | N42: 3 | O42: 2 | AM42: THESE % ARE USED TO ALLOCATE PRICE CONTROL OPEX
W44: Step 4.a. calculate proportion of cost classified as direct costs
W46: Total direct+other | X46: =SUMIF(X6:X11,">0",X6:X11)+SUMIF(X27:X38,">0",X27:X38) -> 17.53324505 | Y46: =SUMIF(Y6:Y11,">0",Y6:Y11)+SUMIF(Y27:Y38,">0",Y27:Y38) -> 24.37639731 | Z46: =SUMIF(Z6:Z11,">0",Z6:Z11)+SUMIF(Z27:Z38,">0",Z27:Z38) -> 6.251979473 | AA46: =SUMIF(AA6:AA11,">0",AA6:AA11)+SUMIF(AA27:AA38,">0",AA27:AA38) -> 13.54235294 | AB46: Max of zero or total from each catergory
W47: Total indirect | X47: =SUMIF(X12:X27,">0",X12:X27) -> 6.839648569 | Y47: =SUMIF(Y12:Y27,">0",Y12:Y27) -> 8.626115258 | Z47: =SUMIF(Z12:Z27,">0",Z12:Z27) -> 2.111179371 | AA47: =SUMIF(AA12:AA27,">0",AA12:AA27) -> 13.4230568 | AB47: Max of zero or total from each catergory
W48: % direct+other | X48: =X46/(X47+X46) -> 0.7193747826 | Y48: =Y46/(Y47+Y46) -> 0.7386224688 | Z48: =Z46/(Z47+Z46) -> 0.7475619667 | AA48: =AA46/(AA47+AA46) -> 0.5022120217
W49: % indirect | X49: =X47/(X46+X47) -> 0.2806252174 | Y49: =Y47/(Y46+Y47) -> 0.2613775312 | Z49: =Z47/(Z46+Z47) -> 0.2524380333 | AA49: =AA47/(AA46+AA47) -> 0.4977879783

Sheet Calc-Units
A1: 103. Units distributed (GWh) from RRP table 5.1 | D1: Index
B2: Units distributed (GWh) from RRP table 5.1
A3: Units distributed at LV | B3: ='RRP 5.1'!G36 -> 7216.204194
A4: Units distributed at HV | B4: ='RRP 5.1'!G35 -> 2482.108353
A5: Units distributed at EHV+ | B5: ='RRP 5.1'!G34 -> 2954.837938
A6: Losses | B6: ='RRP 5.1'!G40 -> 675.237
A8: 104. Estimated line loss adjustment factors relative to LV
B9: LV services | C9: LV | D9: HV | E9: EHV | F9: 132kV
A10: Units distributed at LV | B10: 1 | C10: 1 | D10: 1 | E10: 1 | F10: 1
A11: Units distributed at HV | B11: 0 | C11: 0 | D11: =(1+$B$6/($B$3+$B$4/2+$B$5/4)/2)/(1+$B$6/($B$3+$B$4/2+$B$5/4)) -> 0.9657976402 | E11: =(1+$B$6/($B$3+$B$4/2+$B$5/4)/2)/(1+$B$6/($B$3+$B$4/2+$B$5/4)) -> 0.9657976402 | F11: =(1+$B$6/($B$3+$B$4/2+$B$5/4)/2)/(1+$B$6/($B$3+$B$4/2+$B$5/4)) -> 0.9657976402
A12: Units distributed at EHV+ | B12: 0 | C12: 0 | D12: 0 | E12: =(1+$B$6/($B$3+$B$4/2+$B$5/4)/4)/(1+$B$6/($B$3+$B$4/2+$B$5/4)) -> 0.9486964603 | F12: =(1+$B$6/($B$3+$B$4/2+$B$5/4)/4)/(1+$B$6/($B$3+$B$4/2+$B$5/4)) -> 0.9486964603
B19: LV services | C19: LV | D19: HV | E19: EHV | F19: 132kV
A20: Units (GWh) flowing through each level, loss-adjusted to LV | B20: =SUMPRODUCT(B$10:B$12,$B$3:$B$5) -> 7216.204194 | C20: =SUMPRODUCT(C$10:C$12,$B$3:$B$5) -> 7216.204194 | D20: =SUMPRODUCT(D$10:D$12,$B$3:$B$5) -> 9613.418585 | E20: =SUMPRODUCT(E$10:E$12,$B$3:$B$5) -> 12416.66288 | F20: =SUMPRODUCT(F$10:F$12,$B$3:$B$5) -> 12416.66288
A21: Units (kWh) flowing through each level, loss-adjusted to LV | B21: =B20*1000000 -> 7216204194 | C21: =C20*1000000 -> 7216204194 | D21: =D20*1000000 -> 9613418585 | E21: =E20*1000000 -> 1.241666288e+10 | F21: =F20*1000000 -> 1.241666288e+10

Sheet Calc-Drivers
A1: Drivers - LV, HV, EHV split | H1: Index
B3: Category | C3: LV | D3: HV | E3: EHV | G3: Source
B4: Net Capex | C4: ='Calc-Net capex'!$D$6 -> 0.1855893446 | D4: ='Calc-Net capex'!$D$7 -> 0.4371811048 | E4: ='Calc-Net capex'!$D$8+'Calc-Net capex'!$D$9 -> 0.3772295506 | G4: FBPQ capex - see "Calc Net capex"
B5: Customers | C5: 1 | D5: 0 | E5: 0 | G5: Assumption
B6: Network Length | C6: ='RRP 5.1'!$G$64/'RRP 5.1'!$G$65 -> 0.4007425392 | D6: ='RRP 5.1'!$G$63/'RRP 5.1'!$G$65 -> 0.5056168041 | E6: =('RRP 5.1'!$G$61+'RRP 5.1'!$G$62)/'RRP 5.1'!$G$65 -> 0.09364065677 | G6: RRP table 5.1
B7: Substations | C7: =0/'RRP 5.1'!$G$73 -> 0 | D7: =('RRP 5.1'!$G$71+'RRP 5.1'!$G$72)/'RRP 5.1'!$G$73 -> 0.9931303473 | E7: =('RRP 5.1'!$G$68+'RRP 5.1'!$G$69+'RRP 5.1'!$G$70)/'RRP 5.1'!$G$73 -> 0.006869652743 | G7: RRP table 5.1
B8: Transmission Exit Charges | C8: 0 | D8: 0 | E8: 1 | G8: Assumption
B9: MEAV | C9: ='Calc-MEAV'!D6 -> 0.4330018323 | D9: ='Calc-MEAV'!D7 -> 0.3463643429 | E9: ='Calc-MEAV'!D8+'Calc-MEAV'!D9 -> 0.2206338248 | G9: FBPQ capex - see "Calc MEAV"
B10: EHV only | C10: 0 | D10: 0 | E10: 1 | G10: Assumption
B11: LV only | C11: 1 | D11: 0 | E11: 0 | G11: Assumption
B12: HV only | C12: 0 | D12: 1 | E12: 0 | G12: Assumption
A14: Drivers - LV, LV/HV, HV, EHV split
B16: Category | C16: LV | D16: LV/HV | E16: HV | F16: EHV | G16: Source
B17: Net Capex | C17: ='Calc-Net capex'!H6 -> 0.1855893446 | D17: ='Calc-Net capex'!H7 -> 0.08683873352 | E17: ='Calc-Net capex'!H8 -> 0.3503423713 | F17: ='Calc-Net capex'!$D$8+'Calc-Net capex'!$D$9 -> 0.3772295506 | G17: FBPQ capex - see "Calc Net capex"
B18: No. of Customers | C18: 1 | D18: 0 | E18: 0 | F18: 0 | G18: Assumption
B19: Network Length | C19: ='RRP 5.1'!$G$64/'RRP 5.1'!$G$65 -> 0.4007425392 | D19: 0 | E19: ='RRP 5.1'!$G$63/'RRP 5.1'!$G$65 -> 0.5056168041 | F19: =('RRP 5.1'!$G$61+'RRP 5.1'!$G$62)/'RRP 5.1'!$G$65 -> 0.09364065677 | G19: RRP table 5.1
B20: No. of Substations | C20: =0/'RRP 5.1'!$G$73 -> 0 | D20: 0 | E20: =('RRP 5.1'!$G$71+'RRP 5.1'!$G$72)/'RRP 5.1'!$G$73 -> 0.9931303473 | F20: =('RRP 5.1'!$G$68+'RRP 5.1'!$G$69+'RRP 5.1'!$G$70)/'RRP 5.1'!$G$73 -> 0.006869652743 | G20: RRP table 5.1
B21: Transmission Exit Charges | C21: 0 | D21: 0 | E21: 0 | F21: 1 | G21: Assumption
B22: MEAV | C22: ='Calc-MEAV'!H6 -> 0.4330018323 | D22: ='Calc-MEAV'!H7 -> 0.06810256034 | E22: ='Calc-MEAV'!H8 -> 0.2782617825 | F22: ='Calc-MEAV'!H9+'Calc-MEAV'!H10 -> 0.2206338248 | G22: FBPQ capex - see "Calc MEAV"
B23: MEAV excl services | C23: ='Calc-MEAV'!L6 -> 0.324457538 | D23: ='Calc-MEAV'!L7 -> 0.105290971 | E23: ='Calc-MEAV'!L8 -> 0.3073802407 | F23: ='Calc-MEAV'!L9+'Calc-MEAV'!L10 -> 0.2628712502 | G23: FBPQ capex - see "Calc MEAV"
B24: MEAV excl services and 50% LV network | C24: ='Calc-MEAV'!Q3 -> 0 | D24: ='Calc-MEAV'!Q4 -> 0 | E24: ='Calc-MEAV'!Q5 -> % of Total | F24: ='Calc-MEAV'!Q6+'Calc-MEAV'!Q7 -> 0.3193231399 | G24: FBPQ capex - see "Calc MEAV"
B25: EHV only | C25: 0 | D25: 0 | E25: 0 | F25: 1 | G25: Assumption
B26: LV only | C26: 1 | D26: 0 | E26: 0 | F26: 0 | G26: Assumption
B27: HV only | C27: 0 | D27: 0 | E27: 1 | F27: 0 | G27: Assumption

Sheet Calc-MEAV
A1: MEAV by Voltage Level | F1: Index
B3: MEAV - LV, HV, EHV, 132kV split | F3: MEAV - LV, LV/HV, HV, EHV, 132kV split | J3: MEAV - LV (excl. services), LV/HV, HV, EHV, 132kV split | O3: MEAV - LV (excl. services + 50%LV), LV/HV, HV, EHV, 132kV split
B4: Sum of MEAV of asset classified in voltage tier (as calculated below) | F4: Sum of MEAV of asset classified in voltage tier | J4: Sum of MEAV of asset classified in voltage tier (as calculated below) | O4: Sum of MEAV of asset classified in voltage tier (as calculated below)
C5: £m | D5: % of Total | G5: £m | H5: % of Total | K5: £m | L5: % of Total | P5: £m | Q5: % of Total
B6: LV | C6: =SUM(I20:I39) -> 1763568.725 | D6: =C6/$C$10 -> 0.4330018323 | F6: LV | G6: =SUM(I20:I39) -> 1763568.725 | H6: =G6/$G$11 -> 0.4330018323 | J6: LV | K6: =SUM(I20:I39)-I21-I30 -> 1109148.065 | L6: =K6/$K$11 -> 0.324457538 | O6: LV | P6: =(SUM(I20:I39)-I21-I30)*0.5 -> 554574.0324 | Q6: =P6/P$11 -> 0.1936432799
B7: HV | C7: =SUM(I42:I79)+SUM(I158:I163)+SUM(I153:I154) -> 1410703.782 | D7: =C7/$C$10 -> 0.3463643429 | F7: LV/HV | G7: =SUM(I62:I63)+SUM(I69:I70)+SUM(I75:I78) -> 277374.22 | H7: =G7/$G$11 -> 0.06810256034 | J7: LV/HV | K7: =SUM(I59:I72)+SUM(I75:I78) -> 359933.93 | L7: =K7/$K$11 -> 0.105290971 | O7: LV/HV | P7: =SUM(I59:I72)+SUM(I75:I78) -> 359933.93 | Q7: =P7/P$11 -> 0.12567986
B8: EHV | C8: =SUM(I81:I120)+SUM(I149:I150) -> 323753.8937 | D8: =C8/$C$10 -> 0.07948997236 | F8: HV | G8: =SUM(I42:I56)+SUM(I59:I61)+SUM(I64:I68)+SUM(I71:I72)+SUM(I158:I163)+SUM(I153:I154) -> 1133329.562 | H8: =G8/$G$11 -> 0.2782617825 | J8: HV | K8: =SUM(I42:I56)+SUM(I158:I163)+SUM(I153:I154) -> 1050769.852 | L8: =K8/$K$11 -> 0.3073802407 | O8: HV | P8: =SUM(I42:I56)+SUM(I158:I163)+SUM(I153:I154) -> 1050769.852 | Q8: =P8/P$11 -> 0.3669023587
B9: 132 kV | C9: =SUM(I121:I146) -> 574863.35 | D9: =C9/$C$10 -> 0.1411438525 | E9: Check | F9: EHV | G9: =SUM(I81:I120)+SUM(I149:I150) -> 323753.8937 | H9: =G9/$G$11 -> 0.07948997236 | J9: EHV | K9: =SUM(I81:I120)+SUM(I149:I150) -> 323753.8937 | L9: =K9/$K$11 -> 0.09470727542 | O9: EHV | P9: =SUM(I81:I120)+SUM(I149:I150) -> 323753.8937 | Q9: =P9/P$11 -> 0.1130467029
B10: Total | C10: =SUM(C6:C9) -> 4072889.75 | D10: =SUM(D6:D9) -> 1 | E10: =IF(C10=$I$164,"OK", "error") -> OK | F10: 132 kV | G10: =SUM(I121:I146) -> 574863.35 | H10: =G10/$G$11 -> 0.1411438525 | I10: Check | J10: 132 kV | K10: =SUM(I121:I146) -> 574863.35 | L10: =K10/$K$11 -> 0.1681639748 | M10: Check | O10: 132 kV | P10: =SUM(I121:I146) -> 574863.35 | Q10: =P10/P$11 -> 0.2007277984 | R10: Check
F11: Total | G11: =SUM(G6:G10) -> 4072889.75 | H11: =SUM(H6:H10) -> 1 | I11: =IF(G11=$I$164,"OK", "error") -> OK | J11: Total | K11: =SUM(K6:K10) -> 3418469.09 | L11: =SUM(L6:L10) -> 1 | M11: =IF(K11=($I$164-I21-I30),"OK", "error") -> OK | O11: Total | P11: =SUM(P6:P10) -> 2863895.058 | Q11: =SUM(Q6:Q10) -> 1 | R11: =IF(P11=($I$164-I21-I30-(SUM(I20:I39)-I21-I30)*0.5),"OK", "error") -> OK
A14: MEAV Calculation = Replacement unit cost*FBPQ closing asset balance
C16: Asset categories | D16: Units | E16: DNO reported Unit Cost (£) | G16: Unit cost used in MEAV calculation (£) | H16: Closing DCPR asset Balance (units) | I16: MEAV (£)
E17: Sum of direct and indriect replacement unit cost from FBPQ C2 | F17: PB power numbers, if available | G17: Is DNO Unit cost if avaliable, otherwise PB power unit cost | H17: Closing asset balannce from FBPQ V4 | I17: Unit cost used in MEAV calculation*Closing DCPR asset Balance (units) | J17: Classification
A18: LV Network | L18: LV | M18: =SUMIF(J:J,L18,I:I) -> 1763568.725 | N18: =M18/M$25 -> 0.4330018323
B19: Overhead lines | J19: LV | L19: HV/LV | M19: =SUMIF(J:J,L19,I:I) -> 277374.22 | N19: =M19/M$25 -> 0.06810256034
C20: LV Main (OHL) | D20: km | E20: =IF(ISNUMBER('FBPQ C2'!J12),'FBPQ C2'!J12,IF(ISNUMBER('FBPQ C2'!I12),'FBPQ C2'!I12,"")) -> 19.99 | F20: DATA | G20: =IF(ISNUMBER(E20),E20,IF(H20>0,F20," ")) -> 19.99 | H20: =IF(ISBLANK('FBPQ T4'!E12)," ",'FBPQ T4'!AE12) -> 3192 | I20: =IF(ISERROR(G20*H20)," ",G20*H20) -> 63808.08 | J20: LV | L20: HV | M20: 1051814.732 | N20: 0.258247779
C21: LV Service (OHL) | D21: Each | E21: =IF(ISNUMBER('FBPQ C2'!J13),'FBPQ C2'!J13,IF(ISNUMBER('FBPQ C2'!I13),'FBPQ C2'!I13,"")) -> 0.32 | F21: DATA | G21: 0.32 | H21: =IF(ISBLANK('FBPQ T4'!E13)," ",'FBPQ T4'!AE13) -> 317000 | I21: =IF(ISERROR(G21*H21)," ",G21*H21) -> 101440 | J21: LV | L21: EHV/HV | M21: 160146.74 | N21: 0.03932017555
E22: =IF(ISNUMBER('FBPQ C2'!J14),'FBPQ C2'!J14,IF(ISNUMBER('FBPQ C2'!I14),'FBPQ C2'!I14,"")) ->  | G22: 0 | H22: =IF(ISBLANK('FBPQ T4'!E14)," ",'FBPQ T4'!AE14) ->  | J22: LV | L22: EHV | M22: 205131.4537 | N22: 0.05036508873
B23: Overhead lines - Support | E23: =IF(ISNUMBER('FBPQ C2'!J15),'FBPQ C2'!J15,IF(ISNUMBER('FBPQ C2'!I15),'FBPQ C2'!I15,"")) ->  | G23: 0 | H23: =IF(ISBLANK('FBPQ T4'!E15)," ",'FBPQ T4'!AE15) ->  | J23: LV | L23: 132kV/EHV | M23: 189323.98 | N23: 0.04648394423
C24: LV Support | D24: Each | E24: =IF(ISNUMBER('FBPQ C2'!J16),'FBPQ C2'!J16,IF(ISNUMBER('FBPQ C2'!I16),'FBPQ C2'!I16,"")) -> 1.92 | F24: DATA | G24: 1.92 | H24: =IF(ISBLANK('FBPQ T4'!E16)," ",'FBPQ T4'!AE16) -> 97546 | I24: 187288.32 | J24: LV | L24: 132kV | M24: 425529.9 | N24: 0.1044786199
E25: =IF(ISNUMBER('FBPQ C2'!J17),'FBPQ C2'!J17,IF(ISNUMBER('FBPQ C2'!I17),'FBPQ C2'!I17,"")) ->  | G25: 0 | H25: =IF(ISBLANK('FBPQ T4'!E17)," ",'FBPQ T4'!AE17) ->  | J25: LV | L25: All | M25: =SUM(M18:M24) -> 4072889.75 | N25: 1
B26: Underground cables | E26: =IF(ISNUMBER('FBPQ C2'!J18),'FBPQ C2'!J18,IF(ISNUMBER('FBPQ C2'!I18),'FBPQ C2'!I18,"")) ->  | G26: 0 | H26: =IF(ISBLANK('FBPQ T4'!E18)," ",'FBPQ T4'!AE18) ->  | J26: LV
C27: LV Main (UG Consac) | D27: km | E27: =IF(ISNUMBER('FBPQ C2'!J19),'FBPQ C2'!J19,IF(ISNUMBER('FBPQ C2'!I19),'FBPQ C2'!I19,"")) ->  | F27: DATA | H27: =IF(ISBLANK('FBPQ T4'!E19)," ",'FBPQ T4'!AE19) -> 0 | J27: LV
C28: LV Main (UG Plastic) | D28: km | E28: =IF(ISNUMBER('FBPQ C2'!J20),'FBPQ C2'!J20,IF(ISNUMBER('FBPQ C2'!I20),'FBPQ C2'!I20,"")) -> 67.22 | F28: DATA | G28: 67.22 | H28: =IF(ISBLANK('FBPQ T4'!E20)," ",'FBPQ T4'!AE20) -> 4772.09 | I28: 320779.8898 | J28: LV | L28: EHV/HV | M28: =M21 -> 160146.74 | N28: =M28/M$32 -> 0.1633930205
C29: LV Main (UG Paper) | D29: km | E29: =IF(ISNUMBER('FBPQ C2'!J21),'FBPQ C2'!J21,IF(ISNUMBER('FBPQ C2'!I21),'FBPQ C2'!I21,"")) -> 75.91 | F29: DATA | G29: 75.91 | H29: =IF(ISBLANK('FBPQ T4'!E21)," ",'FBPQ T4'!AE21) -> 6194.5 | I29: 470224.495 | J29: LV | L29: EHV | M29: =M22 -> 205131.4537 | N29: =M29/M$32 -> 0.2092896041
C30: LV Service (UG) | D30: Each | E30: =IF(ISNUMBER('FBPQ C2'!J22),'FBPQ C2'!J22,IF(ISNUMBER('FBPQ C2'!I22),'FBPQ C2'!I22,"")) -> 0.71 | F30: DATA | G30: 0.71 | H30: =IF(ISBLANK('FBPQ T4'!E22)," ",'FBPQ T4'!AE22) -> 778846 | I30: 552980.66 | J30: LV | L30: 132kV/EHV | M30: =M23 -> 189323.98 | N30: =M30/M$32 -> 0.1931617025
E31: =IF(ISNUMBER('FBPQ C2'!J23),'FBPQ C2'!J23,IF(ISNUMBER('FBPQ C2'!I23),'FBPQ C2'!I23,"")) ->  | G31: 0 | H31: =IF(ISBLANK('FBPQ T4'!E23)," ",'FBPQ T4'!AE23) ->  | J31: LV | L31: 132kV | M31: =M24 -> 425529.9 | N31: =M31/M$32 -> 0.4341556729
B32: Switchgear | E32: =IF(ISNUMBER('FBPQ C2'!J24),'FBPQ C2'!J24,IF(ISNUMBER('FBPQ C2'!I24),'FBPQ C2'!I24,"")) ->  | G32: 0 | H32: =IF(ISBLANK('FBPQ T4'!E24)," ",'FBPQ T4'!AE24) ->  | J32: LV | L32: All EHV | M32: =SUM(M28:M31) -> 980132.0737 | N32: =M32/M$32 -> 1
C33: LV Pillar (ID) | D33: Each | E33: =IF(ISNUMBER('FBPQ C2'!J25),'FBPQ C2'!J25,IF(ISNUMBER('FBPQ C2'!I25),'FBPQ C2'!I25,"")) -> 8.06 | F33: DATA | G33: 8.06 | H33: =IF(ISBLANK('FBPQ T4'!E25)," ",'FBPQ T4'!AE25) -> 4081 | I33: 32892.86 | J33: LV
C34: LV Pillar (OD) | D34: Each | E34: =IF(ISNUMBER('FBPQ C2'!J26),'FBPQ C2'!J26,IF(ISNUMBER('FBPQ C2'!I26),'FBPQ C2'!I26,"")) -> 8.47 | F34: DATA | G34: 8.47 | H34: =IF(ISBLANK('FBPQ T4'!E26)," ",'FBPQ T4'!AE26) -> 3785 | I34: 32058.95 | J34: LV
C35: LV Board (WM) | D35: Each | E35: =IF(ISNUMBER('FBPQ C2'!J27),'FBPQ C2'!J27,IF(ISNUMBER('FBPQ C2'!I27),'FBPQ C2'!I27,"")) -> 10.53 | F35: DATA | G35: 10.53 | H35: =IF(ISBLANK('FBPQ T4'!E27)," ",'FBPQ T4'!AE27) -> 199 | I35: 2095.47 | J35: LV
C36: LV UGB | D36: Each | E36: =IF(ISNUMBER('FBPQ C2'!J28),'FBPQ C2'!J28,IF(ISNUMBER('FBPQ C2'!I28),'FBPQ C2'!I28,"")) ->  | F36: DATA | G36: DATA | H36: =IF(ISBLANK('FBPQ T4'!E28)," ",'FBPQ T4'!AE28) -> 3645 | J36: LV
C37: LV Fuses (PM) | D37: Each | E37: =IF(ISNUMBER('FBPQ C2'!J29),'FBPQ C2'!J29,IF(ISNUMBER('FBPQ C2'!I29),'FBPQ C2'!I29,"")) ->  | F37: DATA | G37: DATA | H37: =IF(ISBLANK('FBPQ T4'!E29)," ",'FBPQ T4'!AE29) -> 31376 | J37: LV
C38: LV Fuses (TM) | D38: Each | E38: =IF(ISNUMBER('FBPQ C2'!J30),'FBPQ C2'!J30,IF(ISNUMBER('FBPQ C2'!I30),'FBPQ C2'!I30,"")) ->  | F38: DATA | G38: DATA | H38: =IF(ISBLANK('FBPQ T4'!E30)," ",'FBPQ T4'!AE30) -> 2653 | J38: LV
E39: =IF(ISNUMBER('FBPQ C2'!J31),'FBPQ C2'!J31,IF(ISNUMBER('FBPQ C2'!I31),'FBPQ C2'!I31,"")) ->  | G39: 0 | H39: =IF(ISBLANK('FBPQ T4'!E31)," ",'FBPQ T4'!AE31) ->  | J39: LV
A40: HV network | E40: =IF(ISNUMBER('FBPQ C2'!J32),'FBPQ C2'!J32,IF(ISNUMBER('FBPQ C2'!I32),'FBPQ C2'!I32,"")) ->  | G40: 0 | H40: =IF(ISBLANK('FBPQ T4'!E32)," ",'FBPQ T4'!AE32) -> 
B41: Overhead lines | E41: =IF(ISNUMBER('FBPQ C2'!J33),'FBPQ C2'!J33,IF(ISNUMBER('FBPQ C2'!I33),'FBPQ C2'!I33,"")) ->  | G41: 0 | H41: =IF(ISBLANK('FBPQ T4'!E33)," ",'FBPQ T4'!AE33) ->  | J41: HV
C42: 6.6/11 kV OHL (Open) | D42: km | E42: =IF(ISNUMBER('FBPQ C2'!J34),'FBPQ C2'!J34,IF(ISNUMBER('FBPQ C2'!I34),'FBPQ C2'!I34,"")) -> 20.82 | F42: DATA | G42: 20.82 | H42: =IF(ISBLANK('FBPQ T4'!E34)," ",'FBPQ T4'!AE34) -> 12207 | I42: 254149.74 | J42: HV
C43: 6.6/11 kV OHL (Covered) | D43: km | E43: =IF(ISNUMBER('FBPQ C2'!J35),'FBPQ C2'!J35,IF(ISNUMBER('FBPQ C2'!I35),'FBPQ C2'!I35,"")) ->  | F43: DATA | H43: =IF(ISBLANK('FBPQ T4'!E35)," ",'FBPQ T4'!AE35) -> 0 | J43: HV
C44: 20 kV OHL (Open) | D44: km | E44: =IF(ISNUMBER('FBPQ C2'!J36),'FBPQ C2'!J36,IF(ISNUMBER('FBPQ C2'!I36),'FBPQ C2'!I36,"")) ->  | F44: DATA | H44: =IF(ISBLANK('FBPQ T4'!E36)," ",'FBPQ T4'!AE36) -> 0 | J44: HV
C45: 20 kV OHL (Covered) | D45: km | E45: =IF(ISNUMBER('FBPQ C2'!J37),'FBPQ C2'!J37,IF(ISNUMBER('FBPQ C2'!I37),'FBPQ C2'!I37,"")) ->  | F45: DATA | H45: =IF(ISBLANK('FBPQ T4'!E37)," ",'FBPQ T4'!AE37) -> 0 | J45: HV
E46: =IF(ISNUMBER('FBPQ C2'!J38),'FBPQ C2'!J38,IF(ISNUMBER('FBPQ C2'!I38),'FBPQ C2'!I38,"")) ->  | G46: 0 | H46: =IF(ISBLANK('FBPQ T4'!E38)," ",'FBPQ T4'!AE38) ->  | J46: HV
B47: Overhead lines - Support | E47: =IF(ISNUMBER('FBPQ C2'!J39),'FBPQ C2'!J39,IF(ISNUMBER('FBPQ C2'!I39),'FBPQ C2'!I39,"")) ->  | G47: 0 | H47: =IF(ISBLANK('FBPQ T4'!E39)," ",'FBPQ T4'!AE39) ->  | J47: HV
C48: 6.6/11 kV Support | D48: Each | E48: =IF(ISNUMBER('FBPQ C2'!J40),'FBPQ C2'!J40,IF(ISNUMBER('FBPQ C2'!I40),'FBPQ C2'!I40,"")) -> 2.05 | F48: DATA | G48: 2.05 | H48: =IF(ISBLANK('FBPQ T4'!E40)," ",'FBPQ T4'!AE40) -> 162533 | I48: 333192.65 | J48: HV
C49: 20 kV Support | D49: Each | E49: =IF(ISNUMBER('FBPQ C2'!J41),'FBPQ C2'!J41,IF(ISNUMBER('FBPQ C2'!I41),'FBPQ C2'!I41,"")) ->  | F49: DATA | H49: =IF(ISBLANK('FBPQ T4'!E41)," ",'FBPQ T4'!AE41) -> 0 | J49: HV
E50: =IF(ISNUMBER('FBPQ C2'!J42),'FBPQ C2'!J42,IF(ISNUMBER('FBPQ C2'!I42),'FBPQ C2'!I42,"")) ->  | F50: DATA | G50: DATA | H50: =IF(ISBLANK('FBPQ T4'!E42)," ",'FBPQ T4'!AE42) ->  | J50: HV
B51: Underground cables (kms) | E51: =IF(ISNUMBER('FBPQ C2'!J43),'FBPQ C2'!J43,IF(ISNUMBER('FBPQ C2'!I43),'FBPQ C2'!I43,"")) ->  | G51: 0 | H51: =IF(ISBLANK('FBPQ T4'!E43)," ",'FBPQ T4'!AE43) ->  | J51: HV
C52: 6.6/11kV UG Cable | D52: km | E52: =IF(ISNUMBER('FBPQ C2'!J44),'FBPQ C2'!J44,IF(ISNUMBER('FBPQ C2'!I44),'FBPQ C2'!I44,"")) -> 84.36 | F52: DATA | G52: =IF(ISNUMBER(E52),E52,IF(H52>0,F52," ")) -> 84.36 | H52: =IF(ISBLANK('FBPQ T4'!E44)," ",'FBPQ T4'!AE44) -> 5461.7 | I52: 460749.012 | J52: HV
C53: 20kV UG Cable | D53: km | E53: =IF(ISNUMBER('FBPQ C2'!J45),'FBPQ C2'!J45,IF(ISNUMBER('FBPQ C2'!I45),'FBPQ C2'!I45,"")) ->  | F53: DATA | H53: =IF(ISBLANK('FBPQ T4'!E45)," ",'FBPQ T4'!AE45) -> 0 | J53: HV
E54: =IF(ISNUMBER('FBPQ C2'!J46),'FBPQ C2'!J46,IF(ISNUMBER('FBPQ C2'!I46),'FBPQ C2'!I46,"")) ->  | G54: 0 | H54: =IF(ISBLANK('FBPQ T4'!E46)," ",'FBPQ T4'!AE46) ->  | J54: HV
B55: Submarine cables (kms) | E55: =IF(ISNUMBER('FBPQ C2'!J47),'FBPQ C2'!J47,IF(ISNUMBER('FBPQ C2'!I47),'FBPQ C2'!I47,"")) ->  | G55: 0 | H55: =IF(ISBLANK('FBPQ T4'!E47)," ",'FBPQ T4'!AE47) ->  | J55: HV
C56: HV Sub Cable | D56: km | E56: =IF(ISNUMBER('FBPQ C2'!J48),'FBPQ C2'!J48,IF(ISNUMBER('FBPQ C2'!I48),'FBPQ C2'!I48,"")) -> 535.69 | F56: DATA | G56: 535.69 | H56: =IF(ISBLANK('FBPQ T4'!E48)," ",'FBPQ T4'!AE48) -> 5 | I56: 2678.45 | J56: HV
E57: =IF(ISNUMBER('FBPQ C2'!J49),'FBPQ C2'!J49,IF(ISNUMBER('FBPQ C2'!I49),'FBPQ C2'!I49,"")) ->  | F57: DATA | G57: DATA | H57: =IF(ISBLANK('FBPQ T4'!E49)," ",'FBPQ T4'!AE49) ->  | J57: HV
B58: Switchgear | E58: =IF(ISNUMBER('FBPQ C2'!J50),'FBPQ C2'!J50,IF(ISNUMBER('FBPQ C2'!I50),'FBPQ C2'!I50,"")) ->  | G58: 0 | H58: =IF(ISBLANK('FBPQ T4'!E50)," ",'FBPQ T4'!AE50) ->  | J58: HV
C59: 6.6/11 kV CB (PM) | D59: Each | E59: =IF(ISNUMBER('FBPQ C2'!J51),'FBPQ C2'!J51,IF(ISNUMBER('FBPQ C2'!I51),'FBPQ C2'!I51,"")) -> 8.31 | F59: DATA | G59: 8.31 | H59: =IF(ISBLANK('FBPQ T4'!E51)," ",'FBPQ T4'!AE51) -> 913 | I59: 7587.03 | J59: EHV/HV
C60: 6.6/11 kV CB (GM) | D60: Each | E60: =IF(ISNUMBER('FBPQ C2'!J52),'FBPQ C2'!J52,IF(ISNUMBER('FBPQ C2'!I52),'FBPQ C2'!I52,"")) -> 24.52 | F60: DATA | G60: 24.52 | H60: =IF(ISBLANK('FBPQ T4'!E52)," ",'FBPQ T4'!AE52) -> 3015 | I60: 73927.8 | J60: EHV/HV
C61: 6.6/11 kV Switch (PM) | D61: Each | E61: =IF(ISNUMBER('FBPQ C2'!J53),'FBPQ C2'!J53,IF(ISNUMBER('FBPQ C2'!I53),'FBPQ C2'!I53,"")) -> 7.06 | F61: DATA | G61: 7.06 | H61: =IF(ISBLANK('FBPQ T4'!E53)," ",'FBPQ T4'!AE53) -> 148 | I61: 1044.88 | J61: HV
C62: 6.6/11 kV Switch (GM) | D62: Each | E62: =IF(ISNUMBER('FBPQ C2'!J54),'FBPQ C2'!J54,IF(ISNUMBER('FBPQ C2'!I54),'FBPQ C2'!I54,"")) -> 10.15 | F62: DATA | G62: 10.15 | H62: =IF(ISBLANK('FBPQ T4'!E54)," ",'FBPQ T4'!AE54) -> 2330 | I62: 23649.5 | J62: HV/LV
C63: 6.6/11 kV RMU | D63: Each | E63: =IF(ISNUMBER('FBPQ C2'!J55),'FBPQ C2'!J55,IF(ISNUMBER('FBPQ C2'!I55),'FBPQ C2'!I55,"")) -> 12.28 | F63: DATA | G63: 12.28 | H63: =IF(ISBLANK('FBPQ T4'!E55)," ",'FBPQ T4'!AE55) -> 7526 | I63: 92419.28 | J63: HV/LV
C64: 6.6/11 kV Switchgear - Other (PM) | D64: Each | E64: =IF(ISNUMBER('FBPQ C2'!J56),'FBPQ C2'!J56,IF(ISNUMBER('FBPQ C2'!I56),'FBPQ C2'!I56,"")) ->  | F64: DATA | G64: DATA | H64: =IF(ISBLANK('FBPQ T4'!E56)," ",'FBPQ T4'!AE56) -> 5702 | J64: HV
C65: 6.6/11 kV Switchgear - Other (GM) | D65: Each | E65: =IF(ISNUMBER('FBPQ C2'!J57),'FBPQ C2'!J57,IF(ISNUMBER('FBPQ C2'!I57),'FBPQ C2'!I57,"")) ->  | F65: DATA | G65: DATA | H65: =IF(ISBLANK('FBPQ T4'!E57)," ",'FBPQ T4'!AE57) -> 1 | J65: HV
C66: 20 kV CB (PM) | D66: Each | E66: =IF(ISNUMBER('FBPQ C2'!J58),'FBPQ C2'!J58,IF(ISNUMBER('FBPQ C2'!I58),'FBPQ C2'!I58,"")) ->  | F66: DATA | H66: =IF(ISBLANK('FBPQ T4'!E58)," ",'FBPQ T4'!AE58) -> 0 | J66: EHV/HV
C67: 20 kV CB (GM) | D67: Each | E67: =IF(ISNUMBER('FBPQ C2'!J59),'FBPQ C2'!J59,IF(ISNUMBER('FBPQ C2'!I59),'FBPQ C2'!I59,"")) ->  | F67: DATA | H67: =IF(ISBLANK('FBPQ T4'!E59)," ",'FBPQ T4'!AE59) -> 0 | J67: EHV/HV
C68: 20 kV Switch (PM) | D68: Each | E68: =IF(ISNUMBER('FBPQ C2'!J60),'FBPQ C2'!J60,IF(ISNUMBER('FBPQ C2'!I60),'FBPQ C2'!I60,"")) ->  | F68: DATA | H68: =IF(ISBLANK('FBPQ T4'!E60)," ",'FBPQ T4'!AE60) -> 0 | J68: HV
C69: 20 kV Switch (GM) | D69: Each | E69: =IF(ISNUMBER('FBPQ C2'!J61),'FBPQ C2'!J61,IF(ISNUMBER('FBPQ C2'!I61),'FBPQ C2'!I61,"")) ->  | F69: DATA | H69: =IF(ISBLANK('FBPQ T4'!E61)," ",'FBPQ T4'!AE61) -> 0 | J69: HV/LV
C70: 20 kV RMU | D70: Each | E70: =IF(ISNUMBER('FBPQ C2'!J62),'FBPQ C2'!J62,IF(ISNUMBER('FBPQ C2'!I62),'FBPQ C2'!I62,"")) ->  | F70: DATA | H70: =IF(ISBLANK('FBPQ T4'!E62)," ",'FBPQ T4'!AE62) -> 0 | J70: HV/LV
C71: 20 kV Switchgear - Other (PM) | D71: Each | E71: =IF(ISNUMBER('FBPQ C2'!J63),'FBPQ C2'!J63,IF(ISNUMBER('FBPQ C2'!I63),'FBPQ C2'!I63,"")) ->  | F71: DATA | H71: =IF(ISBLANK('FBPQ T4'!E63)," ",'FBPQ T4'!AE63) -> 0 | J71: HV
C72: 20 kV Switchgear - Other (GM) | D72: Each | E72: =IF(ISNUMBER('FBPQ C2'!J64),'FBPQ C2'!J64,IF(ISNUMBER('FBPQ C2'!I64),'FBPQ C2'!I64,"")) ->  | F72: DATA | H72: =IF(ISBLANK('FBPQ T4'!E64)," ",'FBPQ T4'!AE64) -> 0 | J72: HV
E73: =IF(ISNUMBER('FBPQ C2'!J65),'FBPQ C2'!J65,IF(ISNUMBER('FBPQ C2'!I65),'FBPQ C2'!I65,"")) ->  | G73: 0 | H73: =IF(ISBLANK('FBPQ T4'!E65)," ",'FBPQ T4'!AE65) -> 
B74: Transformers | E74: =IF(ISNUMBER('FBPQ C2'!J66),'FBPQ C2'!J66,IF(ISNUMBER('FBPQ C2'!I66),'FBPQ C2'!I66,"")) ->  | G74: 0 | H74: =IF(ISBLANK('FBPQ T4'!E66)," ",'FBPQ T4'!AE66) -> 
C75: 6.6/11 kV Transformer (PM) | D75: Each | E75: =IF(ISNUMBER('FBPQ C2'!J67),'FBPQ C2'!J67,IF(ISNUMBER('FBPQ C2'!I67),'FBPQ C2'!I67,"")) -> 1.78 | F75: DATA | G75: 1.78 | H75: =IF(ISBLANK('FBPQ T4'!E67)," ",'FBPQ T4'!AE67) -> 31541 | I75: 56142.98 | J75: HV/LV
C76: 6.6/11 kV Transformer (GM) | D76: Each | E76: =IF(ISNUMBER('FBPQ C2'!J68),'FBPQ C2'!J68,IF(ISNUMBER('FBPQ C2'!I68),'FBPQ C2'!I68,"")) -> 12.82 | F76: DATA | G76: 12.82 | H76: =IF(ISBLANK('FBPQ T4'!E68)," ",'FBPQ T4'!AE68) -> 8203 | I76: 105162.46 | J76: HV/LV
C77: 20 kV Transformer (PM) | D77: Each | E77: =IF(ISNUMBER('FBPQ C2'!J69),'FBPQ C2'!J69,IF(ISNUMBER('FBPQ C2'!I69),'FBPQ C2'!I69,"")) ->  | F77: DATA | H77: =IF(ISBLANK('FBPQ T4'!E69)," ",'FBPQ T4'!AE69) -> 0 | J77: HV/LV
C78: 20 kV Transformer (GM) | D78: Each | E78: =IF(ISNUMBER('FBPQ C2'!J70),'FBPQ C2'!J70,IF(ISNUMBER('FBPQ C2'!I70),'FBPQ C2'!I70,"")) ->  | F78: DATA | H78: =IF(ISBLANK('FBPQ T4'!E70)," ",'FBPQ T4'!AE70) -> 0 | J78: HV/LV
E79: =IF(ISNUMBER('FBPQ C2'!J71),'FBPQ C2'!J71,IF(ISNUMBER('FBPQ C2'!I71),'FBPQ C2'!I71,"")) ->  | G79: 0 | H79: =IF(ISBLANK('FBPQ T4'!E71)," ",'FBPQ T4'!AE71) -> 
A80: EHV Network | E80: =IF(ISNUMBER('FBPQ C2'!J72),'FBPQ C2'!J72,IF(ISNUMBER('FBPQ C2'!I72),'FBPQ C2'!I72,"")) ->  | G80: 0 | H80: =IF(ISBLANK('FBPQ T4'!E72)," ",'FBPQ T4'!AE72) -> 
B81: Overhead lines | E81: =IF(ISNUMBER('FBPQ C2'!J73),'FBPQ C2'!J73,IF(ISNUMBER('FBPQ C2'!I73),'FBPQ C2'!I73,"")) ->  | G81: 0 | H81: =IF(ISBLANK('FBPQ T4'!E73)," ",'FBPQ T4'!AE73) -> 
C82: 33kV OHL (Pole Line) | D82: km | E82: =IF(ISNUMBER('FBPQ C2'!J74),'FBPQ C2'!J74,IF(ISNUMBER('FBPQ C2'!I74),'FBPQ C2'!I74,"")) -> 26.88 | F82: DATA | G82: 26.88 | H82: =IF(ISBLANK('FBPQ T4'!E74)," ",'FBPQ T4'!AE74) -> 1186 | I82: 31879.68 | J82: EHV
C83: 33kV OHL (Tower Line) | D83: km | E83: =IF(ISNUMBER('FBPQ C2'!J75),'FBPQ C2'!J75,IF(ISNUMBER('FBPQ C2'!I75),'FBPQ C2'!I75,"")) -> 33.67 | F83: DATA | G83: 33.67 | H83: =IF(ISBLANK('FBPQ T4'!E75)," ",'FBPQ T4'!AE75) -> 41 | I83: 1380.47 | J83: EHV
C84: 66kV OHL (Pole Line) | D84: km | E84: =IF(ISNUMBER('FBPQ C2'!J76),'FBPQ C2'!J76,IF(ISNUMBER('FBPQ C2'!I76),'FBPQ C2'!I76,"")) -> 41.55 | F84: DATA | G84: =IF(ISNUMBER(E84),E84,IF(H84>0,F84," ")) -> 41.55 | H84: =IF(ISBLANK('FBPQ T4'!E76)," ",'FBPQ T4'!AE76) -> 329 | I84: 13669.95 | J84: EHV
C85: 66kV OHL (Tower Line) | D85: km | E85: =IF(ISNUMBER('FBPQ C2'!J77),'FBPQ C2'!J77,IF(ISNUMBER('FBPQ C2'!I77),'FBPQ C2'!I77,"")) -> 52.49 | F85: DATA | G85: 52.49 | H85: =IF(ISBLANK('FBPQ T4'!E77)," ",'FBPQ T4'!AE77) -> 28 | I85: =IF(ISERROR(G85*H85)," ",G85*H85) -> 1469.72 | J85: EHV
E86: =IF(ISNUMBER('FBPQ C2'!J78),'FBPQ C2'!J78,IF(ISNUMBER('FBPQ C2'!I78),'FBPQ C2'!I78,"")) ->  | G86: 0 | H86: =IF(ISBLANK('FBPQ T4'!E78)," ",'FBPQ T4'!AE78) -> 
B87: Overhead lines - Support | E87: =IF(ISNUMBER('FBPQ C2'!J79),'FBPQ C2'!J79,IF(ISNUMBER('FBPQ C2'!I79),'FBPQ C2'!I79,"")) ->  | G87: 0 | H87: =IF(ISBLANK('FBPQ T4'!E79)," ",'FBPQ T4'!AE79) -> 
C88: 33kV Pole | D88: Each | E88: =IF(ISNUMBER('FBPQ C2'!J80),'FBPQ C2'!J80,IF(ISNUMBER('FBPQ C2'!I80),'FBPQ C2'!I80,"")) -> 2.61 | F88: DATA | G88: 2.61 | H88: =IF(ISBLANK('FBPQ T4'!E80)," ",'FBPQ T4'!AE80) -> 15324 | I88: 39995.64 | J88: EHV
C89: 33kV Tower | D89: Each | E89: =IF(ISNUMBER('FBPQ C2'!J81),'FBPQ C2'!J81,IF(ISNUMBER('FBPQ C2'!I81),'FBPQ C2'!I81,"")) -> 45.36 | F89: DATA | G89: 45.36 | H89: =IF(ISBLANK('FBPQ T4'!E81)," ",'FBPQ T4'!AE81) -> 190 | I89: 8618.4 | J89: EHV
C90: 66kV Pole | D90: Each | E90: =IF(ISNUMBER('FBPQ C2'!J82),'FBPQ C2'!J82,IF(ISNUMBER('FBPQ C2'!I82),'FBPQ C2'!I82,"")) -> 3.61 | F90: DATA | G90: 3.61 | H90: =IF(ISBLANK('FBPQ T4'!E82)," ",'FBPQ T4'!AE82) -> 4318 | I90: 15587.98 | J90: EHV
C91: 66kV Tower | D91: Each | E91: =IF(ISNUMBER('FBPQ C2'!J83),'FBPQ C2'!J83,IF(ISNUMBER('FBPQ C2'!I83),'FBPQ C2'!I83,"")) -> 74.53 | F91: DATA | G91: 74.53 | H91: =IF(ISBLANK('FBPQ T4'!E83)," ",'FBPQ T4'!AE83) -> 251 | I91: 18707.03 | J91: EHV
E92: =IF(ISNUMBER('FBPQ C2'!J84),'FBPQ C2'!J84,IF(ISNUMBER('FBPQ C2'!I84),'FBPQ C2'!I84,"")) ->  | G92: 0 | H92: =IF(ISBLANK('FBPQ T4'!E84)," ",'FBPQ T4'!AE84) -> 
B93: Underground cables (kms) | E93: =IF(ISNUMBER('FBPQ C2'!J85),'FBPQ C2'!J85,IF(ISNUMBER('FBPQ C2'!I85),'FBPQ C2'!I85,"")) ->  | G93: 0 | H93: =IF(ISBLANK('FBPQ T4'!E85)," ",'FBPQ T4'!AE85) -> 
C94: 33kV UG Cable (Non Pressurised) | D94: km | E94: =IF(ISNUMBER('FBPQ C2'!J86),'FBPQ C2'!J86,IF(ISNUMBER('FBPQ C2'!I86),'FBPQ C2'!I86,"")) -> 173.04 | F94: DATA | G94: 173.04 | H94: =IF(ISBLANK('FBPQ T4'!E86)," ",'FBPQ T4'!AE86) -> 386.84 | I94: 66938.7936 | J94: EHV
C95: 33kV UG Cable (Oil) | D95: km | E95: =IF(ISNUMBER('FBPQ C2'!J87),'FBPQ C2'!J87,IF(ISNUMBER('FBPQ C2'!I87),'FBPQ C2'!I87,"")) -> 152.89 | F95: DATA | G95: 152.89 | H95: =IF(ISBLANK('FBPQ T4'!E87)," ",'FBPQ T4'!AE87) -> 0 | I95: 0 | J95: EHV
C96: 33kV UG Cable (Gas) | D96: km | E96: =IF(ISNUMBER('FBPQ C2'!J88),'FBPQ C2'!J88,IF(ISNUMBER('FBPQ C2'!I88),'FBPQ C2'!I88,"")) -> 173.42 | F96: DATA | G96: 173.42 | H96: =IF(ISBLANK('FBPQ T4'!E88)," ",'FBPQ T4'!AE88) -> 8.124 | I96: 1408.86408 | J96: EHV
C97: 66kV UG Cable (Non Pressurised) | D97: km | E97: =IF(ISNUMBER('FBPQ C2'!J89),'FBPQ C2'!J89,IF(ISNUMBER('FBPQ C2'!I89),'FBPQ C2'!I89,"")) -> 444.45 | F97: DATA | G97: 444.45 | H97: =IF(ISBLANK('FBPQ T4'!E89)," ",'FBPQ T4'!AE89) -> 6 | I97: 2666.7 | J97: EHV
C98: 66kV UG Cable (Oil) | D98: km | E98: =IF(ISNUMBER('FBPQ C2'!J90),'FBPQ C2'!J90,IF(ISNUMBER('FBPQ C2'!I90),'FBPQ C2'!I90,"")) -> 444.45 | F98: DATA | G98: 444.45 | H98: =IF(ISBLANK('FBPQ T4'!E90)," ",'FBPQ T4'!AE90) -> 2 | I98: 888.9 | J98: EHV
C99: 66kV UG Cable (Gas) | D99: km | E99: =IF(ISNUMBER('FBPQ C2'!J91),'FBPQ C2'!J91,IF(ISNUMBER('FBPQ C2'!I91),'FBPQ C2'!I91,"")) -> 444.45 | F99: DATA | G99: 444.45 | H99: =IF(ISBLANK('FBPQ T4'!E91)," ",'FBPQ T4'!AE91) -> 1 | I99: 444.45 | J99: EHV
E100: =IF(ISNUMBER('FBPQ C2'!J92),'FBPQ C2'!J92,IF(ISNUMBER('FBPQ C2'!I92),'FBPQ C2'!I92,"")) ->  | G100: 0 | H100: =IF(ISBLANK('FBPQ T4'!E92)," ",'FBPQ T4'!AE92) -> 
B101: Submarine cables (kms) | E101: =IF(ISNUMBER('FBPQ C2'!J93),'FBPQ C2'!J93,IF(ISNUMBER('FBPQ C2'!I93),'FBPQ C2'!I93,"")) ->  | G101: 0 | H101: =IF(ISBLANK('FBPQ T4'!E93)," ",'FBPQ T4'!AE93) -> 
C102: EHV Sub Cable | D102: km | E102: =IF(ISNUMBER('FBPQ C2'!J94),'FBPQ C2'!J94,IF(ISNUMBER('FBPQ C2'!I94),'FBPQ C2'!I94,"")) -> 1134.52 | F102: DATA | G102: 1134.52 | H102: =IF(ISBLANK('FBPQ T4'!E94)," ",'FBPQ T4'!AE94) -> 1.3 | I102: 1474.876 | J102: EHV
E103: =IF(ISNUMBER('FBPQ C2'!J95),'FBPQ C2'!J95,IF(ISNUMBER('FBPQ C2'!I95),'FBPQ C2'!I95,"")) ->  | G103: 0 | H103: =IF(ISBLANK('FBPQ T4'!E95)," ",'FBPQ T4'!AE95) -> 
B104: Switchgear | E104: =IF(ISNUMBER('FBPQ C2'!J96),'FBPQ C2'!J96,IF(ISNUMBER('FBPQ C2'!I96),'FBPQ C2'!I96,"")) ->  | G104: 0 | H104: =IF(ISBLANK('FBPQ T4'!E96)," ",'FBPQ T4'!AE96) -> 
C105: 33 KV CB (ID) | D105: Each | E105: =IF(ISNUMBER('FBPQ C2'!J97),'FBPQ C2'!J97,IF(ISNUMBER('FBPQ C2'!I97),'FBPQ C2'!I97,"")) -> 66.58 | F105: DATA | G105: 66.58 | H105: =IF(ISBLANK('FBPQ T4'!E97)," ",'FBPQ T4'!AE97) -> 311 | I105: 20706.38 | J105: 132kV/EHV
C106: 33 kV CB (OD) | D106: Each | E106: =IF(ISNUMBER('FBPQ C2'!J98),'FBPQ C2'!J98,IF(ISNUMBER('FBPQ C2'!I98),'FBPQ C2'!I98,"")) -> 51.4 | F106: DATA | G106: 51.4 | H106: =IF(ISBLANK('FBPQ T4'!E98)," ",'FBPQ T4'!AE98) -> 274 | I106: 14083.6 | J106: 132kV/EHV
C107: 33 kV Switch (GM) | D107: Each | E107: =IF(ISNUMBER('FBPQ C2'!J99),'FBPQ C2'!J99,IF(ISNUMBER('FBPQ C2'!I99),'FBPQ C2'!I99,"")) -> 33.17 | F107: DATA | G107: 33.17 | H107: =IF(ISBLANK('FBPQ T4'!E99)," ",'FBPQ T4'!AE99) -> 16 | I107: 530.72 | J107: 132kV/EHV
C108: 33 kV Switch (PM) | D108: Each | E108: =IF(ISNUMBER('FBPQ C2'!J100),'FBPQ C2'!J100,IF(ISNUMBER('FBPQ C2'!I100),'FBPQ C2'!I100,"")) ->  | F108: DATA | H108: =IF(ISBLANK('FBPQ T4'!E100)," ",'FBPQ T4'!AE100) -> 0 | J108: 132kV/EHV
C109: 33 kV RMU | D109: Each | E109: =IF(ISNUMBER('FBPQ C2'!J101),'FBPQ C2'!J101,IF(ISNUMBER('FBPQ C2'!I101),'FBPQ C2'!I101,"")) ->  | F109: DATA | H109: =IF(ISBLANK('FBPQ T4'!E101)," ",'FBPQ T4'!AE101) -> 0 | J109: 132kV/EHV
C110: 33 kV Switchgear - Other | D110: Each | E110: =IF(ISNUMBER('FBPQ C2'!J102),'FBPQ C2'!J102,IF(ISNUMBER('FBPQ C2'!I102),'FBPQ C2'!I102,"")) ->  | F110: DATA | G110: DATA | H110: =IF(ISBLANK('FBPQ T4'!E102)," ",'FBPQ T4'!AE102) -> 1074 | J110: EHV/HV
C111: 66 KV CB (ID & OD) | D111: Each | E111: =IF(ISNUMBER('FBPQ C2'!J103),'FBPQ C2'!J103,IF(ISNUMBER('FBPQ C2'!I103),'FBPQ C2'!I103,"")) -> 88.11 | F111: DATA | G111: 88.11 | H111: =IF(ISBLANK('FBPQ T4'!E103)," ",'FBPQ T4'!AE103) -> 53 | I111: 4669.83 | J111: 132kV/EHV
C112: 66 KV Switchgear - Other | D112: Each | E112: =IF(ISNUMBER('FBPQ C2'!J104),'FBPQ C2'!J104,IF(ISNUMBER('FBPQ C2'!I104),'FBPQ C2'!I104,"")) ->  | F112: DATA | G112: DATA | H112: =IF(ISBLANK('FBPQ T4'!E104)," ",'FBPQ T4'!AE104) -> 233 | J112: EHV/HV
E113: =IF(ISNUMBER('FBPQ C2'!J105),'FBPQ C2'!J105,IF(ISNUMBER('FBPQ C2'!I105),'FBPQ C2'!I105,"")) ->  | G113: 0 | H113: =IF(ISBLANK('FBPQ T4'!E105)," ",'FBPQ T4'!AE105) -> 
B114: Transformers | E114: =IF(ISNUMBER('FBPQ C2'!J106),'FBPQ C2'!J106,IF(ISNUMBER('FBPQ C2'!I106),'FBPQ C2'!I106,"")) ->  | G114: 0 | H114: =IF(ISBLANK('FBPQ T4'!E106)," ",'FBPQ T4'!AE106) -> 
C115: 33 kV Transformer (PM) | D115: Each | E115: =IF(ISNUMBER('FBPQ C2'!J107),'FBPQ C2'!J107,IF(ISNUMBER('FBPQ C2'!I107),'FBPQ C2'!I107,"")) ->  | F115: DATA | H115: =IF(ISBLANK('FBPQ T4'!E107)," ",'FBPQ T4'!AE107) -> 0 | J115: EHV/HV
C116: 33 kV Transformer (GM) | D116: Each | E116: =IF(ISNUMBER('FBPQ C2'!J108),'FBPQ C2'!J108,IF(ISNUMBER('FBPQ C2'!I108),'FBPQ C2'!I108,"")) -> 262.73 | F116: DATA | G116: =IF(ISNUMBER(E116),E116,IF(H116>0,F116," ")) -> 262.73 | H116: =IF(ISBLANK('FBPQ T4'!E108)," ",'FBPQ T4'!AE108) -> 247 | I116: 64894.31 | J116: EHV/HV
C117: 33 kV AuxiliaryTransfomer | D117: Each | E117: =IF(ISNUMBER('FBPQ C2'!J109),'FBPQ C2'!J109,IF(ISNUMBER('FBPQ C2'!I109),'FBPQ C2'!I109,"")) ->  | F117: DATA | G117: DATA | H117: =IF(ISBLANK('FBPQ T4'!E109)," ",'FBPQ T4'!AE109) -> 244 | J117: EHV/HV
C118: 66 kV Transformer | D118: Each | E118: =IF(ISNUMBER('FBPQ C2'!J110),'FBPQ C2'!J110,IF(ISNUMBER('FBPQ C2'!I110),'FBPQ C2'!I110,"")) -> 457.92 | F118: DATA | G118: 457.92 | H118: =IF(ISBLANK('FBPQ T4'!E110)," ",'FBPQ T4'!AE110) -> 30 | I118: 13737.6 | J118: EHV/HV
C119: 66 kV AuxiliaryTransfomer | D119: Each | E119: =IF(ISNUMBER('FBPQ C2'!J111),'FBPQ C2'!J111,IF(ISNUMBER('FBPQ C2'!I111),'FBPQ C2'!I111,"")) ->  | F119: DATA | H119: =IF(ISBLANK('FBPQ T4'!E111)," ",'FBPQ T4'!AE111) -> 0 | J119: EHV/HV
E120: =IF(ISNUMBER('FBPQ C2'!J112),'FBPQ C2'!J112,IF(ISNUMBER('FBPQ C2'!I112),'FBPQ C2'!I112,"")) ->  | G120: 0 | H120: =IF(ISBLANK('FBPQ T4'!E112)," ",'FBPQ T4'!AE112) -> 
A121: 132kV Network | E121: =IF(ISNUMBER('FBPQ C2'!J113),'FBPQ C2'!J113,IF(ISNUMBER('FBPQ C2'!I113),'FBPQ C2'!I113,"")) ->  | G121: 0 | H121: =IF(ISBLANK('FBPQ T4'!E113)," ",'FBPQ T4'!AE113) -> 
B122: Overhead lines | E122: =IF(ISNUMBER('FBPQ C2'!J114),'FBPQ C2'!J114,IF(ISNUMBER('FBPQ C2'!I114),'FBPQ C2'!I114,"")) ->  | G122: 0 | H122: =IF(ISBLANK('FBPQ T4'!E114)," ",'FBPQ T4'!AE114) -> 
C123: 132kV OHL Conductor (Pole Line) | D123: km | E123: =IF(ISNUMBER('FBPQ C2'!J115),'FBPQ C2'!J115,IF(ISNUMBER('FBPQ C2'!I115),'FBPQ C2'!I115,"")) -> 52.85 | F123: DATA | G123: 52.85 | H123: =IF(ISBLANK('FBPQ T4'!E115)," ",'FBPQ T4'!AE115) -> 91 | I123: 4809.35 | J123: 132kV
C124: 132kV OHL Conductor (Tower Line) | D124: km | E124: =IF(ISNUMBER('FBPQ C2'!J116),'FBPQ C2'!J116,IF(ISNUMBER('FBPQ C2'!I116),'FBPQ C2'!I116,"")) -> 53.51 | F124: DATA | G124: 53.51 | H124: =IF(ISBLANK('FBPQ T4'!E116)," ",'FBPQ T4'!AE116) -> 1089 | I124: 58272.39 | J124: 132kV
E125: =IF(ISNUMBER('FBPQ C2'!J117),'FBPQ C2'!J117,IF(ISNUMBER('FBPQ C2'!I117),'FBPQ C2'!I117,"")) ->  | G125: 0 | H125: =IF(ISBLANK('FBPQ T4'!E117)," ",'FBPQ T4'!AE117) -> 
B126: Overhead lines - Support | E126: =IF(ISNUMBER('FBPQ C2'!J118),'FBPQ C2'!J118,IF(ISNUMBER('FBPQ C2'!I118),'FBPQ C2'!I118,"")) ->  | G126: 0 | H126: =IF(ISBLANK('FBPQ T4'!E118)," ",'FBPQ T4'!AE118) -> 
C127: 132kV Pole | D127: Each | E127: =IF(ISNUMBER('FBPQ C2'!J119),'FBPQ C2'!J119,IF(ISNUMBER('FBPQ C2'!I119),'FBPQ C2'!I119,"")) -> 3.64 | F127: DATA | G127: 3.64 | H127: =IF(ISBLANK('FBPQ T4'!E119)," ",'FBPQ T4'!AE119) -> 835 | I127: 3039.4 | J127: 132kV
C128: 132kV Tower | D128: Each | E128: =IF(ISNUMBER('FBPQ C2'!J120),'FBPQ C2'!J120,IF(ISNUMBER('FBPQ C2'!I120),'FBPQ C2'!I120,"")) -> 98.62 | F128: DATA | G128: 98.62 | H128: =IF(ISBLANK('FBPQ T4'!E120)," ",'FBPQ T4'!AE120) -> 2354 | I128: 232151.48 | J128: 132kV
C129: 132kV Fittings (Tower Line) | D129: Each | E129: =IF(ISNUMBER('FBPQ C2'!J121),'FBPQ C2'!J121,IF(ISNUMBER('FBPQ C2'!I121),'FBPQ C2'!I121,"")) -> 3.8 | F129: DATA | G129: 3.8 | H129: =IF(ISBLANK('FBPQ T4'!E121)," ",'FBPQ T4'!AE121) -> 4708 | I129: 17890.4 | J129: 132kV
E130: =IF(ISNUMBER('FBPQ C2'!J122),'FBPQ C2'!J122,IF(ISNUMBER('FBPQ C2'!I122),'FBPQ C2'!I122,"")) ->  | G130: 0 | H130: =IF(ISBLANK('FBPQ T4'!E122)," ",'FBPQ T4'!AE122) -> 
B131: Underground cables (kms) | E131: =IF(ISNUMBER('FBPQ C2'!J123),'FBPQ C2'!J123,IF(ISNUMBER('FBPQ C2'!I123),'FBPQ C2'!I123,"")) ->  | G131: 0 | H131: =IF(ISBLANK('FBPQ T4'!E123)," ",'FBPQ T4'!AE123) -> 
C132: 132kV UG Cable (Non Pressurised) | D132: km | E132: =IF(ISNUMBER('FBPQ C2'!J124),'FBPQ C2'!J124,IF(ISNUMBER('FBPQ C2'!I124),'FBPQ C2'!I124,"")) -> 0 | F132: DATA | G132: 0 | H132: =IF(ISBLANK('FBPQ T4'!E124)," ",'FBPQ T4'!AE124) -> 35.4 | I132: 0 | J132: 132kV
C133: 132kV UG Cable (Oil) | D133: km | E133: =IF(ISNUMBER('FBPQ C2'!J125),'FBPQ C2'!J125,IF(ISNUMBER('FBPQ C2'!I125),'FBPQ C2'!I125,"")) -> 1323.44 | F133: DATA | G133: 1323.44 | H133: =IF(ISBLANK('FBPQ T4'!E125)," ",'FBPQ T4'!AE125) -> 58 | I133: 76759.52 | J133: 132kV
C134: 132kV UG Cable (Gas) | D134: km | E134: =IF(ISNUMBER('FBPQ C2'!J126),'FBPQ C2'!J126,IF(ISNUMBER('FBPQ C2'!I126),'FBPQ C2'!I126,"")) ->  | F134: DATA | H134: =IF(ISBLANK('FBPQ T4'!E126)," ",'FBPQ T4'!AE126) -> 0 | J134: 132kV
E135: =IF(ISNUMBER('FBPQ C2'!J127),'FBPQ C2'!J127,IF(ISNUMBER('FBPQ C2'!I127),'FBPQ C2'!I127,"")) ->  | G135: 0 | H135: =IF(ISBLANK('FBPQ T4'!E127)," ",'FBPQ T4'!AE127) -> 
B136: Submarine cables (kms) | E136: =IF(ISNUMBER('FBPQ C2'!J128),'FBPQ C2'!J128,IF(ISNUMBER('FBPQ C2'!I128),'FBPQ C2'!I128,"")) ->  | G136: 0 | H136: =IF(ISBLANK('FBPQ T4'!E128)," ",'FBPQ T4'!AE128) -> 
C137: 132 kV Sub Cable | D137: km | E137: =IF(ISNUMBER('FBPQ C2'!J129),'FBPQ C2'!J129,IF(ISNUMBER('FBPQ C2'!I129),'FBPQ C2'!I129,"")) ->  | F137: DATA | H137: =IF(ISBLANK('FBPQ T4'!E129)," ",'FBPQ T4'!AE129) -> 0 | J137: 132kV
E138: =IF(ISNUMBER('FBPQ C2'!J130),'FBPQ C2'!J130,IF(ISNUMBER('FBPQ C2'!I130),'FBPQ C2'!I130,"")) ->  | G138: 0 | H138: =IF(ISBLANK('FBPQ T4'!E130)," ",'FBPQ T4'!AE130) -> 
B139: Switchgear | E139: =IF(ISNUMBER('FBPQ C2'!J131),'FBPQ C2'!J131,IF(ISNUMBER('FBPQ C2'!I131),'FBPQ C2'!I131,"")) ->  | G139: 0 | H139: =IF(ISBLANK('FBPQ T4'!E131)," ",'FBPQ T4'!AE131) -> 
C140: 132 kV CB (ID & OD) | D140: Each | E140: =IF(ISNUMBER('FBPQ C2'!J132),'FBPQ C2'!J132,IF(ISNUMBER('FBPQ C2'!I132),'FBPQ C2'!I132,"")) -> 146.88 | F140: DATA | G140: 146.88 | H140: =IF(ISBLANK('FBPQ T4'!E132)," ",'FBPQ T4'!AE132) -> 222 | I140: 32607.36 | J140: 132kV
C141: 132 kV Switchgear (other) | D141: Each | E141: =IF(ISNUMBER('FBPQ C2'!J133),'FBPQ C2'!J133,IF(ISNUMBER('FBPQ C2'!I133),'FBPQ C2'!I133,"")) ->  | F141: DATA | G141: DATA | H141: =IF(ISBLANK('FBPQ T4'!E133)," ",'FBPQ T4'!AE133) -> 727 | J141: 132kV
E142: =IF(ISNUMBER('FBPQ C2'!J134),'FBPQ C2'!J134,IF(ISNUMBER('FBPQ C2'!I134),'FBPQ C2'!I134,"")) ->  | G142: 0 | H142: =IF(ISBLANK('FBPQ T4'!E134)," ",'FBPQ T4'!AE134) -> 
B143: Transformers | E143: =IF(ISNUMBER('FBPQ C2'!J135),'FBPQ C2'!J135,IF(ISNUMBER('FBPQ C2'!I135),'FBPQ C2'!I135,"")) ->  | G143: 0 | H143: =IF(ISBLANK('FBPQ T4'!E135)," ",'FBPQ T4'!AE135) -> 
C144: 132 kV Transformer | D144: Each | E144: =IF(ISNUMBER('FBPQ C2'!J136),'FBPQ C2'!J136,IF(ISNUMBER('FBPQ C2'!I136),'FBPQ C2'!I136,"")) -> 1139.95 | F144: DATA | G144: 1139.95 | H144: =IF(ISBLANK('FBPQ T4'!E136)," ",'FBPQ T4'!AE136) -> 131 | I144: 149333.45 | J144: 132kV/EHV
C145: 132 kV AuxiliaryTransfomer | D145: Each | E145: =IF(ISNUMBER('FBPQ C2'!J137),'FBPQ C2'!J137,IF(ISNUMBER('FBPQ C2'!I137),'FBPQ C2'!I137,"")) ->  | F145: DATA | G145: DATA | H145: =IF(ISBLANK('FBPQ T4'!E137)," ",'FBPQ T4'!AE137) -> 140 | J145: 132kV/EHV
E146: =IF(ISNUMBER('FBPQ C2'!J138),'FBPQ C2'!J138,IF(ISNUMBER('FBPQ C2'!I138),'FBPQ C2'!I138,"")) ->  | G146: 0 | H146: =IF(ISBLANK('FBPQ T4'!E138)," ",'FBPQ T4'!AE138) -> 
A147: Tele-control / SCADA | E147: =IF(ISNUMBER('FBPQ C2'!J139),'FBPQ C2'!J139,IF(ISNUMBER('FBPQ C2'!I139),'FBPQ C2'!I139,"")) ->  | G147: 0 | H147: =IF(ISBLANK('FBPQ T4'!E139)," ",'FBPQ T4'!AE139) -> 
B148: Primary substation | E148: =IF(ISNUMBER('FBPQ C2'!J140),'FBPQ C2'!J140,IF(ISNUMBER('FBPQ C2'!I140),'FBPQ C2'!I140,"")) ->  | G148: =IF(ISNUMBER(E148),E148,IF(H148>0,F148," ")) -> 0 | H148: =IF(ISBLANK('FBPQ T4'!E140)," ",'FBPQ T4'!AE140) -> 
C149: 132 kV/EHV RTU (PM) | D149: Each | E149: =IF(ISNUMBER('FBPQ C2'!J141),'FBPQ C2'!J141,IF(ISNUMBER('FBPQ C2'!I141),'FBPQ C2'!I141,"")) ->  | F149: DATA | G149: DATA | H149: =IF(ISBLANK('FBPQ T4'!E141)," ",'FBPQ T4'!AE141) -> 1 | I149: =IF(ISERROR(G149*H149)," ",G149*H149) ->  | J149: EHV/HV
C150: 132 kV/EHV RTU (GM) | D150: Each | E150: =IF(ISNUMBER('FBPQ C2'!J142),'FBPQ C2'!J142,IF(ISNUMBER('FBPQ C2'!I142),'FBPQ C2'!I142,"")) ->  | F150: DATA | G150: DATA | H150: =IF(ISBLANK('FBPQ T4'!E142)," ",'FBPQ T4'!AE142) -> 272 | J150: EHV/HV
E151: =IF(ISNUMBER('FBPQ C2'!J143),'FBPQ C2'!J143,IF(ISNUMBER('FBPQ C2'!I143),'FBPQ C2'!I143,"")) ->  | G151: 0 | H151: =IF(ISBLANK('FBPQ T4'!E143)," ",'FBPQ T4'!AE143) -> 
B152: Secondary substation | E152: =IF(ISNUMBER('FBPQ C2'!J144),'FBPQ C2'!J144,IF(ISNUMBER('FBPQ C2'!I144),'FBPQ C2'!I144,"")) ->  | G152: 0 | H152: =IF(ISBLANK('FBPQ T4'!E144)," ",'FBPQ T4'!AE144) -> 
C153: HV RTU (PM) | D153: Each | E153: =IF(ISNUMBER('FBPQ C2'!J145),'FBPQ C2'!J145,IF(ISNUMBER('FBPQ C2'!I145),'FBPQ C2'!I145,"")) ->  | F153: DATA | G153: DATA | H153: =IF(ISBLANK('FBPQ T4'!E145)," ",'FBPQ T4'!AE145) -> 1246 | I153: =IF(ISERROR(G153*H153)," ",G153*H153) ->  | J153: HV/LV
C154: HV RTU (GM) | D154: Each | E154: =IF(ISNUMBER('FBPQ C2'!J146),'FBPQ C2'!J146,IF(ISNUMBER('FBPQ C2'!I146),'FBPQ C2'!I146,"")) ->  | F154: DATA | G154: DATA | H154: =IF(ISBLANK('FBPQ T4'!E146)," ",'FBPQ T4'!AE146) -> 143 | J154: HV/LV
E155: =IF(ISNUMBER('FBPQ C2'!J147),'FBPQ C2'!J147,IF(ISNUMBER('FBPQ C2'!I147),'FBPQ C2'!I147,"")) ->  | G155: 0 | H155: =IF(ISBLANK('FBPQ T4'!E147)," ",'FBPQ T4'!AE147) -> 
E156: =IF(ISNUMBER('FBPQ C2'!J148),'FBPQ C2'!J148,IF(ISNUMBER('FBPQ C2'!I148),'FBPQ C2'!I148,"")) ->  | G156: 0 | H156: =IF(ISBLANK('FBPQ T4'!E148)," ",'FBPQ T4'!AE148) -> 
A157: HV network switchgear | E157: =IF(ISNUMBER('FBPQ C2'!J149),'FBPQ C2'!J149,IF(ISNUMBER('FBPQ C2'!I149),'FBPQ C2'!I149,"")) ->  | G157: 0 | H157: =IF(ISBLANK('FBPQ T4'!E149)," ",'FBPQ T4'!AE149) -> 
C158: 6.6/11 kV CB (GM) | E158: =IF(ISNUMBER('FBPQ C2'!J150),'FBPQ C2'!J150,IF(ISNUMBER('FBPQ C2'!I150),'FBPQ C2'!I150,"")) ->  | G158: 0 | H158: =IF(ISBLANK('FBPQ T4'!E150)," ",'FBPQ T4'!AE150) -> 
C159: Primary | D159: Each | E159: =IF(ISNUMBER('FBPQ C2'!J151),'FBPQ C2'!J151,IF(ISNUMBER('FBPQ C2'!I151),'FBPQ C2'!I151,"")) -> 24.52 | F159: DATA | G159: 24.52 | H159: =IF(ISBLANK('FBPQ T4'!E151)," ",'FBPQ T4'!AE151) -> 
C160: Distribution | D160: Each | E160: =IF(ISNUMBER('FBPQ C2'!J152),'FBPQ C2'!J152,IF(ISNUMBER('FBPQ C2'!I152),'FBPQ C2'!I152,"")) -> 24.52 | F160: DATA | G160: 24.52 | H160: =IF(ISBLANK('FBPQ T4'!E152)," ",'FBPQ T4'!AE152) -> 
C161: 20 kV Switch (GM) | E161: =IF(ISNUMBER('FBPQ C2'!J153),'FBPQ C2'!J153,IF(ISNUMBER('FBPQ C2'!I153),'FBPQ C2'!I153,"")) ->  | F161: DATA | G161: DATA | H161: =IF(ISBLANK('FBPQ T4'!E153)," ",'FBPQ T4'!AE153) -> 
C162: Primary | D162: Each | E162: =IF(ISNUMBER('FBPQ C2'!J154),'FBPQ C2'!J154,IF(ISNUMBER('FBPQ C2'!I154),'FBPQ C2'!I154,"")) ->  | F162: DATA | G162: DATA | H162: =IF(ISBLANK('FBPQ T4'!E154)," ",'FBPQ T4'!AE154) -> 
C163: Distribution | D163: Each | E163: =IF(ISNUMBER('FBPQ C2'!J155),'FBPQ C2'!J155,IF(ISNUMBER('FBPQ C2'!I155),'FBPQ C2'!I155,"")) ->  | F163: DATA | G163: DATA | H163: =IF(ISBLANK('FBPQ T4'!E155)," ",'FBPQ T4'!AE155) -> 
H164: Total MEAV | I164: =SUM(I18:I163) -> 4072889.75

Sheet Calc-Net capex
A1: Total Net Capex | F1: Index
B3: Total Net Capex 2005/06 -2014/15 LV, HV, EHV, 132kV split | F3: Total Net Capex 2005/06 -2014/15 LV, LV/HV, HV, EHV, 132kV split | J3: IP Appendix 6 Table 5 Reductions to EHV | N3: IP Appendix 7 Reductions to EHV
B4: Sum connecions/reinforcement/replacement capex -see below | F4: Sum connecions/reinforcement/replacement capex -see below | J4: Appendix 6 Table 5 EHV & 132 | N4: Appendix 7 Table 18
C5: £m | D5: % of Total | G5: £m | H5: % of Total | J5: EHV | L5: =K5*(F21/(F21+F22)) -> 0 | O5: £m
B6: LV | C6: =C19+F19+I19+C28+F28-O6 -> 49.29991811 | D6: =C6/SUM($C$6:$C$9) -> 0.1855893446 | F6: LV | G6: =+C39+F39+I39+C49+F49-O6 -> 49.29991811 | H6: =G6/SUM($G$6:$G$10) -> 0.1855893446 | J6: 132kV | L6: =K5*(F22/(F21+F22)) -> 0 | N6: LV
B7: HV | C7: =C20+F20+I20+C29+F29-O7-O8 -> 116.1327053 | D7: =C7/SUM($C$6:$C$9) -> 0.4371811048 | F7: LV/HV | G7: =+C40+F40+I40+C50+F50-O7 -> 23.06782461 | H7: =G7/SUM($G$6:$G$10) -> 0.08683873352 | N7: LV/HV
B8: EHV | C8: =C21+F21+I21+C30+F30-L5-O9 -> 58.04957722 | D8: =C8/SUM($C$6:$C$9) -> 0.2185274013 | F8: HV | G8: =+C41+F41+I41+C51+F51-O8 -> 93.0648807 | H8: =G8/SUM($G$6:$G$10) -> 0.3503423713 | N8: HV
B9: 132 kV | C9: =C22+F22+I22+C31+F31-L6-O10 -> 42.15760869 | D9: =C9/SUM($C$6:$C$9) -> 0.1587021493 | F9: EHV | G9: =+C42+F42+I42+C52+F52-L5-O9 -> 58.04957722 | H9: =G9/SUM($G$6:$G$10) -> 0.2185274013 | N9: EHV
F10: 132 kV | G10: =+C43+F43+I43+C53+F53-L6-O10 -> 42.15760869 | H10: =G10/SUM($G$6:$G$10) -> 0.1587021493 | N10: 132 kV
A13: Connection/Reinforcement/Replacement Capex LV, HV, EHV, 132kV split
B16: Connections Capex 2005/06 -2014/15 (£m) | E16: General reinforcement Capex 2005/06 -2014/15 (£m) | H16: Fault reinforcement Capex 2005/06 -2014/15 (£m)
B17: Connections spend minus customer contributions (from FBPQ LR1) | E17: (from FBPQ LR4) | H17: (from FBPQ LR6)
A19: c32 | B19: LV | C19: 3.1 | E19: LV | F19: =SUM('FBPQ LR4'!D11:M11) -> 1.9 | H19: LV | I19: =SUM('FBPQ LR6'!C28:L28) -> 0
A20: c33 | B20: HV | C20: 1.2 | E20: HV | F20: =SUM('FBPQ LR4'!D12:M12) -> 12.6 | H20: HV | I20: =SUM('FBPQ LR6'!C29:L29) -> 0
A21: c34 | B21: EHV | C21: 1.55 | E21: EHV | F21: =SUM('FBPQ LR4'!D13:M13) -> 17.7 | H21: EHV | I21: =SUM('FBPQ LR6'!C30:L30) -> 0.7
A22: c35 | B22: 132 kV | C22: 0 | E22: 132 kV | F22: =SUM('FBPQ LR4'!D14:M14) -> 9.3 | H22: 132 kV | I22: =SUM('FBPQ LR6'!C31:L31) -> 0
B25: Replacement Capex 2005/06 -2014/15 (£m) | E25: ESQCR 2005/06 -2014/15 (£m)
B26: (from FBPQ NL1) | E26: (from FBPQ NL9)
B28: LV | C28: =SUM('FBPQ NL1 0309'!D10:M16) -> 44.29991811 | E28: LV | F28: =SUM('NL9 - Legal & Safety'!D33:M33,'NL9 - Legal & Safety'!D42:M42) -> 0
B29: HV | C29: =SUM('FBPQ NL1 0309'!D17:M22) -> 102.3327053 | E29: HV | F29: =SUM('NL9 - Legal & Safety'!D34:M34,'NL9 - Legal & Safety'!D43:M43) -> 0
B30: EHV | C30: =SUM('FBPQ NL1 0309'!D23:M28) -> 38.09957722 | E30: EHV | F30: =SUM('NL9 - Legal & Safety'!D35:M35,'NL9 - Legal & Safety'!D44:M44) -> 0
B31: 132 kV | C31: =SUM('FBPQ NL1 0309'!D29:M34) -> 32.85760869 | E31: 132 kV | F31: =SUM('NL9 - Legal & Safety'!D36:M36,'NL9 - Legal & Safety'!D45:M45) -> 0
A33: Connection/Reinforcement/Replacement Capex LV, LV/HV, HV, EHV, 132kV split
B36: Connections Capex 2005/06 -2014/15 (£m) | E36: General reinforcement Capex 2005/06 -2014/15 (£m) | H36: Fault reinforcement Capex 2005/06 -2014/15 (£m)
B37: Connections spend minus customer contributions (from FBPQ LR1) | E37: (from FBPQ LR4) | H37: (from FBPQ LR6)
A39: c20 | B39: LV | C39: 3.1 | E39: LV | F39: =SUM('FBPQ LR4'!D11:M11) -> 1.9 | H39: LV | I39: =SUM('FBPQ LR6'!C28:L28) -> 0
A40: c21 | B40: LV/HV | C40: 0.2872460679 | D40: allocated in proportion to repex | E40: LV/HV | F40: =SUM('FBPQ LR4'!D12:M12)*(C55) -> 3.016083713 | G40: allocated in proportion to repex | H40: LV/HV | I40: =SUM('FBPQ LR6'!C29:L29)*(C55) -> 0 | J40: allocated in proportion to repex
A41: c22 | B41: HV | C41: 0.9127539321 | E41: HV | F41: =SUM('FBPQ LR4'!D12:M12)*(1-C55) -> 9.583916287 | H41: HV | I41: =SUM('FBPQ LR6'!C29:L29)*(1-C55) -> 0
A42: c23 | B42: EHV | C42: 1.55 | E42: EHV | F42: =SUM('FBPQ LR4'!D13:M13) -> 17.7 | H42: EHV | I42: =SUM('FBPQ LR6'!C30:L30) -> 0.7
A43: c24 | B43: 132 kV | C43: 0 | E43: 132 kV | F43: =SUM('FBPQ LR4'!D14:M14) -> 9.3 | H43: 132 kV | I43: =SUM('FBPQ LR6'!C31:L31) -> 0
B46: Replacement Capex 2005/06 -2014/15 (£m) | E46: ESQCR 2005/06 -2014/15 (£m) | H46: ESQCR 2005/06 -2014/15 (£m)
B47: (from FBPQ NL1) | E47: (from FBPQ NL9) | H47: NL1 + NL9
B49: LV | C49: =SUM('FBPQ NL1 0309'!D10:M16) -> 44.29991811 | E49: LV | F49: =SUM('NL9 - Legal & Safety'!D33:M33,'NL9 - Legal & Safety'!D42:M42) -> 0 | H49: LV | I49: =F49+C49 -> 44.29991811
B50: LV/HV | C50: =SUM('FBPQ NL1 0309'!D21:M22) -> 19.76449483 | D50: HV/LV sub/trans costs | E50: LV/HV | F50: =SUM('NL9 - Legal & Safety'!D34:M34,'NL9 - Legal & Safety'!D43:M43)*C55 -> 0 | H50: LV/HV | I50: =F50+C50 -> 19.76449483
B51: HV | C51: =SUM('FBPQ NL1 0309'!D17:M20) -> 82.56821048 | E51: HV | F51: =SUM('NL9 - Legal & Safety'!D34:M34,'NL9 - Legal & Safety'!D43:M43)*(1-C55) -> 0 | H51: HV | I51: =F51+C51 -> 82.56821048
B52: EHV | C52: =SUM('FBPQ NL1 0309'!D23:M28) -> 38.09957722 | E52: EHV | F52: =SUM('NL9 - Legal & Safety'!D35:M35,'NL9 - Legal & Safety'!D44:M44) -> 0 | H52: EHV | I52: =F52+C52 -> 38.09957722
B53: 132 kV | C53: =SUM('FBPQ NL1 0309'!D29:M34) -> 32.85760869 | E53: 132 kV | F53: =SUM('NL9 - Legal & Safety'!D36:M36,'NL9 - Legal & Safety'!D45:M45) -> 0 | H53: 132 kV | I53: =F53+C53 -> 32.85760869
B55: LV/HV/(LV/HV+HV) % | C55: =C50/C51 -> 0.2393717233

Sheet Summary of revenue
C1: Summary of Revenue | J1: Index
A8: Allowed Demand Revenue (ADt) | H8: 2005/06 | I8: 2006/07 | J8: 2007/08 | K8: 2008/09 | L8: 2009/10
H9: 16 | I9: 17 | J9: 18 | K9: 19 | L9: 20
B11: Base Demand Revenue (BRt) | F11: £m | H11: 155.3 | I11: 158.462215 | J11: 164.619008 | K11: 7.529388
B12: Pass through Items (PTt) | F12: £m | H12: 2.43929 | I12: 0.365069 | J12: -0.911997 | K12: -17.267285 | L12: -17.267285
B13: Incentive Revenue (Ipt) | F13: £m | H13: 3.081448 | I13: -1.905474 | J13: 2.502889 | K13: 0 | L13: 0
B14: Correction Factor (KDt) | F14: £m | H14: 0.587912 | I14: 1.209043 | J14: 4.773196 | K14: 2.571295 | L14: 12.49383
B16: Allowed Demand Revenue (Adt) | F16: £m | H16: 160.232826 | I16: 155.712767 | J16: 161.436704 | K16: -12.309192
B18: Regulated Demand Revenue (RDt) | F18: £m | H18: 161.37 | I18: 160.11 | J18: 163.97 | K18: 0 | L18: 0
B19: Net Movement on Revenue Provisions | F19: £m | H19: 0 | I19: 0 | J19: 0 | K19: 0 | L19: 0
B21: Over/Under Recovery | F21: £m | H21: 1.137174 | I21: 4.397233 | J21: 2.533296 | K21: 12.309192
A24: Allowed Network Generation Revenue (AGt)
B26: Incentivised Generation (IGt) | F26: £m | H26: 0 | I26: 0.015387 | J26: 0.023939 | K26: 0 | L26: 0
B27: Registered Power Zones (RPZt) | F27: £m | H27: 0 | I27: 0 | J27: 0 | K27: 0 | L27: 0
B28: Correction Factor (KGt) | F28: £m | H28: 0 | I28: 0 | J28: -0.005848 | K28: -0.080984 | L28: -0.082199
B30: Allowed Network Generation Revenue (AGt) | F30: £m | H30: 0 | I30: 0.015387 | J30: 0.029787 | K30: 0.080984 | L30: 0.082199
B32: Network Generation Revenue (RGt) | F32: £m | H32: 0 | I32: 0.01 | J32: -0.05 | K32: 0 | L32: 0
B34: Over/Under Recovery | F34: £m | H34: 0 | I34: -0.005387 | J34: -0.079787 | K34: -0.080984 | L34: -0.082199
A37: Metering Revenue
B38: Legacy Basic Meter Asset Provision Revenue | F38: £m | H38: 2.81 | I38: 3.06 | J38: 3.63 | K38: 0 | L38: 0
B39: Basic Meter Operation Revenue | F39: £m | H39: 3.649808 | I39: 4.258052 | J39: 0 | K39: 0 | L39: 0
H41: 6.459808 | I41: 7.318052 | J41: 3.63 | K41: 0 | L41: 0
A44: Excluded Services and Revenue Outside of Price Control
B45: Excluded Services | F45: £m | H45: 25.34 | I45: 34.46 | J45: 36.6 | K45: 0 | L45: 0
B46: Revenue Outside of Price Control | F46: £m | H46: 4.01 | I46: 4.32 | J46: 4.31 | K46: 0 | L46: 0
B47: De-Minimis Revenue | F47: £m | H47: 0.14 | I47: 0.87 | J47: 1.28 | K47: 0 | L47: 0
H49: 29.49 | I49: 39.65 | J49: 42.19 | K49: 0 | L49: 0

Sheet Allowed revenue -DPCR4
C1: 2004/05 | D1: 2005/6 | E1: 2006/7 | F1: 2007/8 | G1: 2008/9 | H1: 2009/10 | J1: Index
C2: (£M) | D2: (£M) | E2: (£M) | F2: (£M) | G2: (£M) | H2: (£M)
A3: 1 | B3: Opening asset value | D3: 573.6 | E3: 577.8 | F3: 579.3 | G3: 578.4 | H3: 575
A4: 2 | B4: Total capex | D4: 49.9 | E4: 49.7 | F4: 49.7 | G4: 49.7 | H4: 49.7
A5: 3 | B5: Depreciation | D5: -45.7 | E5: -48.2 | F5: -50.6 | G5: -53.1 | H5: -55.6
A6: 4 | B6: Closing asset value | D6: 577.8 | E6: 579.3 | F6: 578.4 | G6: 575 | H6: 569.1
A7: 5 | B7: Present value of opening / closing RAV | H7: 434.5104888
A8: 6 | B8: 5 Year movement in closing RAV | H8: 139.0895112
A9: ALLOWED ITEMS
A10: 7 | B10: Operating costs (excluding pensions) | D10: 43 | E10: 44.5 | F10: 45.1 | G10: 44.7 | H10: 44.3
A11: 8 | B11: Capital expenditure (excluding pensions) | D11: 44.1 | E11: 44 | F11: 43.8 | G11: 43.7 | H11: 43.6
A12: 9 | B12: Pensions allowance | D12: 10 | E12: 9.9 | F12: 10.2 | G12: 10.4 | H12: 10.5
A13: 10 | B13: Tax allowance | D13: 13.1 | E13: 14.2 | F13: 15 | G13: 15.9 | H13: 16.7
A14: 11 | B14: Capex incentive scheme | D14: -1.7 | E14: -1.1 | F14: -0.9 | G14: -0.3 | H14: -0.1
A15: 12 | B15: Sliding scale additional income | D15: 1.2 | E15: 1.2 | F15: 1.2 | G15: 1.2 | H15: 1.1
A16: 13 | B16: Opex incentive / Other adjustments
A17: 14 | B17: Quality award | D17: 1.6 | E17: 1.6 | F17: 1.6 | G17: 1.3 | H17: 1.3
A18: 15 | B18: DPCR3 costs | D18: 0.9
A19: 16 | B19: Total allowed items | D19: 112.2 | E19: 114.3 | F19: 116 | G19: 116.9 | H19: 117.4
A20: 17 | B20: Present value of allowed items | D20: 109.2129215 | E20: 105.4119225 | F20: 101.3593528 | G20: 96.77934675 | H20: 92.08706002
A21: 18 | B21: 5 year movement in closing RAV | H21: 139.0895112
A22: 19 | B22: TOTAL PRESENT VALUE OVER 5 YEARS | H22: 643.9401148
A23: REVENUE
A24: 20 | B24: Revenue index | D24: 1 | E24: 1.013 | F24: 1.026 | G24: 1.037 | H24: 1.05
A25: 21 | B25: Discounted revenue index | D25: 0.9733771969 | E25: 0.9342281495 | F25: 0.8965059994 | G25: 0.8585131102 | H25: 0.8236065845
A26: 22 | B26: Price control revenue | D26: 140.7045823 | E26: 142.5337418 | F26: 144.3629014 | G26: 145.9106518 | H26: 147.7398114
A27: 23 | B27: Excluded service revenue | D27: 2.9 | E27: 2.9 | F27: 2.9 | G27: 2.9 | H27: 2.9
A28: 24 | B28: Total revenue | D28: 143.6045823 | E28: 145.4337418 | F28: 147.2629014 | G28: 148.8106518 | H28: 150.6398114
A29: 25 | B29: Present value of total revenue | D29: 139.7814258 | E29: 134.1246748 | F29: 128.676486 | G29: 123.1975849 | H29: 118.1599434
A30: 26 | B30: TOTAL PRESENT VALUE OVER 5 YEARS | H30: 643.9401148
A32: Take these data from the February 2005 Ofgem document (link below), not the November 2004 final proposals.
A33: http://www.ofgem.gov.uk/Markets/RetMkts/Metrng/Metering/Documents1/9745-5405.pdf

Sheet FBPQ T4
A1: Main Forecast Business Plan DPCR5 | G1: Index
A3: T4 - Volume Summary
B5: Total Asset Register Movement
B7: Asset categories | F7: Opening Balance DCPR4 | G7: 2005/06 | L7: 2006/07 | Q7: 2007/08 | V7: 2008/09 | AA7: 2009/10
G8: Assets removed | I8: Assets Installed | K8: Closing Balance | L8: Assets removed | N8: Assets Installed | P8: Closing Balance | Q8: Assets removed | S8: Assets Installed | U8: Closing Balance | V8: Assets removed | X8: Assets Installed | Z8: Closing Balance | AA8: Assets removed | AC8: Assets Installed | AE8: Closing Balance DPCR4
G9: LRE | H9: NLRE | I9: LRE | J9: NLRE | K9: 2005/06 | L9: LRE | M9: NLRE | N9: LRE | O9: NLRE | P9: 2006/07 | Q9: LRE | R9: NLRE | S9: LRE | T9: NLRE | U9: 2007/08 | V9: LRE | W9: NLRE | X9: LRE | Y9: NLRE | Z9: 2008/09 | AA9: LRE | AB9: NLRE | AC9: LRE | AD9: NLRE | AE9: 2009/10
C10: LV Network
D11: Overhead lines - Conductor
E12: LV Main (OHL) | F12: 3215 | G12: 0 | H12: 9 | I12: 0 | J12: 4 | K12: 3210 | L12: 0 | M12: 61 | N12: 0 | O12: 56 | P12: 3205 | Q12: 0 | R12: 66 | S12: 0 | T12: 54 | U12: 3193 | V12: 0 | W12: 39 | X12: 0 | Y12: 39 | Z12: 3193 | AA12: 0 | AB12: 43 | AC12: 0 | AD12: 42 | AE12: 3192
E13: LV Service (OHL) | F13: 317000 | G13: 0 | H13: 5256 | I13: 0 | J13: 5256 | K13: 317000 | L13: 0 | M13: 5428 | N13: 0 | O13: 5428 | P13: 317000 | Q13: 0 | R13: 9048 | S13: 0 | T13: 9048 | U13: 317000 | V13: 0 | W13: 5000 | X13: 0 | Y13: 5000 | Z13: 317000 | AA13: 0 | AB13: 2500 | AC13: 0 | AD13: 2500 | AE13: 317000
D15: Overhead lines - Support
E16: LV Support | F16: 98008 | G16: 0 | H16: 1043 | I16: 0 | J16: 961 | K16: 97926 | L16: 0 | M16: 1028 | N16: 0 | O16: 833 | P16: 97731 | Q16: 0 | R16: 900 | S16: 0 | T16: 734 | U16: 97565 | V16: 0 | W16: 840 | X16: 0 | Y16: 840 | Z16: 97565 | AA16: 0 | AB16: 845 | AC16: 0 | AD16: 826 | AE16: 97546
D18: Underground cables
E19: LV Main (UG Consac) | F19: 0 | G19: 0 | H19: 0 | I19: - | J19: 0 | K19: 0 | L19: 0 | M19: 0 | N19: - | O19: 0 | P19: 0 | Q19: 0 | R19: 0 | S19: - | T19: 0 | U19: 0 | V19: 0 | W19: 0 | X19: 0 | Y19: 0 | Z19: 0 | AA19: 0 | AB19: 0 | AC19: 0 | AD19: 0 | AE19: 0
E20: LV Main (UG Plastic) | F20: 3999 | G20: 0 | H20: 0 | I20: 248 | J20: 4 | K20: 4251 | L20: 0 | M20: 2 | N20: 134.79 | O20: 9.4 | P20: 4393.19 | Q20: 0 | R20: 2 | S20: 143.9 | T20: 2 | U20: 4537.09 | V20: 0 | W20: 0 | X20: 117 | Y20: 2 | Z20: 4656.09 | AA20: 0 | AB20: 0 | AC20: 113 | AD20: 3 | AE20: 4772.09
E21: LV Main (UG Paper) | F21: 6214.9 | G21: 0 | H21: 4 | I21: - | J21: 0 | K21: 6210.9 | L21: 0 | M21: 7.4 | N21: - | O21: 0 | P21: 6203.5 | Q21: 0 | R21: 5 | S21: - | T21: 0 | U21: 6198.5 | V21: 0 | W21: 2 | X21: 0 | Y21: 0 | Z21: 6196.5 | AA21: 0 | AB21: 2 | AC21: 0 | AD21: 0 | AE21: 6194.5
E22: LV Service (UG) | F22: 732157 | G22: 0 | H22: 0 | I22: 10675 | J22: 0 | K22: 742832 | L22: 0 | M22: 0 | N22: 11542 | O22: 0 | P22: 754374 | Q22: 0 | R22: 0 | S22: 8211 | T22: 0 | U22: 762585 | V22: 0 | W22: 1100 | X22: 8288 | Y22: 1100 | Z22: 770873 | AA22: 0 | AB22: 750 | AC22: 7973 | AD22: 750 | AE22: 778846
D24: Switchgear
E25: LV Pillar (ID) | F25: 3736 | G25: 0 | H25: 0 | I25: 40 | J25: 65 | K25: 3841 | L25: 0 | M25: 22 | N25: 38 | O25: 59 | P25: 3916 | Q25: 0 | R25: 53 | S25: 54 | T25: 88 | U25: 4005 | V25: 0 | W25: 0 | X25: 39 | Y25: 0 | Z25: 4044 | AA25: 0 | AB25: 0 | AC25: 37 | AD25: 0 | AE25: 4081
E26: LV Pillar (OD) | F26: 3893 | G26: 21 | H26: 8 | I26: 1 | J26: 8 | K26: 3873 | L26: 23 | M26: 14 | N26: 1 | O26: 13 | P26: 3850 | Q26: 29 | R26: 14 | S26: 3 | T26: 14 | U26: 3824 | V26: 22 | W26: 30 | X26: 2 | Y26: 30 | Z26: 3804 | AA26: 21 | AB26: 40 | AC26: 2 | AD26: 40 | AE26: 3785
E27: LV Board (WM) | F27: 215 | G27: 1 | H27: 0 | I27: 0 | J27: 0 | K27: 214 | L27: 11 | M27: 0 | N27: 0 | O27: 0 | P27: 203 | Q27: 0 | R27: 0 | S27: 3 | T27: 0 | U27: 206 | V27: 5 | W27: 0 | X27: 1 | Y27: 0 | Z27: 202 | AA27: 4 | AB27: 0 | AC27: 1 | AD27: 0 | AE27: 199
E28: LV UGB | F28: 3635 | G28: 6 | H28: 10 | I28: 14 | J28: 10 | K28: 3643 | L28: 5 | M28: 8 | N28: 11 | O28: 8 | P28: 3649 | Q28: 18 | R28: 8 | S28: 13 | T28: 8 | U28: 3644 | V28: 10 | W28: 0 | X28: 10 | Y28: 0 | Z28: 3644 | AA28: 9 | AB28: 0 | AC28: 10 | AD28: 0 | AE28: 3645
E29: LV Fuses (PM) | F29: 31144 | G29: 0 | H29: 511 | I29: 0 | J29: 640 | K29: 31273 | L29: 0 | M29: 0 | N29: 0 | O29: 0 | P29: 31273 | Q29: 0 | R29: 0 | S29: 0 | T29: 103 | U29: 31376 | V29: 0 | W29: 0 | X29: 0 | Y29: 0 | Z29: 31376 | AA29: 0 | AB29: 0 | AC29: 0 | AD29: 0 | AE29: 31376
E30: LV Fuses (TM) | F30: 2813 | G30: 20 | H30: 0 | I30: 0 | J30: 0 | K30: 2793 | L30: 36 | M30: 0 | N30: 0 | O30: 0 | P30: 2757 | Q30: 41 | R30: 0 | S30: 0 | T30: 0 | U30: 2716 | V30: 32 | W30: 0 | X30: 0 | Y30: 0 | Z30: 2684 | AA30: 31 | AB30: 0 | AC30: 0 | AD30: 0 | AE30: 2653
C32: HV network
D33: Overhead lines - Conductor
E34: 6.6/11 kV OHL (Open) | F34: 12254 | G34: 0 | H34: 52 | I34: 0 | J34: 32 | K34: 12234 | L34: 0 | M34: 89 | N34: 0 | O34: 77 | P34: 12222 | Q34: 0 | R34: 79 | S34: 0 | T34: 64 | U34: 12207 | V34: 0 | W34: 55 | X34: 0 | Y34: 55 | Z34: 12207 | AA34: 0 | AB34: 55 | AC34: 0 | AD34: 55 | AE34: 12207
E35: 6.6/11 kV OHL (Covered) | F35: 0 | G35: 0 | H35: 0 | I35: 0 | J35: 0 | K35: 0 | L35: 0 | M35: 0 | N35: 0 | O35: 0 | P35: 0 | Q35: 0 | R35: 0 | S35: 0 | T35: 0 | U35: 0 | V35: 0 | W35: 0 | X35: 0 | Y35: 0 | Z35: 0 | AA35: 0 | AB35: 0 | AC35: 0 | AD35: 0 | AE35: 0
E36: 20 kV OHL (Open) | F36: 0 | G36: 0 | H36: 0 | I36: 0 | J36: 0 | K36: 0 | L36: 0 | M36: 0 | N36: 0 | O36: 0 | P36: 0 | Q36: 0 | R36: 0 | S36: 0 | T36: 0 | U36: 0 | V36: 0 | W36: 0 | X36: 0 | Y36: 0 | Z36: 0 | AA36: 0 | AB36: 0 | AC36: 0 | AD36: 0 | AE36: 0
E37: 20 kV OHL (Covered) | F37: 0 | G37: 0 | H37: 0 | I37: 0 | J37: 0 | K37: 0 | L37: 0 | M37: 0 | N37: 0 | O37: 0 | P37: 0 | Q37: 0 | R37: 0 | S37: 0 | T37: 0 | U37: 0 | V37: 0 | W37: 0 | X37: 0 | Y37: 0 | Z37: 0 | AA37: 0 | AB37: 0 | AC37: 0 | AD37: 0 | AE37: 0
D39: Overhead lines - Support
E40: 6.6/11 kV Support | F40: 163307 | G40: 0 | H40: 1809 | I40: 0 | J40: 1678 | K40: 163176 | L40: 0 | M40: 2035 | N40: 0 | O40: 1912 | P40: 163053 | Q40: 0 | R40: 2381 | S40: 0 | T40: 1861 | U40: 162533 | V40: 0 | W40: 1582.5 | X40: 0 | Y40: 1582.5 | Z40: 162533 | AA40: 0 | AB40: 1582.5 | AC40: 0 | AD40: 1582.5 | AE40: 162533
E41: 20 kV Support | F41: 0 | G41: 0 | H41: 0 | I41: 0 | J41: 0 | K41: 0 | L41: 0 | M41: 0 | N41: 0 | O41: 0 | P41: 0 | Q41: 0 | R41: 0 | S41: 0 | T41: 0 | U41: 0 | V41: 0 | W41: 0 | X41: 0 | Y41: 0 | Z41: 0 | AA41: 0 | AB41: 0 | AC41: 0 | AD41: 0 | AE41: 0
D43: Underground cables (kms)
E44: 6.6/11kV UG Cable | F44: 5119.7 | G44: 0 | H44: 0 | I44: 120 | J44: 0 | K44: 5239.7 | L44: 0 | M44: 11 | N44: 54.8 | O44: 11 | P44: 5294.5 | Q44: 0 | R44: 4.7 | S44: 66.9 | T44: 5 | U44: 5361.7 | V44: 0 | W44: 0 | X44: 51 | Y44: 0 | Z44: 5412.7 | AA44: 0 | AB44: 0 | AC44: 49 | AD44: 0 | AE44: 5461.7
E45: 20kV UG Cable | F45: 0 | G45: 0 | H45: 0 | I45: - | J45: 0 | K45: 0 | L45: 0 | M45: 0 | N45: - | O45: 0 | P45: 0 | Q45: 0 | R45: 0 | S45: - | T45: 0 | U45: 0 | V45: 0 | W45: 0 | X45: 0 | Y45: 0 | Z45: 0 | AA45: 0 | AB45: 0 | AC45: 0 | AD45: 0 | AE45: 0
D47: Submarine cables (kms)
E48: HV Sub Cable | F48: 5 | G48: 0 | H48: 0 | I48: - | J48: 0 | K48: 5 | L48: 0 | M48: 0 | N48: - | O48: 0 | P48: 5 | Q48: 0 | R48: 0 | S48: - | T48: 0 | U48: 5 | V48: 0 | W48: 0 | X48: 0 | Y48: 0 | Z48: 5 | AA48: 0 | AB48: 0 | AC48: 0 | AD48: 0 | AE48: 5
D50: Switchgear
E51: 6.6/11 kV CB (PM) | F51: 615 | G51: 0 | H51: 48 | I51: 0 | J51: 196 | K51: 763 | L51: 0 | M51: 55 | N51: 0 | O51: 119 | P51: 827 | Q51: 0 | R51: 64 | S51: 0 | T51: 150 | U51: 913 | V51: 0 | W51: 100 | X51: 0 | Y51: 100 | Z51: 913 | AA51: 0 | AB51: 43 | AC51: 0 | AD51: 43 | AE51: 913
E52: 6.6/11 kV CB (GM) | F52: 2940 | G52: 0 | H52: 24 | I52: 15 | J52: 36 | K52: 2967 | L52: 7 | M52: 43 | N52: 22 | O52: 33 | P52: 2972 | Q52: 0 | R52: 43 | S52: 13 | T52: 50 | U52: 2992 | V52: 3 | W52: 50 | X52: 15 | Y52: 50 | Z52: 3004 | AA52: 3 | AB52: 50 | AC52: 14 | AD52: 50 | AE52: 3015
E53: 6.6/11 kV Switch (PM) | F53: 138 | G53: 0 | H53: 3 | I53: 0 | J53: 15 | K53: 150 | L53: 0 | M53: 2 | N53: 0 | O53: 14 | P53: 162 | Q53: 8 | R53: 3 | S53: 0 | T53: 3 | U53: 154 | V53: 3 | W53: 100 | X53: 0 | Y53: 100 | Z53: 151 | AA53: 3 | AB53: 43 | AC53: 0 | AD53: 43 | AE53: 148
E54: 6.6/11 kV Switch (GM) | F54: 2496 | G54: 14 | H54: 18 | I54: 4 | J54: 18 | K54: 2486 | L54: 48 | M54: 26 | N54: 5 | O54: 25 | P54: 2442 | Q54: 50 | R54: 26 | S54: 8 | T54: 26 | U54: 2400 | V54: 41 | W54: 25 | X54: 6 | Y54: 25 | Z54: 2365 | AA54: 40 | AB54: 50 | AC54: 5 | AD54: 50 | AE54: 2330
E55: 6.6/11 kV RMU | F55: 7060 | G55: 0 | H55: 49 | I55: 83 | J55: 72 | K55: 7166 | L55: 0 | M55: 72 | N55: 87 | O55: 73 | P55: 7254 | Q55: 5 | R55: 100 | S55: 114 | T55: 100 | U55: 7363 | V55: 2 | W55: 225 | X55: 85 | Y55: 225 | Z55: 7446 | AA55: 2 | AB55: 160 | AC55: 82 | AD55: 160 | AE55: 7526
E56: 6.6/11 kV Switchgear - Other (PM) | F56: 5011 | G56: 0 | H56: 93 | I56: 21 | J56: 252 | K56: 5191 | L56: 0 | M56: 36 | N56: 24 | O56: 305 | P56: 5484 | Q56: 0 | R56: 65 | S56: 20 | T56: 227 | U56: 5666 | V56: 0 | W56: 0 | X56: 18 | Y56: 0 | Z56: 5684 | AA56: 0 | AB56: 0 | AC56: 18 | AD56: 0 | AE56: 5702
E57: 6.6/11 kV Switchgear - Other (GM) | F57: 1 | G57: 0 | H57: 0 | I57: 0 | J57: 0 | K57: 1 | L57: 0 | M57: 0 | N57: 0 | O57: 0 | P57: 1 | Q57: 0 | R57: 0 | S57: 0 | T57: 0 | U57: 1 | V57: 0 | W57: 0 | X57: 0 | Y57: 0 | Z57: 1 | AA57: 0 | AB57: 0 | AC57: 0 | AD57: 0 | AE57: 1
E58: 20 kV CB (PM) | F58: 0 | G58: 0 | H58: 0 | I58: 0 | J58: 0 | K58: 0 | L58: 0 | M58: 0 | N58: 0 | O58: 0 | P58: 0 | Q58: 0 | R58: 0 | S58: 0 | T58: 0 | U58: 0 | V58: 0 | W58: 0 | X58: 0 | Y58: 0 | Z58: 0 | AA58: 0 | AB58: 0 | AC58: 0 | AD58: 0 | AE58: 0
E59: 20 kV CB (GM) | F59: 0 | G59: 0 | H59: 0 | I59: 0 | J59: 0 | K59: 0 | L59: 0 | M59: 0 | N59: 0 | O59: 0 | P59: 0 | Q59: 0 | R59: 0 | S59: 0 | T59: 0 | U59: 0 | V59: 0 | W59: 0 | X59: 0 | Y59: 0 | Z59: 0 | AA59: 0 | AB59: 0 | AC59: 0 | AD59: 0 | AE59: 0
E60: 20 kV Switch (PM) | F60: 0 | G60: 0 | H60: 0 | I60: 0 | J60: 0 | K60: 0 | L60: 0 | M60: 0 | N60: 0 | O60: 0 | P60: 0 | Q60: 0 | R60: 0 | S60: 0 | T60: 0 | U60: 0 | V60: 0 | W60: 0 | X60: 0 | Y60: 0 | Z60: 0 | AA60: 0 | AB60: 0 | AC60: 0 | AD60: 0 | AE60: 0
E61: 20 kV Switch (GM) | F61: 0 | G61: 0 | H61: 0 | I61: 0 | J61: 0 | K61: 0 | L61: 0 | M61: 0 | N61: 0 | O61: 0 | P61: 0 | Q61: 0 | R61: 0 | S61: 0 | T61: 0 | U61: 0 | V61: 0 | W61: 0 | X61: 0 | Y61: 0 | Z61: 0 | AA61: 0 | AB61: 0 | AC61: 0 | AD61: 0 | AE61: 0
E62: 20 kV RMU | F62: 0 | G62: 0 | H62: 0 | I62: 0 | J62: 0 | K62: 0 | L62: 0 | M62: 0 | N62: 0 | O62: 0 | P62: 0 | Q62: 0 | R62: 0 | S62: 0 | T62: 0 | U62: 0 | V62: 0 | W62: 0 | X62: 0 | Y62: 0 | Z62: 0 | AA62: 0 | AB62: 0 | AC62: 0 | AD62: 0 | AE62: 0
E63: 20 kV Switchgear - Other (PM) | F63: 0 | G63: 0 | H63: 0 | I63: 0 | J63: 0 | K63: 0 | L63: 0 | M63: 0 | N63: 0 | O63: 0 | P63: 0 | Q63: 0 | R63: 0 | S63: 0 | T63: 0 | U63: 0 | V63: 0 | W63: 0 | X63: 0 | Y63: 0 | Z63: 0 | AA63: 0 | AB63: 0 | AC63: 0 | AD63: 0 | AE63: 0
E64: 20 kV Switchgear - Other (GM) | F64: 0 | G64: 0 | H64: 0 | I64: 0 | J64: 0 | K64: 0 | L64: 0 | M64: 0 | N64: 0 | O64: 0 | P64: 0 | Q64: 0 | R64: 0 | S64: 0 | T64: 0 | U64: 0 | V64: 0 | W64: 0 | X64: 0 | Y64: 0 | Z64: 0 | AA64: 0 | AB64: 0 | AC64: 0 | AD64: 0 | AE64: 0
D66: Transformers
E67: 6.6/11 kV Transformer (PM) | F67: 31144 | G67: 0 | H67: 511 | I67: 127 | J67: 513 | K67: 31273 | L67: 60 | M67: 559 | N67: 140 | O67: 537 | P67: 31331 | Q67: 51 | R67: 559 | S67: 130 | T67: 559 | U67: 31410 | V67: 47 | W67: 182 | X67: 114 | Y67: 182 | Z67: 31477 | AA67: 45 | AB67: 343 | AC67: 109 | AD67: 343 | AE67: 31541
E68: 6.6/11 kV Transformer (GM) | F68: 7770 | G68: 0 | H68: 46 | I68: 95 | J68: 69 | K68: 7888 | L68: 16 | M68: 87 | N68: 104 | O68: 72 | P68: 7961 | Q68: 21 | R68: 87 | S68: 114 | T68: 87 | U68: 8054 | V68: 16 | W68: 22 | X68: 92 | Y68: 22 | Z68: 8130 | AA68: 15 | AB68: 42 | AC68: 88 | AD68: 42 | AE68: 8203
E69: 20 kV Transformer (PM) | F69: 0 | G69: 0 | H69: 0 | I69: 0 | J69: 0 | K69: 0 | L69: 0 | M69: 0 | N69: 0 | O69: 0 | P69: 0 | Q69: 0 | R69: 0 | S69: 0 | T69: 0 | U69: 0 | V69: 0 | W69: 0 | X69: 0 | Y69: 0 | Z69: 0 | AA69: 0 | AB69: 0 | AC69: 0 | AD69: 0 | AE69: 0
E70: 20 kV Transformer (GM) | F70: 0 | G70: 0 | H70: 0 | I70: 0 | J70: 0 | K70: 0 | L70: 0 | M70: 0 | N70: 0 | O70: 0 | P70: 0 | Q70: 0 | R70: 0 | S70: 0 | T70: 0 | U70: 0 | V70: 0 | W70: 0 | X70: 0 | Y70: 0 | Z70: 0 | AA70: 0 | AB70: 0 | AC70: 0 | AD70: 0 | AE70: 0
C72: EHV Network
D73: Overhead lines - Conductor
E74: 33kV OHL (Pole Line) | F74: 1196 | G74: 0 | H74: 5 | I74: 0 | J74: 5 | K74: 1196 | L74: 0 | M74: 20 | N74: 0 | O74: 14 | P74: 1190 | Q74: 0 | R74: 25 | S74: 0 | T74: 21 | U74: 1186 | V74: 0 | W74: 0 | X74: 0 | Y74: 0 | Z74: 1186 | AA74: 0 | AB74: 0 | AC74: 0 | AD74: 0 | AE74: 1186
E75: 33kV OHL (Tower Line) | F75: 41 | G75: 0 | H75: 0 | I75: 0 | J75: 0 | K75: 41 | L75: 0 | M75: 0 | N75: 0 | O75: 0 | P75: 41 | Q75: 0 | R75: 0 | S75: 0 | T75: 0 | U75: 41 | V75: 0 | W75: 0 | X75: 0 | Y75: 0 | Z75: 41 | AA75: 0 | AB75: 0 | AC75: 0 | AD75: 0 | AE75: 41
E76: 66kV OHL (Pole Line) | F76: 329 | G76: 0 | H76: 0 | I76: 0 | J76: 0 | K76: 329 | L76: 0 | M76: 0 | N76: 0 | O76: 0 | P76: 329 | Q76: 0 | R76: 0 | S76: 0 | T76: 0 | U76: 329 | V76: 0 | W76: 0 | X76: 0 | Y76: 0 | Z76: 329 | AA76: 0 | AB76: 0 | AC76: 0 | AD76: 0 | AE76: 329
E77: 66kV OHL (Tower Line) | F77: 28 | G77: 0 | H77: 0 | I77: 0 | J77: 0 | K77: 28 | L77: 0 | M77: 0 | N77: 0 | O77: 0 | P77: 28 | Q77: 0 | R77: 0 | S77: 0 | T77: 0 | U77: 28 | V77: 0 | W77: 0 | X77: 0 | Y77: 0 | Z77: 28 | AA77: 0 | AB77: 0 | AC77: 0 | AD77: 0 | AE77: 28
D79: Overhead lines - Support
E80: 33kV Pole | F80: 15348 | G80: 0 | H80: 138 | I80: 0 | J80: 138 | K80: 15348 | L80: 0 | M80: 285 | N80: 0 | O80: 261 | P80: 15324 | Q80: 0 | R80: 366 | S80: 0 | T80: 366 | U80: 15324 | V80: 0 | W80: 350 | X80: 0 | Y80: 350 | Z80: 15324 | AA80: 0 | AB80: 350 | AC80: 0 | AD80: 350 | AE80: 15324
E81: 33kV Tower | F81: 190 | G81: 0 | H81: 0 | I81: 0 | J81: 0 | K81: 190 | L81: 0 | M81: 0 | N81: 0 | O81: 0 | P81: 190 | Q81: 0 | R81: 0 | S81: 0 | T81: 0 | U81: 190 | V81: 0 | W81: 0 | X81: 0 | Y81: 0 | Z81: 190 | AA81: 0 | AB81: 0 | AC81: 0 | AD81: 0 | AE81: 190
E82: 66kV Pole | F82: 4318 | G82: 0 | H82: 0 | I82: 0 | J82: 0 | K82: 4318 | L82: 0 | M82: 0 | N82: 0 | O82: 0 | P82: 4318 | Q82: 0 | R82: 0 | S82: 0 | T82: 0 | U82: 4318 | V82: 0 | W82: 0 | X82: 0 | Y82: 0 | Z82: 4318 | AA82: 0 | AB82: 0 | AC82: 0 | AD82: 0 | AE82: 4318
E83: 66kV Tower | F83: 251 | G83: 0 | H83: 0 | I83: 0 | J83: 0 | K83: 251 | L83: 0 | M83: 0 | N83: 0 | O83: 0 | P83: 251 | Q83: 0 | R83: 0 | S83: 0 | T83: 0 | U83: 251 | V83: 0 | W83: 0 | X83: 0 | Y83: 0 | Z83: 251 | AA83: 0 | AB83: 0 | AC83: 0 | AD83: 0 | AE83: 251
D85: Underground cables (kms)
E86: 33kV UG Cable (Non Pressurised) | F86: 364.14 | G86: 0 | H86: 0 | I86: 1 | J86: 0 | K86: 365.14 | L86: 0 | M86: 0 | N86: 12.9 | O86: 0 | P86: 378.04 | Q86: 0 | R86: 0 | S86: 0.4 | T86: 0.4 | U86: 378.84 | V86: 0 | W86: 0 | X86: 2 | Y86: 0 | Z86: 380.84 | AA86: 0 | AB86: 0 | AC86: 6 | AD86: 0 | AE86: 386.84
E87: 33kV UG Cable (Oil) | F87: 0 | G87: 0 | H87: 0 | I87: 0 | J87: 0 | K87: 0 | L87: 0 | M87: 0 | N87: 0 | O87: 0 | P87: 0 | Q87: 0 | R87: 0 | S87: 0 | T87: 0 | U87: 0 | V87: 0 | W87: 0 | X87: 0 | Y87: 0 | Z87: 0 | AA87: 0 | AB87: 0 | AC87: 0 | AD87: 0 | AE87: 0
E88: 33kV UG Cable (Gas) | F88: 8.124 | G88: 0 | H88: 0 | I88: 0 | J88: 0 | K88: 8.124 | L88: 0 | M88: 0 | N88: 0 | O88: 0 | P88: 8.124 | Q88: 0 | R88: 0 | S88: 0 | T88: 0 | U88: 8.124 | V88: 0 | W88: 0 | X88: 0 | Y88: 0 | Z88: 8.124 | AA88: 0 | AB88: 0 | AC88: 0 | AD88: 0 | AE88: 8.124
E89: 66kV UG Cable (Non Pressurised) | F89: 6 | G89: 0 | H89: 0 | I89: 0 | J89: 0 | K89: 6 | L89: 0 | M89: 0 | N89: 0 | O89: 0 | P89: 6 | Q89: 0 | R89: 0 | S89: 0 | T89: 0 | U89: 6 | V89: 0 | W89: 0 | X89: 0 | Y89: 0 | Z89: 6 | AA89: 0 | AB89: 0 | AC89: 0 | AD89: 0 | AE89: 6
E90: 66kV UG Cable (Oil) | F90: 2 | G90: 0 | H90: 0 | I90: 0 | J90: 0 | K90: 2 | L90: 0 | M90: 0 | N90: 0 | O90: 0 | P90: 2 | Q90: 0 | R90: 0 | S90: 0 | T90: 0 | U90: 2 | V90: 0 | W90: 0 | X90: 0 | Y90: 0 | Z90: 2 | AA90: 0 | AB90: 0 | AC90: 0 | AD90: 0 | AE90: 2
E91: 66kV UG Cable (Gas) | F91: 1 | G91: 0 | H91: 0 | I91: 0 | J91: 0 | K91: 1 | L91: 0 | M91: 0 | N91: 0 | O91: 0 | P91: 1 | Q91: 0 | R91: 0 | S91: 0 | T91: 0 | U91: 1 | V91: 0 | W91: 0 | X91: 0 | Y91: 0 | Z91: 1 | AA91: 0 | AB91: 0 | AC91: 0 | AD91: 0 | AE91: 1
D93: Submarine cables (kms)
E94: EHV Sub Cable | F94: 1.3 | G94: 0 | H94: 0 | I94: - | J94: 0 | K94: 1.3 | L94: 0 | M94: 0 | N94: - | O94: 0 | P94: 1.3 | Q94: 0 | R94: 0 | S94: - | T94: 0 | U94: 1.3 | V94: 0 | W94: 0 | X94: 0 | Y94: 0 | Z94: 1.3 | AA94: 0 | AB94: 0 | AC94: 0 | AD94: 0 | AE94: 1.3
D96: Switchgear
E97: 33 KV CB (ID) | F97: 295 | G97: 0 | H97: 0 | I97: 0 | J97: 0 | K97: 295 | L97: 0 | M97: 0 | N97: 0 | O97: 7 | P97: 302 | Q97: 0 | R97: 0 | S97: 1 | T97: 6 | U97: 309 | V97: 0 | W97: 6 | X97: 1 | Y97: 6 | Z97: 310 | AA97: 0 | AB97: 6 | AC97: 1 | AD97: 6 | AE97: 311
E98: 33 kV CB (OD) | F98: 294 | G98: 10 | H98: 5 | I98: 0 | J98: 5 | K98: 284 | L98: 2 | M98: 2 | N98: 0 | O98: 2 | P98: 282 | Q98: 6 | R98: 30 | S98: 0 | T98: 30 | U98: 276 | V98: 2 | W98: 4 | X98: 1 | Y98: 4 | Z98: 275 | AA98: 2 | AB98: 4 | AC98: 1 | AD98: 4 | AE98: 274
E99: 33 kV Switch (GM) | F99: 16 | G99: 0 | H99: 0 | I99: 0 | J99: 0 | K99: 16 | L99: 0 | M99: 0 | N99: 0 | O99: 0 | P99: 16 | Q99: 0 | R99: 0 | S99: 0 | T99: 0 | U99: 16 | V99: 0 | W99: 0 | X99: 0 | Y99: 0 | Z99: 16 | AA99: 0 | AB99: 0 | AC99: 0 | AD99: 0 | AE99: 16
E100: 33 kV Switch (PM) | F100: 0 | G100: 0 | H100: 0 | I100: 0 | J100: 0 | K100: 0 | L100: 0 | M100: 0 | N100: 0 | O100: 0 | P100: 0 | Q100: 0 | R100: 0 | S100: 0 | T100: 0 | U100: 0 | V100: 0 | W100: 0 | X100: 0 | Y100: 0 | Z100: 0 | AA100: 0 | AB100: 0 | AC100: 0 | AD100: 0 | AE100: 0
E101: 33 kV RMU | F101: 0 | G101: 0 | H101: 0 | I101: 0 | J101: 0 | K101: 0 | L101: 0 | M101: 0 | N101: 0 | O101: 0 | P101: 0 | Q101: 0 | R101: 0 | S101: 0 | T101: 0 | U101: 0 | V101: 0 | W101: 0 | X101: 0 | Y101: 0 | Z101: 0 | AA101: 0 | AB101: 0 | AC101: 0 | AD101: 0 | AE101: 0
E102: 33 kV Switchgear - Other | F102: 1117 | G102: 9 | H102: 10 | I102: 0 | J102: 10 | K102: 1108 | L102: 26 | M102: 1 | N102: 0 | O102: 1 | P102: 1082 | Q102: 4 | R102: 8 | S102: 0 | T102: 8 | U102: 1078 | V102: 4 | W102: 0 | X102: 2 | Y102: 0 | Z102: 1076 | AA102: 4 | AB102: 0 | AC102: 2 | AD102: 0 | AE102: 1074
E103: 66 KV CB (ID & OD) | F103: 53 | G103: 0 | H103: 0 | I103: 0 | J103: 0 | K103: 53 | L103: 0 | M103: 0 | N103: 0 | O103: 0 | P103: 53 | Q103: 0 | R103: 0 | S103: 0 | T103: 0 | U103: 53 | V103: 0 | W103: 1 | X103: 0 | Y103: 1 | Z103: 53 | AA103: 0 | AB103: 1 | AC103: 0 | AD103: 1 | AE103: 53
E104: 66 KV Switchgear - Other | F104: 233 | G104: 0 | H104: 0 | I104: 0 | J104: 0 | K104: 233 | L104: 0 | M104: 0 | N104: 0 | O104: 0 | P104: 233 | Q104: 2 | R104: 0 | S104: 0 | T104: 0 | U104: 231 | V104: 0 | W104: 0 | X104: 2 | Y104: 0 | Z104: 233 | AA104: 0 | AB104: 0 | AC104: 0 | AD104: 0 | AE104: 233
D106: Transformers
E107: 33 kV Transformer (PM) | F107: 0 | G107: 0 | H107: 0 | I107: 0 | J107: 0 | K107: 0 | L107: 0 | M107: 0 | N107: 0 | O107: 0 | P107: 0 | Q107: 0 | R107: 0 | S107: 0 | T107: 0 | U107: 0 | V107: 0 | W107: 0 | X107: 0 | Y107: 0 | Z107: 0 | AA107: 0 | AB107: 0 | AC107: 0 | AD107: 0 | AE107: 0
E108: 33 kV Transformer (GM) | F108: 247 | G108: 2 | H108: 0 | I108: 3 | J108: 0 | K108: 248 | L108: 0 | M108: 0 | N108: 3 | O108: 0 | P108: 251 | Q108: 5 | R108: 0 | S108: 1 | T108: 0 | U108: 247 | V108: 2 | W108: 2 | X108: 2 | Y108: 2 | Z108: 247 | AA108: 2 | AB108: 2 | AC108: 2 | AD108: 2 | AE108: 247
E109: 33 kV AuxiliaryTransfomer | F109: 242 | G109: 0 | H109: 0 | I109: 0 | J109: 0 | K109: 242 | L109: 0 | M109: 0 | N109: 2 | O109: 0 | P109: 244 | Q109: 0 | R109: 0 | S109: 0 | T109: 0 | U109: 244 | V109: 0 | W109: 0 | X109: 0 | Y109: 0 | Z109: 244 | AA109: 0 | AB109: 0 | AC109: 0 | AD109: 0 | AE109: 244
E110: 66 kV Transformer | F110: 30 | G110: 0 | H110: 0 | I110: 0 | J110: 0 | K110: 30 | L110: 0 | M110: 0 | N110: 0 | O110: 0 | P110: 30 | Q110: 0 | R110: 0 | S110: 0 | T110: 0 | U110: 30 | V110: 0 | W110: 2 | X110: 0 | Y110: 2 | Z110: 30 | AA110: 0 | AB110: 2 | AC110: 0 | AD110: 2 | AE110: 30
E111: 66 kV AuxiliaryTransfomer | F111: 0 | G111: 0 | H111: 0 | I111: 0 | J111: 0 | K111: 0 | L111: 0 | M111: 0 | N111: 0 | O111: 0 | P111: 0 | Q111: 0 | R111: 0 | S111: 0 | T111: 0 | U111: 0 | V111: 0 | W111: 0 | X111: 0 | Y111: 0 | Z111: 0 | AA111: 0 | AB111: 0 | AC111: 0 | AD111: 0 | AE111: 0
C113: 132kV Network
D114: Overhead lines - Conductor
E115: 132kV OHL Conductor (Pole Line) | F115: 91 | G115: 0 | H115: 0 | I115: 0 | J115: 0 | K115: 91 | L115: 0 | M115: 0 | N115: 0 | O115: 0 | P115: 91 | Q115: 0 | R115: 0 | S115: 0 | T115: 0 | U115: 91 | V115: 0 | W115: 0 | X115: 0 | Y115: 0 | Z115: 91 | AA115: 0 | AB115: 0 | AC115: 0 | AD115: 0 | AE115: 91
E116: 132kV OHL Conductor (Tower Line) | F116: 1089 | G116: 0 | H116: 0 | I116: 0 | J116: 0 | K116: 1089 | L116: 0 | M116: 0 | N116: 0 | O116: 0 | P116: 1089 | Q116: 0 | R116: 0 | S116: 0 | T116: 0 | U116: 1089 | V116: 0 | W116: 0 | X116: 0 | Y116: 0 | Z116: 1089 | AA116: 0 | AB116: 0 | AC116: 0 | AD116: 0 | AE116: 1089
D118: Overhead lines - Support
E119: 132kV Pole | F119: 835 | G119: 0 | H119: 0 | I119: 0 | J119: 0 | K119: 835 | L119: 0 | M119: 0 | N119: 0 | O119: 0 | P119: 835 | Q119: 0 | R119: 0 | S119: 0 | T119: 0 | U119: 835 | V119: 0 | W119: 10 | X119: 0 | Y119: 10 | Z119: 835 | AA119: 0 | AB119: 10 | AC119: 0 | AD119: 10 | AE119: 835
E120: 132kV Tower | F120: 2354 | G120: 0 | H120: 0 | I120: 0 | J120: 0 | K120: 2354 | L120: 0 | M120: 0 | N120: 0 | O120: 0 | P120: 2354 | Q120: 0 | R120: 0 | S120: 0 | T120: 0 | U120: 2354 | V120: 0 | W120: 1 | X120: 0 | Y120: 1 | Z120: 2354 | AA120: 0 | AB120: 1 | AC120: 0 | AD120: 1 | AE120: 2354
E121: 132kV Fittings (Tower Line) | F121: 4708 | G121: 0 | H121: 0 | I121: 0 | J121: 0 | K121: 4708 | L121: 0 | M121: 0 | N121: 0 | O121: 0 | P121: 4708 | Q121: 0 | R121: 0 | S121: 0 | T121: 0 | U121: 4708 | V121: 0 | W121: 0 | X121: 0 | Y121: 0 | Z121: 4708 | AA121: 0 | AB121: 0 | AC121: 0 | AD121: 0 | AE121: 4708
D123: Underground cables (kms)
E124: 132kV UG Cable (Non Pressurised) | F124: 35 | G124: 0 | H124: 0 | I124: 0 | J124: 0 | K124: 35 | L124: 0 | M124: 0 | N124: 0.4 | O124: 0 | P124: 35.4 | Q124: 0 | R124: 0 | S124: 0 | T124: 0 | U124: 35.4 | V124: 0 | W124: 0 | X124: 0 | Y124: 0 | Z124: 35.4 | AA124: 0 | AB124: 0 | AC124: 0 | AD124: 0 | AE124: 35.4
E125: 132kV UG Cable (Oil) | F125: 58 | G125: 0 | H125: 0 | I125: 0 | J125: 0 | K125: 58 | L125: 0 | M125: 0 | N125: 0 | O125: 0 | P125: 58 | Q125: 0 | R125: 0 | S125: 0 | T125: 0 | U125: 58 | V125: 0 | W125: 0.1 | X125: 0 | Y125: 0.1 | Z125: 58 | AA125: 0 | AB125: 0.1 | AC125: 0 | AD125: 0.1 | AE125: 58
E126: 132kV UG Cable (Gas) | F126: 0 | G126: 0 | H126: 0 | I126: 0 | J126: 0 | K126: 0 | L126: 0 | M126: 0 | N126: 0 | O126: 0 | P126: 0 | Q126: 0 | R126: 0 | S126: 0 | T126: 0 | U126: 0 | V126: 0 | W126: 0 | X126: 0 | Y126: 0 | Z126: 0 | AA126: 0 | AB126: 0 | AC126: 0 | AD126: 0 | AE126: 0
D128: Submarine cables (kms)
E129: 132 kV Sub Cable | F129: 0 | G129: 0 | H129: 0 | I129: 0 | J129: 0 | K129: 0 | L129: 0 | M129: 0 | N129: 0 | O129: 0 | P129: 0 | Q129: 0 | R129: 0 | S129: 0 | T129: 0 | U129: 0 | V129: 0 | W129: 0 | X129: 0 | Y129: 0 | Z129: 0 | AA129: 0 | AB129: 0 | AC129: 0 | AD129: 0 | AE129: 0
D131: Switchgear
E132: 132 kV CB (ID & OD) | F132: 214 | G132: 2 | H132: 1 | I132: 2 | J132: 1 | K132: 214 | L132: 0 | M132: 0 | N132: 2 | O132: 1 | P132: 217 | Q132: 0 | R132: 0 | S132: 3 | T132: 2 | U132: 222 | V132: 0 | W132: 2 | X132: 0 | Y132: 2 | Z132: 222 | AA132: 0 | AB132: 2 | AC132: 0 | AD132: 2 | AE132: 222
E133: 132 kV Switchgear (other) | F133: 730 | G133: 0 | H133: 0 | I133: 0 | J133: 0 | K133: 730 | L133: 7 | M133: 4 | N133: 0 | O133: 4 | P133: 723 | Q133: 0 | R133: 0 | S133: 2 | T133: 2 | U133: 727 | V133: 0 | W133: 0 | X133: 0 | Y133: 0 | Z133: 727 | AA133: 0 | AB133: 0 | AC133: 0 | AD133: 0 | AE133: 727
D135: Transformers
E136: 132 kV Transformer | F136: 128 | G136: 0 | H136: 0 | I136: 0 | J136: 0 | K136: 128 | L136: 1 | M136: 0 | N136: 2 | O136: 0 | P136: 129 | Q136: 3 | R136: 4 | S136: 2 | T136: 4 | U136: 128 | V136: 1 | W136: 2 | X136: 1 | Y136: 2 | Z136: 128 | AA136: 0 | AB136: 2 | AC136: 3 | AD136: 2 | AE136: 131
E137: 132 kV AuxiliaryTransfomer | F137: 133 | G137: 0 | H137: 0 | I137: 0 | J137: 0 | K137: 133 | L137: 1 | M137: 0 | N137: 2 | O137: 0 | P137: 134 | Q137: 0 | R137: 0 | S137: 0 | T137: 4 | U137: 138 | V137: 0 | W137: 0 | X137: 0 | Y137: 0 | Z137: 138 | AA137: 0 | AB137: 0 | AC137: 2 | AD137: 0 | AE137: 140
C139: Tele-control / SCADA
D140: Primary substation
E141: 132 kV/EHV RTU (PM) | F141: 0 | G141: 0 | H141: 0 | I141: 0 | J141: 0 | K141: 0 | L141: 0 | M141: 0 | N141: 0 | O141: 0 | P141: 0 | Q141: 0 | R141: 0 | S141: 0 | T141: 0 | U141: 0 | V141: 0 | W141: 0 | X141: 0 | Y141: 0 | Z141: 0 | AA141: 0 | AB141: 0 | AC141: 1 | AD141: 0 | AE141: 1
E142: 132 kV/EHV RTU (GM) | F142: 272 | G142: 0 | H142: 0 | I142: 0 | J142: 0 | K142: 272 | L142: 0 | M142: 0 | N142: 0 | O142: 0 | P142: 272 | Q142: 0 | R142: 0 | S142: 0 | T142: 0 | U142: 272 | V142: 0 | W142: 0 | X142: 0 | Y142: 0 | Z142: 272 | AA142: 0 | AB142: 0 | AC142: 0 | AD142: 0 | AE142: 272
D144: Secondary substation
E145: HV RTU (PM) | F145: 1244 | G145: 0 | H145: 0 | I145: 0 | J145: 0 | K145: 1244 | L145: 0 | M145: 0 | N145: 0 | O145: 0 | P145: 1244 | Q145: 0 | R145: 0 | S145: 0 | T145: 0 | U145: 1244 | V145: 0 | W145: 0 | X145: 1 | Y145: 0 | Z145: 1245 | AA145: 0 | AB145: 0 | AC145: 1 | AD145: 0 | AE145: 1246
E146: HV RTU (GM) | F146: 143 | G146: 0 | H146: 0 | I146: 0 | J146: 0 | K146: 143 | L146: 0 | M146: 0 | N146: 0 | O146: 0 | P146: 143 | Q146: 0 | R146: 0 | S146: 0 | T146: 0 | U146: 143 | V146: 0 | W146: 0 | X146: 0 | Y146: 0 | Z146: 143 | AA146: 0 | AB146: 0 | AC146: 0 | AD146: 0 | AE146: 143

Sheet FBPQ LR1
A1: Main Forecast Business Plan DPCR5 | F1: Index
A3: LR1 - Demand
B6: Demand Totals
C8: Units | D8: DPCR4 | I8: DPCR5 | O8: DPCR4 | S8: DPCR5
D9: 2005/06 | E9: 2006/07 | F9: 2007/08 | G9: 2008/09 | H9: 2009/10 | I9: 2010/11 | J9: 2011/12 | K9: 2012/13 | L9: 2013/14 | M9: 2014/15 | O9: Actuals | P9: Forecast | Q9: Total | S9: Forecast | T9: % change
B10: Gross direct costs | C10: £m | D10: 17.6 | E10: 18.1 | F10: 20.7 | G10: 15.3 | H10: 14.6 | I10: 13.4 | J10: 14.1 | K10: 13.1 | L10: 13.1 | M10: 13.8 | O10: 56.4 | P10: 29.9 | Q10: 86.3 | S10: 67.5 | T10: -0.2178447277
B11: Customer contributions directs | C11: £m | D11: 17 | E11: 17.1 | F11: 19 | G11: 14.15 | H11: 13.5 | I11: 12.7 | J11: 13.15 | K11: 12.3 | L11: 12.3 | M11: 12.85 | O11: 53.1 | P11: 27.65 | Q11: 80.75 | S11: 63.3 | T11: -0.2160990712
B12: Net (gross directs - customer contributions directs) | C12: £m | D12: 0.6 | E12: 1 | F12: 1.7 | G12: 1.15 | H12: 1.1 | I12: 0.7 | J12: 0.95 | K12: 0.8 | L12: 0.8 | M12: 0.95 | O12: 3.3 | P12: 2.25 | Q12: 5.55 | S12: 4.2 | T12: -0.2432432432
B13: Customer contributions indirects | C13: £m | D13: -0.7 | E13: 3.8 | F13: 5.8 | G13: 5.4 | H13: 5.1 | I13: 4.8 | J13: 5 | K13: 4.7 | L13: 4.7 | M13: 4.9 | O13: 8.9 | P13: 10.5 | Q13: 19.4 | S13: 24.1 | T13: 0.2422680412
B14: Net (gross directs - customer contributions directs and indirects) | C14: £m | D14: 1.3 | E14: -2.8 | F14: -4.1 | G14: -4.25 | H14: -4 | I14: -4.1 | J14: -4.05 | K14: -3.9 | L14: -3.9 | M14: -3.95 | O14: -5.6 | P14: -8.25 | Q14: -13.85 | S14: -19.9 | T14: 0.4368231047
B16: Demand trends
C18: Units | D18: DPCR4 | I18: DPCR5
D19: 2005/06 | E19: 2006/07 | F19: 2007/08 | G19: 2008/09 | H19: 2009/10 | I19: 2010/11 | J19: 2011/12 | K19: 2012/13 | L19: 2013/14 | M19: 2014/15
B21: Estimated system maximum demand | C21: MW | D21: 2248.950333 | E21: 2150.797469 | F21: 2179.2926 | G21: 2157.85608 | H21: 2157.85608 | I21: 2179.434641 | J21: 2201.228988 | K21: 2223.241277 | L21: 2245.47369 | M21: 2267.928427
B22: Increase/Reduction in max demand | C22: MW | D22: 14.9925 | E22: -98.15286376 | F22: 28.49513058 | G22: -21.43651967 | H22: 0 | I22: 21.5785608 | J22: 21.79434641 | K22: 22.01228988 | L22: 22.23241277 | M22: 22.4547369
B23: Incremental increase in max demand due to new connections | C23: MW | D23: 14.9925 | E23: 13.3021 | F23: 18.3856 | G23: 14.915 | H23: 14.75 | I23: 15.8 | J23: 17.1 | K23: 18.1 | L23: 18.1 | M23: 18.1
B24: Incremental reduction in max demand due to disconnections | C24: MW | D24: 0 | E24: -0.4282 | F24: -0.8454 | G24: -0.47 | H24: -0.448 | I24: -0.72 | J24: -0.775 | K24: -0.775 | L24: -0.775 | M24: -0.775
B25: Net change in max demand (not due to connections/disconnections) | C25: MW | D25: 0 | E25: -111.0267638 | F25: 10.95493058 | G25: -35.88151967 | H25: -14.302 | I25: 6.498560803 | J25: 5.469346411 | K25: 4.687289875 | L25: 4.907412774 | M25: 5.129736902
B27: Estimated units distributed | C27: GWh | D27: 13175.31223 | E27: 12752.51587 | F27: 12653.15049 | G27: 12355.35049 | H27: 12355.35049 | I27: 12478.90414 | J27: 12603.69333 | K27: 12729.73042 | L27: 12857.02787 | M27: 12985.5983
B28: Increase/Reduction in units distributed | C28: GWh | D28: 56.01745217 | E28: -422.7963574 | F28: -99.36538898 | G28: -297.8 | H28: 0 | I28: 123.5536548 | J28: 124.7891914 | K28: 126.0370833 | L28: 127.2974541 | M28: 128.5704287
B29: Increase in units distributed due to generic background demand growth | C29: GWh | D29: 56.01745217 | E29: -422.7963574 | F29: -99.36538898 | G29: -171.3 | H29: 123.6 | I29: 123.5536548 | J29: 124.7891914 | K29: 126.0370833 | L29: 127.2974541 | M29: 128.5704287
B30: Reduction in units distributed due to energy efficiency | C30: GWh | D30: 0 | E30: 0 | F30: 0 | G30: 0 | H30: 0 | I30: 0 | J30: 0 | K30: 0 | L30: 0 | M30: 0
B31: Units distributed offset by DG | C31: GWh | D31: 0 | E31: 0 | F31: 0 | G31: 0 | H31: 0 | I31: 0 | J31: 0 | K31: 0 | L31: 0 | M31: 0
B32: Units distributed offset by DSM | C32: GWh | D32: 0 | E32: 0 | F32: 0 | G32: 0 | H32: 0 | I32: 0 | J32: 0 | K32: 0 | L32: 0 | M32: 0
B33: Price impact on units distributed | C33: GWh | D33: 0 | E33: 0 | F33: 0 | G33: 0 | H33: 0 | I33: 0 | J33: 0 | K33: 0 | L33: 0 | M33: 0
B34: Economic downturn effect on units distributed | C34: GWh | D34: 0 | E34: 0 | F34: 0 | G34: -126.5 | H34: -123.6 | I34: 0 | J34: 0 | K34: 0 | L34: 0 | M34: 0
B36: Estimated units distributed
B37: LV | C37: GWh | D37: 7428.872901 | E37: 7245.308492 | F37: 7216.204194 | G37: 7288.366236 | H37: 7288.366236 | I37: 7361.249899 | J37: 7434.862398 | K37: 7509.211022 | L37: 7584.303132 | M37: 7660.146163
B38: HV | C38: GWh | D38: 2674.889659 | E38: 2491.179643 | F38: 2482.108353 | G38: 2407.645102 | H38: 2407.645102 | I38: 2431.721553 | J38: 2456.038769 | K38: 2480.599157 | L38: 2505.405148 | M38: 2530.4592
B39: EHV (inc. 132kV) | C39: GWh | D39: 3071.549672 | E39: 3016.02774 | F39: 2954.837938 | G39: 2659.354144 | H39: 2659.354144 | I39: 2685.947686 | J39: 2712.807163 | K39: 2739.935234 | L39: 2767.334587 | M39: 2795.007933
B40: Total units distributed | C40: GWh | D40: 13175.31223 | E40: 12752.51587 | F40: 12653.15049 | G40: 12355.36548 | H40: 12355.36548 | I40: 12478.91914 | J40: 12603.70833 | K40: 12729.74541 | L40: 12857.04287 | M40: 12985.6133
B42: Incremental increase in units distributed attributable to new connections
B43: LV | C43: MWh | D43: 37362.5 | E43: 38496.5 | F43: 42462 | G43: 31500 | H43: 30345 | I43: 28000 | J43: 27125 | K43: 24675 | L43: 24675 | M43: 24675
B44: HV | C44: MWh | D44: 28470 | E44: 5255 | F44: 37230 | G44: 30660 | H44: 30660 | I44: 32850 | J44: 39420 | K44: 48180 | L44: 48180 | M44: 48180
B45: EHV (inc. 132kV) | C45: MWh | D45: 0 | E45: 0 | F45: 30000 | G45: 89000 | H45: 0 | I45: 0 | J45: 20000 | K45: 20000 | L45: 0 | M45: 20000
B46: Total increase in units distributed due to new connections | C46: MWh | D46: 65832.5 | E46: 43751.5 | F46: 109692 | G46: 151160 | H46: 61005 | I46: 60850 | J46: 86545 | K46: 92855 | L46: 72855 | M46: 92855
B49: Connections/disconnections volume
C51: Units | D51: DPCR4 | I51: DPCR5
D52: 2005/06 | E52: 2006/07 | F52: 2007/08 | G52: 2008/09 | H52: 2009/10 | I52: 2010/11 | J52: 2011/12 | K52: 2012/13 | L52: 2013/14 | M52: 2014/15
B53: Connections/Disconnections
B54: Estimated number demand connections/disconnections at LV
B55: IDNO connections | C55: # | D55: 0 | E55: 0 | F55: 7 | G55: 2 | H55: 4 | I55: 8 | J55: 10 | K55: 12 | L55: 12 | M55: 12
B56: Connections (excluding IDNOs) | C56: # | D56: 10675 | E56: 11161 | F56: 10696 | G56: 9200 | H56: 8850 | I56: 8200 | J56: 8000 | K56: 7300 | L56: 7300 | M56: 7300
B57: Disconnections | C57: # | D57: N/A | E57: 162 | F57: 314 | G57: 200 | H57: 180 | I57: 200 | J57: 250 | K57: 250 | L57: 250 | M57: 250
B58: Estimated number demand connections/disconnections at HV
B59: IDNO connections | C59: # | D59: 0 | E59: 1 | F59: 4 | G59: 3 | H59: 3 | I59: 6 | J59: 8 | K59: 10 | L59: 10 | M59: 10
B60: Connections (excluding IDNOs) | C60: # | D60: 13 | E60: 3 | F60: 19 | G60: 15 | H60: 15 | I60: 17 | J60: 20 | K60: 24 | L60: 24 | M60: 24
B61: Disconnections | C61: # | D61: N/A | E61: 1 | F61: 2 | G61: 1 | H61: 1 | I61: 2 | J61: 2 | K61: 2 | L61: 2 | M61: 2
B62: Estimated number demand connections/disconnections at EHV
B63: IDNO connections | C63: # | D63: 0 | E63: 0 | F63: 1 | G63: 0 | H63: 0 | I63: 0 | J63: 0 | K63: 0 | L63: 0 | M63: 0
B64: Connections (excluding IDNOs) | C64: # | D64: 0 | E64: 0 | F64: 1 | G64: 1 | H64: 0 | I64: 0 | J64: 1 | K64: 0 | L64: 0 | M64: 1
B65: Disconnections | C65: # | D65: N/A | E65: 0 | F65: 0 | G65: 0 | H65: 0 | I65: 0 | J65: 0 | K65: 0 | L65: 0 | M65: 0
B66: Estimated number demand connections/disconnections at 132kV
B67: IDNO connections | C67: # | D67: 0 | E67: 0 | F67: 0 | G67: 0 | H67: 0 | I67: 0 | J67: 0 | K67: 0 | L67: 0 | M67: 0
B68: Connections (excluding IDNOs) | C68: # | D68: 0 | E68: 0 | F68: 0 | G68: 0 | H68: 0 | I68: 0 | J68: 0 | K68: 0 | L68: 0 | M68: 0
B69: Disconnections | C69: # | D69: N/A | E69: 0 | F69: 0 | G69: 0 | H69: 0 | I69: 0 | J69: 0 | K69: 0 | L69: 0 | M69: 0
B70: Total number of demand connections | C70: # | D70: 10688 | E70: 11165 | F70: 10728 | G70: 9221 | H70: 8872 | I70: 8231 | J70: 8039 | K70: 7346 | L70: 7346 | M70: 7347
B71: Total number of demand disconnections | C71: # | D71: 0 | E71: 163 | F71: 316 | G71: 201 | H71: 181 | I71: 202 | J71: 252 | K71: 252 | L71: 252 | M71: 252
B74: Customer specific demand investment
C76: Units | D76: DPCR4 | I76: DPCR5 | O76: DPCR4 | S76: DPCR5
D77: 2005/06 | E77: 2006/07 | F77: 2007/08 | G77: 2008/09 | H77: 2009/10 | I77: 2010/11 | J77: 2011/12 | K77: 2012/13 | L77: 2013/14 | M77: 2014/15 | O77: Actuals | P77: Forecast | Q77: Total | S77: Forecast | T77: % change
B78: New connections & customer specific reinforcement:
B79: Connections provided at LV
B80: Sole use | C80: £m | D80: 14.1 | E80: 12 | F80: 13.8 | G80: 11.3 | H80: 10.9 | I80: 10 | J80: 9.8 | K80: 9 | L80: 9 | M80: 9 | O80: 39.9 | P80: 22.2 | Q80: 62.1 | S80: 46.9 | T80: -0.2447665056
B81: Shared | C81: £m | D81: 0.7 | E81: 1 | F81: 1.7 | G81: 1 | H81: 0.9 | I81: 1.3 | J81: 1.3 | K81: 1.1 | L81: 1.1 | M81: 1.1 | O81: 3.4 | P81: 1.9 | Q81: 5.3 | S81: 4.1 | T81: -0.2264150943
B82: LV total | C82: £m | D82: 14.8 | E82: 13 | F82: 15.5 | G82: 12.3 | H82: 11.8 | I82: 11.3 | J82: 11.1 | K82: 10.1 | L82: 10.1 | M82: 10.1 | O82: 43.3 | P82: 24.1 | Q82: 67.4 | S82: 51 | T82: -0.2433234421
B83: Connections provided at HV
B84: Sole use | C84: £m | D84: 2.2 | E84: 3.2 | F84: 2.5 | G84: 1.7 | H84: 1.9 | I84: 1.1 | J84: 1 | K84: 1 | L84: 1 | M84: 1 | O84: 7.9 | P84: 3.6 | Q84: 11.5 | S84: 11.9 | T84: 0.0347826087
B85: Shared | C85: £m | D85: 0 | E85: 0 | F85: 0.5 | G85: 0.6 | H85: 0.7 | I85: 1.3 | J85: 1.3 | K85: 1.3 | L85: 1.3 | M85: 1.3 | O85: 0.5 | P85: 1.3 | Q85: 1.8 | S85: 3.2 | T85: 0.7777777778
B86: HV total | C86: £m | D86: 2.2 | E86: 3.2 | F86: 3 | G86: 2.3 | H86: 2.6 | I86: 2.4 | J86: 2.3 | K86: 2.3 | L86: 2.3 | M86: 2.3 | O86: 8.4 | P86: 4.9 | Q86: 13.3 | S86: 15.1 | T86: 0.1353383459
B87: Connections provided at EHV
B88: Sole use | C88: £m | D88: 0.6 | E88: 1.2 | F88: 0.5 | G88: 0.4 | H88: 0 | I88: 0 | J88: 0 | K88: 0 | L88: 0 | M88: 0 | O88: 2.3 | P88: 0.4 | Q88: 2.7 | S88: 0.8 | T88: -0.7037037037
B89: Shared | C89: £m | D89: 0 | E89: 0.7 | F89: 1.7 | G89: 0.3 | H89: 0.2 | I89: 0 | J89: 0 | K89: 0 | L89: 0 | M89: 0 | O89: 2.4 | P89: 0.5 | Q89: 2.9 | S89: 0.6 | T89: -0.7931034483
B90: EHV total | C90: £m | D90: 0.6 | E90: 1.9 | F90: 2.2 | G90: 0.7 | H90: 0.2 | I90: 0 | J90: 0.7 | K90: 0 | L90: 0 | M90: 0.7 | O90: 4.7 | P90: 0.9 | Q90: 5.6 | S90: 1.4 | T90: -0.75
B91: Connections provided at 132kV
B92: Sole use | C92: £m | D92: 0 | E92: 0 | F92: 0 | G92: 0 | H92: 0 | I92: 0 | J92: 0 | K92: 0 | L92: 0 | M92: 0 | O92: 0 | P92: 0 | Q92: 0 | S92: 0 | T92: 0
B93: Shared | C93: £m | D93: 0 | E93: 0 | F93: 0 | G93: 0 | H93: 0 | I93: 0 | J93: 0 | K93: 0 | L93: 0 | M93: 0 | O93: 0 | P93: 0 | Q93: 0 | S93: 0 | T93: 0
B94: 132kV total | C94: £m | D94: 0 | E94: 0 | F94: 0 | G94: 0 | H94: 0 | I94: 0 | J94: 0 | K94: 0 | L94: 0 | M94: 0 | O94: 0 | P94: 0 | Q94: 0 | S94: 0 | T94: 0
B96: Expenditure on DSM to avoid customer spec investment | C96: £m | G96: 0 | H96: 0 | I96: 0 | J96: 0 | K96: 0 | L96: 0 | M96: 0 | O96: 0 | P96: 0 | Q96: 0 | S96: 0 | T96: 0
B97: Total inc. expenditure on DSM to avoid customer spec investment | C97: £m | D97: 17.6 | E97: 18.1 | F97: 20.7 | G97: 15.3 | H97: 14.6 | I97: 13.7 | J97: 13.4 | K97: 12.4 | L97: 12.4 | M97: 12.4 | O97: 56.4 | P97: 29.9 | Q97: 86.3 | S97: 67.5 | T97: -0.2178447277
B99: Expenditure avoided due to DG | C99: £m | G99: 0 | H99: 0 | I99: 0 | J99: 0 | K99: 0 | L99: 0 | M99: 0 | O99: 0 | P99: 0 | Q99: 0 | S99: 0 | T99: 0
B100: Expenditure avoided due to DSM | C100: £m | G100: 0 | H100: 0 | I100: 0 | J100: 0 | K100: 0 | L100: 0 | M100: 0 | O100: 0 | P100: 0 | Q100: 0 | S100: 0 | T100: 0
B103: Customer contributions - customer specific demand investment
C105: Units | D105: DPCR4 | I105: DPCR5 | O105: DPCR4 | S105: DPCR5
D106: 2005/06 | E106: 2006/07 | F106: 2007/08 | G106: 2008/09 | H106: 2009/10 | I106: 2010/11 | J106: 2011/12 | K106: 2012/13 | L106: 2013/14 | M106: 2014/15 | O106: Actuals | P106: Forecast | Q106: Total | S106: Forecast | T106: % change
B107: Customer contributions (directs) for connections at LV
B108: Sole use | C108: £m | D108: 14.1 | E108: 12 | F108: 13.8 | G108: 11.3 | H108: 10.9 | I108: 10 | J108: 9.8 | K108: 9 | L108: 9 | M108: 9 | O108: 39.9 | P108: 22.2 | Q108: 62.1 | S108: 46.9 | T108: -0.2447665056
B109: Shared | C109: £m | D109: 0.1 | E109: 0.4 | F109: 0.9 | G109: 0.4 | H109: 0.4 | I109: 1.3 | J109: 1.3 | K109: 1.1 | L109: 1.1 | M109: 1.1 | O109: 1.4 | P109: 0.8 | Q109: 2.2 | S109: 1.6 | T109: -0.2727272727
B110: LV total | C110: £m | D110: 14.2 | E110: 12.4 | F110: 14.7 | G110: 11.7 | H110: 11.3 | I110: 11.3 | J110: 11.1 | K110: 10.1 | L110: 10.1 | M110: 10.1 | O110: 41.3 | P110: 23 | Q110: 64.3 | S110: 48.5 | T110: -0.2457231726
B111: Customer contributions (directs) for connections at HV
B112: Sole use | C112: £m | D112: 2.2 | E112: 3.2 | F112: 2.5 | G112: 1.7 | H112: 1.9 | I112: 1.1 | J112: 1 | K112: 1 | L112: 1 | M112: 1 | O112: 7.9 | P112: 3.6 | Q112: 11.5 | S112: 11.9 | T112: 0.0347826087
B113: Shared | C113: £m | D113: 0 | E113: 0 | F113: 0.2 | G113: 0.2 | H113: 0.2 | I113: 1.3 | J113: 1.3 | K113: 1.3 | L113: 1.3 | M113: 1.3 | O113: 0.2 | P113: 0.4 | Q113: 0.6 | S113: 1.8 | T113: 2
B114: HV total | C114: £m | D114: 2.2 | E114: 3.2 | F114: 2.7 | G114: 1.9 | H114: 2.1 | I114: 2.4 | J114: 2.3 | K114: 2.3 | L114: 2.3 | M114: 2.3 | O114: 8.1 | P114: 4 | Q114: 12.1 | S114: 13.7 | T114: 0.132231405
B115: Customer contributions (directs) for connections at EHV
B116: Sole use | C116: £m | D116: 0.6 | E116: 1.2 | F116: 0.5 | G116: 0.4 | H116: 0 | I116: 0 | J116: 0 | K116: 0 | L116: 0 | M116: 0 | O116: 2.3 | P116: 0.4 | Q116: 2.7 | S116: 0.8 | T116: -0.7037037037
B117: Shared | C117: £m | D117: 0 | E117: 0.3 | F117: 1.1 | G117: 0.15 | H117: 0.1 | I117: 0 | J117: 0 | K117: 0 | L117: 0 | M117: 0 | O117: 1.4 | P117: 0.25 | Q117: 1.65 | S117: 0.3 | T117: -0.8181818182
B118: EHV total | C118: £m | D118: 0.6 | E118: 1.5 | F118: 1.6 | G118: 0.55 | H118: 0.1 | I118: 0 | J118: 0.55 | K118: 0 | L118: 0 | M118: 0.55 | O118: 3.7 | P118: 0.65 | Q118: 4.35 | S118: 1.1 | T118: -0.7471264368
B119: Customer contributions (directs) for connections at 132kV
B120: Sole use | C120: £m | D120: 0 | E120: 0 | F120: 0 | G120: 0 | H120: 0 | I120: 0 | J120: 0 | K120: 0 | L120: 0 | M120: 0 | O120: 0 | P120: 0 | Q120: 0 | S120: 0 | T120: 0
B121: Shared | C121: £m | D121: 0 | E121: 0 | F121: 0 | G121: 0 | H121: 0 | I121: 0 | J121: 0 | K121: 0 | L121: 0 | M121: 0 | O121: 0 | P121: 0 | Q121: 0 | S121: 0 | T121: 0
B122: 132kV total | C122: £m | D122: 0 | E122: 0 | F122: 0 | G122: 0 | H122: 0 | I122: 0 | J122: 0 | K122: 0 | L122: 0 | M122: 0 | O122: 0 | P122: 0 | Q122: 0 | S122: 0 | T122: 0
B124: Customer contributions (directs) total | C124: £m | D124: 17 | E124: 17.1 | F124: 19 | G124: 14.15 | H124: 13.5 | I124: 13.7 | J124: 13.4 | K124: 12.4 | L124: 12.4 | M124: 12.4 | O124: 53.1 | P124: 27.65 | Q124: 80.75 | S124: 63.3 | T124: -0.2160990712
B125: Customer contributions (indirects) | C125: £m | D125: -0.7 | E125: 3.8 | F125: 5.8 | G125: 5.4 | H125: 5.1 | I125: 4.8 | J125: 5 | K125: 4.7 | L125: 4.7 | M125: 4.9 | O125: 8.9 | P125: 10.5 | Q125: 19.4 | S125: 24.1 | T125: 0.2422680412
B126: Customer contributions total | C126: £m | D126: 16.3 | E126: 20.9 | F126: 24.8 | G126: 19.55 | H126: 18.6 | I126: =+I125+I124 -> 18.5 | J126: =+J125+J124 -> 18.4 | K126: =+K125+K124 -> 17.1 | L126: =+L125+L124 -> 17.1 | M126: =+M125+M124 -> 17.3 | O126: 62 | P126: 38.15 | Q126: 100.15 | S126: 87.4 | T126: -0.1273090364
B128: Total inc. exp on DSM to avoid customer spec investment (net of cust cont) | C128: £m | D128: 1.3 | E128: -2.8 | F128: -4.1 | G128: -4.25 | H128: -4 | I128: -4.1 | J128: -4.05 | K128: -3.9 | L128: -3.9 | M128: -3.95 | O128: -5.6 | P128: -8.25 | Q128: -13.85 | S128: -19.9 | T128: 0.4368231047
C131: Units | D131: DPCR4 | I131: DPCR5 | O131: DPCR4 | S131: DPCR5
D132: 2005/06 | E132: 2006/07 | F132: 2007/08 | G132: 2008/09 | H132: 2009/10 | I132: 2010/11 | J132: 2011/12 | K132: 2012/13 | L132: 2013/14 | M132: 2014/15 | O132: Actuals | P132: Forecast | Q132: Total | S132: Forecast | T132: % change
B133: Unapportioned part of shared LV | C133: £m | D133: 0.6 | E133: 0.6 | F133: 0.8 | G133: 0.6 | H133: 0.5 | I133: 0.5 | J133: 0.5 | K133: 0.5 | L133: 0.5 | M133: 0.5 | O133: 2 | P133: 1.1 | Q133: 3.1 | S133: 2.5 | T133: -0.1935483871
B134: Unapportioned part of shared HV | C134: £m | D134: 0 | E134: 0 | F134: 0.3 | G134: 0.4 | H134: 0.5 | I134: 0.2 | J134: 0.3 | K134: 0.3 | L134: 0.3 | M134: 0.3 | O134: 0.3 | P134: 0.9 | Q134: 1.2 | S134: 1.4 | T134: 0.1666666667
B135: Unapportioned part of shared EHV | C135: £m | D135: 0 | E135: 0.4 | F135: 0.6 | G135: 0.15 | H135: 0.1 | I135: 0 | J135: 0.15 | K135: 0 | L135: 0 | M135: 0.15 | O135: 1 | P135: 0.25 | Q135: 1.25 | S135: 0.3 | T135: -0.76
B136: Unapportioned part of shared 132kV | C136: £m | D136: 0 | E136: 0 | F136: 0 | G136: 0 | H136: 0 | I136: 0 | J136: 0 | K136: 0 | L136: 0 | M136: 0 | O136: 0 | P136: 0 | Q136: 0 | S136: 0 | T136: 0

Sheet FBPQ LR1 - V5 opt3
A1: Main Forecast Business Plan DPCR5
A3: LR1a - Demand - metered connections
B6: Demand Totals - Table 1
C8: Units | D8: DPCR4 | I8: DPCR5 | O8: DPCR4 | S8: DPCR5
D9: 2005/06 | E9: 2006/07 | F9: 2007/08 | G9: 2008/09 | H9: 2009/10 | I9: 2010/11 | J9: 2011/12 | K9: 2012/13 | L9: 2013/14 | M9: 2014/15 | O9: Actuals | P9: Forecast | Q9: Total | S9: Forecast | T9: % change
B10: Gross all connections costs | C10: £m | D10: =SUM(D178,D217,D240) -> 0 | E10: 0 | F10: 0 | G10: 0 | H10: 0 | I10: 0 | J10: 0 | K10: 0 | L10: 0 | M10: 0 | O10: =SUM(D10:G10) -> 0 | P10: =SUM(H10) -> 0 | Q10: =SUM(D10:H10) -> 0 | S10: =SUM(I10:M10) -> 0 | T10: =IF(Q10<>0,(S10-Q10)/Q10,"0") -> 0
B11: Gross direct connections costs subject to apportionment rule | C11: £m | D11: =D240 -> 0 | E11: 0 | F11: 0 | G11: 0 | H11: 0 | I11: 0 | J11: 0 | K11: 0 | L11: 0 | M11: 0 | O11: 0 | P11: 0 | Q11: 0 | S11: 0 | T11: 0
B12: Customer contributions excluding margins | C12: £m | D12: =D263 -> 0 | E12: 0 | F12: 0 | G12: 0 | H12: 0 | I12: 0 | J12: 0 | K12: 0 | L12: 0 | M12: 0 | O12: 0 | P12: 0 | Q12: 0 | S12: 0 | T12: 0
B13: Net (gross directs subject to apportionment rule - customer contributions directs) | C13: £m | D13: =D11-D12 -> 0 | E13: 0 | F13: 0 | G13: 0 | H13: 0 | I13: 0 | J13: 0 | K13: 0 | L13: 0 | M13: 0 | O13: 0 | P13: 0 | Q13: 0 | S13: 0 | T13: 0
B14: DUOS funded related party margin | C14: £m | M14: 0.3 | O14: 0 | P14: 0 | Q14: 0 | S14: 0.3 | T14: 0
B15: Net (gross directs subject to apportionment rule - customer contributions directs + DUOS funded related party margin) | C15: £m | D15: =D13+D14 -> 0 | E15: 0 | F15: 0 | G15: 0 | H15: 0 | I15: 0 | J15: 0 | K15: 0 | L15: 0 | M15: 0.3 | O15: 0 | P15: 0 | Q15: 0 | S15: 0.3 | T15: 0
B16: Check | D16: =IF(D13-SUM(D31,D35,D39,D43)=0,"OK","ERROR") -> OK | E16: OK | F16: OK | G16: OK | H16: OK | I16: OK | J16: OK | K16: OK | L16: OK | M16: OK
D18: DPCR4 | I18: DPCR5 | O18: DPCR4 | S18: DPCR5
C19: Units | D19: 2005/06 | E19: 2006/07 | F19: 2007/08 | G19: 2008/09 | H19: 2009/10 | I19: 2010/11 | J19: 2011/12 | K19: 2012/13 | L19: 2013/14 | M19: 2014/15 | O19: Actuals | P19: Forecast | Q19: Total | S19: Forecast | T19: % change
B20: Pensions with total gross direct connections costs | C20: £m | O20: =SUM(D20:G20) -> 0 | P20: =SUM(H20) -> 0 | Q20: =SUM(D20:H20) -> 0 | S20: =SUM(I20:M20) -> 0 | T20: =IF(Q20<>0,(S20-Q20)/Q20,"0") -> 0
B21: Pensions with direct connections costs subject to apportionment rule | C21: £m | O21: =SUM(D21:G21) -> 0 | P21: =SUM(H21) -> 0 | Q21: =SUM(D21:H21) -> 0 | S21: =SUM(I21:M21) -> 0 | T21: =IF(Q21<>0,(S21-Q21)/Q21,"0") -> 0
B22: Total | C22: £m | D22: =D20+D21 -> 0 | E22: 0 | F22: 0 | G22: 0 | H22: 0 | I22: 0 | J22: 0 | K22: 0 | L22: 0 | M22: 0 | O22: =SUM(D22:G22) -> 0 | P22: =SUM(H22) -> 0 | Q22: =SUM(D22:H22) -> 0 | S22: =SUM(I22:M22) -> 0 | T22: =IF(Q22<>0,(S22-Q22)/Q22,"0") -> 0
B24: Connections expenditure recovered via DUoS - Table 2
C26: Units | D26: DPCR4 | I26: DPCR5 | O26: DPCR4 | S26: DPCR5
D27: 2005/06 | E27: 2006/07 | F27: 2007/08 | G27: 2008/09 | H27: 2009/10 | I27: 2010/11 | J27: 2011/12 | K27: 2012/13 | L27: 2013/14 | M27: 2014/15 | O27: Actuals | P27: Forecast | Q27: Total | S27: Forecast | T27: % change
B28: Customer contributions (directs) for connections at LV
B29: Small scale LV domestic and one-off commercial | C29: £m | I29: =I225-I248 -> 0 | J29: 0 | K29: 0 | L29: 0 | M29: 0
B30: All other LV (with only LV work) | C30: £m | I30: 0 | J30: 0 | K30: 0 | L30: 0 | M30: 0
B31: LV total | C31: £m | D31: =D227-D250 -> 0 | E31: =E227-E250 -> 0 | F31: =F227-F250 -> 0 | G31: =G227-G250 -> 0 | H31: =H227-H250 -> 0 | I31: =SUM(I29:I30) -> 0 | J31: =SUM(J29:J30) -> 0 | K31: =SUM(K29:K30) -> 0 | L31: =SUM(L29:L30) -> 0 | M31: =SUM(M29:M30) -> 0 | O31: =SUM(D31:G31) -> 0 | P31: =SUM(H31) -> 0 | Q31: =SUM(D31:H31) -> 0 | S31: =SUM(I31:M31) -> 0 | T31: =IF(Q31<>0,(S31-Q31)/Q31,"0") -> 0
B32: Customer contributions (directs) for connections at HV
B33: LV end connections involving HV work | C33: £m | I33: =I229-I252 -> 0 | J33: 0 | K33: 0 | L33: 0 | M33: 0
B34: HV end connections involving only HV work | C34: £m | I34: 0 | J34: 0 | K34: 0 | L34: 0 | M34: 0
B35: HV total | C35: £m | D35: =D231-D254 -> 0 | E35: =E231-E254 -> 0 | F35: =F231-F254 -> 0 | G35: =G231-G254 -> 0 | H35: =H231-H254 -> 0 | I35: =SUM(I33:I34) -> 0 | J35: =SUM(J33:J34) -> 0 | K35: =SUM(K33:K34) -> 0 | L35: =SUM(L33:L34) -> 0 | M35: =SUM(M33:M34) -> 0 | O35: =SUM(D35:G35) -> 0 | P35: =SUM(H35) -> 0 | Q35: =SUM(D35:H35) -> 0 | S35: =SUM(I35:M35) -> 0 | T35: =IF(Q35<>0,(S35-Q35)/Q35,"0") -> 0
B36: Customer contributions (directs) for connections at EHV
B37: HV end connections involving EHV work | C37: £m | I37: =I233-I256 -> 0 | J37: 0 | K37: 0 | L37: 0 | M37: 0
B38: EHV end connections involving only EHV work | C38: £m | I38: 0 | J38: 0 | K38: 0 | L38: 0 | M38: 0
B39: EHV total | C39: £m | D39: =D235-D258 -> 0 | E39: =E235-E258 -> 0 | F39: =F235-F258 -> 0 | G39: =G235-G258 -> 0 | H39: =H235-H258 -> 0 | I39: =SUM(I37:I38) -> 0 | J39: =SUM(J37:J38) -> 0 | K39: =SUM(K37:K38) -> 0 | L39: =SUM(L37:L38) -> 0 | M39: =SUM(M37:M38) -> 0 | O39: =SUM(D39:G39) -> 0 | P39: =SUM(H39) -> 0 | Q39: =SUM(D39:H39) -> 0 | S39: =SUM(I39:M39) -> 0 | T39: =IF(Q39<>0,(S39-Q39)/Q39,"0") -> 0
B40: Customer contributions (directs) for connections at 132kV
B41: HV or EHV connections involving 132kV work | C41: £m | I41: =I237-I260 -> 0 | J41: 0 | K41: 0 | L41: 0 | M41: 0
B42: 132kV end connections involving only 132kV work | C42: £m | I42: 0 | J42: 0 | K42: 0 | L42: 0 | M42: 0
B43: 132kV total | C43: £m | D43: =D239-D262 -> 0 | E43: =E239-E262 -> 0 | F43: =F239-F262 -> 0 | G43: =G239-G262 -> 0 | H43: =H239-H262 -> 0 | I43: =SUM(I41:I42) -> 0 | J43: =SUM(J41:J42) -> 0 | K43: =SUM(K41:K42) -> 0 | L43: =SUM(L41:L42) -> 0 | M43: =SUM(M41:M42) -> 0 | O43: =SUM(D43:G43) -> 0 | P43: =SUM(H43) -> 0 | Q43: =SUM(D43:H43) -> 0 | S43: =SUM(I43:M43) -> 0 | T43: =IF(Q43<>0,(S43-Q43)/Q43,"0") -> 0
B46: Metered connections volume - Table 3
C48: Units | D48: DPCR4 | I48: DPCR5
D49: 2005/06 | E49: 2006/07 | F49: 2007/08 | G49: 2008/09 | H49: 2009/10 | I49: 2010/11 | J49: 2011/12 | K49: 2012/13 | L49: 2013/14 | M49: 2014/15
B50: Metered connections
B51: Estimated number demand connections at LV
B52: IDNO connections | C52: # | D52: =D83+D114 -> 0 | E52: 0 | F52: 0 | G52: 0 | H52: 0 | I52: 0 | J52: 0 | K52: 0 | L52: 0 | M52: 0
B53: Adopted connections | D53: =D84+D115 -> 0 | E53: 0 | F53: 0 | G53: 0 | H53: 0 | I53: 0 | J53: 0 | K53: 0 | L53: 0 | M53: 0
B54: Small scale LV domestic and one-off commercial connections | I54: =I85+I116 -> 0 | J54: 0 | K54: 0 | L54: 0 | M54: 0
B55: All other LV connections (with only LV work) | C55: # | I55: 0 | J55: 0 | K55: 0 | L55: 0 | M55: 0
B56: DNO total LV | D56: =D87+D118 -> 0 | E56: =E87+E118 -> 0 | F56: =F87+F118 -> 0 | G56: =G87+G118 -> 0 | H56: =H87+H118 -> 0 | I56: 0 | J56: 0 | K56: 0 | L56: 0 | M56: 0
B57: Estimated number demand connections at HV
B58: IDNO connections | C58: # | D58: =D89+D120 -> 0 | E58: 0 | F58: 0 | G58: 0 | H58: 0 | I58: 0 | J58: 0 | K58: 0 | L58: 0 | M58: 0
B59: Adopted connections | D59: =D90+D121 -> 0 | E59: 0 | F59: 0 | G59: 0 | H59: 0 | I59: 0 | J59: 0 | K59: 0 | L59: 0 | M59: 0
B60: LV end connections involving HV work | I60: =I91+I122 -> 0 | J60: 0 | K60: 0 | L60: 0 | M60: 0
B61: HV end connections involving only HV work | C61: # | I61: 0 | J61: 0 | K61: 0 | L61: 0 | M61: 0
B62: DNO total HV | D62: =D93+D124 -> 0 | E62: =E93+E124 -> 0 | F62: =F93+F124 -> 0 | G62: =G93+G124 -> 0 | H62: =H93+H124 -> 0 | I62: 0 | J62: 0 | K62: 0 | L62: 0 | M62: 0
B63: Estimated number demand connections at EHV
B64: IDNO connections | C64: # | D64: =D95+D126 -> 0 | E64: 0 | F64: 0 | G64: 0 | H64: 0 | I64: 0 | J64: 0 | K64: 0 | L64: 0 | M64: 0
B65: Adopted connections | D65: =D96+D127 -> 0 | E65: 0 | F65: 0 | G65: 0 | H65: 0 | I65: 0 | J65: 0 | K65: 0 | L65: 0 | M65: 0
B66: HV end connections involving EHV work | I66: =I97+I128 -> 0 | J66: 0 | K66: 0 | L66: 0 | M66: 0
B67: EHV end connections involving only EHV work | C67: # | I67: 0 | J67: 0 | K67: 0 | L67: 0 | M67: 0
B68: DNO total EHV | D68: =D99+D130 -> 0 | E68: =E99+E130 -> 0 | F68: =F99+F130 -> 0 | G68: =G99+G130 -> 0 | H68: =H99+H130 -> 0 | I68: 0 | J68: 0 | K68: 0 | L68: 0 | M68: 0
B69: Estimated number demand connections at 132kV
B70: IDNO connections | C70: # | D70: =D101+D132 -> 0 | E70: 0 | F70: 0 | G70: 0 | H70: 0 | I70: 0 | J70: 0 | K70: 0 | L70: 0 | M70: 0
B71: Adopted connections | D71: =D102+D133 -> 0 | E71: 0 | F71: 0 | G71: 0 | H71: 0 | I71: 0 | J71: 0 | K71: 0 | L71: 0 | M71: 0
B72: HV or EHV connections involving 132kV work | I72: =I103+I134 -> 0 | J72: 0 | K72: 0 | L72: 0 | M72: 0
B73: 132kV end connections involving only 132kV work | C73: # | I73: 0 | J73: 0 | K73: 0 | L73: 0 | M73: 0
B74: DNO total 132kV | D74: =D105+D136 -> 0 | E74: =E105+E136 -> 0 | F74: =F105+F136 -> 0 | G74: =G105+G136 -> 0 | H74: =H105+H136 -> 0 | I74: 0 | J74: 0 | K74: 0 | L74: 0 | M74: 0
B75: Total number of demand connections | C75: # | D75: =SUM(D52:D55,D58:D61,D64:D67,D70:D73) -> 0 | E75: 0 | F75: 0 | G75: 0 | H75: 0 | I75: 0 | J75: 0 | K75: 0 | L75: 0 | M75: 0
B77: Metered connections volume - Sole use connections where there is no associated expenditure subject to the apportionment rule - Table 4
C79: Units | D79: DPCR4 | I79: DPCR5
D80: 2005/06 | E80: 2006/07 | F80: 2007/08 | G80: 2008/09 | H80: 2009/10 | I80: 2010/11 | J80: 2011/12 | K80: 2012/13 | L80: 2013/14 | M80: 2014/15
B81: Metered connections
B82: Estimated number demand connections at LV
B83: IDNO connections | C83: #
B84: Adopted connections
B85: Small scale LV domestic and one-off commercial connections
B86: All other LV connections (with only LV work) | C86: #
B87: DNO total LV | I87: =SUM(I85:I86) -> 0 | J87: =SUM(J85:J86) -> 0 | K87: =SUM(K85:K86) -> 0 | L87: =SUM(L85:L86) -> 0 | M87: =SUM(M85:M86) -> 0
B88: Estimated number demand connections with HV work
B89: IDNO connections | C89: #
B90: Adopted connections
B91: LV end connections involving HV work
B92: HV end connections involving only HV work | C92: #
B93: DNO total HV | I93: =SUM(I91:I92) -> 0 | J93: =SUM(J91:J92) -> 0 | K93: =SUM(K91:K92) -> 0 | L93: =SUM(L91:L92) -> 0 | M93: =SUM(M91:M92) -> 0
B94: Estimated number demand connections with EHV work
B95: IDNO connections | C95: #
B96: Adopted connections
B97: HV end connections involving EHV work
B98: EHV end connections involving only EHV work | C98: #
B99: DNO total EHV | I99: =SUM(I97:I98) -> 0 | J99: =SUM(J97:J98) -> 0 | K99: =SUM(K97:K98) -> 0 | L99: =SUM(L97:L98) -> 0 | M99: =SUM(M97:M98) -> 0
B100: Estimated number demand connections with 132kV work
B101: IDNO connections | C101: #
B102: Adopted connections
B103: HV or EHV connections involving 132kV work
B104: 132kV end connections involving only 132kV work | C104: #
B105: DNO total 132kV | I105: =SUM(I103:I104) -> 0 | J105: =SUM(J103:J104) -> 0 | K105: =SUM(K103:K104) -> 0 | L105: =SUM(L103:L104) -> 0 | M105: =SUM(M103:M104) -> 0
B106: Total number of demand connections | C106: # | D106: =SUM(D83:D84,D87,D89:D90,D93,D95:D96,D99,D101:D102,D105) -> 0 | E106: 0 | F106: 0 | G106: 0 | H106: 0 | I106: 0 | J106: 0 | K106: 0 | L106: 0 | M106: 0
B108: Metered connections volume - Connections where there is associated expenditure subject to the apportionment rule - Table 5
C110: Units | D110: DPCR4 | I110: DPCR5
D111: 2005/06 | E111: 2006/07 | F111: 2007/08 | G111: 2008/09 | H111: 2009/10 | I111: 2010/11 | J111: 2011/12 | K111: 2012/13 | L111: 2013/14 | M111: 2014/15
B112: Metered connections
B113: Estimated number demand connections at LV
B114: IDNO connections | C114: #
B115: Adopted connections
B116: Small scale LV domestic and one-off commercial connections
B117: All other LV connections (with only LV work) | C117: #
B118: DNO total LV | I118: =SUM(I116:I117) -> 0 | J118: =SUM(J116:J117) -> 0 | K118: =SUM(K116:K117) -> 0 | L118: =SUM(L116:L117) -> 0 | M118: =SUM(M116:M117) -> 0
B119: Estimated number demand connections with HV work
B120: IDNO connections | C120: #
B121: Adopted connections
B122: LV end connections involving HV work
B123: HV end connections involving only HV work | C123: #
B124: DNO total HV | I124: =SUM(I122:I123) -> 0 | J124: =SUM(J122:J123) -> 0 | K124: =SUM(K122:K123) -> 0 | L124: =SUM(L122:L123) -> 0 | M124: =SUM(M122:M123) -> 0
B125: Estimated number demand connections with EHV work
B126: IDNO connections | C126: #
B127: Adopted connections
B128: HV end connections involving EHV work
B129: EHV end connections involving only EHV work | C129: #
B130: DNO total EHV | I130: =SUM(I128:I129) -> 0 | J130: =SUM(J128:J129) -> 0 | K130: =SUM(K128:K129) -> 0 | L130: =SUM(L128:L129) -> 0 | M130: =SUM(M128:M129) -> 0
B131: Estimated number demand connections with 132kV work
B132: IDNO connections | C132: #
B133: Adopted connections
B134: HV or EHV connections involving 132kV work
B135: 132kV end connections involving only 132kV work | C135: #
B136: DNO total 132kV | I136: =SUM(I134:I135) -> 0 | J136: =SUM(J134:J135) -> 0 | K136: =SUM(K134:K135) -> 0 | L136: =SUM(L134:L135) -> 0 | M136: =SUM(M134:M135) -> 0
B137: Total number of demand connections | C137: # | D137: =SUM(D114:D115,D118,D120:D121,D124,D126:D127,D130,D132:D133,D136) -> 0 | E137: 0 | F137: 0 | G137: 0 | H137: 0 | I137: 0 | J137: 0 | K137: 0 | L137: 0 | M137: 0
B141: Customer specific demand investment - Sole use expenditure where there is no associated expenditure subject to the apportionment rule - Table 6
C143: Units | D143: DPCR4 | I143: DPCR5 | O143: DPCR4 | S143: DPCR5
D144: 2005/06 | E144: 2006/07 | F144: 2007/08 | G144: 2008/09 | H144: 2009/10 | I144: 2010/11 | J144: 2011/12 | K144: 2012/13 | L144: 2013/14 | M144: 2014/15 | O144: Actuals | P144: Forecast | Q144: Total | S144: Forecast | T144: % change
B145: New connections & customer specific reinforcement:
B146: Connections provided at LV
B147: Small scale LV domestic and one-off commercial | C147: £m
B148: Ratio - small scale LV domestic and one-off commercial - non-contestable | C148: %
B149: Ratio - small scale LV domestic and one-off commercial - contestable | C149: % | I149: =1-I148 -> 1 | J149: =1-J148 -> 1 | K149: =1-K148 -> 1 | L149: =1-L148 -> 1 | M149: =1-M148 -> 1
B150: All other LV (with only LV work) | C150: £m
B151: Ratio - all other LV (with only LV work) - non-contestable | C151: %
B152: Ratio - all other LV (with only LV work) - contestable | C152: % | I152: =1-I151 -> 1 | J152: =1-J151 -> 1 | K152: =1-K151 -> 1 | L152: =1-L151 -> 1 | M152: =1-M151 -> 1
B153: LV total | C153: £m | I153: =SUM(I147,I150) -> 0 | J153: =SUM(J147,J150) -> 0 | K153: =SUM(K147,K150) -> 0 | L153: =SUM(L147,L150) -> 0 | M153: =SUM(M147,M150) -> 0 | O153: =SUM(D153:G153) -> 0 | P153: =SUM(H153) -> 0 | Q153: =SUM(D153:H153) -> 0 | S153: =SUM(I153:M153) -> 0 | T153: =IF(Q153<>0,(S153-Q153)/Q153,"0") -> 0
B154: Connections with HV work
B155: LV end connections involving HV work | C155: £m
B156: Ratio - LV end connections involving HV work - non-contestable | C156: %
B157: Ratio - LV end connections involving HV work - contestable | C157: % | I157: =1-I156 -> 1 | J157: =1-J156 -> 1 | K157: =1-K156 -> 1 | L157: =1-L156 -> 1 | M157: =1-M156 -> 1
B158: HV end connections involving only HV work | C158: £m
B159: Ratio - HV end connections involving only HV work - non-contestable | C159: %
B160: Ratio - HV end connections involving only HV work - contestable | C160: % | I160: =1-I159 -> 1 | J160: =1-J159 -> 1 | K160: =1-K159 -> 1 | L160: =1-L159 -> 1 | M160: =1-M159 -> 1
B161: HV total | C161: £m | I161: =SUM(I155,I158) -> 0 | J161: =SUM(J155,J158) -> 0 | K161: =SUM(K155,K158) -> 0 | L161: =SUM(L155,L158) -> 0 | M161: =SUM(M155,M158) -> 0 | O161: =SUM(D161:G161) -> 0 | P161: =SUM(H161) -> 0 | Q161: =SUM(D161:H161) -> 0 | S161: =SUM(I161:M161) -> 0 | T161: =IF(Q161<>0,(S161-Q161)/Q161,"0") -> 0
B162: Connections with EHV work
B163: HV end connections involving EHV work | C163: £m
B164: Ratio - HV end connections involving EHV work - non-contestable | C164: %
B165: Ratio - HV end connections involving EHV work - contestable | C165: % | I165: =1-I164 -> 1 | J165: =1-J164 -> 1 | K165: =1-K164 -> 1 | L165: =1-L164 -> 1 | M165: =1-M164 -> 1
B166: EHV end connections involving only EHV work | C166: £m
B167: Ratio - EHV end connections involving only EHV work - non-contestable | C167: %
B168: Ratio - EHV end connections involving only EHV work - contestable | C168: % | I168: =1-I167 -> 1 | J168: =1-J167 -> 1 | K168: =1-K167 -> 1 | L168: =1-L167 -> 1 | M168: =1-M167 -> 1
B169: EHV total | C169: £m | I169: =SUM(I163,I166) -> 0 | J169: =SUM(J163,J166) -> 0 | K169: =SUM(K163,K166) -> 0 | L169: =SUM(L163,L166) -> 0 | M169: =SUM(M163,M166) -> 0 | O169: =SUM(D169:G169) -> 0 | P169: =SUM(H169) -> 0 | Q169: =SUM(D169:H169) -> 0 | S169: =SUM(I169:M169) -> 0 | T169: =IF(Q169<>0,(S169-Q169)/Q169,"0") -> 0
B170: Connections with 132kV work
B171: HV or EHV connections involving 132kV work | C171: £m
B172: Ratio - HV or EHV connections involving 132kV work - non-contestable | C172: %
B173: Ratio - HV or EHV connections involving 132kV work - contestable | C173: % | I173: =1-I172 -> 1 | J173: =1-J172 -> 1 | K173: =1-K172 -> 1 | L173: =1-L172 -> 1 | M173: =1-M172 -> 1
B174: 132kV end connections involving only 132kV work | C174: £m
B175: Ratio - 132kV end connections involving only 132kV work - non-contestable | C175: %
B176: Ratio - 132kV end connections involving only 132kV work - contestable | C176: % | I176: =1-I175 -> 1 | J176: =1-J175 -> 1 | K176: =1-K175 -> 1 | L176: =1-L175 -> 1 | M176: =1-M175 -> 1
B177: 132kV total | C177: £m | I177: =SUM(I171,I174) -> 0 | J177: =SUM(J171,J174) -> 0 | K177: =SUM(K171,K174) -> 0 | L177: =SUM(L171,L174) -> 0 | M177: =SUM(M171,M174) -> 0 | O177: =SUM(D177:G177) -> 0 | P177: =SUM(H177) -> 0 | Q177: =SUM(D177:H177) -> 0 | S177: =SUM(I177:M177) -> 0 | T177: =IF(Q177<>0,(S177-Q177)/Q177,"0") -> 0
B178: Total sole use expenditure where there is no expenditure subject to the apportionment rule | D178: =SUM(D153,D161,D169,D177) -> 0 | E178: 0 | F178: 0 | G178: 0 | H178: 0 | I178: 0 | J178: 0 | K178: 0 | L178: 0 | M178: 0 | O178: =SUM(O153,O161,O169,O177) -> 0 | P178: =SUM(P153,P161,P169,P177) -> 0 | Q178: =SUM(Q153,Q161,Q169,Q177) -> 0 | S178: =SUM(S153,S161,S169,S177) -> 0 | T178: =IF(Q178<>0,(S178-Q178)/Q178,"0") -> 0
B180: Customer specific demand investment - sole use expenditure where there is also associated expenditure subject to the apportionment rule - Table 7
D182: DPCR4 | I182: DPCR5 | O182: DPCR4 | S182: DPCR5
B183: Customer specific demand investment | C183: Units | D183: 2005/06 | E183: 2006/07 | F183: 2007/08 | G183: 2008/09 | H183: 2009/10 | I183: 2010/11 | J183: 2011/12 | K183: 2012/13 | L183: 2013/14 | M183: 2014/15 | O183: Actuals | P183: Forecast | Q183: Total | S183: Forecast | T183: % change
B184: New connections & customer specific reinforcement:
B185: Connections provided at LV
B186: Small scale LV domestic and one-off commercial | C186: £m
B187: Ratio - small scale LV domestic and one-off commercial - non-contestable | C187: %
B188: Ratio - small scale LV domestic and one-off commercial - contestable | C188: % | I188: =1-I187 -> 1 | J188: =1-J187 -> 1 | K188: =1-K187 -> 1 | L188: =1-L187 -> 1 | M188: =1-M187 -> 1
B189: All other LV (with only LV work) | C189: £m
B190: Ratio - all other LV (with only LV work) - non-contestable | C190: %
B191: Ratio - all other LV (with only LV work) - contestable | C191: % | I191: =1-I190 -> 1 | J191: =1-J190 -> 1 | K191: =1-K190 -> 1 | L191: =1-L190 -> 1 | M191: =1-M190 -> 1
B192: LV total | C192: £m | I192: =SUM(I186,I189) -> 0 | J192: =SUM(J186,J189) -> 0 | K192: =SUM(K186,K189) -> 0 | L192: =SUM(L186,L189) -> 0 | M192: =SUM(M186,M189) -> 0 | O192: =SUM(D192:G192) -> 0 | P192: =SUM(H192) -> 0 | Q192: =SUM(D192:H192) -> 0 | S192: =SUM(I192:M192) -> 0 | T192: =IF(Q192<>0,(S192-Q192)/Q192,"0") -> 0
B193: Connections with HV work
B194: LV end connections involving HV work | C194: £m
B195: Ratio - LV end connections involving HV work - non-contestable | C195: %
B196: Ratio - LV end connections involving HV work - contestable | C196: % | I196: =1-I195 -> 1 | J196: =1-J195 -> 1 | K196: =1-K195 -> 1 | L196: =1-L195 -> 1 | M196: =1-M195 -> 1
B197: HV end connections involving only HV work | C197: £m
B198: Ratio - HV end connections involving only HV work - non-contestable | C198: %
B199: Ratio - HV end connections involving only HV work - contestable | C199: % | I199: =1-I198 -> 1 | J199: =1-J198 -> 1 | K199: =1-K198 -> 1 | L199: =1-L198 -> 1 | M199: =1-M198 -> 1
B200: HV total | C200: £m | I200: =SUM(I194,I197) -> 0 | J200: =SUM(J194,J197) -> 0 | K200: =SUM(K194,K197) -> 0 | L200: =SUM(L194,L197) -> 0 | M200: =SUM(M194,M197) -> 0 | O200: =SUM(D200:G200) -> 0 | P200: =SUM(H200) -> 0 | Q200: =SUM(D200:H200) -> 0 | S200: =SUM(I200:M200) -> 0 | T200: =IF(Q200<>0,(S200-Q200)/Q200,"0") -> 0
B201: Connections with EHV work
B202: HV end connections involving EHV work | C202: £m
B203: Ratio - HV end connections involving EHV work - non-contestable | C203: %
B204: Ratio - HV end connections involving EHV work - contestable | C204: % | I204: =1-I203 -> 1 | J204: =1-J203 -> 1 | K204: =1-K203 -> 1 | L204: =1-L203 -> 1 | M204: =1-M203 -> 1
B205: EHV end connections involving only EHV work | C205: £m
B206: Ratio - EHV end connections involving only EHV work - non-contestable | C206: %
B207: Ratio - EHV end connections involving only EHV work - contestable | C207: % | I207: =1-I206 -> 1 | J207: =1-J206 -> 1 | K207: =1-K206 -> 1 | L207: =1-L206 -> 1 | M207: =1-M206 -> 1
B208: EHV total | C208: £m | I208: =SUM(I202,I205) -> 0 | J208: =SUM(J202,J205) -> 0 | K208: =SUM(K202,K205) -> 0 | L208: =SUM(L202,L205) -> 0 | M208: =SUM(M202,M205) -> 0 | O208: =SUM(D208:G208) -> 0 | P208: =SUM(H208) -> 0 | Q208: =SUM(D208:H208) -> 0 | S208: =SUM(I208:M208) -> 0 | T208: =IF(Q208<>0,(S208-Q208)/Q208,"0") -> 0
B209: Connections with 132kV work
B210: HV or EHV connections involving 132kV work | C210: £m
B211: Ratio - HV or EHV connections involving 132kV work - non-contestable | C211: %
B212: Ratio - HV or EHV connections involving 132kV work - contestable | C212: % | I212: =1-I211 -> 1 | J212: =1-J211 -> 1 | K212: =1-K211 -> 1 | L212: =1-L211 -> 1 | M212: =1-M211 -> 1
B213: 132kV end connections involving only 132kV work | C213: £m
B214: Ratio - 132kV end connections involving only 132kV work - non-contestable | C214: %
B215: Ratio - 132kV end connections involving only 132kV work - contestable | C215: % | I215: =1-I214 -> 1 | J215: =1-J214 -> 1 | K215: =1-K214 -> 1 | L215: =1-L214 -> 1 | M215: =1-M214 -> 1
B216: 132kV total | C216: £m | I216: =SUM(I210,I213) -> 0 | J216: =SUM(J210,J213) -> 0 | K216: =SUM(K210,K213) -> 0 | L216: =SUM(L210,L213) -> 0 | M216: =SUM(M210,M213) -> 0 | O216: =SUM(D216:G216) -> 0 | P216: =SUM(H216) -> 0 | Q216: =SUM(D216:H216) -> 0 | S216: =SUM(I216:M216) -> 0 | T216: =IF(Q216<>0,(S216-Q216)/Q216,"0") -> 0
B217: Total sole use expenditure where there is also expenditure subject to the apportionment rule | D217: =SUM(D192,D200,D208,D216) -> 0 | E217: 0 | F217: 0 | G217: 0 | H217: 0 | I217: 0 | J217: 0 | K217: 0 | L217: 0 | M217: 0 | O217: =SUM(O192,O200,O208,O216) -> 0 | P217: =SUM(P192,P200,P208,P216) -> 0 | Q217: =SUM(Q192,Q200,Q208,Q216) -> 0 | S217: =SUM(S192,S200,S208,S216) -> 0 | T217: =IF(Q217<>0,(S217-Q217)/Q217,"0") -> 0
B219: Customer specific demand investment - all expenditure subject to the apportionment rule - Table 8
D221: DPCR4 | I221: DPCR5 | O221: DPCR4 | S221: DPCR5
B222: Customer specific demand investment | C222: Units | D222: 2005/06 | E222: 2006/07 | F222: 2007/08 | G222: 2008/09 | H222: 2009/10 | I222: 2010/11 | J222: 2011/12 | K222: 2012/13 | L222: 2013/14 | M222: 2014/15 | O222: Actuals | P222: Forecast | Q222: Total | S222: Forecast | T222: % change
... 39 more rows

Sheet FBPQ LR4
A1: June Forecast Business Plan DPCR5
A2: EDFE SPN
A3: LR4 - General reinforcement
B5: General reinforcement expenditure
D7: DPCR4 | I7: DPCR5 | O7: DPCR4 | S7: DPCR5
D8: 2005/06 | E8: 2006/07 | F8: 2007/08 | G8: 2008/09 | H8: 2009/10 | I8: 2010/11 | J8: 2011/12 | K8: 2012/13 | L8: 2013/14 | M8: 2014/15 | O8: Actuals | P8: Forecast | Q8: Total | S8: Forecast | T8: % change
D9: (£m) | E9: (£m) | F9: (£m) | G9: (£m) | H9: (£m) | I9: (£m) | J9: (£m) | K9: (£m) | L9: (£m) | M9: (£m) | O9: (£m) | P9: (£m) | Q9: (£m) | S9: (£m) | T9: (£m)
C10: General reinforcement:
C11: LV System | D11: 0.1 | E11: 0.1 | F11: 0.3 | G11: 0.2 | H11: 0.2 | I11: 0.2 | J11: 0.2 | K11: 0.2 | L11: 0.2 | M11: 0.2 | O11: =SUM(D11:G11) -> 0.7 | P11: =H11 -> 0.2 | Q11: =SUM(D11:H11) -> 0.9 | S11: =SUM(I11:M11) -> 1 | T11: =IF(Q11<>0,(S11-Q11)/Q11,"0") -> 0.1111111111
C12: HV System | D12: 1.3 | E12: 2 | F12: 0.9 | G12: 1 | H12: 1.1 | I12: 1.2 | J12: 1.2 | K12: 1.3 | L12: 1.3 | M12: 1.3 | O12: 5.2 | P12: 1.1 | Q12: 6.3 | S12: 6.3 | T12: -1.409807015e-16
C13: EHV System | D13: 2.2 | E13: 1.6 | F13: 1.4 | G13: 2 | H13: 2.7 | I13: 2.6 | J13: 1.8 | K13: 1.5 | L13: 1.1 | M13: 0.8 | O13: 7.2 | P13: 2.7 | Q13: 9.9 | S13: 7.8 | T13: -0.2121212121
C14: 132kV System | D14: 1.3 | E14: 2 | F14: 1.1 | G14: 0.9 | H14: 0.8 | I14: 1.2 | J14: 0.2 | K14: 0.6 | L14: 0.6 | M14: 0.6 | O14: 5.3 | P14: 0.8 | Q14: 6.1 | S14: 3.2 | T14: -0.4754098361
C15: Expenditure on DSM to avoid general reinforcement | G15: 0 | H15: 0 | I15: 0 | J15: 0 | K15: 0 | L15: 0 | M15: 0 | O15: 0 | P15: 0 | Q15: =SUM(D15:H15) -> 0 | S15: 0 | T15: 0
C16: Total | D16: 4.9 | E16: 5.7 | F16: 3.7 | G16: 4.1 | H16: 4.8 | I16: =SUM(I11:I15) -> 5.2 | J16: =SUM(J11:J15) -> 3.4 | K16: =SUM(K11:K15) -> 3.6 | L16: =SUM(L11:L15) -> 3.2 | M16: =SUM(M11:M15) -> 2.9 | O16: 18.4 | P16: 4.8 | Q16: 23.2 | S16: 18.3 | T16: -0.2112068966
C18: Expenditure avoided due to DG | G18: 0 | H18: 0 | I18: 0 | J18: 0 | K18: 0 | L18: 0 | M18: 0 | O18: =SUM(D18:G18) -> 0 | P18: =H18 -> 0 | Q18: 0 | S18: =SUM(I18:M18) -> 0 | T18: =IF(Q18<>0,(S18-Q18)/Q18,"0") -> 0
C19: Expenditure avoided due to DSM | G19: 0 | H19: 0 | I19: 0 | J19: 0 | K19: 0 | L19: 0 | M19: 0 | O19: =SUM(D19:G19) -> 0 | P19: =H19 -> 0 | Q19: 0 | S19: =SUM(I19:M19) -> 0 | T19: =IF(Q19<>0,(S19-Q19)/Q19,"0") -> 0
B22: General reinforcement outputs
C24: Changes in general utilisation due to projected expenditure levels | D24: At 31st March 2010 | H24: At 31st March 2015 | L24: At 31st March 2010 | M24: At 31st March 2015
D25: 132kV-EHV | E25: 132kV - HV | F25: EHV - EHV | G25: EHV - HV | H25: 132kV-EHV | I25: 132kV - HV | J25: EHV - EHV | K25: EHV - HV | L25: Total | M25: Total
C26: Total number substations (operated by DNO) | L26: =SUM(D26:G26) -> 0 | M26: =SUM(H26:K26) -> 0
C27: Σ substation maximum demands | L27: =SUM(D27:G27) -> 0 | M27: =SUM(H27:K27) -> 0
C28: Σ substation firm capacities | L28: =SUM(D28:G28) -> 0 | M28: =SUM(H28:K28) -> 0
C29: Σ substation maximum demands / Σ substation firm capacities | D29: =IF(D27,D27/D28,"-") -> - | E29: =IF(E27,E27/E28,"-") -> - | F29: - | G29: - | H29: - | I29: - | J29: - | K29: - | L29: - | M29: -
C32: Changes in utilisation of highly loaded substations due to projected expenditure levels | D32: At 31st March 2010 | H32: At 31st March 2015 | L32: At 31st March 2010 | M32: At 31st March 2015
D33: 132kV-EHV | E33: 132kV - HV | F33: EHV - EHV | G33: EHV - HV | H33: 132kV-EHV | I33: 132kV - HV | J33: EHV - EHV | K33: EHV - HV | L33: Total | M33: Total
C34: Number of substations loaded >=80% of firm capacity | L34: =SUM(D34:G34) -> 0 | M34: =SUM(H34:K34) -> 0
C35: Σ substation maximum demands for substations loaded >=80% of firm capacity | L35: 0 | M35: 0
C36: Σ substation firm capacities for substations loaded >=80% of firm capacity | L36: 0 | M36: 0
C37: % Loading of substations which are operating at >=80% of firm capacity = Σ demand /Σ firm capacity | D37: =IF(D35,D35/D36,"-") -> - | E37: =IF(E35,E35/E36,"-") -> - | F37: - | G37: - | H37: - | I37: - | J37: - | K37: - | L37: - | M37: -
C38: Number of substations loaded above 100% of firm capacity | L38: 0 | M38: 0
C39: Number of DNO substations requiring reinforcement within 5 yrs | L39: 0 | M39: 0
B41: General reinforcement projects
C43: Scheme details | L43: DPCR4 Expenditure | Q43: DPCR5 Expenditure | V43: Utilisation | AJ43: (N-2) scheme? | AK43: Scheme description
C44: Named scheme | D44: Primary Voltage | E44: Secondary Voltage | F44: Limiting Factor | G44: Forecast year in which substation demand will reach substation/group firm capacity | H44: Planned reinforce-ment Year | I44: MVA of additional firm capacity to be installed | J44: Total cost of project | K44: Total cost of project in DPCR5 period | L44: 2005/06 | M44: 2006/07 | N44: 2007/08 | O44: 2008/09 | P44: 2009/10 | Q44: 2010/11 | R44: 2011/12 | S44: 2012/13 | T44: 2013/14 | U44: 2014/15 | V44: Historic and forecast max demand (MVA) | AF44: Substation/Group Total Capability | AG44: Substation/group firm capacity under single circuit outage conditions | AH44: Substation/Group Maximum Demand | AI44: Season of critical loading condition | AK44: Brief description of work involved, substations affected, assets installed/replaced etc.
C45: (Unique name) | D45: (kV) | E45: (kV) | F45: (a-j) | G45: (Year) | H45: (Year) | I45: (MVA) | J45: (£m) | K45: (£m) | L45: (£m) | M45: (£m) | N45: (£m) | O45: (£m) | P45: (£m) | Q45: (£m) | R45: (£m) | S45: (£m) | T45: (£m) | U45: (£m) | V45: 2005/06 | W45: 2006/07 | X45: 2007/08 | Y45: 2008/09 | Z45: 2009/10 | AA45: 2010/11 | AB45: 2011/12 | AC45: 2012/13 | AD45: 2013/14 | AE45: 2014/15 | AF45: (MVA) | AG45: (MVA) | AH45: (MVA) | AI45: Season | AJ45: (Y/N) | AK45: (Description)
B46: 1 | D46: 33/11 | F46: a | G46: 2008/9 | I46: 10 | J46: 0.6 | K46: =SUM(Q46:U46) -> 0.6 | Q46: 0.6 | R46: 0 | S46: 0 | T46: 0 | U46: 0 | AK46: Change 33/11 transformer units to 12/24 and replace 11kV switchboard
B47: 2 | D47: 33 | F47: c | G47: 2008/9 | I47: 4.6 | J47: 1.4 | K47: =SUM(Q47:U47) -> 1.4 | Q47: 0 | R47: 0.7 | S47: 0.7 | T47: 0 | U47: 0 | AK47: Establish new 33kV circuit into Tregaron site.
B48: 3 | D48: 33 | F48: a | G48: 2011/12 | I48: 3 | J48: 0.45 | K48: 0.45 | Q48: 0 | R48: 0.45 | S48: 0 | T48: 0 | U48: 0 | AK48: 11kV load transfer to Waterton 132/11
B49: 4 | D49: 33 | F49: d | G49: 2014/15 | I49: 23 | J49: 0.8 | K49: 0.8 | Q49: 0 | R49: 0 | S49: 0 | T49: 0.6 | U49: 0.2 | AK49: Establish 3rd 33kV circuit (cable) to s/s and additional 12/24 transformer & 11kV Swbd Change
B50: 5 | D50: 33 | F50: b | G50: 2011/12 | I50: 7.1 | J50: 0.3 | K50: 0.3 | Q50: 0 | R50: 0.3 | S50: 0 | T50: 0 | U50: 0 | AK50: Establish 33kV switchboard and 2nd transformer unit.
B51: 6 | D51: 33 | F51: c | G51: 2009/10 | I51: 7.1 | J51: 0.8 | K51: 0.8 | Q51: 0.3 | R51: 0.4 | S51: 0.1 | T51: 0 | U51: 0 | AK51: Install 2nd transformer, and 33kV circuit (o/h)
B52: 7 | D52: 33 | F52: a/b | G52: 2013/14 | I52: 6 | J52: 1.2 | K52: 1.2 | Q52: 0 | R52: 0 | S52: 1.2 | T52: 0 | U52: 0 | AK52: Increase 11kV Interconnection between 3 Tx Group
B53: 8 | D53: 33/11 | F53: a | G53: 2013/14 | I53: 17.9 | J53: 0.7 | K53: 0.7 | Q53: 0 | R53: 0 | S53: 0 | T53: 0.7 | U53: 0 | AK53: Overlay 33kV circuits and install 19/38 MVA 33/11 units
B54: 9 | D54: 33 | F54: b | G54: 2009 | I54: 20 | J54: 0.4 | K54: 0.4 | Q54: 0.4 | R54: 0 | S54: 0 | T54: 0 | U54: 0 | AK54: Establish new 33kV circuit to Gas Yard, to remove load from Gas Yard/Nelson 33kV ring.
B55: 10 | D55: 66 | F55: j | G55: 2009/10 | I55: 6 | J55: 0.2 | K55: 0.2 | Q55: 0.2 | R55: 0 | S55: 0 | T55: 0 | U55: 0 | AK55: Establish 66kV bar with bus-section breaker
B56: 11 | D56: 66 | F56: j | G56: 2008/9 | I56: 12 | J56: 0.3 | K56: 0.3 | Q56: 0.3 | R56: 0 | S56: 0 | T56: 0 | U56: 0 | AK56: Reconductor front end of 66kV circuits Abergavenny to Crickhowell or apply higher operating Temp/increasing height
B57: 12 | D57: 33 | F57: b | G57: 2008/9 | I57: 6 | J57: 0.9 | K57: 0.9 | Q57: 0 | R57: 0.5 | S57: 0.4 | T57: 0 | U57: 0 | AK57: Increase height to allow higher Op Temp, installation of 11kV Cap Bank Brawdy
B58: 13 | D58: 33/11 | F58: a | G58: 2013/14 | I58: 14 | J58: 1.7 | K58: 1.7 | Q58: 0.2 | R58: 0 | S58: 0.7 | T58: 0.8 | U58: 0 | AK58: Install addition 33/11 Tx capacity 11kV interconnection between sites
B59: 14 | D59: 33 | F59: a | G59: 2008/9 | I59: 15 | J59: 1.6 | K59: 1.6 | Q59: 0 | R59: 0 | S59: 0.4 | T59: 0.6 | U59: 0.6 | AK59: Additional Grid Tx at Rhos or 33 kV circuit uprating
B60: 15 | D60: 33/11 | F60: f | G60: 2008/9 | I60: 6.2 | J60: 0.8 | K60: 0.8 | Q60: 0.6 | R60: 0.2 | S60: 0 | T60: 0 | U60: 0 | AK60: New 33kV tranformer circuit and 33/11kV transformer
B61: 16 | D61: 33/11 | F61: a | G61: 2008/9 | I61: 15 | J61: 0.45 | K61: 0.45 | Q61: 0 | R61: 0.45 | S61: 0 | T61: 0 | U61: 0 | AK61: Transformer change to 19/38 MVA units & 33/11kV Swbd Change
B62: 17 | D62: 33 | J62: 2.3 | K62: 2.3 | Q62: 0.2 | R62: 0.2 | S62: 0.2 | T62: 0.2 | U62: 1.5 | AK62: Typically smaller schemes. Unidentified larger scheme(s) 2014/15.
B63: 18 | D63: 132/11 | F63: a | G63: 2010/11 | I63: 11.3 | J63: 2.5 | K63: 0.5 | O63: 1 | P63: 1 | Q63: 0.5 | R63: 0 | S63: 0 | T63: 0 | U63: 0 | AK63: Establish 132/11kV susbstaion at Abergavenny
B64: 19 | D64: 132/11 | F64: b | G64: 2010/11 | I64: 14.5 | J64: 2 | K64: 1.5 | P64: 0.5 | Q64: 1.5 | R64: 0 | S64: 0 | T64: 0 | U64: 0 | AK64: Establish 132/11kV substation near Pentrebach to deload existing 33kV ccts
B65: 20 | D65: 132/33 | F65: c | G65: 2011/12 | I65: 11 | J65: 1 | K65: 1 | Q65: 0 | R65: 1 | S65: 0 | T65: 0 | U65: 0 | AK65: Establish a second 132/33 transformer
B66: 21 | D66: 132/33 | F66: a | G66: 2013/14 | I66: 40 | J66: 1 | K66: 1 | Q66: 0 | R66: 0 | S66: 0 | T66: 0 | U66: 1 | AK66: Establish second 132/33kv unit and break parallel.
B67: 22 | D67: 132/33 | F67: c | G67: 2014/15 | I67: 40 | J67: 1 | K67: 1 | Q67: 0 | R67: 0 | S67: 0 | T67: 1 | U67: 0 | AK67: Establish second 132/33kv unit and break parallel.
B68: 23 | D68: 132/11 | F68: a | G68: 2014/15 | I68: 30 | J68: 1.2 | K68: 1.2 | Q68: 0 | R68: 0 | S68: 0 | T68: 0 | U68: 1.2 | AK68: Establish new 132/11kV site
B69: 24 | D69: 132 | J69: 0.6 | K69: 0.6 | Q69: 0 | R69: 0 | S69: 0.6 | T69: 0 | AK69: Unidentified
B70: 25 | K70: 0
B71: 26 | K71: 0
B72: 27 | K72: 0
B73: 28 | K73: 0
B74: 29 | K74: 0
B75: 30 | K75: 0
B76: 31 | K76: 0
B77: 32 | K77: 0
B78: 33 | K78: 0
B79: 34 | K79: 0
B80: 35 | K80: =SUM(Q80:U80) -> 0
B81: 36 | K81: =SUM(Q81:U81) -> 0
B82: 37 | K82: 0
B83: 38 | K83: 0
B84: 39 | K84: 0
B85: 40 | K85: 0
B86: 41 | K86: 0
B87: 42 | K87: 0
B88: 43 | K88: 0
B89: 44 | K89: 0
B90: 45 | K90: 0
B91: 46 | K91: 0
B92: 47 | K92: 0
B93: 48 | K93: 0
B94: 49 | K94: 0
B95: 50 | K95: 0
B96: 51 | K96: 0
B97: 52 | K97: 0
B98: 53 | K98: 0
C99: Total | I99: =SUM(I46:I98) -> 319.7 | J99: 24.2 | K99: 21.7 | L99: 0 | M99: 0 | N99: 0 | O99: 1 | P99: 1.5 | Q99: 4.8 | R99: 4.2 | S99: 4.3 | T99: 3.9 | U99: 4.5 | V99: =SUM(V46:V98) -> 0 | W99: =SUM(W46:W98) -> 0 | X99: 0 | Y99: 0 | Z99: 0 | AA99: 0 | AB99: 0 | AC99: 0 | AD99: 0 | AE99: 0 | AF99: 0 | AG99: 0 | AH99: 0

Sheet FBPQ LR6
A1: Main Forecast Business Plan DPCR5 | F1: Index
A3: LR6 - Fault levels
B6: Fault level system measures
D8: As at 31st March 2010 | G8: As at 31st March 2015
D9: 132kV | E9: EHV | F9: HV | G9: 132kV | H9: EHV | I9: HV
B10: No. of switchboards | D10: 127 | E10: 172 | F10: 207 | G10: 127 | H10: 172 | I10: 207
B11: No. of switchboards @ >95% of F.L. | D11: 4 | E11: 9 | F11: 4 | G11: 4 | H11: 9 | I11: 4
B12: No. of switchboards having fault level 'operational restrictions' | D12: 0 | E12: 0 | F12: 0 | G12: 0 | H12: 0 | I12: 0
B14: Number of fault level schemes
B16: No. of schemes | D16: DPCR4 | G16: DPCR5
D17: 132kV | E17: EHV | F17: HV | G17: 132kV | H17: EHV | I17: HV
B18: Switchboards | D18: 0 | E18: 0 | F18: 0 | G18: 0 | H18: 1 | I18: 0
B19: Transformers | D19: 0 | E19: 0 | F19: 0 | G19: 0 | H19: 0 | I19: 0
B20: Other | D20: 0 | E20: 0 | F20: 0 | G20: 0 | H20: 0 | I20: 0
B22: Fault level reinforcement
C24: DPCR4 | H24: DPCR5 | N24: DPCR4 | R24: DPCR5
C25: 2005/06 | D25: 2006/07 | E25: 2007/08 | F25: 2008/09 | G25: 2009/10 | H25: 2010/11 | I25: 2011/12 | J25: 2012/13 | K25: 2013/14 | L25: 2014/15 | N25: Actuals | O25: Forecast | P25: Total | R25: Forecast | S25: % change
C26: (£m) | D26: (£m) | E26: (£m) | F26: (£m) | G26: (£m) | H26: (£m) | I26: (£m) | J26: (£m) | K26: (£m) | L26: (£m) | N26: (£m) | O26: (£m) | P26: (£m) | R26: (£m) | S26: (£m)
B27: Fault level reinforcement:
B28: LV | C28: 0 | D28: 0 | E28: 0 | F28: 0 | G28: 0 | H28: 0 | I28: 0 | J28: 0 | K28: 0 | L28: 0 | N28: 0 | O28: 0 | P28: 0 | R28: 0 | S28: 0
B29: HV | C29: 0 | D29: 0 | E29: 0 | F29: 0 | G29: 0 | H29: 0 | I29: 0 | J29: 0 | K29: 0 | L29: 0 | N29: 0 | O29: 0 | P29: 0 | R29: 0 | S29: 0
B30: EHV | C30: 0 | D30: 0 | E30: 0 | F30: 0 | G30: 0 | H30: 0 | I30: 0.7 | J30: 0 | K30: 0 | L30: 0 | N30: 0 | O30: 0 | P30: 0 | R30: 0.7 | S30: 0
B31: 132kV | C31: 0 | D31: 0 | E31: 0 | F31: 0 | G31: 0 | H31: 0 | I31: 0 | J31: 0 | K31: 0 | L31: 0 | N31: 0 | O31: 0 | P31: 0 | R31: 0 | S31: 0
B32: Total expenditure | C32: 0 | D32: 0 | E32: 0 | F32: 0 | G32: 0 | H32: 0 | I32: 0.7 | J32: 0 | K32: 0 | L32: 0 | N32: 0 | O32: 0 | P32: 0 | R32: 0.7 | S32: 0

Sheet FBPQ NL1 0309
A1: June Forecast Business Plan DPCR5
A2: EDFE SPN
A3: NL1 - Condition based expenditure
B5: Total condition based replacement
B7: Asset Categories | D7: DPCR 4 | I7: DPCR 5 | O7: DPCR4 | S7: DPCR5
D8: 2005/06 | E8: 2006/07 | F8: 2007/08 | G8: 2008/09 | H8: 2009/10 | I8: 2010/11 | J8: 2011/12 | K8: 2012/13 | L8: 2013/14 | M8: 2014/15 | O8: Actuals | P8: Forecast | Q8: Total | S8: Forecast | T8: % change
D9: £m | E9: £m | F9: £m | G9: £m | H9: £m | I9: £m | J9: £m | K9: £m | L9: £m | M9: £m
B10: Metered LV Services | C10: Overhead | D10: 1 | E10: 0.9 | F10: 1.5 | G10: 0.9799806302 | H10: 0.4485690833 | I10: 0.82 | J10: 0.89 | K10: 1 | L10: 1 | M10: 1 | O10: 3.4 | P10: 1.428549713 | Q10: 4.828549713 | S10: 4.71 | T10: -0.02455182622
C11: Underground | D11: 0.5 | E11: 0.7 | F11: 0.6 | G11: 0.6794951164 | H11: 0.3990743796 | I11: 1.04 | J11: 1.18 | K11: 1.32 | L11: 1.47 | M11: 1.62 | O11: 1.8 | P11: 1.078569496 | Q11: 2.878569496 | S11: 6.63 | T11: 1.303227353
B12: Un-metered LV Services | C12: Overhead | D12: 0 | E12: 0 | F12: 0 | G12: 0.009422890675 | H12: 0.03159236404 | I12: 0 | J12: 0 | K12: 0 | L12: 0 | M12: 0 | O12: 0 | P12: 0.04101525472 | Q12: 0.04101525472 | S12: 0 | T12: -1
C13: Underground | D13: 0 | E13: -0.1041309586 | F13: -0.2 | G13: -0.03405302037 | H13: -0.05377069034 | I13: -0.1 | J13: -0.1 | K13: -0.1 | L13: -0.1 | M13: -0.1 | O13: -0.3041309586 | P13: -0.08782371071 | Q13: -0.3919546693 | S13: -0.5 | T13: 0.2756577204
B14: LV System | C14: Overhead mains | D14: 1.7 | E14: 1.7 | F14: 2 | G14: 1.457407091 | H14: 1.410700733 | I14: 1.61 | J14: 1.76 | K14: 1.94 | L14: 1.94 | M14: 1.94 | O14: 5.4 | P14: 2.868107824 | Q14: 8.268107824 | S14: 9.19 | T14: 0.1114997767
C15: Underground mains | D15: 0.2 | E15: 0.2 | F15: 0.3 | G15: 0.1800819107 | H15: 0.221061576 | I15: 0.58 | J15: 0.67 | K15: 0.75 | L15: 0.83 | M15: 0.93 | O15: 0.7 | P15: 0.4011434867 | Q15: 1.101143487 | S15: 3.76 | T15: 2.414632194
C16: Switchgear (incl other plant & equipment) | D16: 0.2 | E16: 0.1 | F16: 0.1 | G16: 0.2659349146 | H16: 0.3085520888 | I16: 0.47 | J16: 0.51 | K16: 0.56 | L16: 0.61 | M16: 0.66 | O16: 0.4 | P16: 0.5744870034 | Q16: 0.9744870034 | S16: 2.81 | T16: 1.883568473
B17: HV | C17: Overhead lines | D17: 1.9 | E17: 5.2 | F17: 5 | G17: 3.424697266 | H17: 3.216943308 | I17: 5.15 | J17: 7.1 | K17: 9.07 | L17: 9.07 | M17: 9.07 | O17: 12.1 | P17: 6.641640574 | Q17: 18.74164057 | S17: 39.46 | T17: 1.105472029
C18: Underground cables | D18: 0.2 | E18: 0.6 | F18: 1.1 | G18: 0.4313589953 | H18: 0.2474735183 | I18: 0.43 | J18: 0.48 | K18: 0.55 | L18: 0.61 | M18: 0.69 | O18: 1.9 | P18: 0.6788325137 | Q18: 2.578832514 | S18: 2.76 | T18: 0.07025174585
C19: Submarine | D19: 0 | E19: 0 | F19: 0 | G19: 0 | H19: 0 | I19: 0.05 | J19: 0.05 | K19: 0.05 | L19: 0.05 | M19: 0.05 | O19: 0 | P19: 0 | Q19: 0 | S19: 0.25 | T19: 0
C20: Switchgear (incl other plant & equipment) | D20: 0.9 | E20: 1.1 | F20: 2.6 | G20: 1.986135957 | H20: 2.531601439 | I20: 1.81 | J20: 1.88 | K20: 1.94 | L20: 1.99 | M20: 2.04 | O20: 4.6 | P20: 4.517737395 | Q20: 9.117737395 | S20: 9.66 | T20: 0.05947337385
C21: Transformers | D21: 0.1 | E21: 0.8 | F21: 0.8 | G21: 0.4847553758 | H21: 0.9151254784 | I21: 1.76 | J21: 1.85 | K21: 1.93 | L21: 2.01 | M21: 2.08 | O21: 1.7 | P21: 1.399880854 | Q21: 3.099880854 | S21: 9.63 | T21: 2.106571011
C22: Substation | D22: 0.6 | E22: 1 | F22: 0.8 | G22: 0.647038493 | H22: 0.4875754851 | I22: 0.7 | J22: 0.7 | K22: 0.7 | L22: 0.7 | M22: 0.7 | O22: 2.4 | P22: 1.134613978 | Q22: 3.534613978 | S22: 3.5 | T22: -0.009792859494
B23: EHV | C23: Overhead lines | D23: 0.3 | E23: 0.4 | F23: 0.9 | G23: 2.0772239 | H23: 1.208934464 | I23: 0.66 | J23: 1.08 | K23: 1.51 | L23: 1.51 | M23: 1.52 | O23: 1.6 | P23: 3.286158364 | Q23: 4.886158364 | S23: 6.28 | T23: 0.2852632953
C24: Underground cables | D24: 0.8 | E24: 0.9 | F24: 0 | G24: 0.04711445337 | H24: 0.1084671165 | I24: 0.14 | J24: 0.17 | K24: 0.2 | L24: 0.23 | M24: 0.26 | O24: 1.7 | P24: 0.1555815699 | Q24: 1.85558157 | S24: 1 | T24: -0.4610853997
C25: Submarine | D25: 0 | E25: 0 | F25: 0 | G25: 0 | H25: 0 | I25: 0.1 | J25: 0.1 | K25: 0.1 | L25: 0.1 | M25: 0.1 | O25: 0 | P25: 0 | Q25: 0 | S25: 0.5 | T25: 0
C26: Switchgear (incl other plant & equipment) | D26: 0.5 | E26: 1.3 | F26: 1.9 | G26: 1.075256525 | H26: 1.518539632 | I26: 0.65 | J26: 0.66 | K26: 0.67 | L26: 0.67 | M26: 0.67 | O26: 3.7 | P26: 2.593796156 | Q26: 6.293796156 | S26: 3.32 | T26: -0.4724964207
C27: Transformers | D27: 0.1 | E27: 0.3 | F27: 1 | G27: 0.6219107845 | H27: 0.3612060289 | I27: 1.46 | J27: 1.52 | K27: 1.59 | L27: 1.7 | M27: 1.76 | O27: 1.4 | P27: 0.9831168134 | Q27: 2.383116813 | S27: 8.03 | T27: 2.369536883
C28: Substation | D28: 0.4 | E28: 0.1 | F28: 0.3 | G28: 0.1382023966 | H28: 0.2127219179 | I28: 0.48 | J28: 0.48 | K28: 0.48 | L28: 0.48 | M28: 0.48 | O28: 0.8 | P28: 0.3509243144 | Q28: 1.150924314 | S28: 2.4 | T28: 1.085280474
B29: 132kV | C29: Overhead lines | D29: 0.5 | E29: 1.3 | F29: 1.1 | G29: 0.8857517234 | H29: 0.33382598 | I29: 0.6 | J29: 0.77 | K29: 0.96 | L29: 0.98 | M29: 1 | O29: 2.9 | P29: 1.219577703 | Q29: 4.119577703 | S29: 4.31 | T29: 0.04622374191
C30: Underground cables | D30: 0 | E30: 0 | F30: 0.4 | G30: 0.1308734816 | H30: 0.1621741354 | I30: 0.36 | J30: 0.48 | K30: 0.6 | L30: 0.6 | M30: 0.71 | O30: 0.4 | P30: 0.293047617 | Q30: 0.693047617 | S30: 2.75 | T30: 2.967981323
C31: Submarine cables | D31: 0 | E31: 0 | F31: 0 | G31: 0 | H31: 0 | I31: 0 | J31: 0 | K31: 0 | L31: 0 | M31: 0 | O31: 0 | P31: 0 | Q31: 0 | S31: 0 | T31: 0
C32: Switchgear (incl other plant & equipment) | D32: 1 | E32: 1.8 | F32: 0.1 | G32: 0.5569975377 | H32: 0.1358471654 | I32: 0.16 | J32: 0.17 | K32: 0.18 | L32: 0.2 | M32: 0.21 | O32: 2.9 | P32: 0.692844703 | Q32: 3.592844703 | S32: 0.92 | T32: -0.7439354951
C33: Transformers | D33: 0.1 | E33: 0.6 | F33: 0.8 | G33: 1.041752913 | H33: 0 | I33: 2.29 | J33: 2.29 | K33: 2.29 | L33: 2.14 | M33: 2.14 | O33: 1.5 | P33: 1.041752913 | Q33: 2.541752913 | S33: 11.15 | T33: 3.38673639
C34: Substation | D34: 0.2 | E34: 0.2 | F34: 0.9 | G34: 0.2366192547 | H34: 0.1937664995 | I34: 0.21 | J34: 0.21 | K34: 0.21 | L34: 0.21 | M34: 0.21 | O34: 1.3 | P34: 0.4303857542 | Q34: 1.730385754 | S34: 1.05 | T34: -0.3931988879
B35: Total non-load replacement (£m) | D35: 11.2 | E35: 19.09586904 | F35: 22 | G35: 17.32395859 | H35: 14.3999817 | I35: 21.43 | J35: 24.9 | K35: 28.5 | L35: 29 | M35: 29.74 | O35: 52.29586904 | P35: 31.72394029 | Q35: 84.01980933 | S35: 133.57 | T35: 0.5897441456
B38: Proactive condition based replacement (non fault)
B40: Asset Categories | D40: DPCR 4 | I40: DPCR 5 | O40: DPCR4 | S40: DPCR5
D41: 2005/06 | E41: 2006/07 | F41: 2007/08 | G41: 2008/09 | H41: 2009/10 | I41: 2010/11 | J41: 2011/12 | K41: 2012/13 | L41: 2013/14 | M41: 2014/15 | O41: Actuals | P41: Forecast | Q41: Total | S41: Forecast | T41: % change
D42: £m | E42: £m | F42: £m | G42: £m | H42: £m | I42: £m | J42: £m | K42: £m | L42: £m | M42: £m
B43: Metered LV Services | C43: Overhead | D43: 1 | E43: 0.9 | F43: 1.5 | G43: 0.9799806302 | H43: 0.4485690833 | I43: 0.82 | J43: 0.89 | K43: 1 | L43: 1 | M43: 1 | O43: 3.4 | P43: 1.428549713 | Q43: 4.828549713 | S43: 4.71 | T43: -0.02455182622
C44: Underground | D44: 0.5 | E44: 0.7 | F44: 0.6 | G44: 0.6794951164 | H44: 0.3990743796 | I44: 1.04 | J44: 1.18 | K44: 1.32 | L44: 1.47 | M44: 1.62 | O44: 1.8 | P44: 1.078569496 | Q44: 2.878569496 | S44: 6.63 | T44: 1.303227353
B45: Un-metered LV Services | C45: Overhead | D45: 0 | E45: 0 | F45: 0 | G45: 0.009422890675 | H45: 0.03159236404 | I45: 0 | J45: 0 | K45: 0 | L45: 0 | M45: 0 | O45: 0 | P45: 0.04101525472 | Q45: 0.04101525472 | S45: 0 | T45: -1
C46: Underground | D46: 0 | E46: -0.1041309586 | F46: -0.2 | G46: -0.03405302037 | H46: -0.05377069034 | I46: -0.1 | J46: -0.1 | K46: -0.1 | L46: -0.1 | M46: -0.1 | O46: -0.3041309586 | P46: -0.08782371071 | Q46: -0.3919546693 | S46: -0.5 | T46: 0.2756577204
B47: LV System | C47: Overhead mains | D47: 1.7 | E47: 1.7 | F47: 2 | G47: 1.457407091 | H47: 1.410700733 | I47: 1.61 | J47: 1.76 | K47: 1.94 | L47: 1.94 | M47: 1.94 | O47: 5.4 | P47: 2.868107824 | Q47: 8.268107824 | S47: 9.19 | T47: 0.1114997767
C48: Underground mains | D48: 0.2 | E48: 0.2 | F48: 0.2 | G48: 0.08008191067 | H48: 0.121061576 | I48: 0.48 | J48: 0.57 | K48: 0.65 | L48: 0.73 | M48: 0.83 | O48: 0.6 | P48: 0.2011434867 | Q48: 0.8011434867 | S48: 3.26 | T48: 3.069183678
C49: Switchgear (incl other plant & equipment) | D49: 0.2 | E49: 0.1 | F49: 0.1 | G49: 0.2659349146 | H49: 0.3085520888 | I49: 0.47 | J49: 0.51 | K49: 0.56 | L49: 0.61 | M49: 0.66 | O49: 0.4 | P49: 0.5744870034 | Q49: 0.9744870034 | S49: 2.81 | T49: 1.883568473
B50: HV | C50: Overhead lines | D50: 1.9 | E50: 5.2 | F50: 5 | G50: 3.424697266 | H50: 3.216943308 | I50: 5.15 | J50: 7.1 | K50: 9.07 | L50: 9.07 | M50: 9.07 | O50: 12.1 | P50: 6.641640574 | Q50: 18.74164057 | S50: 39.46 | T50: 1.105472029
C51: Underground cables | D51: 0.2 | E51: 0.6 | F51: 1.1 | G51: 0.4313589953 | H51: 0.2474735183 | I51: 0.43 | J51: 0.48 | K51: 0.55 | L51: 0.61 | M51: 0.69 | O51: 1.9 | P51: 0.6788325137 | Q51: 2.578832514 | S51: 2.76 | T51: 0.07025174585
C52: Submarine | D52: 0 | E52: 0 | F52: 0 | G52: 0 | H52: 0 | I52: 0 | J52: 0 | K52: 0 | L52: 0 | M52: 0 | O52: 0 | P52: 0 | Q52: 0 | S52: 0 | T52: 0
C53: Switchgear (incl other plant & equipment) | D53: 0.9 | E53: 1.1 | F53: 2.5 | G53: 1.886135957 | H53: 2.431601439 | I53: 1.71 | J53: 1.78 | K53: 1.84 | L53: 1.89 | M53: 1.94 | O53: 4.5 | P53: 4.317737395 | Q53: 8.817737395 | S53: 9.16 | T53: 0.0388152413
C54: Transformers | D54: 0.1 | E54: 0.8 | F54: 0.7 | G54: 0.3847553758 | H54: 0.8151254784 | I54: 1.66 | J54: 1.75 | K54: 1.83 | L54: 1.91 | M54: 1.98 | O54: 1.6 | P54: 1.199880854 | Q54: 2.799880854 | S54: 9.13 | T54: 2.260853042
C55: Substation | D55: 0.6 | E55: 1 | F55: 0.8 | G55: 0.647038493 | H55: 0.4875754851 | I55: 0.7 | J55: 0.7 | K55: 0.7 | L55: 0.7 | M55: 0.7 | O55: 2.4 | P55: 1.134613978 | Q55: 3.534613978 | S55: 3.5 | T55: -0.009792859494
B56: EHV | C56: Overhead lines | D56: 0.3 | E56: 0.4 | F56: 0.9 | G56: 2.0772239 | H56: 1.208934464 | I56: 0.66 | J56: 1.08 | K56: 1.51 | L56: 1.51 | M56: 1.52 | O56: 1.6 | P56: 3.286158364 | Q56: 4.886158364 | S56: 6.28 | T56: 0.2852632953
C57: Underground cables | D57: 0.8 | E57: 0.9 | F57: 0 | G57: 0.04711445337 | H57: 0.1084671165 | I57: 0.14 | J57: 0.17 | K57: 0.2 | L57: 0.23 | M57: 0.26 | O57: 1.7 | P57: 0.1555815699 | Q57: 1.85558157 | S57: 1 | T57: -0.4610853997
C58: Submarine | D58: 0 | E58: 0 | F58: 0 | G58: 0 | H58: 0 | I58: 0 | J58: 0 | K58: 0 | L58: 0 | M58: 0 | O58: 0 | P58: 0 | Q58: 0 | S58: 0 | T58: 0
C59: Switchgear (incl other plant & equipment) | D59: 0.5 | E59: 1.3 | F59: 1.9 | G59: 1.075256525 | H59: 1.518539632 | I59: 0.65 | J59: 0.66 | K59: 0.67 | L59: 0.67 | M59: 0.67 | O59: 3.7 | P59: 2.593796156 | Q59: 6.293796156 | S59: 3.32 | T59: -0.4724964207
C60: Transformers | D60: 0.1 | E60: 0.3 | F60: 0.8 | G60: 0.4219107845 | H60: 0.1612060289 | I60: 1.26 | J60: 1.32 | K60: 1.39 | L60: 1.5 | M60: 1.56 | O60: 1.2 | P60: 0.5831168134 | Q60: 1.783116813 | S60: 7.03 | T60: 2.94253475
C61: Substation | D61: 0.4 | E61: 0.1 | F61: 0.3 | G61: 0.1382023966 | H61: 0.2127219179 | I61: 0.48 | J61: 0.48 | K61: 0.48 | L61: 0.48 | M61: 0.48 | O61: 0.8 | P61: 0.3509243144 | Q61: 1.150924314 | S61: 2.4 | T61: 1.085280474
B62: 132kV | C62: Overhead lines | D62: 0.5 | E62: 1.3 | F62: 1.1 | G62: 0.8857517234 | H62: 0.33382598 | I62: 0.6 | J62: 0.77 | K62: 0.96 | L62: 0.98 | M62: 1 | O62: 2.9 | P62: 1.219577703 | Q62: 4.119577703 | S62: 4.31 | T62: 0.04622374191
C63: Underground cables | D63: 0 | E63: 0 | F63: 0.4 | G63: 0.1308734816 | H63: 0.1621741354 | I63: 0.36 | J63: 0.48 | K63: 0.6 | L63: 0.6 | M63: 0.71 | O63: 0.4 | P63: 0.293047617 | Q63: 0.693047617 | S63: 2.75 | T63: 2.967981323
C64: Submarine cables | D64: 0 | E64: 0 | F64: 0 | G64: 0 | H64: 0 | I64: 0 | J64: 0 | K64: 0 | L64: 0 | M64: 0 | O64: 0 | P64: 0 | Q64: 0 | S64: 0 | T64: 0
C65: Switchgear (incl other plant & equipment) | D65: 1 | E65: 1.8 | F65: 0.1 | G65: 0.5569975377 | H65: 0.1358471654 | I65: 0.16 | J65: 0.17 | K65: 0.18 | L65: 0.2 | M65: 0.21 | O65: 2.9 | P65: 0.692844703 | Q65: 3.592844703 | S65: 0.92 | T65: -0.7439354951
C66: Transformers | D66: 0.1 | E66: 0.6 | F66: 0.8 | G66: 1.041752913 | H66: 0 | I66: 2.29 | J66: 2.29 | K66: 2.29 | L66: 2.14 | M66: 2.14 | O66: 1.5 | P66: 1.041752913 | Q66: 2.541752913 | S66: 11.15 | T66: 3.38673639
C67: Substation | D67: 0.2 | E67: 0.2 | F67: 0.9 | G67: 0.2366192547 | H67: 0.1937664995 | I67: 0.21 | J67: 0.21 | K67: 0.21 | L67: 0.21 | M67: 0.21 | O67: 1.3 | P67: 0.4303857542 | Q67: 1.730385754 | S67: 1.05 | T67: -0.3931988879
B68: Total proactive condition based replacement (£m) | D68: 11.2 | E68: 19.09586904 | F68: 21.5 | G68: 16.82395859 | H68: 13.8999817 | I68: 20.78 | J68: 24.25 | K68: 27.85 | L68: 28.35 | M68: 29.09 | O68: 51.79586904 | P68: 30.72394029 | Q68: 82.51980933 | S68: 130.32 | T68: 0.5792571633
B71: Reactive condition-based replacement (fault)
B73: Asset Categories | D73: DPCR 4 | I73: DPCR 5 | O73: DPCR4 | S73: DPCR5
D74: 2005/06 | E74: 2006/07 | F74: 2007/08 | G74: 2008/09 | H74: 2009/10 | I74: 2010/11 | J74: 2011/12 | K74: 2012/13 | L74: 2013/14 | M74: 2014/15 | O74: Actuals | P74: Forecast | Q74: Total | S74: Forecast | T74: % change
D75: £m | E75: £m | F75: £m | G75: £m | H75: £m | I75: £m | J75: £m | K75: £m | L75: £m | M75: £m
B76: Metered LV Services | C76: Overhead | D76: 0 | E76: 0 | F76: 0 | G76: 0 | H76: 0 | I76: 0 | J76: 0 | K76: 0 | L76: 0 | M76: 0 | O76: 0 | P76: 0 | Q76: 0 | S76: 0 | T76: 0
C77: Underground | D77: 0 | E77: 0 | F77: 0 | G77: 0 | H77: 0 | I77: 0 | J77: 0 | K77: 0 | L77: 0 | M77: 0 | O77: 0 | P77: 0 | Q77: 0 | S77: 0 | T77: 0
B78: Un-metered LV Services | C78: Overhead | D78: 0 | E78: 0 | F78: 0 | G78: 0 | H78: 0 | I78: 0 | J78: 0 | K78: 0 | L78: 0 | M78: 0 | O78: 0 | P78: 0 | Q78: 0 | S78: 0 | T78: 0
C79: Underground | D79: 0 | E79: 0 | F79: 0 | G79: 0 | H79: 0 | I79: 0 | J79: 0 | K79: 0 | L79: 0 | M79: 0 | O79: 0 | P79: 0 | Q79: 0 | S79: 0 | T79: 0
B80: LV System | C80: Overhead mains | D80: 0 | E80: 0 | F80: 0 | G80: 0 | H80: 0 | I80: 0 | J80: 0 | K80: 0 | L80: 0 | M80: 0 | O80: 0 | P80: 0 | Q80: 0 | S80: 0 | T80: 0
C81: Underground mains | D81: 0 | E81: 0 | F81: 0.1 | G81: 0.1 | H81: 0.1 | I81: 0.1 | J81: 0.1 | K81: 0.1 | L81: 0.1 | M81: 0.1 | O81: 0.1 | P81: 0.2 | Q81: 0.3 | S81: 0.5 | T81: 0.6666666667
C82: Switchgear (incl other plant & equipment) | D82: 0 | E82: 0 | F82: 0 | G82: 0 | H82: 0 | I82: 0 | J82: 0 | K82: 0 | L82: 0 | M82: 0 | O82: 0 | P82: 0 | Q82: 0 | S82: 0 | T82: 0
B83: HV | C83: Overhead lines | D83: 0 | E83: 0 | F83: 0 | G83: 0 | H83: 0 | I83: 0 | J83: 0 | K83: 0 | L83: 0 | M83: 0 | O83: 0 | P83: 0 | Q83: 0 | S83: 0 | T83: 0
C84: Underground cables | D84: 0 | E84: 0 | F84: 0 | G84: 0 | H84: 0 | I84: 0 | J84: 0 | K84: 0 | L84: 0 | M84: 0 | O84: 0 | P84: 0 | Q84: 0 | S84: 0 | T84: 0
C85: Submarine | D85: 0 | E85: 0 | F85: 0 | G85: 0 | H85: 0 | I85: 0.05 | J85: 0.05 | K85: 0.05 | L85: 0.05 | M85: 0.05 | O85: 0 | P85: 0 | Q85: 0 | S85: 0.25 | T85: 0
C86: Switchgear (incl other plant & equipment) | D86: 0 | E86: 0 | F86: 0.1 | G86: 0.1 | H86: 0.1 | I86: 0.1 | J86: 0.1 | K86: 0.1 | L86: 0.1 | M86: 0.1 | O86: 0.1 | P86: 0.2 | Q86: 0.3 | S86: 0.5 | T86: 0.6666666667
C87: Transformers | D87: 0 | E87: 0 | F87: 0.1 | G87: 0.1 | H87: 0.1 | I87: 0.1 | J87: 0.1 | K87: 0.1 | L87: 0.1 | M87: 0.1 | O87: 0.1 | P87: 0.2 | Q87: 0.3 | S87: 0.5 | T87: 0.6666666667
C88: Substation | D88: 0 | E88: 0 | F88: 0 | G88: 0 | H88: 0 | I88: 0 | J88: 0 | K88: 0 | L88: 0 | M88: 0 | O88: 0 | P88: 0 | Q88: 0 | S88: 0 | T88: 0
B89: EHV | C89: Overhead lines | D89: 0 | E89: 0 | F89: 0 | G89: 0 | H89: 0 | I89: 0 | J89: 0 | K89: 0 | L89: 0 | M89: 0 | O89: 0 | P89: 0 | Q89: 0 | S89: 0 | T89: 0
C90: Underground cables | D90: 0 | E90: 0 | F90: 0 | G90: 0 | H90: 0 | I90: 0 | J90: 0 | K90: 0 | L90: 0 | M90: 0 | O90: 0 | P90: 0 | Q90: 0 | S90: 0 | T90: 0
C91: Submarine | D91: 0 | E91: 0 | F91: 0 | G91: 0 | H91: 0 | I91: 0.1 | J91: 0.1 | K91: 0.1 | L91: 0.1 | M91: 0.1 | O91: 0 | P91: 0 | Q91: 0 | S91: 0.5 | T91: 0
C92: Switchgear (incl other plant & equipment) | D92: 0 | E92: 0 | F92: 0 | G92: 0 | H92: 0 | I92: 0 | J92: 0 | K92: 0 | L92: 0 | M92: 0 | O92: 0 | P92: 0 | Q92: 0 | S92: 0 | T92: 0
C93: Transformers | D93: 0 | E93: 0 | F93: 0.2 | G93: 0.2 | H93: 0.2 | I93: 0.2 | J93: 0.2 | K93: 0.2 | L93: 0.2 | M93: 0.2 | O93: 0.2 | P93: 0.4 | Q93: 0.6 | S93: 1 | T93: 0.6666666667
C94: Substation | D94: 0 | E94: 0 | F94: 0 | G94: 0 | H94: 0 | I94: 0 | J94: 0 | K94: 0 | L94: 0 | M94: 0 | O94: 0 | P94: 0 | Q94: 0 | S94: 0 | T94: 0
B95: 132kV | C95: Overhead lines | D95: 0 | E95: 0 | F95: 0 | G95: 0 | H95: 0 | I95: 0 | J95: 0 | K95: 0 | L95: 0 | M95: 0 | O95: 0 | P95: 0 | Q95: 0 | S95: 0 | T95: 0
C96: Underground cables | D96: 0 | E96: 0 | F96: 0 | G96: 0 | H96: 0 | I96: 0 | J96: 0 | K96: 0 | L96: 0 | M96: 0 | O96: 0 | P96: 0 | Q96: 0 | S96: 0 | T96: 0
C97: Submarine cables | D97: 0 | E97: 0 | F97: 0 | G97: 0 | H97: 0 | I97: 0 | J97: 0 | K97: 0 | L97: 0 | M97: 0 | O97: 0 | P97: 0 | Q97: 0 | S97: 0 | T97: 0
C98: Switchgear (incl other plant & equipment) | D98: 0 | E98: 0 | F98: 0 | G98: 0 | H98: 0 | I98: 0 | J98: 0 | K98: 0 | L98: 0 | M98: 0 | O98: 0 | P98: 0 | Q98: 0 | S98: 0 | T98: 0
C99: Transformers | D99: 0 | E99: 0 | F99: 0 | G99: 0 | H99: 0 | I99: 0 | J99: 0 | K99: 0 | L99: 0 | M99: 0 | O99: 0 | P99: 0 | Q99: 0 | S99: 0 | T99: 0
C100: Substation | D100: 0 | E100: 0 | F100: 0 | G100: 0 | H100: 0 | I100: 0 | J100: 0 | K100: 0 | L100: 0 | M100: 0 | O100: 0 | P100: 0 | Q100: 0 | S100: 0 | T100: 0
B101: Total reactive condition based replacement (£m) | D101: 0 | E101: 0 | F101: 0.5 | G101: 0.5 | H101: 0.5 | I101: 0.65 | J101: 0.65 | K101: 0.65 | L101: 0.65 | M101: 0.65 | O101: 0.5 | P101: 1 | Q101: 1.5 | S101: 3.25 | T101: 1.166666667
B104: Overhead line refurbishment / replacement
B106: Asset Categories | D106: DPCR 4 | I106: DPCR 5 | O106: DPCR4 | S106: DPCR5
D107: 2005/06 | E107: 2006/07 | F107: 2007/08 | G107: 2008/09 | H107: 2009/10 | I107: 2010/11 | J107: 2011/12 | K107: 2012/13 | L107: 2013/14 | M107: 2014/015 | O107: Actuals | P107: Forecast | Q107: Total | S107: Forecast | T107: % change
D108: £m | E108: £m | F108: £m | G108: £m | H108: £m | I108: £m | J108: £m | K108: £m | L108: £m | M108: £m
B109: LV Mains | C109: Refurbishment | D109: 0.5 | E109: 0.6 | F109: 0.7 | G109: 0.6323806631 | H109: 0.5800339889 | I109: 0.35 | J109: 0.43 | K109: 0.52 | L109: 0.52 | M109: 0.52 | O109: 1.8 | P109: 1.212414652 | Q109: 3.012414652 | S109: 2.34 | T109: -0.2232145072
C110: Full rebuild | D110: 0 | E110: 0 | F110: 0 | G110: 0 | H110: 0 | I110: 0 | J110: 0 | K110: 0 | L110: 0 | M110: 0 | O110: 0 | P110: 0 | Q110: 0 | S110: 0 | T110: 0
C111: Undergrounding | D111: 0 | E111: 0 | F111: 0 | G111: 0 | H111: 0 | I111: 0 | J111: 0 | K111: 0 | L111: 0 | M111: 0
C112: Covered Conductor | D112: 0 | E112: 0 | F112: 0 | G112: 0 | H112: 0 | I112: 0 | J112: 0 | K112: 0 | L112: 0 | M112: 0
C113: Pole replacement only (i.e. D poles) | D113: 1.2 | E113: 1.1 | F113: 1.3 | G113: 0.825026428 | H113: 0.8306667436 | I113: 1.26 | J113: 1.33 | K113: 1.42 | L113: 1.42 | M113: 1.42
C114: Total OHL expenditure (£m) | D114: 1.7 | E114: 1.7 | F114: 2 | G114: 1.457407091 | H114: 1.410700733 | I114: 1.61 | J114: 1.76 | K114: 1.94 | L114: 1.94 | M114: 1.94 | O114: 5.4 | P114: 2.868107824 | Q114: 8.268107824 | S114: 9.19 | T114: 0.1114997767
B115: HV | C115: Refurbishment | D115: 1.3 | E115: 4.3 | F115: 3.9 | G115: 2.669819025 | H115: 2.345206491 | I115: 3.9 | J115: 4.43 | K115: 5.04 | L115: 5.04 | M115: 5.04 | O115: 9.5 | P115: 5.015025515 | Q115: 14.51502552 | S115: 23.45 | T115: 0.61556726
C116: Full rebuild | D116: 0 | E116: 0 | F116: 0 | G116: 0 | H116: 0 | I116: 0 | J116: 0 | K116: 0 | L116: 0 | M116: 0 | O116: 0 | P116: 0 | Q116: 0 | S116: 0 | T116: 0
C117: Undergrounding | D117: 0 | E117: 0 | F117: 0 | G117: 0 | H117: 0 | I117: 0 | J117: 0 | K117: 0 | L117: 0 | M117: 0
C118: Covered Conductor | D118: 0 | E118: 0 | F118: 0 | G118: 0 | H118: 0 | I118: 0 | J118: 0 | K118: 0 | L118: 0 | M118: 0
C119: Pole replacement only (i.e. D poles) | D119: 0.6 | E119: 0.9 | F119: 1.1 | G119: 0.7548782418 | H119: 0.8717368169 | I119: 1.25 | J119: 2.67 | K119: 4.03 | L119: 4.03 | M119: 4.03
C120: Total OHL expenditure (£m) | D120: 1.9 | E120: 5.2 | F120: 5 | G120: 3.424697266 | H120: 3.216943308 | I120: 5.15 | J120: 7.1 | K120: 9.07 | L120: 9.07 | M120: 9.07 | O120: 12.1 | P120: 6.641640574 | Q120: 18.74164057 | S120: 39.46 | T120: 1.105472029
B121: EHV - Pole line | C121: Refurbishment | D121: 0 | E121: 0.1 | F121: 0.4 | G121: 1.690885382 | H121: 1.139431263 | I121: 0.24 | J121: 0.38 | K121: 0.52 | L121: 0.52 | M121: 0.52 | O121: 0.5 | P121: 2.830316645 | Q121: 3.330316645 | S121: 2.18 | T121: -0.3454075897
C122: Full rebuild | D122: 0 | E122: 0 | F122: 0 | G122: 0 | H122: 0 | I122: 0 | J122: 0 | K122: 0 | L122: 0 | M122: 0 | O122: 0 | P122: 0 | Q122: 0 | S122: 0 | T122: 0
C123: Undergrounding | D123: 0 | E123: 0 | F123: 0 | G123: 0 | H123: 0 | I123: 0 | J123: 0 | K123: 0 | L123: 0 | M123: 0
C124: Pole replacement only (i.e. D poles) | D124: 0.3 | E124: 0.3 | F124: 0.5 | G124: 0.3863385177 | H124: 0.06950320089 | I124: 0.27 | J124: 0.53 | K124: 0.8 | L124: 0.8 | M124: 0.8
B125: EHV - Tower line | C125: Fittings only | D125: 0 | E125: 0 | F125: 0 | G125: 0 | H125: 0 | I125: 0 | J125: 0 | K125: 0 | L125: 0 | M125: 0 | O125: 0 | P125: 0 | Q125: 0 | S125: 0 | T125: 0
C126: Reconductoring | D126: 0 | E126: 0 | F126: 0 | G126: 0 | H126: 0 | I126: 0.12 | J126: 0.11 | K126: 0.1 | L126: 0.1 | M126: 0.1 | O126: 0 | P126: 0 | Q126: 0 | S126: 0.53 | T126: 0
C127: Undergrounding | D127: 0 | E127: 0 | F127: 0 | G127: 0 | H127: 0 | I127: 0 | J127: 0 | K127: 0 | L127: 0 | M127: 0
C128: Tower Refurbishment | D128: 0 | E128: 0 | F128: 0 | G128: 0 | H128: 0 | I128: 0.03 | J128: 0.06 | K128: 0.09 | L128: 0.09 | M128: 0.1
B129: EHV Total | C129: Total OHL expenditure (£m) | D129: 0.3 | E129: 0.4 | F129: 0.9 | G129: 2.0772239 | H129: 1.208934464 | I129: 0.66 | J129: 1.08 | K129: 1.51 | L129: 1.51 | M129: 1.52 | O129: 1.6 | P129: 3.286158364 | Q129: 4.886158364 | S129: 6.28 | T129: 0.2852632953
B130: 132kV - Pole Line | C130: Refurbishment | D130: 0 | E130: 0 | F130: 0 | G130: 0 | H130: 0 | I130: 0 | J130: 0 | K130: 0 | L130: 0 | M130: 0 | O130: 0 | P130: 0 | Q130: 0 | S130: 0 | T130: 0
C131: Full rebuild | D131: 0 | E131: 0 | F131: 0 | G131: 0 | H131: 0 | I131: 0 | J131: 0 | K131: 0 | L131: 0 | M131: 0 | O131: 0 | P131: 0 | Q131: 0 | S131: 0 | T131: 0
C132: Undergrounding | D132: 0 | E132: 0 | F132: 0 | G132: 0 | H132: 0 | I132: 0 | J132: 0 | K132: 0 | L132: 0 | M132: 0
C133: Pole replacement only (i.e. D poles) | D133: 0 | E133: 0 | F133: 0 | G133: 0 | H133: 0 | I133: 0.04 | J133: 0.06 | K133: 0.08 | L133: 0.08 | M133: 0.08
B134: 132kV - Tower line | C134: Fittings only | D134: 0 | E134: 0 | F134: 0 | G134: 0 | H134: 0 | I134: 0.27 | J134: 0.29 | K134: 0.31 | L134: 0.31 | M134: 0.31
C135: Reconductoring | D135: 0.5 | E135: 1.3 | F135: 1.1 | G135: 0.8857517234 | H135: 0.33382598 | I135: 0.2 | J135: 0.33 | K135: 0.46 | L135: 0.46 | M135: 0.46 | O135: 2.9 | P135: 1.219577703 | Q135: 4.119577703 | S135: 1.91 | T135: -0.5363602443
C136: Undergrounding | D136: 0 | E136: 0 | F136: 0 | G136: 0 | H136: 0 | I136: 0 | J136: 0 | K136: 0 | L136: 0 | M136: 0
C137: Tower Refurbishment | D137: 0 | E137: 0 | F137: 0 | G137: 0 | H137: 0 | I137: 0.09 | J137: 0.09 | K137: 0.11 | L137: 0.13 | M137: 0.15 | O137: 0 | P137: 0 | Q137: 0 | S137: 0.57 | T137: 0
B138: 132 kV Total | C138: Total OHL expenditure (£m) | D138: 0.5 | E138: 1.3 | F138: 1.1 | G138: 0.8857517234 | H138: 0.33382598 | I138: 0.6 | J138: 0.77 | K138: 0.96 | L138: 0.98 | M138: 1 | O138: 2.9 | P138: 1.219577703 | Q138: 4.119577703 | S138: 4.31 | T138: 0.04622374191
B140: LV Services - Split of activities
B142: Asset Categories
B145: LV Services - metered only | C145: OHL
C146: Service Replacement | O146: =SUM(D146:G146) -> 0 | P146: =H146 -> 0 | Q146: =SUM(D146:H146) -> 0 | S146: =SUM(I146:M146) -> 0 | T146: =IF(Q146<>0,(S146-Q146)/Q146,"0") -> 0
C147: Cut out Replacement | O147: 0 | P147: 0 | Q147: 0 | S147: 0 | T147: 0
G148: 0 | O148: 0 | P148: 0 | Q148: 0 | S148: 0 | T148: 0
C150: UG
C151: Service Replacement | O151: 0 | P151: 0 | Q151: 0 | S151: 0 | T151: 0
C152: Cut out Replacement | O152: 0 | P152: 0 | Q152: 0 | S152: 0 | T152: 0
G153: 0 | O153: 0 | P153: 0 | Q153: 0 | S153: 0 | T153: 0

Sheet NL9 - Legal & Safety
A1: June Forecast Business Plan DPCR5
A2: EDFE SPN
A3: NL9 - Legal and safety
B5: Legal and Safety
D7: DPCR4 | I7: DPCR5
D8: 2005/06 | E8: 2006/07 | F8: 2007/08 | G8: 2008/09 | H8: 2009/10 | I8: 2010/11 | J8: 2011/12 | K8: 2012/13 | L8: 2013/14 | M8: 2014/15
B9: ESQCR
B10: ESQCR 43-8 Clearance | C10: £m
B11: ESQCR tree continuity | C11: £m
B12: ESQCR Other | C12: £m
B13: CNI
B14: Black Start | C14: £m
B15: Emergency Batteries | C15: £m
B16: Critical National Infrastructure | C16: £m
B17: Other
B18: Site Security | C18: £m
B19: Asbestos clearance | C19: £m
B20: Safety climbing devices | C20: £m
B21: Rising mains and laterals | C21: £m
C22: £m
B23: Retrofit ABSD & Earthing theft & Replace 0.025 OH conductor | C23: £m
B24: Fire Prevention | C24: £m
B25: Total | C25: £m | D25: =SUM(D10:D24) -> 0 | E25: 0 | F25: 0 | G25: 0 | H25: 0 | I25: 0 | J25: 0 | K25: 0 | L25: 0 | M25: 0
B28: ESQCR 43-8 Safety Clearance Expenditure
B30: Horizontal
D31: DPCR4 | I31: DPCR5
D32: 2005/06 | E32: 2006/07 | F32: 2007/08 | G32: 2008/09 | H32: 2009/10 | I32: 2010/11 | J32: 2011/12 | K32: 2012/13 | L32: 2013/14 | M32: 2014/15
B33: LV | C33: £m
B34: HV | C34: £m
B35: EHV | C35: £m
B36: 132 kV | C36: £m
B37: Total | C37: £m | D37: =SUM(D33:D36) -> 0 | E37: 0 | F37: 0 | G37: 0 | H37: 0 | I37: 0 | J37: 0 | K37: 0 | L37: 0 | M37: 0
B39: Vertical
D40: DPCR4 | I40: DPCR5
D41: 2005/06 | E41: 2006/07 | F41: 2007/08 | G41: 2008/09 | H41: 2009/10 | I41: 2010/11 | J41: 2011/12 | K41: 2012/13 | L41: 2013/14 | M41: 2014/15
B42: LV | C42: £m
B43: HV | C43: £m
B44: EHV | C44: £m
B45: 132 kV | C45: £m
B46: Total | C46: £m | D46: =SUM(D42:D45) -> 0 | E46: 0 | F46: 0 | G46: 0 | H46: 0 | I46: 0 | J46: 0 | K46: 0 | L46: 0 | M46: 0
B48: Horizontal - Detailed Information
C50: Sites affected as at April 2005 | D50: No of sites resolved 05/06 - 07/08 | E50: Sites affected as at April 2008 | F50: No of sites to be resolved 08/09 - 09/10 | G50: No of sites to be resolved in DPCR5 | H50: Sites affected as at April 2015
B51: LV | C51: =D51+E51 -> 0 | D51: =C61 -> 0 | F51: =K61 -> 0 | G51: =S61 -> 0 | H51: =E51-SUM(F51:G51) -> 0
B52: HV | C52: =D52+E52 -> 0 | D52: =C62 -> 0 | F52: =K62 -> 0 | G52: =S62 -> 0 | H52: =E52-SUM(F52:G52) -> 0
B53: EHV | C53: =D53+E53 -> 0 | D53: =C63 -> 0 | F53: =K63 -> 0 | G53: =S63 -> 0 | H53: =E53-SUM(F53:G53) -> 0
B54: 132 kV | C54: =D54+E54 -> 0 | D54: =C64 -> 0 | F54: =K64 -> 0 | G54: =S64 -> 0 | H54: =E54-SUM(F54:G54) -> 0
B55: Total | C55: =SUM(C51:C54) -> 0 | D55: 0 | E55: 0 | F55: 0 | G55: 0 | H55: 0
B58: 05/06 - 07/08 | J58: 08/09-09/10 | R58: DPCR5
C59: No of sites resolved | D59: Actual Solutions (#) | K59: No of sites resolved | L59: Forecast Solutions (#) | S59: No of sites resolved | T59: Forecast Solutions (#)
D60: Shrouding | E60: Diversions | F60: Under-grounding | G60: Covered conductors | H60: As part of other planned work | L60: Shrouding | M60: Diversions | N60: Under-grounding | O60: Covered conductors | P60: As part of other planned work | T60: Shrouding | U60: Diversions | V60: Under-grounding | W60: Covered conductors | X60: As part of other planned work
B61: LV | C61: =SUM(D61:H61) -> 0 | J61: LV | K61: =SUM(L61:P61) -> 0 | R61: LV | S61: =SUM(T61:X61) -> 0
B62: HV | C62: =SUM(D62:H62) -> 0 | J62: HV | K62: =SUM(L62:P62) -> 0 | R62: HV | S62: =SUM(T62:X62) -> 0
B63: EHV | C63: =SUM(D63:H63) -> 0 | J63: EHV | K63: =SUM(L63:P63) -> 0 | R63: EHV | S63: =SUM(T63:X63) -> 0
B64: 132 kV | C64: =SUM(D64:H64) -> 0 | J64: 132 kV | K64: =SUM(L64:P64) -> 0 | R64: 132 kV | S64: =SUM(T64:X64) -> 0
B65: Total | C65: =SUM(C61:C64) -> 0 | D65: 0 | E65: 0 | F65: 0 | G65: 0 | H65: 0 | J65: Total | K65: =SUM(K61:K64) -> 0 | L65: 0 | M65: 0 | N65: 0 | O65: 0 | P65: 0 | R65: Total | S65: =SUM(S61:S64) -> 0 | T65: 0 | U65: 0 | V65: 0 | W65: 0 | X65: 0
B67: 05/06 - 07/08 | J67: 08/09-09/10 | R67: DPCR5
C68: No of spans changed | D68: Actual Solutions (#) | K68: No of spans changed | L68: Forecast Solutions (#) | S68: No of spans changed | T68: Forecast Solutions (#)
D69: Shrouding | E69: Diversions | F69: Under-grounding | G69: Covered conductors | H69: As part of other planned work | L69: Shrouding | M69: Diversions | N69: Under-grounding | O69: Covered conductors | P69: As part of other planned work | T69: Shrouding | U69: Diversions | V69: Under-grounding | W69: Covered conductors | X69: As part of other planned work
B70: LV | J70: LV | R70: LV
B71: HV | J71: HV | R71: HV
B72: EHV | J72: EHV | R72: EHV
B73: 132 kV | J73: 132 kV | R73: 132 kV
B74: Total | C74: =SUM(C70:C73) -> 0 | D74: 0 | E74: 0 | F74: 0 | G74: 0 | H74: 0 | J74: Total | K74: =SUM(K70:K73) -> 0 | L74: 0 | M74: 0 | N74: 0 | O74: 0 | P74: 0 | R74: Total | S74: =SUM(S70:S73) -> 0 | T74: 0 | U74: 0 | V74: 0 | W74: 0 | X74: 0
B76: 05/06 - 07/08 | J76: 08/09-09/10 | R76: DPCR5
C77: Total Cost £m | D77: Expenditure £m | K77: Total Cost £m | L77: Forecast Solutions (£m) | S77: Total Cost £m | T77: Forecast Solutions (£m)
D78: Shrouding | E78: Diversions | F78: Under-grounding | G78: Covered conductors | H78: As part of other planned work | L78: Shrouding | M78: Diversions | N78: Under-grounding | O78: Covered conductors | P78: As part of other planned work | T78: Shrouding | U78: Diversions | V78: Under-grounding | W78: Covered conductors | X78: As part of other planned work
B79: LV | J79: LV | K79: =SUM(G33:H33) -> 0 | R79: LV | S79: =SUM(I33:M33) -> 0
B80: HV | J80: HV | K80: =SUM(G34:H34) -> 0 | R80: HV | S80: =SUM(I34:M34) -> 0
B81: EHV | J81: EHV | K81: =SUM(G35:H35) -> 0 | R81: EHV | S81: =SUM(I35:M35) -> 0
B82: 132 kV | J82: 132 kV | K82: =SUM(G36:H36) -> 0 | R82: 132 kV | S82: =SUM(I36:M36) -> 0
B83: Total | C83: =SUM(C79:C82) -> 0 | D83: 0 | E83: 0 | F83: 0 | G83: 0 | H83: 0 | J83: Total | K83: =SUM(K79:K82) -> 0 | L83: 0 | M83: 0 | N83: 0 | O83: 0 | P83: 0 | R83: Total | S83: =SUM(S79:S82) -> 0 | T83: 0 | U83: 0 | V83: 0 | W83: 0 | X83: 0
B85: 05/06 - 07/08 | J85: 08/09-09/10 | R85: DPCR5
C86: Total unit Cost £k/per span | D86: Unit cost £k/span | K86: Total unit Cost £k/per span | L86: Forecast Unit cost £k/span | S86: Total unit Cost £k/per span | T86: Forecast Unit cost £k/span
D87: Shrouding | E87: Diversions | F87: Under-grounding | G87: Covered conductors | H87: As part of other planned work | L87: Shrouding | M87: Diversions | N87: Under-grounding | O87: Covered conductors | T87: Shrouding | U87: Diversions | V87: Under-grounding | W87: Covered conductors
B88: LV | C88: =IF(C70>0,C79*1000/C70,0) -> 0 | D88: 0 | E88: 0 | F88: 0 | G88: 0 | J88: LV | K88: =IF(K70>0,K79*1000/K70,0) -> 0 | L88: 0 | M88: 0 | N88: 0 | O88: 0 | R88: LV | S88: =IF(S70>0,S79*1000/S70,0) -> 0 | T88: 0 | U88: 0 | V88: 0 | W88: 0
B89: HV | C89: 0 | D89: 0 | E89: 0 | F89: 0 | G89: 0 | J89: HV | K89: 0 | L89: 0 | M89: 0 | N89: 0 | O89: 0 | R89: HV | S89: 0 | T89: 0 | U89: 0 | V89: 0 | W89: 0
B90: EHV | C90: 0 | D90: 0 | E90: 0 | F90: 0 | G90: 0 | J90: EHV | K90: 0 | L90: 0 | M90: 0 | N90: 0 | O90: 0 | R90: EHV | S90: 0 | T90: 0 | U90: 0 | V90: 0 | W90: 0
B91: 132 kV | C91: 0 | D91: 0 | E91: 0 | F91: 0 | G91: 0 | J91: 132 kV | K91: 0 | L91: 0 | M91: 0 | N91: 0 | O91: 0 | R91: 132 kV | S91: 0 | T91: 0 | U91: 0 | V91: 0 | W91: 0
B94: Vertical - Detailed Information
C96: Sites affected as at April 2005 | D96: No of sites resolved 05/06 - 07/08 | E96: Sites affected as at April 2008 | F96: No of sites to be resolved 08/09 - 09/10 | G96: No of sites to be resolved in DPCR5 | H96: Sites affected as at April 2015
B97: LV | C97: =D97+E97 -> 0 | D97: =C107 -> 0 | F97: =K107 -> 0 | G97: =S107 -> 0 | H97: =E97-SUM(F97:G97) -> 0
B98: HV | C98: =D98+E98 -> 0 | D98: =C108 -> 0 | F98: =K108 -> 0 | G98: =S108 -> 0 | H98: =E98-SUM(F98:G98) -> 0
B99: EHV | C99: =D99+E99 -> 0 | D99: =C109 -> 0 | F99: =K109 -> 0 | G99: =S109 -> 0 | H99: =E99-SUM(F99:G99) -> 0
B100: 132 kV | C100: =D100+E100 -> 0 | D100: =C110 -> 0 | F100: =K110 -> 0 | G100: =S110 -> 0 | H100: =E100-SUM(F100:G100) -> 0
B101: Total | C101: =SUM(C97:C100) -> 0 | D101: 0 | E101: 0 | F101: 0 | G101: 0 | H101: 0
B104: 05/06 - 07/08 | J104: 08/09-09/10 | R104: DPCR5
C105: No of sites resolved | D105: Actual Solutions (#) | K105: No of sites resolved | L105: Forecast Solutions (#) | S105: No of sites resolved | T105: Forecast Solutions (#)
D106: Rebuild | E106: Under-grounding | F106: Other | G106: Derogation | H106: As part of other planned work | L106: Rebuild | M106: Under-grounding | N106: Other | O106: Derogation | P106: As part of other planned work | T106: Rebuild | U106: Under-grounding | V106: Other | W106: Derogation | X106: As part of other planned work
B107: LV | C107: =SUM(D107:H107) -> 0 | J107: LV | K107: =SUM(L107:P107) -> 0 | R107: LV | S107: =SUM(T107:X107) -> 0
B108: HV | C108: =SUM(D108:H108) -> 0 | J108: HV | K108: =SUM(L108:P108) -> 0 | R108: HV | S108: =SUM(T108:X108) -> 0
B109: EHV | C109: =SUM(D109:H109) -> 0 | J109: EHV | K109: =SUM(L109:P109) -> 0 | R109: EHV | S109: =SUM(T109:X109) -> 0
B110: 132 kV | C110: =SUM(D110:H110) -> 0 | J110: 132 kV | K110: =SUM(L110:P110) -> 0 | R110: 132 kV | S110: =SUM(T110:X110) -> 0
B111: Total | C111: =SUM(C107:C110) -> 0 | D111: 0 | E111: 0 | F111: 0 | G111: 0 | H111: 0 | J111: Total | K111: =SUM(K107:K110) -> 0 | L111: 0 | M111: 0 | N111: 0 | O111: 0 | P111: 0 | R111: Total | S111: =SUM(S107:S110) -> 0 | T111: 0 | U111: 0 | V111: 0 | W111: 0 | X111: 0
B113: 05/06 - 07/08 | J113: 08/09-09/10 | R113: DPCR5
C114: No of spans changed | D114: Actual Solutions (#) | K114: No of spans changed | L114: Forecast Solutions (#) | S114: No of spans changed | T114: Forecast Solutions (#)
D115: Rebuild | E115: Under-grounding | F115: Other | G115: Derogation | H115: As part of other planned work | L115: Rebuild | M115: Under-grounding | N115: Other | O115: Derogation | P115: As part of other planned work | T115: Rebuild | U115: Under-grounding | V115: Other | W115: Derogation | X115: As part of other planned work
B116: LV | J116: LV | R116: LV
B117: HV | J117: HV | R117: HV
B118: EHV | J118: EHV | R118: EHV
B119: 132 kV | J119: 132 kV | R119: 132 kV
B120: Total | C120: =SUM(C116:C119) -> 0 | D120: =SUM(D116:D119) -> 0 | E120: =SUM(E116:E119) -> 0 | F120: =SUM(F116:F119) -> 0 | H120: =SUM(H116:H119) -> 0 | J120: Total | K120: =SUM(K116:K119) -> 0 | L120: 0 | M120: 0 | N120: 0 | O120: 0 | P120: 0 | R120: Total | S120: =SUM(S116:S119) -> 0 | T120: 0 | U120: 0 | V120: 0 | W120: 0 | X120: 0
B122: 05/06 - 07/08 | J122: 08/09-09/10 | R122: DPCR5
C123: Total Cost £m | D123: Expenditure £m | K123: Total Cost £m | L123: Forecast Solutions (£m) | S123: Total Cost £m | T123: Forecast Solutions (£m)
D124: Rebuild | E124: Under-grounding | F124: Other | G124: Derogation | H124: As part of other planned work | L124: Rebuild | M124: Under-grounding | N124: Other | O124: Derogation | P124: As part of other planned work | T124: Rebuild | U124: Under-grounding | V124: Other | W124: Derogation | X124: As part of other planned work
B125: LV | C125: =SUM(D42:F42) -> 0 | J125: LV | K125: =SUM(G42:H42) -> 0 | R125: LV | S125: =SUM(I42:M42) -> 0
B126: HV | C126: =SUM(D43:F43) -> 0 | J126: HV | K126: =SUM(G43:H43) -> 0 | R126: HV | S126: =SUM(I43:M43) -> 0
B127: EHV | C127: =SUM(D44:F44) -> 0 | J127: EHV | K127: =SUM(G44:H44) -> 0 | R127: EHV | S127: =SUM(I44:M44) -> 0
B128: 132 kV | C128: =SUM(D45:F45) -> 0 | J128: 132 kV | K128: =SUM(G45:H45) -> 0 | R128: 132 kV | S128: =SUM(I45:M45) -> 0
B129: Total | C129: =SUM(C125:C128) -> 0 | D129: =SUM(D125:D128) -> 0 | E129: =SUM(E125:E128) -> 0 | F129: =SUM(F125:F128) -> 0 | H129: =SUM(H125:H128) -> 0 | J129: Total | K129: =SUM(K125:K128) -> 0 | L129: =SUM(L125:L128) -> 0 | M129: =SUM(M125:M128) -> 0 | N129: =SUM(N125:N128) -> 0 | P129: =SUM(P125:P128) -> 0 | R129: Total | S129: =SUM(S125:S128) -> 0 | T129: =SUM(T125:T128) -> 0 | U129: =SUM(U125:U128) -> 0 | V129: =SUM(V125:V128) -> 0 | X129: =SUM(X125:X128) -> 0
B131: 05/06 - 07/08 | J131: 08/09-09/10 | R131: DPCR5
C132: Total unit Cost £k/per span | D132: Unit cost £k/span | K132: Total unit Cost £k/per span | L132: Forecast Unit cost £k/span | S132: Total unit Cost £k/per span | T132: Forecast Unit cost £k/span
D133: Rebuild | E133: Under-grounding | F133: Other | G133: Derogation | H133: As part of other planned work | L133: Rebuild | M133: Under-grounding | N133: Other | O133: Derogation | P133: As part of other planned work | T133: Rebuild | U133: Under-grounding | V133: Other | W133: Derogation | X133: As part of other planned work
B134: LV | C134: =IF(C116>0,C125*1000/C116,0) -> 0 | D134: 0 | E134: 0 | F134: 0 | J134: LV | K134: =IF(K116>0,K125*1000/K116,0) -> 0 | L134: 0 | M134: 0 | N134: 0 | R134: LV | S134: =IF(S116>0,S125*1000/S116,0) -> 0 | T134: 0 | U134: 0 | V134: 0
B135: HV | C135: 0 | D135: 0 | E135: 0 | F135: 0 | J135: HV | K135: 0 | L135: 0 | M135: 0 | N135: 0 | R135: HV | S135: 0 | T135: 0 | U135: 0 | V135: 0
B136: EHV | C136: 0 | D136: 0 | E136: 0 | F136: 0 | J136: EHV | K136: 0 | L136: 0 | M136: 0 | N136: 0 | R136: EHV | S136: 0 | T136: 0 | U136: 0 | V136: 0
B137: 132 kV | C137: 0 | D137: 0 | E137: 0 | F137: 0 | J137: 132 kV | K137: 0 | L137: 0 | M137: 0 | N137: 0 | R137: 132 kV | S137: 0 | T137: 0 | U137: 0 | V137: 0

Sheet FBPQ C2
A1: Main Forecast Business Plan DPCR5 | F1: Index
A3: C2 - Unit costs
B7: Asset categories | F7: Units | G7: New build | I7: Replacement
G8: Direct costs | H8: Cost including indirects (absorbed costs in T2A) | I8: Direct costs | J8: Cost including indirects (absorbed costs in T2A)
G9: (£k) | H9: (£k) | I9: (£k) | J9: (£k)
C10: LV Network
D11: Overhead lines
E12: LV Main (OHL) | F12: km | I12: 14.06 | J12: 19.99
E13: LV Service (OHL) | F13: Each | I13: 0.2 | J13: 0.32
D15: Overhead lines - Support
E16: LV Support | F16: Each | I16: 1.43 | J16: 1.92
D18: Underground cables
E19: LV Main (UG Consac) | F19: km
E20: LV Main (UG Plastic) | F20: km | G20: 33.4 | H20: 40.08 | I20: 67.22 | J20: 67.22
E21: LV Main (UG Paper) | F21: km | I21: 67.22 | J21: 75.91
E22: LV Service (UG) | F22: Each | G22: 0.93 | H22: 1.116 | I22: 0.6 | J22: 0.71
D24: Switchgear
E25: LV Pillar (ID) | F25: Each | G25: 2.22 | H25: 2.664 | I25: 6.41 | J25: 8.06
E26: LV Pillar (OD) | F26: Each | I26: 6.78 | J26: 8.47
E27: LV Board (WM) | F27: Each | I27: 8.37 | J27: 10.53
E28: LV UGB | F28: Each
E29: LV Fuses (PM) | F29: Each
E30: LV Fuses (TM) | F30: Each
C32: HV network
D33: Overhead lines
E34: 6.6/11 kV OHL (Open) | F34: km | G34: 35.26 | H34: 42.312 | I34: 18.35 | J34: 20.82
E35: 6.6/11 kV OHL (Covered) | F35: km
E36: 20 kV OHL (Open) | F36: km
E37: 20 kV OHL (Covered) | F37: km
D39: Overhead lines - Support
E40: 6.6/11 kV Support | F40: Each | I40: 1.52 | J40: 2.05
E41: 20 kV Support | F41: Each
D43: Underground cables (kms)
E44: 6.6/11kV UG Cable | F44: km | G44: 32.92 | H44: 39.504 | I44: 73.02 | J44: 84.36
E45: 20kV UG Cable | F45: km
D47: Submarine cables (kms)
E48: HV Sub Cable | F48: km | I48: 471.36 | J48: 535.69
D50: Switchgear
E51: 6.6/11 kV CB (PM) | F51: Each | G51: 7.13 | H51: 8.556 | I51: 7.17 | J51: 8.31
E52: 6.6/11 kV CB (GM) | F52: Each | G52: 20.49 | H52: 24.588 | I52: 21.37 | J52: 24.52
E53: 6.6/11 kV Switch (PM) | F53: Each | G53: 6.01 | H53: 7.212 | I53: 6.05 | J53: 7.06
E54: 6.6/11 kV Switch (GM) | F54: Each | G54: 6.71 | H54: 8.052 | I54: 8.17 | J54: 10.15
E55: 6.6/11 kV RMU | F55: Each | G55: 6.99 | H55: 8.388 | I55: 10 | J55: 12.28
E56: 6.6/11 kV Switchgear - Other (PM) | F56: Each
E57: 6.6/11 kV Switchgear - Other (GM) | F57: Each
E58: 20 kV CB (PM) | F58: Each
E59: 20 kV CB (GM) | F59: Each
E60: 20 kV Switch (PM) | F60: Each
E61: 20 kV Switch (GM) | F61: Each
E62: 20 kV RMU | F62: Each
E63: 20 kV Switchgear - Other (PM) | F63: Each
E64: 20 kV Switchgear - Other (GM) | F64: Each
D66: Transformers
E67: 6.6/11 kV Transformer (PM) | F67: Each | G67: 1.66 | H67: 1.992 | I67: 1.33 | J67: 1.78
E68: 6.6/11 kV Transformer (GM) | F68: Each | G68: 9.32 | H68: 11.184 | I68: 10.86 | J68: 12.82
E69: 20 kV Transformer (PM) | F69: Each
E70: 20 kV Transformer (GM) | F70: Each
C72: EHV Network
D73: Overhead lines
E74: 33kV OHL (Pole Line) | F74: km | G74: 41.59 | H74: 49.908 | I74: 23.76 | J74: 26.88
E75: 33kV OHL (Tower Line) | F75: km | I75: 29.82 | J75: 33.67
E76: 66kV OHL (Pole Line) | F76: km | G76: 55.8 | H76: 66.96 | I76: 36.97 | J76: 41.55
E77: 66kV OHL (Tower Line) | F77: km | I77: 46.81 | J77: 52.49
D79: Overhead lines - Support
E80: 33kV Pole | F80: Each | I80: 1.99 | J80: 2.61
E81: 33kV Tower | F81: Each | I81: 39.15 | J81: 45.36
E82: 66kV Pole | F82: Each | I82: 2.74 | J82: 3.61
E83: 66kV Tower | F83: Each | I83: 64.96 | J83: 74.53
D85: Underground cables (kms)
E86: 33kV UG Cable (Non Pressurised) | F86: km | G86: 148.69 | H86: 178.428 | I86: 152.89 | J86: 173.04
E87: 33kV UG Cable (Oil) | F87: km | I87: 152.89 | J87: 152.89
E88: 33kV UG Cable (Gas) | F88: km | I88: 152.89 | J88: 173.42
E89: 66kV UG Cable (Non Pressurised) | F89: km | G89: 440.09 | H89: 528.108 | I89: 444.45
E90: 66kV UG Cable (Oil) | F90: km | I90: 444.45
E91: 66kV UG Cable (Gas) | F91: km | I91: 444.45
D93: Submarine cables (kms)
E94: EHV Sub Cable | F94: km | I94: 1020.97 | J94: 1134.52
D96: Switchgear
E97: 33 KV CB (ID) | F97: Each | G97: 74.24 | H97: 89.088 | I97: 59.25 | J97: 66.58
E98: 33 kV CB (OD) | F98: Each | G98: 51.24 | H98: 61.488 | I98: 44.23 | J98: 51.4
E99: 33 kV Switch (GM) | F99: Each | I99: 29.05 | J99: 33.17
E100: 33 kV Switch (PM) | F100: Each
E101: 33 kV RMU | F101: Each
E102: 33 kV Switchgear - Other | F102: Each
E103: 66 KV CB (ID & OD) | F103: Each | G103: 77.24 | H103: 92.688 | I103: 77.24 | J103: 88.11
E104: 66 KV Switchgear - Other | F104: Each
D106: Transformers
E107: 33 kV Transformer (PM) | F107: Each
E108: 33 kV Transformer (GM) | F108: Each | G108: 228.25 | H108: 273.9 | I108: 223.81 | J108: 262.73
E109: 33 kV AuxiliaryTransfomer | F109: Each
E110: 66 kV Transformer | F110: Each | G110: 411.49 | H110: 493.788 | I110: 399.61 | J110: 457.92
E111: 66 kV AuxiliaryTransfomer | F111: Each
C113: 132kV Network
D114: Overhead lines
E115: 132kV OHL Conductor (Pole Line) | F115: km | G115: 74.69 | H115: 89.628 | I115: 52.85 | J115: 52.85
E116: 132kV OHL Conductor (Tower Line) | F116: km | G116: 637 | H116: 764.4 | I116: 47.77 | J116: 53.51
D118: Overhead lines - Support
E119: 132kV Pole | F119: Each | I119: 2.61 | J119: 3.64
E120: 132kV Tower | F120: Each | I120: 86.15 | J120: 98.62
E121: 132kV Fittings (Tower Line) | F121: Each | I121: 2.98 | J121: 3.8
D123: Underground cables (kms)
E124: 132kV UG Cable (Non Pressurised) | F124: km | G124: 1170.88 | H124: 1405.056 | I124: 1191.4 | J124: 0
E125: 132kV UG Cable (Oil) | F125: km | I125: 1191.4 | J125: 1323.44
E126: 132kV UG Cable (Gas) | F126: km
D128: Submarine cables (kms)
E129: 132 kV Sub Cable | F129: km
D131: Switchgear
E132: 132 kV CB (ID & OD) | F132: Each | G132: 120.95 | H132: 145.14 | I132: 131.08 | J132: 146.88
E133: 132 kV Switchgear (other) | F133: Each
D135: Transformers
E136: 132 kV Transformer | F136: Each | G136: 975.14 | H136: 1170.168 | I136: 1018.69 | J136: 1139.95
E137: 132 kV AuxiliaryTransfomer | F137: Each
C139: Tele-control / SCADA
D140: Primary substation
E141: 132 kV/EHV RTU (PM) | F141: Each
E142: 132 kV/EHV RTU (GM) | F142: Each
D144: Secondary substation
E145: HV RTU (PM) | F145: Each
E146: HV RTU (GM) | F146: Each
C149: HV network switchgear
E150: 6.6/11 kV CB (GM)
E151: Primary | F151: Each | G151: 20.49 | H151: 24.588 | I151: 21.37 | J151: 24.52
E152: Distribution | F152: Each | G152: 20.49 | H152: 24.588 | I152: 21.37 | J152: 24.52
E153: 20 kV Switch (GM)
E154: Primary | F154: Each
E155: Distribution | F155: Each

Sheet RRP 1.3
A1: Regulatory Reporting Pack (RRP) | F1: Index | H1: CAUTION - THIS PACK DOES NOT BALANCE
A3: 2007/08
C5: Electricity Distribution Industry Activity Costs - individual DNO input
D7: Cash typical costs (excluding disallowed related party margins) | Y7: Atypical cash costs | Z7: Pension deficit payments | AA7: Metering | AB7: Excluded services & de minimis | AC7: Relevant distributed generation (less contributions) | AD7: IFI | AE7: Disallowed Related Party Margins | AF7: Statutory Depreciation | AG7: Network Rates | AH7: Transmission Exit Charges | AI7: Pension deficit repair payments by related parties (note 2) | AJ7: Non activity costs and reconciling amounts (note 3) | AK7: Total Annual Operating & Capital Expenditure per Regulatory Accounts
D8: Direct activities | J8: Indirect activities
C9: Year ended | D9: Load related new connections & reinforcement (net of contributions) | E9: Non-load new & replacement assets (net of contributions) | F9: Non-operational capex | G9: Faults | H9: Inspections, & Maintenance | I9: Tree Cutting | J9: Network Policy | K9: Network Design & Engineering | L9: Project Management | M9: Engineering Mgt & Clerical Support | N9: Control Centre | O9: System Mapping - Cartographical | P9: Customer Call Centre | Q9: Stores | R9: Vehicles & Transport | S9: IT & Telecoms | T9: Property Mgt | U9: HR & Non-operational Training | V9: Health & Safety & Operational Training | W9: Finance & Regulation | X9: CEO etc
D10: £'m | E10: £'m | F10: £'m | G10: £'m | H10: £'m | I10: £'m | J10: £'m | K10: £'m | L10: £'m | M10: £'m | N10: £'m | O10: £'m | P10: £'m | Q10: £'m | R10: £'m | S10: £'m | T10: £'m | U10: £'m | V10: £'m | W10: £'m | X10: £'m | Y10: £'m | Z10: £'m | AA10: £'m | AB10: £'m | AC10: £'m | AD10: £'m | AE10: £'m | AF10: £'m | AG10: £'m | AH10: £'m | AI10: £'m | AJ10: £'m | AK10: £'m
C12: 31 March 2008 | D12: -0.5 | E12: 32.3 | F12: 3 | G12: 8.3 | H12: 5.5 | I12: 4.1 | J12: 0.6 | K12: 3.5 | L12: 2.9 | M12: 7.2 | N12: 1.9 | O12: 1 | P12: 0.7 | Q12: 0.9 | R12: 2.7 | S12: 6.8 | T12: 2.1 | U12: 0.9 | V12: 1.1 | W12: 5.8 | X12: 1.8 | Y12: 4.3 | Z12: 13.4 | AA12: 1.8 | AB12: 8.9 | AC12: -0.1 | AD12: 0.1 | AE12: -2.775557562e-17 | AF12: 25.3 | AG12: 15.1 | AH12: 4.2 | AI12: 0 | AJ12: -2.9 | AK12: 162.7
C13: Adjustments on T4.3 | AK13: 0
C14: 31 March 2008 | D14: -0.5 | E14: 32.3 | F14: 3 | G14: 8.3 | H14: 5.5 | I14: 4.1 | J14: 0.6 | K14: 3.5 | L14: 2.9 | M14: 7.2 | N14: 1.9 | O14: 1 | P14: 0.7 | Q14: 0.9 | R14: 2.7 | S14: 6.8 | T14: 2.1 | U14: 0.9 | V14: 1.1 | W14: 5.8 | X14: 1.8 | Y14: 4.3 | Z14: 13.4 | AA14: 1.8 | AB14: 8.9 | AC14: -0.1 | AD14: 0.1 | AE14: -2.775557562e-17 | AF14: 25.3 | AG14: 15.1 | AH14: 4.2 | AI14: 0 | AJ14: -2.9 | AK14: 162.7
C16: 31 March 2007 | D16: 2.8 | E16: 25.5 | F16: 4.3 | G16: 8.6 | H16: 5.3 | I16: 2.9 | J16: 0.6 | K16: 3 | L16: 2.2 | M16: 5.2 | N16: 1.9 | O16: 0.8 | P16: 0.6 | Q16: 1.6 | R16: 2.8 | S16: 6.3 | T16: 2.1 | U16: 1 | V16: 0.9 | W16: 4.8 | X16: 1.5 | Y16: 4.9 | Z16: 6.9 | AA16: 5.9 | AB16: 13.7 | AC16: 0.2 | AD16: 0 | AE16: 0 | AF16: 33.9 | AG16: 14.6 | AH16: 4.2 | AI16: 0 | AJ16: -8.8 | AK16: 160.2
C18: 31 March 2006 | D18: 5.5 | E18: 17.3 | F18: 2.4 | G18: 8.1 | H18: 6.8 | I18: 3.3 | J18: 0.6 | K18: 3.2 | L18: 2.3 | M18: 6.5 | N18: 2.5 | O18: 0.8 | P18: 0.9 | Q18: 1.5 | R18: 2.9 | S18: 6.2 | T18: 2.2 | U18: 0.8 | V18: 0.7 | W18: 4 | X18: 1.9 | Y18: 1.6 | Z18: 4.3 | AA18: 5.1 | AB18: 5 | AC18: 0 | AD18: 0 | AE18: 0 | AF18: 31.395596 | AG18: 14.3 | AH18: 3.9 | AI18: -0.9 | AJ18: -4.895596 | AK18: 140.2
C21: Notes
C22: 1 | D22: The individual activities are defined in the Electricity Distribution Price Control Review Price control cost reporting rules: Instructions and Guidance April 2008
C23: 2 | D23: Pension deficit payments made by a related party and not charged in the regulatory accounts of the DNO
C24: 3 | D24: Non-activity costs include Ofgem licence fee, Shetland Balancing Costs (SHEPD only), Scottish Electricity Settlements run-off (Scottish DNOs only) and proceeds of asset sales; and reconciling amounts, e.g. intra-group recharges treated as de minimis costs
C25: 4 | D25: Total Annual Operating & Capital Expenditure per Regulatory Accounts has been adjusted, where appropriate, to include intangible fixed assets and customer contributions, the latter may be reported within Creditors as deferred income
C26: 5 | D26: This information has not been audited.

Sheet RRP 2.3
A1: Regulatory Reporting Pack (RRP) | E1: Index
A3: 2007/08
A5: Inspections & Maintenance, Tree Cutting and Fault Costs
M6: Memorandum Information - Scottish DNOs 132kV
E7: Inspections & Maintenance | I7: Fault Costs | M7: Inspections & Maintenance | Q7: Faults
F8: Cash typicals | I8: Cash typicals | K8: Atypicals
A9: Inspection and Maintenance | E9: Inspections | F9: Maintenance | G9: Total | I9: Total | K9: Total | M9: Inspections | N9: Maintenance | O9: Total | Q9: Total
E10: £'m | F10: £'m | G10: £'m | I10: £'m | K10: £'m | M10: £'m | N10: £'m | O10: £'m | Q10: £'m
A11: LV Services | B11: Overhead | E11: 0.1 | F11: 0.3 | G11: 0.4 | I11: 0.6
B12: Underground | I12: 1.4
A13: LV System | B13: Overhead Mains | E13: 0.1 | F13: 0.1 | G13: 0.2 | I13: 0.5
B14: Underground Mains - Consac | F14: 0.1 | G14: 0.1
B15: Underground Mains - Non Consac | I15: 2.1
B16: Switchgear (incl other plant & equipment) | I16: 0.3
A17: HV | B17: Overhead lines | E17: 0.5 | F17: 0.1 | G17: 0.6 | I17: 0.8
B18: Underground Cables | G18: 0 | I18: 1.5
B19: Switchgear, Transformers, Substation | E19: 0.1 | F19: 1.5 | G19: 1.6 | I19: 0.2
A20: EHV | B20: Overhead lines | E20: 0.1 | G20: 0.1 | I20: 0.1
B21: Underground - Pressure assisted | G21: 0
B22: Underground - Non Pressure assisted | G22: 0 | I22: 0.3
B23: Switchgear, Transformers, Substation | E23: 0.1 | F23: 0.7 | G23: 0.8 | I23: 0.2
A24: 132kV | B24: Overhead lines | E24: 0.2 | F24: 0.6 | G24: 0.8 | O24: 0
B25: Underground - Pressure assisted | G25: 0 | O25: 0
B26: Underground - Non Pressure assisted | G26: 0 | O26: 0
B27: Switchgear, Transformers, Substation | E27: 0.1 | F27: 0.5 | G27: 0.6 | O27: 0
A28: Submarine cables - all voltages | O28: 0
A29: Non-QoS Faults | I29: 1
A30: Substation electricity | F30: 0.6 | G30: 0.6
A31: Diesel generation costs (permanent emergency back up on islands) | F31: 0.1 | G31: 0.1
A32: Third party cable damage - recoveries | I32: -0.6
A33: Dismantlement | G33: 0
A34: Total | E34: 1.3 | F34: 4.6 | G34: 5.9 | I34: 8.4 | M34: 0 | N34: 0 | O34: 0 | Q34: 0
E36: Fault costs allocated to Opex and Capex | I36: Cash typicals | K36: Atypicals
I37: £'m | K37: £'m
E38: Fault opex | I38: 2.4
E39: Fault capex | I39: 6
E40: Total Fault Costs | I40: 8.4
C42: Tree Cutting | G42: £'m | M42: Tree Cutting | O42: £'m
C44: LV | G44: 1.165518117 | M44: 132kV | O44: 0.1
C45: HV | G45: 2.363069336
C46: EHV | G46: 0.4813101574
C47: 132kV | G47: 0.1484669317
C48: Total Tree Cutting | G48: 4.158364543

Sheet RRP 2.4
A1: Regulatory Reporting Pack (RRP) | E1: Index
A3: 2007/08
A5: NEW AND REPLACEMENT ASSETS (EXCL. FAULTS)
C7: Load Related New Connections & Reinforcement
C8: Direct Costs only | E8: New Connections (carried out by DNO/RP) | F8: New Connections (carried out by Third Parties) | G8: Customer Specific Reinforcement - Chargeable | H8: Customer Specific Reinforcement - Non Chargeable | I8: General Reinforcement | J8: Fault Level Reinforcement | K8: Non Relevant Distributed Generation | L8: Total
E9: £'m | F9: £'m | G9: £'m | H9: £'m | I9: £'m | J9: £'m | K9: £'m | L9: £'m
C10: New Connections & Customer Specific Reinforcement:
C11: Connections provided at LV | E11: 13.8 | G11: 0.9 | H11: 0.8 | L11: 15.5
C12: Connections provided at HV | E12: 2.4 | G12: 0.2 | H12: 0.3 | L12: 2.9
C13: Connections provided at EHV | E13: 0.5 | G13: 1.1 | H13: 0.6 | L13: 2.2
C14: Connections provided at 132kV | E14: 0 | G14: 0 | H14: 0 | L14: 0
C15: General Reinforcement: | L15: 0
C16: LV System | I16: 0.3 | L16: 0.3
C17: HV System | I17: 0.9 | L17: 0.9
C18: EHV System | I18: 1.4 | L18: 1.4
C19: 132kV System | I19: 1.1 | L19: 1.1
C20: Non Relevant Distributed Generation | L20: 0
C21: Total Direct Costs excluding Reallocations | E21: 16.7 | F21: 0 | G21: 2.2 | H21: 1.7 | I21: 3.7 | J21: 0 | K21: 0 | L21: 24.3
C22: Direct Cost Reallocation | L22: 0
C23: Total Costs including Reallocations | E23: 16.7 | F23: 0 | G23: 2.2 | H23: 1.7 | I23: 3.7 | J23: 0 | K23: 0 | L23: 24.3
C24: Customer Contributions (-ve) | E24: -22 | G24: -2.8 | L24: -24.8
C25: Total Costs less Capital Contributions | E25: -5.3 | F25: 0 | G25: -0.6 | H25: 1.7 | I25: 3.7 | J25: 0 | K25: 0 | L25: -0.5
C27: Non-load related replacement (Condition based)
C28: Direct Costs only | E28: Condition based
E29: Non-fault Related | F29: Fault Related | G29: Total
E30: £'m | F30: £'m | G30: £'m
C31: Metered LV Services | D31: Overhead | E31: 1.5 | F31: 0 | G31: 1.5
D32: Underground | E32: 0.6 | F32: 0 | G32: 0.6
C33: Un-metered LV Services | D33: Overhead | E33: 0 | F33: 0 | G33: 0
D34: Underground | E34: 0.1 | F34: 0 | G34: 0.1
C35: LV System | D35: Overhead Mains | E35: 2 | F35: 0 | G35: 2
D36: Underground Mains | E36: 0.2 | F36: 0.1 | G36: 0.3
D37: Switchgear (incl other plant & equipment) | E37: 0.1 | F37: 0 | G37: 0.1
C38: HV | D38: Overhead lines | E38: 5.6 | F38: 0 | G38: 5.6
D39: Underground Cables | E39: 1.1 | F39: 0 | G39: 1.1
D40: Submarine | E40: 0 | F40: 0 | G40: 0
D41: Switchgear (incl other plant & equipment) | E41: 2.5 | F41: 0.1 | G41: 2.6
D42: Transformers | E42: 0.7 | F42: 0.1 | G42: 0.8
D43: Substation | E43: 0.8 | F43: 0 | G43: 0.8
C44: EHV | D44: Overhead lines | E44: 1 | F44: 0 | G44: 1
D45: Underground Cables | E45: 0 | F45: 0 | G45: 0
D46: Submarine | E46: 0 | F46: 0 | G46: 0
D47: Switchgear (incl other plant & equipment) | E47: 1.9 | F47: 0 | G47: 1.9
D48: Transformers | E48: 0.8 | F48: 0.2 | G48: 1
D49: Substation | E49: 0.3 | F49: 0 | G49: 0.3
C50: 132kV | D50: Overhead lines | E50: 2 | F50: 0 | G50: 2
D51: Underground Cables | E51: 0.4 | F51: 0 | G51: 0.4
D52: Submarine Cables | E52: 0 | F52: 0 | G52: 0
D53: Switchgear (incl other plant & equipment) | E53: 0.1 | F53: 0 | G53: 0.1
D54: Transformers | E54: 0.8 | F54: 0 | G54: 0.8
D55: Substation | E55: 0.9 | F55: 0 | G55: 0.9
C56: Total Non-load replacement | E56: 23.4 | F56: 0.5 | G56: 23.9
C57: Customer Contributions (-ve) | E57: -0.3 | G57: -0.3
C58: Total Net Non-load replacement | E58: 23.1 | F58: 0.5 | G58: 23.6
C60: Non-load related (other) | E60: LV | F60: HV | G60: EHV | H60: 132kV | I60: Total
C61: Direct Costs only | E61: £'m | F61: £'m | G61: £'m | H61: £'m | I61: £'m
C62: Quality of Service | E62: 0.2 | F62: 3.4 | G62: 0 | H62: 0 | I62: 3.6
C63: Safety | E63: 0 | F63: 0 | G63: 0 | H63: 0 | I63: 0
C64: Environment | E64: 0 | F64: 0 | G64: 0 | H64: 0 | I64: 0
C65: Visual Amenity | E65: 0 | F65: 0 | G65: 0 | H65: 0 | I65: 0
C66: ESQCR | E66: 0 | F66: 0 | G66: 0 | H66: 0 | I66: 0
C67: Resilience | E67: 0 | F67: 0 | G67: 0 | H67: 0 | I67: 0
C68: Operational IT & Telecoms - BT 21CN | E68: 0 | F68: 0 | G68: 0 | H68: 0 | I68: 0
C69: Operational IT & Telecoms - other | E69: 0 | F69: 3.4 | G69: 0 | H69: 0 | I69: 3.4
C70: Non - rechargeable diversions | E70: 0.4 | F70: 0.8 | G70: 0.1 | H70: 0 | I70: 1.3
C71: Total Non-load related (other non-fault) | E71: 0.6 | F71: 7.6 | G71: 0.1 | H71: 0 | I71: 8.3
C72: Customer Contributions (-ve) | I72: 0
C73: Total Net Non-load related (other non-fault) | E73: 0.6 | F73: 7.6 | G73: 0.1 | H73: 0 | I73: 8.3
C75: Total Non-load related expenditure (direct costs) | E75: 32.2
C76: Customer Contributions (-ve) | E76: -0.3
C77: Total Net Non-load replacement (Direct Costs) | E77: 31.9
C79: Non-operational
C80: Direct Costs only | E80: Total | F80: Owned by DNO | G80: Owned by related party
E81: £'m | F81: £'m | G81: £'m
C82: Vehicles | E82: 0.2 | F82: 0.2 | G82: 0
C83: Plant & Machinery | E83: 0 | F83: 0 | G83: 0
C84: Small Tools & Equipment | E84: 1.3 | F84: 1.3 | G84: 0
C85: Office Equipment | E85: 0.1 | F85: 0.1 | G85: 0
C86: Non-operational property | E86: 0.3 | F86: 0.3 | G86: 0
C87: IT Non-operational Capital Expenditure | E87: 0.6 | F87: 0.6 | G87: 0
C88: Telecoms Non-operational Capital Expenditures | E88: 0.5 | F88: 0 | G88: 0.5
C89: Total Non-operational New Assets & Replacement | E89: 3 | F89: 2.5 | G89: 0.5

Sheet RRP 2.6
A1: Regulatory Reporting Pack | F1: Index
A3: 2007/08
A5: MISCELLANEOUS
C7: Non-activity based costs (excluded from Table 2.2)(enter as positive)
G8: £'m | H8: £'m
C9: Pass through Costs
D10: Transmission exit charges | G10: 4.2
D11: Wheeled units imported | G11: 0.2
D12: Network rates | G12: 15.1
D13: Ofgem licence fee | G13: 0.5
D14: Shetland Balancing Costs (SHEPD only) | G14: 0
D15: Scottish Electricity Settlements run-off (Scottish DNOs only) | G15: 0 | H15: 20
C16: Costs inside scope of DPCR4 allowances
D17: Guaranteed standard of performance compensation payments | G17: 0
D18: Ex-gratia compensation payments | G18: 0
D19: Bad debt expense (net of recoveries) | G19: 0.1 | H19: 0.1
C20: Costs outside scope of DPCR4 allowances
D21: (Profit)/loss on sale of fixed assets and scrap[(-ve)/+ve] | G21: -0.3
D22: Statutory Depreciation on operational assets | G22: 17.8
D23: Pension deficit repair payments | G23: 13.5 | H23: 31
C25: Total Non-Activity Based Costs | H25: 51.1
C28: OTHER ITEMS adjusting RAV
D29: Proceeds of sale of assets and scrap (not recorded on Table 2.2)
E30: Cash proceeds received on sale of: | G30: £'m
E31: Operational assets (-ve) | G31: -0.1
E32: Sales of scrap (-ve) | G32: -0.5
E33: Non-operational assets (-ve) | G33: 0
E34: Total | G34: -0.6
E36: ANALYSIS OF ASSET DISPOSALS | G36: Cost | H36: Depn. | I36: Net Book Value | J36: Net Sales Proceeds | K36: (Profit) / Loss on Disposal | L36: Asset Owner
E37: Asset Type | G37: £m | H37: £m | I37: £m | J37: £m | K37: £m
E38: Redundant operational assets | G38: 20.9 | H38: 20.8 | I38: 0.1 | J38: 0.1 | K38: 0
E39: Sales of scrap etc | G39: 1.1 | H39: 0.9 | I39: 0.2 | J39: 0.5 | K39: -0.3
E51: Total | G51: 22 | H51: 21.7 | I51: 0.3 | J51: 0.6 | K51: -0.3
J52: OK | K52: OK
D54: Use of System Bad Debts | G54: £m | H54: £m
H55: previously allowed
E56: Costs incurred (excluding VAT) | G56: 0.1 | H56: 0
E57: Receipts/(recoveries) | G57: 0 | H57: 0
E58: Total Use of System Bad Debts | G58: 0
D60: Salary sacrifice schemes (including flexible benefit schemes) | G60: Total | H60: Direct capex | I60: Direct opex, faults & Non-op capex | J60: Indirect costs | K60: All Other non-distrib'n activities
G61: £m | H61: £m | I61: £m | J61: £m | K61: £m
E62: Salary element sacrificed by employee(-ve) | G62: 0 | H62: 0 | I62: 0 | J62: 0 | K62: 0
E63: Additional employer pension contributions (+ve) | G63: 0 | H63: 0 | I63: 0 | J63: 0 | K63: 0
D65: Lane rentals analysis: including logged up costs (see below): | G65: Total | H65: Load Related New Connections & Reinforcement | I65: Non-load non-fault new & replacement assets | J65: Faults | K65: Inspectns & Maint. (exc. Tree Cutting) | L65: Tree Cutting
G66: £m | H66: £m | I66: £m | J66: £m | K66: £m | L66: £m
E67: Fines and penalties
E68: Road occupation costs
E69: Permit scheme costs
E70: Congestion charges
E71: Total per Table 2.2
C74: Uncertain Costs (included in table 2.2 costs)
D76: Road Occupation & Permit Scheme Costs included within Lane Rentals, previously agreed in writing with Ofgem to be treated as logged up costs: | G76: Total | H76: Load Related New Connections & Reinforcement | I76: Non-load non-fault new & replacement assets | J76: Faults | K76: Inspectns & Maint. (exc. Tree Cutting) | L76: Tree Cutting
G77: £m | H77: £m | I77: £m | J77: £m | K77: £m | L77: £m
E78: Road occupation costs | G78: 0
E79: Permit scheme costs | G79: 0
E80: Congestion charges | G80: 0
E81: Total | G81: 0 | H81: 0 | I81: 0 | J81: 0 | K81: 0 | L81: 0
D83: Costs previously agreed with Ofgem in writing for additional security | G83: 0 | I83: 0
C86: Miscellaneous costs (included in table 2.2 costs)
G87: £m
D88: Pension administration costs (reported in HR & Non-op training)
D89: LV Control centre costs (where it remotely controls LV network)
G91: £m | H91: km
D92: Expenditure replacing Pressure Assisted cables
D94: Undergrounding in National Parks / AONB - direct costs | G94: £m | H94: km
E95: LV
E96: HV
E97: EHV/132kV
E98: Undergrounding in National Parks / AONB - indirect costs
C99: Total Undergrounding in National Parks / AONB

Sheet RRP 5.1
A1: Regulatory Reporting Pack (RRP) | F1: Index
A3: 2007/08
A5: Network Data
D7: Units | E7: 2005/06 | F7: 2006/07 | G7: 2007/08 | H7: 2008/09 | I7: 2009/10
C8: QUALITY OF SERVICE | E8: Historical data | H8: For Future years
C9: Customer Numbers | D9: Millions | G9: 1.079585
C10: Total CIs (Excluding EE) | D10: CIs | G10: 80.6
C11: Total CMLs (Excluding EE) | D11: CMLs | G11: 46.3
C13: NETWORK ACTIVITY INDICATORS
C15: CONNECTIONS
C16: Number of new connections
C17: EHV (Includes 132kV) | D17: No. Connections | G17: 1
C18: HV | D18: No. Connections | G18: 19
C19: LV | D19: No. Connections | G19: 10819
C20: DG | D20: No. Connections | G20: 1
C22: Total Connected Distributed Generation
C23: 132kV | D23: MW | G23: 277.6
C24: EHV | D24: MW | G24: 186.7
C25: HV | D25: MW | G25: 93.7
C26: LV | D26: MW | G26: 12.3
C27: Total | G27: 570.3
C29: DEMANDS
C30: System Maximum Demand | D30: MW | G30: 2179.2926
C31: System Maximum Demand (Weather corrected) | D31: MW | G31: 2179.2926
C33: Units Distributed
C34: EHV (Includes 132kV) | D34: GWh | G34: 2954.837938
C35: HV | D35: GWh | G35: 2482.108353
C36: LV | D36: GWh | G36: 7216.204194
C37: Total | G37: 12653.15049
C39: LOSSES
C40: Units of distribution losses | D40: (GWh) | G40: 675.237
C41: Losses | D41: (%) | G41: 0.05336512837
C44: SYSTEM PARAMETERS
C46: Distribution Circuit Length - Overhead (km)
C47: 132kV | D47: Circuit km | G47: 1180
C48: EHV | D48: Circuit km | G48: 1584
C49: HV | D49: Circuit km | G49: 12207
C50: LV | D50: Circuit km | G50: 3193
C51: Total | D51: Circuit km | G51: 18164
C53: Distribution Circuit Length - Underground (km)
C54: 132kV | D54: Circuit km | G54: 93.4
C55: EHV | D55: Circuit km | G55: 397.264
C56: HV | D56: Circuit km | G56: 5366.7
C57: LV | D57: Circuit km | G57: 10735.59
C58: Total | D58: Circuit km | G58: 16592.954
C60: Distribution Circuit Length - Total (km)
C61: 132kV | D61: Circuit km | G61: 1273.4
C62: EHV | D62: Circuit km | G62: 1981.264
C63: HV | D63: Circuit km | G63: 17573.7
C64: LV | D64: Circuit km | G64: 13928.59
C65: Total | D65: Circuit km | G65: 34756.954
C67: Number of Substations and Switching Stations
C68: 132kV | D68: No. Subs | G68: 77
C69: EHV ground mounted | D69: No. Subs | G69: 196
C70: EHV pole mounted | D70: No. Subs | G70: 0
C71: HV ground mounted | D71: No. Subs | G71: 8329
C72: HV pole mounted | D72: No. Subs | G72: 31138
C73: Total | D73: No. Subs | G73: 39740

Sheet LR1 Refs
B4: LR1 an LR1 (opt3) formula references
B6: LR1 (opt3) variant
B7: Cell Ref: B16
B8: Connections Capex 2005/06 -2014/15 (£m)
B9: Connections spend minus customer contributions (from FBPQ LR1 v5 opt3)
B11: LV | C11: =SUM('FBPQ LR1 - V5 opt3'!D227:M227,'FBPQ LR1 - V5 opt3'!I229:M229)-SUM('FBPQ LR1 - V5 opt3'!D250:M250,'FBPQ LR1 - V5 opt3'!I252:M252) -> 0
B12: HV | C12: =(SUM('FBPQ LR1 - V5 opt3'!D231:H231,'FBPQ LR1 - V5 opt3'!I230:M230,'FBPQ LR1 - V5 opt3'!I233:M233)-SUM('FBPQ LR1 - V5 opt3'!D254:H254,'FBPQ LR1 - V5 opt3'!I253:M253,'FBPQ LR1 - V5 opt3'!I256:M256)) -> 0
B13: EHV | C13: =SUM('FBPQ LR1 - V5 opt3'!D235:H235,'FBPQ LR1 - V5 opt3'!I234:M234,'FBPQ LR1 - V5 opt3'!I237:M237)-SUM('FBPQ LR1 - V5 opt3'!D258:H258,'FBPQ LR1 - V5 opt3'!I257:M257,'FBPQ LR1 - V5 opt3'!I260:M260) -> 0
B14: 132 kV | C14: =SUM('FBPQ LR1 - V5 opt3'!D239:H239,'FBPQ LR1 - V5 opt3'!I238:M238)-SUM('FBPQ LR1 - V5 opt3'!D262:H262,'FBPQ LR1 - V5 opt3'!I261:M261) -> 0
B16: Cell Ref B36
B17: Connections Capex 2005/06 -2014/15 (£m)
B18: Connections spend minus customer contributions (from FBPQ LR1 v5 opt3)
B20: LV | C20: =SUM('FBPQ LR1 - V5 opt3'!D227:M227,'FBPQ LR1 - V5 opt3'!I229:M229)-SUM('FBPQ LR1 - V5 opt3'!D250:M250,'FBPQ LR1 - V5 opt3'!I252:M252) -> 0
B21: LV/HV | C21: =(SUM('FBPQ LR1 - V5 opt3'!D231:H231,'FBPQ LR1 - V5 opt3'!I230:M230,'FBPQ LR1 - V5 opt3'!I233:M233)-SUM('FBPQ LR1 - V5 opt3'!D254:H254,'FBPQ LR1 - V5 opt3'!I253:M253,'FBPQ LR1 - V5 opt3'!I256:M256))*(C55) -> 0
B22: HV | C22: =(SUM('FBPQ LR1 - V5 opt3'!D231:H231,'FBPQ LR1 - V5 opt3'!I230:M230,'FBPQ LR1 - V5 opt3'!I233:M233)-SUM('FBPQ LR1 - V5 opt3'!D254:H254,'FBPQ LR1 - V5 opt3'!I253:M253,'FBPQ LR1 - V5 opt3'!I256:M256))*(1-C55) -> 0
B23: EHV | C23: =SUM('FBPQ LR1 - V5 opt3'!D235:H235,'FBPQ LR1 - V5 opt3'!I234:M234,'FBPQ LR1 - V5 opt3'!I237:M237)-SUM('FBPQ LR1 - V5 opt3'!D258:H258,'FBPQ LR1 - V5 opt3'!I257:M257,'FBPQ LR1 - V5 opt3'!I260:M260) -> 0
B24: 132 kV | C24: =SUM('FBPQ LR1 - V5 opt3'!D239:H239,'FBPQ LR1 - V5 opt3'!I238:M238)-SUM('FBPQ LR1 - V5 opt3'!D262:H262,'FBPQ LR1 - V5 opt3'!I261:M261) -> 0
B27: LR1 variant
B28: Cell Ref: B16
B29: Connections Capex 2005/06 -2014/15 (£m)
B30: Connections spend minus customer contributions (from FBPQ LR1 v5 opt3)
B32: LV | C32: =SUM('FBPQ LR1'!D82:M82)-SUM('FBPQ LR1'!D110:M110) -> 3.1
B33: HV | C33: =(SUM('FBPQ LR1'!D86:M86)-SUM('FBPQ LR1'!D114:M114)) -> 1.2
B34: EHV | C34: =(SUM('FBPQ LR1'!D90:M90)-SUM('FBPQ LR1'!D118:M118)) -> 1.55
B35: 132 kV | C35: =(SUM('FBPQ LR1'!D94:M94)-SUM('FBPQ LR1'!D122:M122)) -> 0
B37: Cell Ref B36
B38: Connections Capex 2005/06 -2014/15 (£m)
B39: Connections spend minus customer contributions (from FBPQ LR1 v5 opt3)
B41: LV | C41: =SUM('FBPQ LR1'!D82:M82)-SUM('FBPQ LR1'!D110:M110) -> 3.1
B42: LV/HV | C42: =(SUM('FBPQ LR1'!D86:M86)-SUM('FBPQ LR1'!D114:M114))*C55 -> 0.2872460679
B43: HV | C43: =(SUM('FBPQ LR1'!D86:M86)-SUM('FBPQ LR1'!D114:M114))*(1-C55) -> 0.9127539321
B44: EHV | C44: =(SUM('FBPQ LR1'!D90:M90)-SUM('FBPQ LR1'!D118:M118)) -> 1.55
B45: 132 kV | C45: =(SUM('FBPQ LR1'!D94:M94)-SUM('FBPQ LR1'!D122:M122)) -> 0
C55: ='Calc-Net capex'!C50/'Calc-Net capex'!C51 -> 0.2393717233
